Workbook

Sheet Instruktion
A1: Instruktion - Så här använder du verktyget | J1: Det här betyder färgerna: | P1: Snabblänkar till bladen i verktyget:
A2: Verktyget är indelat i delar, d v s blad med samma färg och nummer: | J2: Cell med värden hämtade från annan cell | P2: Instruktion
A3: Börja med Bakgrund. Uppgifterna som du fyller i där guidar dig vidare genom resten av verktyget. | J3: Beräkning | P3: Bakgrund
A4: Fyll sedan i 1 Intro djuren och 1.1 Kött. De uppgifterna behövs för att beräkna nyckeltal per djur eller kg kött i resten av verktyget | J4: Fyll i din egen siffra | P4: 1 Intro djuren
A5: Sen kan du välja att fylla i en eller flera delar av verktyget. På vissa blad är det många uppgifter som ska fyllas i för att få fram bra nyckeltal. Det går dock bra att välja ut vissa delar av verktyget och att fylla i delarna efterhand. | J5: Fyll i egen siffra - frivilligt, t ex om du har tillgång till uppgift eller om du vill räkna med annat värde än det schablonvärde som visas i angränsande cell | P5: 1.1 Kött
A6: Resultaten presenteras i samlad form på bladet Resultat. Där får du en överblick över alla de resultat som verktyget hittills har räknat ut åt dig. | J6: Egen uppgift, men välj värde ur rullista. | P6: 1.2 Tillväxt & förökning
J7: Resultat/uträkning | P7: 1.3 Hälsa & dödlighet
A8: Fyll i data så noga du kan! Ju säkrare du är på den ingående datan desto mer nytta kommer du att ha av nyckeltalen. | J8: Schablonvärde | P8: 2 Intro foder
A9: Använd verktyget för att jämföra dig med dig själv under flera perioder. En del av nyckeltalen som du får fram är nya i och med det här verktyget. Därför kan det vara bra att ta hjälp av en rådgivare för att tolka resultaten och jämföra dig med andra som använder verktyget. Genom att använda verktyget flera perioder i rad skapar du dessutom egna medelvärden och du kommer att kunna se både snabba och långsamma förändringar på gården. | J9: Förklaringar till raden | P9: 2.1 Odling foder
J10: Plats för egna kommentarer | P10: 2.1b Halm, odling grovfoder
A11: Tips när du använder Excel: | J11: Glöm inte att fylla i värde! (Här krävs ett värde för att andra beräkningar ska fungera | P11: 2.2 Förluster vid lagring
A12: För att ta bort siffror eller text som du har skrivit i kan du trycka på Delete. Det fungerar även om du har valt ur en lista (orange cell). Se manualen för fler tips! | J12: grå text, ev vit bakgrund: Avsnittet är inte relevant för dig baserat på svaren på ja/nej-frågor på bladet Bakgrund | P12: 2.3 Utfodrat
P13: 2.4 Kasserat foder och spill
P14: 3 Växtnäringsutnyttjande (1)
P15: 3 Växtnäringsutnyttjande (2)
P16: 3 Växtnäringsutnyttjande (3)
P17: 4 Energi och bränsle
P18: 5 Vattenanvändning
P19: 6 Resultat
P20: 6B Klimat
E28: Period | I28: Egen kommentar | J28: Förklaring | K28: WinPig Sugg/Slakt 2019*
C29: Tillväxt | D29: Enhet | E29: 20xx | F29: 20yy | G29: Period3 | K29: Medel | L29: Sugg Bästa 25 % | M29: Slakt Bästa 25% på tillväxt | N29: Slakt Bästa 25 % på foder per kg tillv
C30: Producerade slaktgrisar under perioden | D30: antal | E30: 2500 | F30: 3000 | G30: 0
C31: Beräknad tillväxt slaktsvin | D31: g/dag | E31: 948 | F31: 920 | J31: Har du redan siffror på beräknad tillväxt - ange det här | K31: 948 | M31: 1030 | N31: 999
C32: Foderdagar per slaktgris | D32: dagar | E32: 96 | K32: 96 | M32: 90 | N32: 93
C33: Beräknad total tillväxt slaktgrisar | D33: kg | E33: =E30*E31*E32/1000 -> 227520 | F33: =F30*F31*F32/1000 -> 0 | G33: 0
C34: Antal stallplatser enligt djurskyddslag | D34: stallplatser | J34: Max antal djur enligt djurskyddslag, se din förprövning. Fylls i om du har tillgång till uppgiften
A54: Om projektet: Projektet Effektivare resurshantering på gård pågick 2020-2021 och genomfördes av Hushållningssällskapet på uppdrag av Jordbruksverket. Syftet med projektet var att skapa ett verktyg som genom att samla mätdata på en plats kan ge nya insikter om vilka resurser som kan användas effektivare på djurgårdar. Förutom verktyget finns en manual, en rapport, en kort borschyr, och en kortare sammanfattning av rapporten.

Sheet Bakgrund
A1: Bakgrund | J1: Det här betyder färgerna:
A2: Obligatoriskt blad | J2: Cell med värden hämtade från annan cell
A3: Börja med detta blad. | J3: Beräkning
A4: Här bestämmer du vilken period du vill räkna på samt får svar på vilka delar i verktyget som kan vara mest användbara för dig. | J4: Fyll i din egen siffra
J5: Egen uppgift, men välj värde ur rullista.
J6: Förklaringar till raden
A7: 1.1 Period | J7: Plats för egna kommentarer | R7: =IF(ISBLANK(B11),B10,B11) -> Period 1 | S7: =IF(ISBLANK(C11),C10,C11) -> Period 2 | T7: Period 3 | W7: intervall
A8: I verktyget kan du fylla i uppgifter för tre perioder. En period kan vara ett år (t ex 1 jan-31 dec, 1 juni-31 maj), en omgång, en säsong (t ex betesperioden) eller en del av produktionen. Välj själv! | J8: Schablonvärde | R8: =R7 -> Period 1 | S8: =S7 -> Period 2 | T8: =T7 -> Period 3
A9: Börja med att namnge perioden du ska jobba med. Namnet kommer sedan att följa med i rubrikerna i hela verktyget | Q9: start dag | R9: =DAY(B12) -> 0 | S9: =DAY(C12) -> 0 | T9: =DAY(D12) -> 0
A10: Om perioden | B10: Period 1 | C10: Period 2 | D10: Period 3 | E10: Förklaring | F10: Egen kommentar | Q10: start månad | R10: =MONTH(B12) -> 1 | S10: =MONTH(C12) -> 1 | T10: =MONTH(D12) -> 1
A11: Periodens namn. År, omgång, säsong etc. | E11: Skriv vilken period som du vill att beräkningarna ska göras för, använd siffror och/eller bokstäver. Kan t ex vara ett år (t ex 2021), en omgång (t ex Omgång 1 2021) eller något annat (t ex Betesperioden). Det som du skriver här kommer att kopieras till de efterföljande bladen. | J11: Snabblänkar till bladen i verktyget: | Q11: slut dag | R11: =DAY(B13) -> 0 | S11: =DAY(C13) -> 0 | T11: =DAY(D13) -> 0
A12: Startdatum | E12: Här anger datum för första respektive sista dagen i perioden. Kan t ex skrivas som "01-01-21", "2021-01-01", "1 jan -21", "1 januari 2021", visas som "2021-01-01". Perioden kan vara ett kalenderår, ett odlingsår, en omgång eller liknande. Uppgifterna används på vissa platser för guida hur du ska fylla i verktyget | J12: Instruktion | Q12: slut månad | R12: =MONTH(B13) -> 1 | S12: =MONTH(C13) -> 1 | T12: =MONTH(D13) -> 1
A13: Slutdatum | J13: Bakgrund | Q13: Helt år | R13: =IF(AND(B14>350,B14<370),1,0) -> 0 | S13: =IF(AND(C14>350,C14<370),1,0) -> 0 | T13: 0
A14: Periodens längd (dagar) | B14: =_xlfn.DAYS(B13,B12)+IF(B12>1,1,0) -> 0 | C14: =_xlfn.DAYS(C13,C12)+IF(C12>1,1,0) -> 0 | D14: =_xlfn.DAYS(D13,D12)+IF(D12>1,1,0) -> 0 | E14: Antal dagar i perioden. Beräknas utifrån start- och slutdatum. Om fältet är rött behöver du kontrollera så att start- och slutdatum är rätt och har rätt årtal. | J14: 1 Intro djuren | Q14: kalenderår | R14: =IF(R13=1,IF(OR(R10=1,R10=12),1,0),0) -> 0 | S14: =IF(S13=1,IF(OR(S10=1,S10=12),1,0),0) -> 0 | T14: 0
J15: 1.1 Kött | Q15: växtodlingsår | R15: =IF(R13=1,IF(AND(R10>$W15,R10<$X15),1,0),0) -> 0 | S15: =IF(S13=1,IF(AND(S10>$W15,S10<$X15),1,0),0) -> 0 | T15: =IF(T13=1,IF(AND(T10>$W15,T10<$X15),1,0),0) -> 0 | W15: 4.9 | X15: 9.9
J16: 1.2 Tillväxt & förökning
A17: 1.2 Guidning till verktyget | J17: 1.3 Hälsa & dödlighet
A18: Inledande frågor | J18: 2 Intro foder
A19: Svara på följande ja/nej-frågor. Svaren kommer att guida dig genom verktyget och används för att visa vilka delar som är användbara för just dig. | J19: 2.1 Odling foder
A20: Dina svar avgör om det står Obligatoriskt, Frivilligt eller Inte relevant i cell A2 på varje blad. Svaren används även för att "släcka" (d v s grå text och vit bakgrund) vissa tabeller och rader som inte är relevanta för dig. | J20: 2.1b Halm, odling grovfoder
A21: Om du är osäker på vad du ska svara är det bäst att välja "ja". Då visas alla avsnitt senare i verktyget som hör till frågan, och du kan själv välja om du vill fylla i avsnittet. | J21: 2.2 Förluster vid lagring
A22: Klicka i cellen så visas en grå ruta med pil till höger om cellen. Klicka på pilen och välj alternativ ur listan! Ändra svar genom att göra ett nytt val. Ta bort ett svar genom att radera det. | J22: 2.3 Utfodrat
A23: Generellt | B23: Svar (ja/nej) | C23: Förklaring till frågan och svaret | J23: 2.4 Kasserat foder och spill | AN23: Ja | AO23: Nej | AP23: Har uppföljningssystem | AQ23: Har mark | AR23: Skördar grödor | AS23: Köper foder | AT23: Säljre grödor | AU23: växtnäringbalans period1 | AV23: växtnäringbalans period2 | AW23: växtnäringbalans period3 | AX23: vatten | AY23: energi | AZ23: Nöt: hondjur | BA23: Nöt: inköp kalvar | BB23: Bete? | BC23: Smågrisa | BD23: Slaktgrisa | BE23: Klimat | BF23: vinterlamm | BG23: Intresserad av foderåtgång | BH23: Intresserad av foderförluster | BI23: Intresserad växtnäring | BJ23: Visa bladet Halm & grovfoder
A24: ='Teknisk administration'!A504 -> Vill du ta fram nyckeltal om foderåtgång? | C24: =IF(ISTEXT(B24),IF(B24='Teknisk administration'!B$502,'Teknisk administration'!B504,'Teknisk administration'!C504),IF(ISTEXT(A24),'Teknisk administration'!D504,'Teknisk administration'!$A$501)) -> Ja = del 2 i verktyget (om foder) kommer att visas. Nej = del 2 i verktyget är inte relevant för dig | J24: 3 Växtnäringsutnyttjande (1) | AN24: =IF(B24=AN$23,1,0) -> 0 | AO24: =IF(B24=AO$23,1,0) -> 0 | AQ24: =(1-$AO24)*'Teknisk administration'!I504 -> 0 | AR24: =(1-$AO24)*'Teknisk administration'!J504 -> 0 | AS24: =$AN24*'Teknisk administration'!K504 -> 0 | AT24: =(1-$AO24)*'Teknisk administration'!L504 -> 0 | AU24: =$AN24*'Teknisk administration'!M504 -> 0 | AV24: =$AN24*'Teknisk administration'!N504 -> 0 | AW24: =$AN24*'Teknisk administration'!O504 -> 0 | AX24: =(1-$AO24)*'Teknisk administration'!P504 -> 0 | AY24: =(1-$AO24)*'Teknisk administration'!Q504 -> 0 | BG24: =(1-$AO24)*'Teknisk administration'!Y504 -> 1 | BH24: =(1-$AO24)*'Teknisk administration'!Z504 -> 0 | BI24: =$AN24*'Teknisk administration'!AA504 -> 0 | BJ24: =$AN24*'Teknisk administration'!AB504 -> 0
A25: ='Teknisk administration'!A505 -> Vill du beräkna förlusterna i foderkedjan? | C25: =IF(ISTEXT(B25),IF(B25='Teknisk administration'!B$502,'Teknisk administration'!B505,'Teknisk administration'!C505),IF(ISTEXT(A25),'Teknisk administration'!D505,'Teknisk administration'!$A$501)) -> Ja = del 2 i verktyget (om foder) kommer att visas. Nej = del 2 i verktyget är inte relevant för dig | J25: 3 Växtnäringsutnyttjande (2) | AN25: 0 | AO25: 0 | AQ25: =(1-AO25)*'Teknisk administration'!I505 -> 0 | AR25: =(1-$AO25)*'Teknisk administration'!J505 -> 0 | AS25: =AN25*'Teknisk administration'!K505 -> 0 | AT25: =(1-$AO25)*'Teknisk administration'!L505 -> 0 | AU25: =$AN25*'Teknisk administration'!M505 -> 0 | AV25: =$AN25*'Teknisk administration'!N505 -> 0 | AW25: =$AN25*'Teknisk administration'!O505 -> 0 | AX25: =(1-$AO25)*'Teknisk administration'!P505 -> 0 | AY25: =(1-$AO25)*'Teknisk administration'!Q505 -> 0 | BG25: =(1-AO25)*'Teknisk administration'!Y505 -> 0 | BH25: =(1-$AO25)*'Teknisk administration'!Z505 -> 1 | BI25: =$AN25*'Teknisk administration'!AA505 -> 0 | BJ25: =$AN25*'Teknisk administration'!AB505 -> 0
A26: ='Teknisk administration'!A506 -> Skördar du eget foder till djuren? | C26: =IF(ISTEXT(B26),IF(B26='Teknisk administration'!B$502,'Teknisk administration'!B506,'Teknisk administration'!C506),IF(ISTEXT(A26),'Teknisk administration'!D506,'Teknisk administration'!$A$501)) -> Välj "ja" eller "nej" i den orange cellen | J26: 3 Växtnäringsutnyttjande (3) | AN26: 0 | AO26: 0 | AQ26: =(1-AO26)*'Teknisk administration'!I506 -> 1 | AR26: =(1-$AO26)*'Teknisk administration'!J506 -> 1 | AS26: =AN26*'Teknisk administration'!K506 -> 0 | AT26: =(1-$AO26)*'Teknisk administration'!L506 -> 0 | AU26: =$AN26*'Teknisk administration'!M506 -> 0 | AV26: =$AN26*'Teknisk administration'!N506 -> 0 | AW26: =$AN26*'Teknisk administration'!O506 -> 0 | AX26: =(1-$AO26)*'Teknisk administration'!P506 -> 0 | AY26: =(1-$AO26)*'Teknisk administration'!Q506 -> 0 | BG26: =(1-AO26)*'Teknisk administration'!Y506 -> 0 | BH26: =(1-$AO26)*'Teknisk administration'!Z506 -> 0 | BI26: =$AN26*'Teknisk administration'!AA506 -> 0 | BJ26: =$AN26*'Teknisk administration'!AB506 -> 0
A27: ='Teknisk administration'!A507 -> Bärgar du halm? | C27: =IF(ISTEXT(B27),IF(B27='Teknisk administration'!B$502,'Teknisk administration'!B507,'Teknisk administration'!C507),IF(ISTEXT(A27),'Teknisk administration'!D507,'Teknisk administration'!$A$501)) -> Välj "ja" eller "nej" i den orange cellen | J27: 4 Energi och bränsle | AN27: 0 | AO27: 0 | AQ27: =(1-AO27)*'Teknisk administration'!I507 -> 0 | AR27: =(1-$AO27)*'Teknisk administration'!J507 -> 0 | AS27: =AN27*'Teknisk administration'!K507 -> 0 | AT27: =(1-$AO27)*'Teknisk administration'!L507 -> 0 | AU27: =$AN27*'Teknisk administration'!M507 -> 0 | AV27: =$AN27*'Teknisk administration'!N507 -> 0 | AW27: =$AN27*'Teknisk administration'!O507 -> 0 | AX27: =(1-$AO27)*'Teknisk administration'!P507 -> 0 | AY27: =(1-$AO27)*'Teknisk administration'!Q507 -> 0 | BG27: =(1-AO27)*'Teknisk administration'!Y507 -> 0 | BH27: =(1-$AO27)*'Teknisk administration'!Z507 -> 0 | BI27: =$AN27*'Teknisk administration'!AA507 -> 0 | BJ27: =$AN27*'Teknisk administration'!AB507 -> 0
A28: ='Teknisk administration'!A508 -> Skördar du ensilage, hö, hösilage eller grönfoder? | C28: =IF(ISTEXT(B28),IF(B28='Teknisk administration'!B$502,'Teknisk administration'!B508,'Teknisk administration'!C508),IF(ISTEXT(A28),'Teknisk administration'!D508,'Teknisk administration'!$A$501)) -> Välj "ja" eller "nej" i den orange cellen | J28: 5 Vattenanvändning | AN28: 0 | AO28: 0 | AQ28: =(1-AO28)*'Teknisk administration'!I508 -> 0 | AR28: =(1-$AO28)*'Teknisk administration'!J508 -> 0 | AS28: =AN28*'Teknisk administration'!K508 -> 0 | AT28: =(1-$AO28)*'Teknisk administration'!L508 -> 0 | AU28: =$AN28*'Teknisk administration'!M508 -> 0 | AV28: =$AN28*'Teknisk administration'!N508 -> 0 | AW28: =$AN28*'Teknisk administration'!O508 -> 0 | AX28: =(1-$AO28)*'Teknisk administration'!P508 -> 0 | AY28: =(1-$AO28)*'Teknisk administration'!Q508 -> 0 | BG28: =(1-AO28)*'Teknisk administration'!Y508 -> 0 | BH28: =(1-$AO28)*'Teknisk administration'!Z508 -> 0 | BI28: =$AN28*'Teknisk administration'!AA508 -> 0 | BJ28: =$AN28*'Teknisk administration'!AB508 -> 0
A29: ='Teknisk administration'!A509 -> Säljer du grödor som du har odlat? | C29: =IF(ISTEXT(B29),IF(B29='Teknisk administration'!B$502,'Teknisk administration'!B509,'Teknisk administration'!C509),IF(ISTEXT(A29),'Teknisk administration'!D509,'Teknisk administration'!$A$501)) -> Välj "ja" eller "nej" i den orange cellen | J29: 6 Resultat | AN29: 0 | AO29: 0 | AQ29: =(1-AO29)*'Teknisk administration'!I509 -> 1 | AR29: =(1-$AO29)*'Teknisk administration'!J509 -> 1 | AS29: =AN29*'Teknisk administration'!K509 -> 0 | AT29: =(1-$AO29)*'Teknisk administration'!L509 -> 1 | AU29: =$AN29*'Teknisk administration'!M509 -> 0 | AV29: =$AN29*'Teknisk administration'!N509 -> 0 | AW29: =$AN29*'Teknisk administration'!O509 -> 0 | AX29: =(1-$AO29)*'Teknisk administration'!P509 -> 0 | AY29: =(1-$AO29)*'Teknisk administration'!Q509 -> 0 | BG29: =(1-AO29)*'Teknisk administration'!Y509 -> 0 | BH29: =(1-$AO29)*'Teknisk administration'!Z509 -> 0 | BI29: =$AN29*'Teknisk administration'!AA509 -> 0 | BJ29: =$AN29*'Teknisk administration'!AB509 -> 0
A30: ='Teknisk administration'!A510 -> Vill du beräkna växtnäringsutnyttjandet? | C30: =IF(ISTEXT(B30),IF(B30='Teknisk administration'!B$502,'Teknisk administration'!B510,'Teknisk administration'!C510),IF(ISTEXT(A30),'Teknisk administration'!D510,'Teknisk administration'!$A$501)) -> Ja = del 3 i verktyget (om växtnäringsutnyttjande) kommer att visas. Nej = del 3 är inte relevant för dig | J30: 6B Klimat | AN30: 0 | AO30: 0 | AQ30: =(1-AO30)*'Teknisk administration'!I510 -> 0 | AR30: =(1-$AO30)*'Teknisk administration'!J510 -> 0 | AS30: =AN30*'Teknisk administration'!K510 -> 0 | AT30: =(1-$AO30)*'Teknisk administration'!L510 -> 0 | AU30: =$AN30*'Teknisk administration'!M510 -> 0 | AV30: =$AN30*'Teknisk administration'!N510 -> 0 | AW30: =$AN30*'Teknisk administration'!O510 -> 0 | AX30: =(1-$AO30)*'Teknisk administration'!P510 -> 0 | AY30: =(1-$AO30)*'Teknisk administration'!Q510 -> 0 | BG30: =(1-AO30)*'Teknisk administration'!Y510 -> 0 | BH30: =(1-$AO30)*'Teknisk administration'!Z510 -> 0 | BI30: =$AN30*'Teknisk administration'!AA510 -> 0 | BJ30: =$AN30*'Teknisk administration'!AB510 -> 0
A31: ='Teknisk administration'!A511 -> Har du en aktuell växtnäringsbalans för perioden: | C31: =IF(ISTEXT(B31),IF(B31='Teknisk administration'!B$502,'Teknisk administration'!B511,'Teknisk administration'!C511),IF(ISTEXT(A31),'Teknisk administration'!D511,'Teknisk administration'!$A$501)) -> T ex från Greppa Näringen. Användbart om du vill beräkna växtnäringsutnyttjande | AN31: 0 | AO31: 0 | AQ31: =(1-AO31)*'Teknisk administration'!I511 -> 0 | AR31: =(1-$AO31)*'Teknisk administration'!J511 -> 0 | AS31: =AN31*'Teknisk administration'!K511 -> 0 | AT31: =(1-$AO31)*'Teknisk administration'!L511 -> 0 | AU31: =$AN31*'Teknisk administration'!M511 -> 0 | AV31: =$AN31*'Teknisk administration'!N511 -> 0 | AW31: =$AN31*'Teknisk administration'!O511 -> 0 | AX31: =(1-$AO31)*'Teknisk administration'!P511 -> 0 | AY31: =(1-$AO31)*'Teknisk administration'!Q511 -> 0 | BG31: =(1-AO31)*'Teknisk administration'!Y511 -> 0 | BH31: =(1-$AO31)*'Teknisk administration'!Z511 -> 0 | BI31: =$AN31*'Teknisk administration'!AA511 -> 0 | BJ31: =$AN31*'Teknisk administration'!AB511 -> 0
A32: ='Teknisk administration'!A512 -> - Period 1 | C32: =IF(ISTEXT(B32),IF(B32='Teknisk administration'!B$502,'Teknisk administration'!B512,'Teknisk administration'!C512),IF(ISTEXT(A32),'Teknisk administration'!D512,'Teknisk administration'!$A$501)) -> Svara ja eller nej när du ska fylla i uppgifter för period 1 | AN32: 0 | AO32: 0 | AQ32: =(1-AO32)*'Teknisk administration'!I512 -> 0 | AR32: =(1-$AO32)*'Teknisk administration'!J512 -> 0 | AS32: =AN32*'Teknisk administration'!K512 -> 0 | AT32: =(1-$AO32)*'Teknisk administration'!L512 -> 0 | AU32: =$AN32*'Teknisk administration'!M512 -> 0 | AV32: =$AN32*'Teknisk administration'!N512 -> 0 | AW32: =$AN32*'Teknisk administration'!O512 -> 0 | AX32: =(1-$AO32)*'Teknisk administration'!P512 -> 0 | AY32: =(1-$AO32)*'Teknisk administration'!Q512 -> 0 | BG32: =(1-AO32)*'Teknisk administration'!Y512 -> 0 | BH32: =(1-$AO32)*'Teknisk administration'!Z512 -> 0 | BI32: =$AN32*'Teknisk administration'!AA512 -> 0 | BJ32: =$AN32*'Teknisk administration'!AB512 -> 0
A33: ='Teknisk administration'!A513 -> - Period 2 | C33: =IF(ISTEXT(B33),IF(B33='Teknisk administration'!B$502,'Teknisk administration'!B513,'Teknisk administration'!C513),IF(ISTEXT(A33),'Teknisk administration'!D513,'Teknisk administration'!$A$501)) -> Svara ja eller nej när du ska fylla i uppgifter för period 2 | AN33: 0 | AO33: 0 | AQ33: =(1-AO33)*'Teknisk administration'!I513 -> 0 | AR33: =(1-$AO33)*'Teknisk administration'!J513 -> 0 | AS33: =AN33*'Teknisk administration'!K513 -> 0 | AT33: =(1-$AO33)*'Teknisk administration'!L513 -> 0 | AU33: =$AN33*'Teknisk administration'!M513 -> 0 | AV33: =$AN33*'Teknisk administration'!N513 -> 0 | AW33: =$AN33*'Teknisk administration'!O513 -> 0 | AX33: =(1-$AO33)*'Teknisk administration'!P513 -> 0 | AY33: =(1-$AO33)*'Teknisk administration'!Q513 -> 0 | BG33: =(1-AO33)*'Teknisk administration'!Y513 -> 0 | BH33: =(1-$AO33)*'Teknisk administration'!Z513 -> 0 | BI33: =$AN33*'Teknisk administration'!AA513 -> 0 | BJ33: =$AN33*'Teknisk administration'!AB513 -> 0
A34: ='Teknisk administration'!A514 -> - Period 3 | C34: =IF(ISTEXT(B34),IF(B34='Teknisk administration'!B$502,'Teknisk administration'!B514,'Teknisk administration'!C514),IF(ISTEXT(A34),'Teknisk administration'!D514,'Teknisk administration'!$A$501)) -> Svara ja eller nej när du ska fylla i uppgifter för period 3 | AN34: 0 | AO34: 0 | AQ34: =(1-AO34)*'Teknisk administration'!I514 -> 0 | AR34: =(1-$AO34)*'Teknisk administration'!J514 -> 0 | AS34: =AN34*'Teknisk administration'!K514 -> 0 | AT34: =(1-$AO34)*'Teknisk administration'!L514 -> 0 | AU34: =$AN34*'Teknisk administration'!M514 -> 0 | AV34: =$AN34*'Teknisk administration'!N514 -> 0 | AW34: =$AN34*'Teknisk administration'!O514 -> 0 | AX34: =(1-$AO34)*'Teknisk administration'!P514 -> 0 | AY34: =(1-$AO34)*'Teknisk administration'!Q514 -> 0 | BG34: =(1-AO34)*'Teknisk administration'!Y514 -> 0 | BH34: =(1-$AO34)*'Teknisk administration'!Z514 -> 0 | BI34: =$AN34*'Teknisk administration'!AA514 -> 0 | BJ34: =$AN34*'Teknisk administration'!AB514 -> 0
A35: ='Teknisk administration'!A515 -> Är du intresserad av vattenfrågor ? | C35: =IF(ISTEXT(B35),IF(B35='Teknisk administration'!B$502,'Teknisk administration'!B515,'Teknisk administration'!C515),IF(ISTEXT(A35),'Teknisk administration'!D515,'Teknisk administration'!$A$501)) -> Välj "ja" eller "nej" i den orange cellen | AN35: 0 | AO35: 0 | AQ35: =(1-AO35)*'Teknisk administration'!I515 -> 0 | AR35: =(1-$AO35)*'Teknisk administration'!J515 -> 0 | AS35: =AN35*'Teknisk administration'!K515 -> 0 | AT35: =(1-$AO35)*'Teknisk administration'!L515 -> 0 | AU35: =$AN35*'Teknisk administration'!M515 -> 0 | AV35: =$AN35*'Teknisk administration'!N515 -> 0 | AW35: =$AN35*'Teknisk administration'!O515 -> 0 | AX35: =(1-$AO35)*'Teknisk administration'!P515 -> 1 | AY35: =(1-$AO35)*'Teknisk administration'!Q515 -> 0 | BG35: =(1-AO35)*'Teknisk administration'!Y515 -> 0 | BH35: =(1-$AO35)*'Teknisk administration'!Z515 -> 0 | BI35: =$AN35*'Teknisk administration'!AA515 -> 0 | BJ35: =$AN35*'Teknisk administration'!AB515 -> 0
A36: ='Teknisk administration'!A516 -> Är du intresserad av energifrågor ? | C36: =IF(ISTEXT(B36),IF(B36='Teknisk administration'!B$502,'Teknisk administration'!B516,'Teknisk administration'!C516),IF(ISTEXT(A36),'Teknisk administration'!D516,'Teknisk administration'!$A$501)) -> Välj "ja" eller "nej" i den orange cellen | AN36: 0 | AO36: 0 | AQ36: =(1-AO36)*'Teknisk administration'!I516 -> 0 | AR36: =(1-$AO36)*'Teknisk administration'!J516 -> 0 | AS36: =AN36*'Teknisk administration'!K516 -> 0 | AT36: =(1-$AO36)*'Teknisk administration'!L516 -> 0 | AU36: =$AN36*'Teknisk administration'!M516 -> 0 | AV36: =$AN36*'Teknisk administration'!N516 -> 0 | AW36: =$AN36*'Teknisk administration'!O516 -> 0 | AX36: =(1-$AO36)*'Teknisk administration'!P516 -> 0 | AY36: =(1-$AO36)*'Teknisk administration'!Q516 -> 1 | BG36: =(1-AO36)*'Teknisk administration'!Y516 -> 0 | BH36: =(1-$AO36)*'Teknisk administration'!Z516 -> 0 | BI36: =$AN36*'Teknisk administration'!AA516 -> 0 | BJ36: =$AN36*'Teknisk administration'!AB516 -> 0
AQ37: =SUM(AQ24:AQ36) -> 2 | AR37: 2 | AS37: 0 | AT37: 1 | AU37: 0 | AV37: 0 | AW37: 0 | AX37: 1 | AY37: 1 | BG37: =SUM(BG24:BG36) -> 1 | BH37: =SUM(BH24:BH36) -> 1 | BI37: =SUM(BI24:BI36) -> 0 | BJ37: =SUM(BJ24:BJ36) -> 0
A39: Om djuren | B39: Svar (ja/nej) | C39: Förklaring till frågan och svaret | AN39: Ja | AO39: Nej | AP39: Har uppföljningssystem | AQ39: Har mark | AR39: Skördar grödor | AS39: Köper foder | AT39: Säljre grödor | AU39: växtnäringbalans period1 | AV39: växtnäringbalans period2 | AW39: växtnäringbalans period3 | AX39: vatten | AY39: energi | AZ39: Nöt: hondjur | BA39: Nöt: inköp kalvar | BB39: Bete? | BC39: Smågrisa | BD39: Slaktgrisa | BE39: Klimat | BF39: vinterlamm | BG39: Intresserad av foderåtgång | BH39: Intresserad av foderförluster | BI39: Intresserad växtnäring | BJ39: Kolumn19 | BK39: Kolumn19 | BL39: Kolumn19 | BM39: Kolumn19 | BN39: Kolumn19 | BO39: Kolumn19 | BP39: Kolumn19 | BQ39: Kolumn19
A40: ='Teknisk administration'!A520 -> Har du smågrisproduktion? | C40: =IF(ISTEXT(B40),IF(B40='Teknisk administration'!B$502,'Teknisk administration'!B520,'Teknisk administration'!C520),IF(ISTEXT(A40),'Teknisk administration'!D520,'Teknisk administration'!$A$501)) -> Välj "ja" eller "nej" i den orange cellen | AN40: =IF(B40=AN$39,1,0) -> 0 | AO40: =IF(B40=AO$39,1,0) -> 0 | AP40: =$AN40*'Teknisk administration'!H520 -> 0 | BB40: =AN40*'Teknisk administration'!T520 -> 0 | BC40: =(1-$AO40)*'Teknisk administration'!U520 -> 1 | BD40: =(1-AO40)*'Teknisk administration'!V520 -> 0
A41: ='Teknisk administration'!A521 -> Har du slaktgrisproduktion? | C41: =IF(ISTEXT(B41),IF(B41='Teknisk administration'!B$502,'Teknisk administration'!B521,'Teknisk administration'!C521),IF(ISTEXT(A41),'Teknisk administration'!D521,'Teknisk administration'!$A$501)) -> Välj "ja" eller "nej" i den orange cellen | AN41: 0 | AO41: 0 | AP41: =$AN41*'Teknisk administration'!H521 -> 0 | BB41: =AN41*'Teknisk administration'!T521 -> 0 | BC41: =(1-$AO41)*'Teknisk administration'!U521 -> 0 | BD41: =(1-AO41)*'Teknisk administration'!V521 -> 1
A42: ='Teknisk administration'!A522 -> Har du ett uppföljningsprogram (t ex WinPig eller PigWin) där du kan hämta uppgifter om tillväxt | C42: =IF(ISTEXT(B42),IF(B42='Teknisk administration'!B$502,'Teknisk administration'!B522,'Teknisk administration'!C522),IF(ISTEXT(A42),'Teknisk administration'!D522,'Teknisk administration'!$A$501)) -> Välj "ja" eller "nej" i den orange cellen | AN42: 0 | AO42: 0 | AP42: =$AN42*'Teknisk administration'!H522 -> 0 | BB42: =AN42*'Teknisk administration'!T522 -> 0 | BC42: =(1-$AO42)*'Teknisk administration'!U522 -> 0 | BD42: =(1-AO42)*'Teknisk administration'!V522 -> 0
A43: ='Teknisk administration'!A523 -> Går djuren utomhus? | C43: =IF(ISTEXT(B43),IF(B43='Teknisk administration'!B$502,'Teknisk administration'!B523,'Teknisk administration'!C523),IF(ISTEXT(A43),'Teknisk administration'!D523,'Teknisk administration'!$A$501)) -> Välj "ja" eller "nej" i den orange cellen | AN43: 0 | AO43: 0 | AP43: =$AN43*'Teknisk administration'!H523 -> 0 | BB43: =AN43*'Teknisk administration'!T523 -> 0 | BC43: =(1-$AO43)*'Teknisk administration'!U523 -> 0 | BD43: =(1-AO43)*'Teknisk administration'!V523 -> 0
A44: ='Teknisk administration'!A524 -> Är du intresserad av klimatfrågor? | C44: =IF(ISTEXT(B44),IF(B44='Teknisk administration'!B$502,'Teknisk administration'!B524,'Teknisk administration'!C524),IF(ISTEXT(A44),'Teknisk administration'!D524,'Teknisk administration'!$A$501)) -> Välj "ja" eller "nej" i den orange cellen | AN44: 0 | AO44: 0 | AP44: =$AN44*'Teknisk administration'!H524 -> 0 | BB44: =AN44*'Teknisk administration'!T524 -> 0 | BC44: =(1-$AO44)*'Teknisk administration'!U524 -> 0 | BD44: =(1-AO44)*'Teknisk administration'!V524 -> 0
AN45: 0 | AO45: 0 | AP45: =$AN45*'Teknisk administration'!H525 -> 0 | BB45: =AN45*'Teknisk administration'!T525 -> 0 | BC45: =(1-$AO45)*'Teknisk administration'!U525 -> 0 | BD45: =(1-AO45)*'Teknisk administration'!V525 -> 0
AN46: 0 | AO46: 0 | AP46: =$AN46*'Teknisk administration'!H526 -> 0 | BB46: =AN46*'Teknisk administration'!T526 -> 0 | BC46: =(1-$AO46)*'Teknisk administration'!U526 -> 0 | BD46: =(1-AO46)*'Teknisk administration'!V526 -> 0
AP47: =SUM(AP40:AP46) -> 0 | BB47: =SUM(BB40:BB46) -> 0 | BC47: =SUM(BC40:BC46) -> 1 | BD47: =SUM(BD40:BD46) -> 1
BB57: 0 | BF57: 0

Sheet 1 Intro djuren
A1: 1 Intro djuren
A2: Obligatoriskt blad | I2: Det här betyder färgerna:
A3: På detta blad fyller du i uppgifter om djuren. Vissa uppgifter används på flera platser, så därför ska du fylla i dem på detta blad så förs de över till kommande blad. | I3: Cell med värden hämtade från annan cell
A4: På bladet "Tillväxt och förökning" beräknar du bland annat mängden producerat kött. Uppgiften används i många nyckeltal i resultatdelen, så därför är det viktigt att du fyller i noggrant för att resultatet ska bli så bra som möjligt. | I4: Fyll i din egen siffra
I5: Möjligt fylla i eget värde, om du har
I6: Resultat/uträkning
A7: Obligatoriska och frivilliga blad: En del blad har markerats som obligatoriska, och data som du lägger in på dem kommer automatiskt att dyka upp på flera platser där de behövs. Det finns även blad som är frivilliga eftersom de inte är relevanta för alla produktionsinriktningar. Data som du lägger in på frivilliga blad kan du behöva skriva in flera gånger, eftersom verktyget inte vet på förhand vad som kommer att vara relevant och inte för just dig. | I7: Förklaringar till raden
A8: Ljusgrå text och vit bakgrund - avsnittet är inte relevant för dig baserat på svaren på Ja/Nej-frågorna på Bakgrund | I8: Plats för egna kommentarer
I9: grå text, ev vit bakgrund: Avsnittet är inte relevant för dig baserat på svaren på ja/nej-frågor på bladet Bakgrund
A11: I tabellen nedan får du en kort beskrivning av bladen i del 1, och instruktion huruvida du behöver fylla i bladet. | I11: Snabblänkar till bladen i verktyget:
A12: Del 1. Djuren | B12: Ska bladet fyllas i? | C12: Om bladet | I12: Instruktion
A13: 1 Intro djuren | B13: ='Teknisk administration'!G4 -> obligatoriskt | C13: Ange antal djur. Uppgifterna används på andra blad | I13: Bakgrund
A14: 1.1 Kött | B14: ='Teknisk administration'!G4 -> obligatoriskt | C14: Ange eller beräkna mängd producerat kött. Resultatet används i många nyckeltal | I14: 1 Intro djuren
A15: 1.2 Tillväxt & förökning | B15: ='Teknisk administration'!G5 -> frivilligt | C15: Nyckeltal för tillväxt, suggornas produktivitet, rekrytering | I15: 1.1 Kött
A16: 1.3 Hälsa & dödlighet | B16: ='Teknisk administration'!G5 -> frivilligt | C16: Förekomst och kostnader för sjukdomar och ohälsa. Dödlighet i olika åldersgrupper | I16: 1.2 Tillväxt & förökning
I17: 1.3 Hälsa & dödlighet
I18: 2 Intro foder
I19: 2.1 Odling foder
I20: 2.1b Halm, odling grovfoder
I21: 2.2 Förluster vid lagring
I22: 2.3 Utfodrat
A23: Fyll i antal djur samt stallplatser i gula celler. Om en kategori inte är relavant lämnar du cellen tom. | I23: 2.4 Kasserat foder och spill
A24: Antal grisar | B24: Enhet | C24: =Bakgrund!R$7 -> Period 1 | D24: =Bakgrund!S$7 -> Period 2 | E24: =Bakgrund!T$7 -> Period 3 | F24: Förklaring | G24: Egen kommentar | I24: 3 Växtnäringsutnyttjande (1)
A25: Medelantal suggor under perioden (SIP) | B25: antal | I25: 3 Växtnäringsutnyttjande (2)
A26: Producerade smågrisar per årssugga WinPig (frivilligt) | B26: smågrisar/årssugga | I26: 3 Växtnäringsutnyttjande (3)
A27: Producerade smågrisar under perioden | B27: antal | I27: 4 Energi och bränsle
A28: Antal kullar per sugga under perioden | B28: antal | I28: 5 Vattenanvändning
A29: Sålda smågrisar under perioden | B29: antal | I29: 6 Resultat
A30: Köpta smågrisar under perioden | B30: antal | I30: 6B Klimat
A31: Producerade slaktgrisar under perioden | B31: antal
A32: Antal omgångar per slaktsvinsplats under perioden | B32: antal
A33: Totalt antal djur i besättningen | B33: antal | C33: =(C25+C27/IF(C28=0,1,C28)+ C31/IF(C32=0,1,C32)) -> 0 | D33: =(D25+D27/IF(D28=0,1,D28)+ D31/IF(D32=0,1,D32)) -> 0 | E33: =(E25+E27/IF(E28=0,1,E28)+ E31/IF(E32=0,1,E32)) -> 0 | F33: Används på bladet Vattenanvändning
A35: Stallplatser
A36: Antal stallplatser enligt djurskyddslag | B36: stallplatser | F36: Max antal djur enligt djurskyddslag, se din förprövning. Fylls i om du har tillgång till uppgiften
A37: Eget mål för antal stallplatser | B37: stallplatser | F37: Så många djur som i praktiken önskas/bedöms lagom

Sheet 1.1 Kött
A1: 1.1 Kött | M1: =C10 -> Period 1 | N1: =D10 -> Period 2 | O1: =E10 -> Period 3 | P1: slaktgris | Q1: smågris | R1: livdjur | Y1: Det här betyder färgerna:
A2: =VLOOKUP('1 Intro djuren'!B14,'Teknisk administration'!G4:H6,2,FALSE) -> Obligatoriskt blad | Y2: Cell med värden hämtade från annan cell
A3: Här beräknas hur mycket kött som producerats under perioden. De flesta nyckeltal räknas på kg kött, och det betyder att det är viktigt att fylla i noggrant för att få rättvisande nyckeltal | Y3: Fyll i din egen siffra
A4: Mängden beräknas som netto, d v s sålda djur till liv och slakt minus inköpta djur. Hänsyn kan även tas till förändring i levandelager, så om djurantalet ökat kan man räkna med en större mängd producerat kött. | Y4: Fyll i egen siffra - frivilligt, t ex om du har tillgång till uppgift eller om du vill räkna med annat värde än det schablonvärde som visas i angränsande cell
A5: Mängden uttrycks som kg kött (kg slaktvikt), och omräkning gör därför från levandevikt till slaktvikt för att få en gemensam räknebas. | Y5: Resultat/uträkning
A6: Ljusgrå text och vit bakgrund - avsnittet är inte relevant för dig baserat på svaren på Ja/Nej-frågorna på Bakgrund | Y6: Schablonvärde
Y7: Förklaringar till raden
A8: Inköpta djur | Y8: Plats för egna kommentarer
A9: Alternativ 1: Har du verklig mängd inköpta smågrisar och livdjur i levande vikt - ange det här | F9: Förklaring | K9: Egen kommentar | Y9: grå text, ev vit bakgrund: Avsnittet är inte relevant för dig baserat på svaren på ja/nej-frågor på bladet Bakgrund
A10: Djurkategori | B10: Enhet | C10: =Bakgrund!R$7 -> Period 1 | D10: =Bakgrund!S$7 -> Period 2 | E10: =Bakgrund!T$7 -> Period 3 | F10: Här anger du inköpta djur. Uppgifterna används för att beräkna hur mycket kött som producerats netto, d v s efter avdrag för inköpta djur
A11: Smågrisar | B11: kg | M11: =-C11/1.34 -> 0 | N11: 0 | O11: 0 | P11: 1 | Y11: Snabblänkar till bladen i verktyget:
A12: Gyltämnen | B12: kg | M12: 0 | N12: 0 | O12: 0 | R12: 1 | Y12: Instruktion
A13: Obetäcka gyltor | B13: kg | M13: 0 | N13: 0 | O13: 0 | R13: 1 | Y13: Bakgrund
A14: Betäckningsfärdiga gyltor | B14: kg | M14: 0 | N14: 0 | O14: 0 | R14: 1 | Y14: 1 Intro djuren
A15: Dräktiga gyltor | B15: kg | M15: 0 | N15: 0 | O15: 0 | R15: 1 | Y15: 1.1 Kött
A16: Totalt inköpta djur i levande vikt | B16: kg | C16: =SUM(C11:C15) -> 0 | D16: =SUM(D11:D15) -> 0 | E16: 0 | Y16: 1.2 Tillväxt & förökning
A17: Total inköpta djur omräknat till kött | B17: kg | C17: =C16/1.34 -> 0 | D17: =D16/1.34 -> 0 | E17: 0 | F17: Omräknat till kg kött, slaktutbytesfaktor 1,34 | Y17: 1.3 Hälsa & dödlighet
Y18: 2 Intro foder
A19: Alternativ 2: Vill du beräkna mängden inköpta grisar i levande vikt utifrån antal och medelvikt - gör det här | Y19: 2.1 Odling foder
A20: Djurkategori och medelvikt | B20: Enhet | C20: =Bakgrund!R$7 -> Period 1 | D20: =Bakgrund!S$7 -> Period 2 | E20: =Bakgrund!T$7 -> Period 3 | F20: Här anger du antal inköpta djur och derasmedelvikt. Uppgifterna används för att beräkna hur mycket kött som producerats netto, d v s efter avdrag för inköpta djur | Y20: 2.1b Halm, odling grovfoder
A21: Antal inköpta smågrisar | B21: styck | C21: ='1 Intro djuren'!C30 -> 0 | D21: ='1 Intro djuren'!D30 -> 0 | E21: ='1 Intro djuren'!E30 -> 0 | F21: Antal inköpta smågrisar under hela perioden | M21: =IF(M11=0,-C21*C22/1.34,0) -> 0 | N21: =IF(N11=0,-D21*D22/1.34,0) -> 0 | O21: 0 | P21: 1 | Y21: 2.2 Förluster vid lagring
A22: Smågrisarnas vikt | B22: kg per djur | C22: 30 | D22: 30 | E22: 30 | F22: Genomsnittlig vikt. Behåll värde eller ändra | Y22: 2.3 Utfodrat
A23: Antal inköpta gyltämnen | B23: styck | M23: =IF(M12=0,-C23*C24/1.34,0) -> 0 | N23: =IF(N12=0,-D23*D24/1.34,0) -> 0 | O23: 0 | R23: 1 | Y23: 2.4 Kasserat foder och spill
A24: Gyltämnens vikt | B24: kg per djur | C24: 30 | D24: 30 | E24: 30 | F24: Genomsnittlig vikt. Behåll värde eller ändra | Y24: 3 Växtnäringsutnyttjande (1)
A25: Antal inköpta obetäckta gyltor | B25: styck | M25: =IF(M13=0,-C25*C26/1.34,0) -> 0 | N25: =IF(N13=0,-D25*D26/1.34,0) -> 0 | O25: 0 | R25: 1 | Y25: 3 Växtnäringsutnyttjande (2)
A26: Obetäckta gyltors medelvikt | B26: kg per djur | C26: 90 | D26: 90 | E26: 90 | F26: Genomsnittlig vikt. Behåll värde eller ändra | Y26: 3 Växtnäringsutnyttjande (3)
A27: Antal inköpta betäckningsfärdiga gyltor | B27: styck | M27: =IF(M14=0,-C27*C28/1.34,0) -> 0 | N27: =IF(N14=0,-D27*D28/1.34,0) -> 0 | O27: 0 | R27: 1 | Y27: 4 Energi och bränsle
A28: Betäckningsfärdiga gyltors vikt | B28: kg per djur | C28: 125 | D28: 125 | E28: 125 | F28: Genomsnittlig vikt. Behåll värde eller ändra | Y28: 5 Vattenanvändning
A29: Antal inköpta dräktiga gyltor | B29: styck | F29: Antal inköpta gyltor under perioden | M29: =IF(M15=0,-C29*C30/1.34,0) -> 0 | N29: =IF(N15=0,-D29*D30/1.34,0) -> 0 | O29: 0 | R29: 1 | Y29: 6 Resultat
A30: Dräktiga gyltornas vikt | B30: kg per djur | C30: 170 | D30: 170 | E30: 170 | F30: Genomsnittlig vikt. Behåll värde eller ändra | Y30: 6B Klimat
A31: Totalt inköpta djur i levande vikt | B31: kg levandevikt | C31: =C23*C24+C25*C26+C27*C28+C29*C30+C21*C22 -> 0 | D31: =D23*D24+D25*D26+D27*D28+D29*D30+D21*D22 -> 0 | E31: 0 | F31: Summering av vikten på inköpta gyltor och smågrisar | S31: =C23*C24+C25*C26+C27*C28+C29*C30+C21*C22 -> 0 | T31: =D23*D24+D25*D26+D27*D28+D29*D30+D21*D22 -> 0 | U31: =E23*E24+E25*E26+E27*E28+E29*E30+E21*E22 -> 0
A32: Totalt inköpta djur omräknat till kött | B32: kg kött | C32: =C31/1.34 -> 0 | D32: =D31/1.34 -> 0 | E32: 0 | F32: Omräknat till kg kött, slaktutbytesfaktor 1,34 | S32: =S31/1.34 -> 0 | T32: =T31/1.34 -> 0 | U32: =U31/1.34 -> 0
A34: Totalt inköpta djur omräknat till kött | C34: =-SUM(M11:M30) -> 0 | D34: =-SUM(N11:N30) -> 0 | E34: 0 | F34: Omräknat till kg kött, slaktutbytesfaktor 1,34. Om du fyllt i alternativ 1 används de uppgifterna, annars alternativ 2. | S34: =-SUM(M11:M30) -> 0 | T34: =-SUM(N11:N30) -> 0 | U34: =-SUM(O11:O30) -> 0
A37: Sålda djur
A38: Alternativ 1. Har du verklig mängd sålda tillväxtgrisar och livdjur i levandevikt - ange det här
A39: Djurkategori | B39: Enhet | C39: =Bakgrund!R$7 -> Period 1 | D39: =Bakgrund!S$7 -> Period 2 | E39: =Bakgrund!T$7 -> Period 3 | F39: Här anger du sålda djur. Uppgifterna används för att beräkna hur mycket kött som producerats netto, d v s efter avdrag för inköpta djur
A40: Smågrisar | B40: kg | F40: I beräkningen görs en korrigering för slaktvikt som inte producerats på gården utan kommer till gården med inköpta smågrisar. Smågrisarnas levande vikt räknas även om till slaktvikt med omräkningsfaktorn 1,34. Det är inte helt korrekt för grisar i denna storlek men ger en uppskattning om "mängd kött" från smågrisar. | M40: =C40/1.34 -> 0 | N40: 0 | O40: 0 | Q40: 1
A41: Gyltämnen | B41: kg | M41: =C41/1.34 -> 0 | N41: 0 | O41: 0 | R41: 1
A42: Obetäcka gyltor | B42: kg | M42: =C42/1.34 -> 0 | N42: 0 | O42: 0 | R42: 1
A43: Betäckningsfärdiga gyltor | B43: kg | M43: =C43/1.34 -> 0 | N43: 0 | O43: 0 | R43: 1
A44: Dräktiga gyltor | B44: kg | M44: =C44/1.34 -> 0 | N44: 0 | O44: 0 | R44: 1
A45: Totalt sålda djur i levande vikt | B45: kg | C45: =SUM(C40:C44) -> 0 | D45: =SUM(D40:D44) -> 0 | E45: 0 | S45: =SUM(C40:C44) -> 0 | T45: =SUM(D40:D44) -> 0 | U45: =SUM(E40:E44) -> 0
A46: Total sålda djur omräknat till kött | B46: kg | C46: =C45/1.34 -> 0 | D46: =D45/1.34 -> 0 | E46: 0 | S46: =S45/1.34 -> 0 | T46: =T45/1.34 -> 0 | U46: =U45/1.34 -> 0
A48: Alternativ 2. Vill du beräkna mängden sålda djur i levandevikt utifrån antal och medelvikt - gör det här
A49: Djurkategori och medelvikt | B49: Enhet | C49: =Bakgrund!R$7 -> Period 1 | D49: =Bakgrund!S$7 -> Period 2 | E49: =Bakgrund!T$7 -> Period 3 | F49: Här anger du hur många djur du du sålt till liv under perioden och vad de vägde i genomsnitt. Döda och kasserade djur ska inte tas med.
A50: Antal sålda smågrisar | B50: styck | C50: ='1 Intro djuren'!C29 -> 0 | D50: ='1 Intro djuren'!D29 -> 0 | E50: ='1 Intro djuren'!E29 -> 0 | M50: =IF(M40=0,C50*C51/1.34,0) -> 0 | N50: =IF(N40=0,D50*D51/1.34,0) -> 0 | O50: 0 | Q50: 1
A51: Smågrisarnas vikt | B51: kg per djur | C51: 30 | D51: 30 | E51: 30 | F51: Genomsnittlig vikt. Behåll värde eller ändra
A52: Antal sålda gyltämnen | B52: styck | F52: Totalt antal sålda under perioden | M52: =IF(M41=0,C52*C53/1.34,0) -> 0 | N52: =IF(N41=0,D52*D53/1.34,0) -> 0 | O52: 0 | R52: 1
A53: Gyltämnens vikt | B53: kg per djur | C53: 30 | D53: 30 | E53: 30 | F53: Genomsnittlig vikt. Behåll värde eller ändra
A54: Antal sålda obetäckta gyltor | B54: styck | M54: =IF(M42=0,C54*C55/1.34,0) -> 0 | N54: =IF(N42=0,D54*D55/1.34,0) -> 0 | O54: 0 | R54: 1
A55: Obetäckta gyltors medelvikt | B55: kg per djur | C55: 90 | D55: 90 | E55: 90 | F55: Genomsnittlig vikt. Behåll värde eller ändra
A56: Antal sålda betäckningsfärdiga gyltor | B56: styck | F56: Totalt antal sålda under perioden | M56: =IF(M43=0,C56*C57/1.34,0) -> 0 | N56: =IF(N43=0,D56*D57/1.34,0) -> 0 | O56: 0 | R56: 1
A57: Betäckningsfärdiga gyltors vikt | B57: kg per djur | C57: 125 | D57: 125 | E57: 125 | F57: Genomsnittlig vikt. Behåll värde eller ändra
A58: Antal sålda dräktiga gyltor | B58: styck | M58: =IF(M44=0,C58*C59/1.34,0) -> 0 | N58: =IF(N44=0,D58*D59/1.34,0) -> 0 | O58: 0 | R58: 1
A59: Dräktiga gyltornas vikt | B59: kg per djur | C59: 170 | D59: 170 | E59: 170 | F59: Genomsnittlig vikt. Behåll värde eller ändra
A60: Totalt sålda djur i levande vikt | B60: kg levandevikt | C60: =C50*C51+C52*C53+C54*C55+C56*C57+C58*C59 -> 0 | D60: =D50*D51+D52*D53+D54*D55+D56*D57+D58*D59 -> 0 | E60: 0 | S60: =C50*C51+C52*C53+C54*C55+C56*C57+C58*C59 -> 0 | T60: =D50*D51+D52*D53+D54*D55+D56*D57+D58*D59 -> 0 | U60: =E50*E51+E52*E53+E54*E55+E56*E57+E58*E59 -> 0
A61: Totalt sålda djur omräknat till kött | B61: kg kött | C61: =C60/1.34 -> 0 | D61: =D60/1.34 -> 0 | E61: =E60/1.34 -> 0 | F61: Total mängd sålda grisar, omräknat till kg kött. Antagit slaktutbytesfaktor 1,34 för att räkna om smågrisar till kg kött | S61: =S60/1.34 -> 0 | T61: =T60/1.34 -> 0 | U61: 0
A63: Slaktade djur
A64: Alternativ 1. Har du verklig mängd slaktade tillväxtgrisar och livdjur - ange det här | F64: Förklaring | K64: Egen kommentar
A65: Djurkategori | B65: Enhet | C65: =Bakgrund!R$7 -> Period 1 | D65: =Bakgrund!S$7 -> Period 2 | E65: =Bakgrund!T$7 -> Period 3 | F65: Här anger du slaktade djur. Uppgifterna används för att beräkna hur mycket kött som producerats netto, d v s efter avdrag för inköpta djur
A66: Slaktade livdjur | B66: kg slaktvikt | M66: =C66 -> 0 | N66: =D66 -> 0 | O66: =E66 -> 0 | R66: 1
A67: Slaktsvin | B67: kg slaktvikt | M67: 0 | N67: 0 | O67: 0 | P67: 1
A68: Totalt slaktade djur i slaktvikt | B68: kg kött | S68: =SUM(C66:C67) -> 0 | T68: =SUM(D66:D67) -> 0 | U68: =SUM(E66:E67) -> 0
A70: Alternativ 2. Vill du beräkna mängden slaktade djur utifrån antal och medelvikt - gör det här
A71: Djurkategori och medelvikt | B71: Enhet | C71: =Bakgrund!R$7 -> Period 1 | D71: =Bakgrund!S$7 -> Period 2 | E71: =Bakgrund!T$7 -> Period 3 | F71: Här anger du slaktade djur. Uppgifterna används för att beräkna hur mycket kött som producerats netto, d v s efter avdrag för inköpta djur
A72: Antal slaktade livdjur | B72: styck | F72: Totalt antal slaktade livdjur under perioden | M72: =IF(M66=0,C72*C73,0) -> 0 | N72: =IF(N66=0,D72*D73,0) -> 0 | O72: 0 | R72: 1
A73: Livdjurens vikt | B73: kg slaktvikt per djur | F73: Genomsnittlig vikt.
A74: Antal producerade slaktsvin | B74: styck | C74: ='1 Intro djuren'!C31 -> 0 | D74: ='1 Intro djuren'!D31 -> 0 | E74: ='1 Intro djuren'!E31 -> 0 | F74: Totalt antal slaktade under perioden | M74: =IF(M67=0,C74*C75,0) -> 0 | N74: =IF(N67=0,D74*D75,0) -> 0 | O74: 0 | P74: 1
A75: Slaktgrisarnas vikt | B75: kg slaktvikt per djur | C75: 91.6 | D75: 91.6 | E75: 91.6 | F75: Genomsnittlig vikt. Behåll värde eller ändra
A76: Totalt slaktade djur i slaktvikt, dvs kött | B76: kg kött | C76: =C72*C73+C74*C75 -> 0 | D76: =D72*D73+D74*D75 -> 0 | E76: 0 | S76: =C72*C73+C74*C75 -> 0 | T76: =D72*D73+D74*D75 -> 0 | U76: =E72*E73+E74*E75 -> 0
A78: Totalt sålda och slaktade djur omräknat till kött | C78: =SUM(M50:M74) -> 0 | D78: =SUM(N50:N74) -> 0 | E78: 0 | F78: Sålda djur plus slaktade djur. Om du fyllt i alternativ 1 används de uppgifterna, annars alternativ 2. | S78: =SUM(M50:M74) -> 0 | T78: =SUM(N50:N74) -> 0 | U78: 0
A81: Förändring levandelager | B81: Enhet | C81: =Bakgrund!R$7 -> Period 1 | D81: =Bakgrund!S$7 -> Period 2 | E81: =Bakgrund!T$7 -> Period 3
A82: Förändring levandelager djur i kg | B82: kg slaktvikt | F82: För att räkna ut förändringen använd verktyget till nederst. Behöver inte fyllas i om det inte har skett någon stor förändring på gården | M82: =C82 -> 0 | N82: =D82 -> 0 | O82: =E82 -> 0
A85: Producerat kött under perioden | C85: =Bakgrund!R$7 -> Period 1 | D85: =Bakgrund!S$7 -> Period 2 | E85: =Bakgrund!T$7 -> Period 3
A86: Totalt, inkl ev förändring i levandelager | B86: kg kött | C86: =C78+C82-C34 -> 0 | D86: =T86 -> 0 | E86: 0 | S86: =S78+C82-S34 -> 0 | T86: =T78+D82-T34 -> 0 | U86: =U78+E82-U34 -> 0
A87: Varav:
A88: slaktgris | B88: kg kött | C88: =S88 -> 0 | D88: =T88 -> 0 | E88: =U88 -> 0 | S88: =SUMPRODUCT(M11:M74,$P$11:$P$74) -> 0 | T88: =SUMPRODUCT(N11:N74,$P$11:$P$74) -> 0 | U88: =SUMPRODUCT(O11:O74,$P$11:$P$74) -> 0
A89: smågris | B89: kg kött | C89: =S89 -> 0 | D89: 0 | E89: 0 | S89: =SUMPRODUCT(M11:M74,$Q$11:$Q$74) -> 0 | T89: =SUMPRODUCT(N11:N74,$Q$11:$Q$74) -> 0 | U89: =SUMPRODUCT(O11:O74,$Q$11:$Q$74) -> 0
A90: gyltor/suggor | B90: kg kött | C90: 0 | D90: 0 | E90: 0 | S90: =SUMPRODUCT(M11:M74,$R$11:$R$74) -> 0 | T90: =SUMPRODUCT(N11:N74,$R$11:$R$74) -> 0 | U90: =SUMPRODUCT(O11:O74,$R$11:$R$74) -> 0
A91: förändringar i levandelager | B91: kg kött | C91: 0 | D91: 0 | E91: 0 | S91: =C82 -> 0 | T91: =D82 -> 0 | U91: =E82 -> 0
A99: Förändring levandelager djur omräknat till kg producerat kött
A100: Fyll i antal, t ex antal suggor, i början av perioden och deras vikt, och antal suggor i slutet av perioden och deras vikt då. Slaktutbytet = 1/slaktutbytesfaktorn = 1/1,34
A101: Djurslag, fritext (t ex suggor) | B101: Periodens start | D101: Slaktutbyte (%) | E101: kg kött vid periodens start | F101: Periodens slut | H101: Slaktutbyte (%) | I101: kg kött vid periodens slut | J101: Förändring (kg kött)
B102: Antal | C102: Vikt (kg levande vikt) | F102: Antal | G102: Vikt (kg levande vikt) | K102: Egen kommentar
D103: 0.74 | E103: =B103*C103*D103 -> 0 | H103: 0.74 | I103: =F103*G103*H103 -> 0 | J103: =I103-E103 -> 0
D104: 0.74 | E104: =B104*C104*D104 -> 0 | H104: 0.74 | I104: =F104*G104*H104 -> 0 | J104: =I104-E104 -> 0
D105: 0.74 | E105: =B105*C105*D105 -> 0 | H105: 0.74 | I105: =F105*G105*H105 -> 0 | J105: =I105-E105 -> 0
D106: 0.74 | E106: =B106*C106*D106 -> 0 | H106: 0.74 | I106: 0 | J106: =I106-E106 -> 0
A107: Summa | E107: =SUM(E103:E106) -> 0 | I107: =SUM(I103:I106) -> 0 | J107: =SUM(J103:J106) -> 0

Sheet 1.2 Tillväxt & förökning
A1: 1.2 Tillväxt & förökning | N1: Det här betyder färgerna:
A2: Bladet är obligatoriskt | N2: Cell med värden hämtade från annan cell
A3: Här beräknar eller anger du tillväxten samt mängden producerat kött. Resultatet används i många nyckeltal, och det är därmed viktigt att du fyller i uppgifterna så noggrant som möjligt. | N3: Fyll i din egen siffra
A4: På bladet Bakgrund har du svarat på ja/nej-frågor om du har uppföljningssystem samt om du har smågrisar och/eller slaktgrisar. Beroende på ditt svar får texten i tabellerna olika färg: | N4: Resultat/uträkning
A5: Svart text = läs och fyll i uppgifter. Om en fråga inte är relevant för dig lämnar du cellen tom | N5: Schablonvärde
A6: Ljusgrå text = avsnittet är inte relevant för dig, baserat på ditt svar på Bakgrund. Du kan alltid gå tillbaka och ändra svar om det inte stämmer! | N6: Förklaringar till raden
A7: Resultaten visas i gröna celler, och nyckeltalen sammanställs även på bladet Resultat | N7: Plats för egna kommentarer
N8: grå text, ev vit bakgrund: Avsnittet är inte relevant för dig baserat på svaren på ja/nej-frågor på bladet Bakgrund
N9: Glöm inte att fylla i värde! (Här krävs ett värde för att andra beräkningar ska fungera
A11: Tillväxt smågrisar och slaktsvin | N11: Snabblänkar till bladen i verktyget:
A12: Röd cell = Fyll i ålder så släcks varningen! | N12: Instruktion
D13: Period | I13: WinPig Sugg/Slakt 2019* | N13: Bakgrund
A14: Har du redan siffror på beräknad tillväxt - ange det här | B14: Enhet | C14: Exempel | D14: =period_1 -> Period 1 | E14: =period_2 -> Period 2 | F14: =period_3 -> Period 3 | G14: Egen kommentar | H14: Förklaring | I14: Medel | J14: Sugg Bästa 25 % | K14: Slakt Bästa 25% på tillväxt | L14: Slakt Bästa 25 % på foder per kg tillv | N14: 1 Intro djuren
A15: Beräknad tillväxt diande grisar | B15: g/dag | C15: 250 | N15: 1.1 Kött
A16: Beräknad tillväxt avvanda grisar | B16: g/dag | C16: 473 | I16: 473 | K16: 481 | L16: 481 | N16: 1.2 Tillväxt & förökning
A17: Beräknad tillväxt slaktsvin | B17: g/dag | C17: 948 | I17: 948 | K17: 1030 | L17: 999 | N17: 1.3 Hälsa & dödlighet
A18: Ålder vid avvänjning | B18: dagar | C18: 35 | I18: 35 | N18: 2 Intro foder
A19: Ålder vid 30 kg | B19: dagar | C19: 78 | I19: 78 | J19: 77 | N19: 2.1 Odling foder
A20: Foderdagar per slaktgris | B20: dagar | C20: 96 | I20: 96 | K20: 90 | L20: 93 | N20: 2.1b Halm, odling grovfoder
N21: 2.2 Förluster vid lagring
A22: Vill du beräkna tillväxten gör du det här | N22: 2.3 Utfodrat
A23: Medelvikt vid födsel | B23: kg | C23: 1 | H23: Smågrisarna väger ca 1 kg vid födseln | N23: 2.4 Kasserat foder och spill
A24: Digivningstid | B24: dagar | C24: 33 | H24: 5 veckors ditid är vanligast | I24: 32.6 | J24: 32.7 | N24: 3 Växtnäringsutnyttjande (1)
A25: Medelvikt vid avvänjning | B25: kg | C25: 10 | N25: 3 Växtnäringsutnyttjande (2)
A26: Dagar från avvänjning till leverans | B26: dagar | C26: 48 | H26: Jämförelsetalet är beräknat utifrån ålder vid 30 kg minus digivningstiden | I26: 47.7255814 | J26: 80 | N26: 3 Växtnäringsutnyttjande (3)
A27: Medelvikt vid leverans/insättning i slaktsvinsstall | B27: kg | C27: 31 | I27: 31.1 | K27: 32.3 | L27: 29.8 | N27: 4 Energi och bränsle
A28: Dagar som slaktsvin | B28: dagar | C28: 96 | I28: 96 | K28: 90 | L28: 93 | N28: 5 Vattenanvändning
A29: Medelvikt vid slakt | B29: kg | C29: 123 | H29: Jämförelsetalet omräknat från WinPigs Nyckeltal för slaktvikt till levandevikt med slaktutbytesfaktorn 1,34 | I29: 122.744 | K29: 122.744 | L29: 122.744 | N29: 6 Resultat
A30: Beräknad tillväxt diande grisar | B30: g/dag | C30: =IF(ISNUMBER(C15),C15,IF(C24=0,0,(C25-C23)*1000/C24)) -> 250 | D30: =IF(ISNUMBER(D15),D15,IF(D24=0,0,(D25-D23)*1000/D24)) -> 0 | E30: =IF(ISNUMBER(E15),E15,IF(E24=0,0,(E25-E23)*1000/E24)) -> 0 | F30: =IF(ISNUMBER(F15),F15,IF(F24=0,0,(F25-F23)*1000/F24)) -> 0 | N30: 6B Klimat
A31: Beräknad tillväxt avvanda grisar | B31: g/dag | C31: =IF(ISNUMBER(C16),C16,IF(C26=0,0,(C27-C25)*1000/C26)) -> 473 | D31: =IF(ISNUMBER(D16),D16,IF(D26=0,0,(D27-D25)*1000/D26)) -> 0 | E31: =IF(ISNUMBER(E16),E16,IF(E26=0,0,(E27-E25)*1000/E26)) -> 0 | F31: =IF(ISNUMBER(F16),F16,IF(F26=0,0,(F27-F25)*1000/F26)) -> 0 | I31: 473 | J31: 481
A32: Beräknad tillväxt slaktsvin | B32: g/dag | C32: =IF(ISNUMBER(C17),C17,IF(C28=0,0,(C29-C27)*1000/C28)) -> 948 | D32: =IF(ISNUMBER(D17),D17,IF(D28=0,0,(D29-D27)*1000/D28)) -> 0 | E32: =IF(ISNUMBER(E17),E17,IF(E28=0,0,(E29-E27)*1000/E28)) -> 0 | F32: =IF(ISNUMBER(F17),F17,IF(F28=0,0,(F29-F27)*1000/F28)) -> 0 | I32: 948 | K32: 1030 | L32: 999
I33: *Jämförelsetalen från WinPig Sugg har bara Bästa 25 % medan jämförelsetalen från WinPig Slakt har både Bästa 25 % på tillväxt och Bästa 25 % på foder/kg tillväxt
A37: Beräkning av producerat kött utifrån tillväxt
A39: Beräkning utifrån tidigare angivna nyckeltal för tillväxt | B39: Enhet | C39: Exempel | D39: =period_1 -> Period 1 | E39: =period_2 -> Period 2 | F39: =period_3 -> Period 3 | G39: Egen kommentar | H39: Förklaring
A40: Beräknad total tillväxt smågrisar | B40: kg | C40: =IF(C15=0,0,1)*2500+2500*C18*C15/1000+2500*(C19-C18)*C16/1000 -> 75222.5 | D40: =IF(D15=0,0,1)*'1 Intro djuren'!C27+'1 Intro djuren'!C27*D18*D15/1000+'1 Intro djuren'!C27*(D19-D18)*D16/1000 -> 0 | E40: =IF(E15=0,0,1)*'1 Intro djuren'!D27+'1 Intro djuren'!D27*E18*E15/1000+'1 Intro djuren'!D27*(E19-E18)*E16/1000 -> 0 | F40: =IF(F15=0,0,1)*'1 Intro djuren'!E27+'1 Intro djuren'!E27*F18*F15/1000+'1 Intro djuren'!E27*(F19-F18)*F16/1000 -> 0
A41: Beräknad total tillväxt slaktsvin | B41: kg | C41: =3000*C20*C17/1000 -> 273024 | D41: ='1 Intro djuren'!C31*D20*D17/1000 -> 0 | E41: ='1 Intro djuren'!D31*E20*E17/1000 -> 0 | F41: ='1 Intro djuren'!E31*F20*F17/1000 -> 0
A42: Beräknad total tillväxt på gården under perioden | B42: kg | C42: =C40+C41 -> 348246.5 | D42: =D40+D41 -> 0 | E42: =E40+E41 -> 0 | F42: =F40+F41 -> 0
A43: Beräknad total tillväxt omräknat till slaktvikt | B43: kg | C43: =C42/1.34 -> 259885.4478 | D43: =D42/1.34 -> 0 | E43: =E42/1.34 -> 0 | F43: =F42/1.34 -> 0 | H43: Levande vikt omräknat till slaktvikt med slaktutbytesfaktor 1,34
A45: Beräkning utifrån tidigare gjorda egna tillväxtberäkningar | B45: Enhet | C45: Exempel | D45: =period_1 -> Period 1 | E45: =period_2 -> Period 2 | F45: =period_3 -> Period 3 | G45: Egen kommentar | H45: Förklaring
A46: Beräknad total tillväxt smågrisar | B46: kg | C46: =2500*C24*C30/1000+2500*C26*C31/1000 -> 77385 | D46: ='1 Intro djuren'!C27*D23+'1 Intro djuren'!C27*D24*D30/1000+'1 Intro djuren'!C27*D26*D31/1000 -> 0 | E46: ='1 Intro djuren'!D27*E23+'1 Intro djuren'!D27*E24*E30/1000+'1 Intro djuren'!D27*E26*E31/1000 -> 0 | F46: ='1 Intro djuren'!E27*F23+'1 Intro djuren'!E27*F24*F30/1000+'1 Intro djuren'!E27*F26*F31/1000 -> 0
A47: Beräknad total tillväxt slaktsvin | B47: kg | C47: =3000*C28*C32/1000 -> 273024 | D47: ='1 Intro djuren'!C31*D28*D32/1000 -> 0 | E47: ='1 Intro djuren'!D31*E28*E32/1000 -> 0 | F47: ='1 Intro djuren'!E31*F28*F32/1000 -> 0
A48: Beräknad total tillväxt på gården under perioden | B48: kg | C48: =C46+C47 -> 350409 | D48: =D46+D47 -> 0 | E48: =E46+E47 -> 0 | F48: =F46+F47 -> 0
A49: Beräknad total tillväxt omräknat till slaktvikt | B49: kg | C49: =C48/1.34 -> 261499.2537 | D49: =D48/1.34 -> 0 | E49: =E48/1.34 -> 0 | F49: =F48/1.34 -> 0 | H49: Levande vikt omräknat till slaktvikt med slaktutbytesfaktor 1,34
A56: Tillväxt per slaktplats
B57: Enhet | C57: =period_1 -> Period 1 | D57: =period_2 -> Period 2 | E57: =period_3 -> Period 3 | F57: Egen kommentar | H57: Förklaring
A58: Antal stallplatser enligt djurskyddslag | B58: antal | C58: ='1 Intro djuren'!C36 -> 0 | D58: ='1 Intro djuren'!D36 -> 0 | E58: ='1 Intro djuren'!E36 -> 0 | H58: ="Antal stallplatser hämtas från "&B_G_Intro_djur -> Antal stallplatser hämtas från 1 Intro djuren
A59: Eget mål för antal stallplatser | B59: antal | C59: ='1 Intro djuren'!C37 -> 0 | D59: ='1 Intro djuren'!D37 -> 0 | E59: ='1 Intro djuren'!E37 -> 0 | H59: ="Antal stallplatser hämtas från "&B_G_Intro_djur -> Antal stallplatser hämtas från 1 Intro djuren
A60: Tillväxt per dag i g per godkänd stallplats enligt förprövning | B60: g/dag/ godkänd stallplats | C60: =IF(C58=0,0,(IF((D17*D20)=0,D32*D28,D17*D20)*'1 Intro djuren'!C31+IF((D16*D18*D19)=0,D31*D26,D16*(D19-D18))*'1 Intro djuren'!C27+IF((D15*D18)=0,D30*D24,D15*D18)*'1 Intro djuren'!C27)/C58/Bakgrund!B14) -> 0 | D60: =IF(D58=0,0,(IF((E17*E20)=0,E32*E28,E17*E20)*'1 Intro djuren'!D31+IF((E16*E18*E19)=0,E31*E26,E16*(E19-E18))*'1 Intro djuren'!D27+IF((E15*E18)=0,E30*E24,E15*E18)*'1 Intro djuren'!D27)/D58/Bakgrund!C14) -> 0 | E60: =IF(E58=0,0,(IF((F17*F20)=0,F32*F28,F17*F20)*'1 Intro djuren'!E31+IF((F16*F18*F19)=0,F31*F26,F16*(F19-F18))*'1 Intro djuren'!E27+IF((F15*F18)=0,F30*F24,F15*F18)*'1 Intro djuren'!E27)/E58/Bakgrund!D14) -> 0 | H60: Genomsnittlig tillväxt för alla tillväxtgrisar under hela perioden. Beräknas som antal diande grisar, avvanda grisar resp slaktgrisar*tillväxt per åldersgrupp*uppfödningstid per åldersgrupp dividerat med periodens längd*antal stallplatser. Om du får resultatet #DIVISION/0! beror det på att du inte angett start- och slutdatum för perioden på bladet Bakgrund
A61: Tillväxt per dag i g per egen önskad beläggning | B61: g/dag/önskad stallplats | C61: =IF(C59=0,0,(IF((D17*D20)=0,D32*D28,D17*D20)*'1 Intro djuren'!C31+IF((D16*D18*D19)=0,D31*D26,D16*(D19-D18))*'1 Intro djuren'!C27+IF((D15*D18)=0,D30*D24,D15*D18)*'1 Intro djuren'!C27)/C59/Bakgrund!B14) -> 0 | D61: =IF(D59=0,0,(IF((E17*E20)=0,E32*E28,E17*E20)*'1 Intro djuren'!D31+IF((E16*E18*E19)=0,E31*E26,E16*(E19-E18))*'1 Intro djuren'!D27+IF((E15*E18)=0,E30*E24,E15*E18)*'1 Intro djuren'!D27)/D59/Bakgrund!C14) -> 0 | E61: =IF(E59=0,0,(IF((F17*F20)=0,F32*F28,F17*F20)*'1 Intro djuren'!E31+IF((F16*F18*F19)=0,F31*F26,F16*(F19-F18))*'1 Intro djuren'!E27+IF((F15*F18)=0,F30*F24,F15*F18)*'1 Intro djuren'!E27)/E59/Bakgrund!D14) -> 0

Sheet 1.3 Hälsa & dödlighet
A1: 1.3 Hälsa & dödlighet | K1: Det här betyder färgerna:
A2: Bladet är frivilligt att fylla i | K2: Cell med värden hämtade från annan cell
A3: Här beräknas nyckeltal för veterinärkostnader samt svinn i form av döda djur som ej blivit säljbart kött. | K3: Fyll i din egen siffra
A4: Ljusgrå text och vit bakgrund - avsnittet är inte relevant för dig baserat på svaren på Ja/Nej-frågorna på Bakgrund | K4: Resultat/uträkning
K5: Schablonvärde
K6: Förklaringar till raden
K7: Plats för egna kommentarer
K8: grå text, ev vit bakgrund: Avsnittet är inte relevant för dig baserat på svaren på ja/nej-frågor på bladet Bakgrund
A9: Veterinärkostnader smågrisproduktion | B9: Enhet | C9: =(Bakgrund!R7) -> Period 1 | D9: =(Bakgrund!S7) -> Period 2 | E9: =(Bakgrund!T7) -> Period 3 | F9: Egen kommentar | G9: Förklaring | H9: Jämförelsetal ekonomikonstant i PigWin Sugg 2012
A10: ='1 Intro djuren'!A27 -> Producerade smågrisar under perioden | B10: antal | C10: ='1 Intro djuren'!C27 -> 0 | D10: ='1 Intro djuren'!D27 -> 0 | E10: ='1 Intro djuren'!E27 -> 0 | G10: ="Summering från " &B_G_Intro_djur -> Summering från 1 Intro djuren | K10: Snabblänkar till bladen i verktyget:
A11: ='1 Intro djuren'!A25 -> Medelantal suggor under perioden (SIP) | B11: ='1 Intro djuren'!B25 -> antal | C11: ='1 Intro djuren'!C25 -> 0 | D11: ='1 Intro djuren'!D25 -> 0 | E11: ='1 Intro djuren'!E25 -> 0 | K11: Instruktion
A12: Rådgivning | B12: kr | G12: Veterinärbesök | K12: Bakgrund
A13: Förebyggande behandlingar | B13: kr | G13: T.ex. vaccin, järn, avmaskning | K13: 1 Intro djuren
A14: Behandlingar av sjuka djur | B14: kr | G14: T.ex. antibiotika | K14: 1.1 Kött
A15: Annan veterinärkostnad | B15: kr | G15: Kan du inte särskilja olika poster så lägg in alla veterinärrelaterade kostnader som "Annan veterinärkostnad" | K15: 1.2 Tillväxt & förökning
A16: Total kostnad för veterinär och behandlingar | B16: kr | C16: =C12+C13+C14+C15 -> 0 | D16: =D12+D13+D14+D15 -> 0 | E16: =E12+E13+E14+E15 -> 0 | K16: 1.3 Hälsa & dödlighet
A17: Veterinärkostnad per smågris | B17: kr/djur | C17: =IF(C10=0,0,C15/C10) -> 0 | D17: =IF(D10=0,0,D15/D10) -> 0 | E17: 0 | K17: 2 Intro foder
A18: Veterinärkostnad per sugga | B18: kr/djur | C18: =IF(C11=0,0,C16/C11) -> 0 | D18: =IF(D11=0,0,D16/D11) -> 0 | E18: 0 | H18: =260+450+180 -> 890 | K18: 2.1 Odling foder
K19: 2.1b Halm, odling grovfoder
K20: 2.2 Förluster vid lagring
A21: Veterinärkostnader slaktsvinsproduktion | B21: Enhet | C21: =(Bakgrund!R7) -> Period 1 | D21: =(Bakgrund!S7) -> Period 2 | E21: =(Bakgrund!T7) -> Period 3 | F21: Egen kommentar | G21: Förklaring | K21: 2.3 Utfodrat
A22: ='1 Intro djuren'!A31 -> Producerade slaktgrisar under perioden | B22: antal | C22: ='1 Intro djuren'!C31 -> 0 | D22: ='1 Intro djuren'!D31 -> 0 | E22: ='1 Intro djuren'!E31 -> 0 | G22: ="Summering från " &B_G_Intro_djur -> Summering från 1 Intro djuren | K22: 2.4 Kasserat foder och spill
A23: Rådgivning | B23: kr | G23: Veterinärbesök | K23: 3 Växtnäringsutnyttjande (1)
A24: Förebyggande behandlingar | B24: kr | G24: T.ex. vaccin, järn, avmaskning | K24: 3 Växtnäringsutnyttjande (2)
A25: Behandlingar av sjuka djur | B25: kr | G25: T.ex. antibiotika | K25: 3 Växtnäringsutnyttjande (3)
A26: Annan veterinärkostnad | B26: kr | G26: Kan du inte särskilja olika poster så lägg in alla veterinärrelaterade kostnader som "Annan veterinärkostnad" | K26: 4 Energi och bränsle
A27: Total kostnad för veterinär och behandlingar | B27: kr | C27: =C23+C24+C25+C26 -> 0 | D27: =D23+D24+D25+D26 -> 0 | E27: =E23+E24+E25+E26 -> 0 | K27: 5 Vattenanvändning
A28: Veterinärkostnad/slaktsvin | B28: kr/djur | C28: =IF(C22=0,0,C27/C22) -> 0 | D28: =IF(D22=0,0,D27/D22) -> 0 | E28: =IF(E22=0,0,E27/E22) -> 0 | K28: 6 Resultat
K29: 6B Klimat
A30: Levererad kg kött | B30: kg | C30: ='6 Resultat'!Q34 -> 0 | D30: ='6 Resultat'!R34 -> 0 | E30: ='6 Resultat'!S34 -> 0
A31: Veterinärkostnad per kg kött | B31: kr/kg kött | C31: =IF(C30=0,0,(C27+C16)/C30) -> 0 | D31: =IF(D30=0,0,(D27+D16)/D30) -> 0 | E31: =IF(E30=0,0,(E27+E16)/E30) -> 0
H34: Jämförelsetal WinPig Sugg 2019
A35: Dödlighet smågrisproduktion | B35: Enhet | C35: =(Bakgrund!R7) -> Period 1 | D35: =(Bakgrund!S7) -> Period 2 | E35: =(Bakgrund!T7) -> Period 3 | F35: Egen kommentar | G35: Förklaring | H35: Medel | I35: Bästa 25%
A36: ='1 Intro djuren'!A25 -> Medelantal suggor under perioden (SIP) | B36: antal | C36: ='1 Intro djuren'!C25 -> 0 | D36: ='1 Intro djuren'!D25 -> 0 | E36: ='1 Intro djuren'!E25 -> 0 | G36: ="Summering från " &B_G_Intro_djur -> Summering från 1 Intro djuren | H36: 371 | I36: 452
A37: Avlivade och självdöda suggor | B37: antal | G37: Antalet som självdött under perioden och suggor som avlivats pga sjukdom, olycka eller andra oplanerade händelser.
A38: Nyckeltal: Dödlighet suggor | B38: % | C38: =IF(C36=0,0,C37/C36) -> 0 | D38: =IF(D36=0,0,D37/D36) -> 0 | E38: 0
A39: Nyckeltal: Svinn potentiellt kött från suggor | B39: kg | C39: =C36*C38*300/1.34 -> 0 | D39: =D36*D38*300/1.34 -> 0 | E39: =E36*E38*300/1.34 -> 0 | G39: Antal avlivade/självdöda * 300 kg levande vikt omräknat till slaktvikt med slaktutbytesfaktor 1,34
A41: Levande födda smågrisar under perioden | B41: antal | G41: Fyll i antal levande födda samt avvanda smågrisar för att nyckeltalet Svinn producerade smågrisar ska beräknas
A42: Avvanda smågrisar under perioden | B42: antal
A43: ='1 Intro djuren'!A27 -> Producerade smågrisar under perioden | B43: antal | C43: ='1 Intro djuren'!C27 -> 0 | D43: ='1 Intro djuren'!D27 -> 0 | E43: ='1 Intro djuren'!E27 -> 0
A44: Dödlighet diande | B44: % | C44: =IF(C41=0,0,(C41-C42)/C41) -> 0 | D44: =IF(D41=0,0,(D41-D42)/D41) -> 0 | E44: 0 | H44: 0.177 | I44: 0.144
A45: Dödlighet avvanda | B45: % | C45: =IF(C42=0,0,(C42-C43)/C42) -> 0 | D45: =IF(D42=0,0,(D42-D43)/D42) -> 0 | E45: 0 | H45: 0.02 | I45: 0.017
A46: Nyckeltal: Dödlighet - producerade smågrisar | B46: % | C46: =IF(C41=0,0,(C41-C43)/C41) -> 0 | D46: =IF(D41=0,0,(D41-D43)/D41) -> 0 | E46: =IF(E41=0,0,(E41-E43)/E41) -> 0
A47: Nyckeltal: Svinn levande vikt producerade smågrisar | B47: kg | C47: =IF(C41=0,0,(C41-C43)*30) -> 0 | D47: =IF(D41=0,0,(D41-D43)*30) -> 0 | E47: =IF(E41=0,0,(E41-E43)*30) -> 0 | G47: Antal avlivade/självdöda grisar omräknat till 30 kg levande vikt levererade smågrisar
A48: Nyckeltal: Svinn potentiellt kött från smågrisar | B48: kg | C48: =C47/1.34 -> 0 | D48: =D47/1.34 -> 0 | E48: =E47/1.34 -> 0 | G48: Levande vikt omräknat till "slaktvikt" med slaktutbytesfaktor 1,34
H51: Jämförelsetal WinPig Slakt 2019
A52: Dödlighet slaktsvinsproduktion | B52: Enhet | C52: =(Bakgrund!R7) -> Period 1 | D52: =(Bakgrund!S7) -> Period 2 | E52: =(Bakgrund!T7) -> Period 3 | F52: Egen kommentar | G52: Förklaring | H52: Medel | I52: Bästa 25% på tillväxt | J52: Bästa 25 % på foder/kg tillv
A53: ='1 Intro djuren'!A31 -> Producerade slaktgrisar under perioden | B53: st | C53: ='1 Intro djuren'!C31 -> 0 | D53: ='1 Intro djuren'!D31 -> 0 | E53: ='1 Intro djuren'!E31 -> 0 | G53: ="Antal hämtas från "&B_G_Intro_djur -> Antal hämtas från 1 Intro djuren
A54: Antal avlivade och självdöda slaktgrisar | B54: st | G54: Slaktgrisar som avlivats pga sjukdom, olycka eller andra oplanerade händelser.
A55: Nyckeltal: Dödlighet - Slaktsvin | B55: % | C55: =IF(C53=0,0,C54/(C53+C54)) -> 0 | D55: =IF(D53=0,0,D54/(D53+D54)) -> 0 | E55: =IF(E53=0,0,E54/(E53+E54)) -> 0 | G55: Antal slaktgrisar som avlivats eller gått till oönskad slakt och som inte kan bli livsmedel | H55: 0.017 | I55: 0.015 | J55: 0.015
A56: Antal kasserade slaktsvin | B56: st
A57: Kasserade | B57: % | C57: =IF(C53=0,0,C56/C53) -> 0 | D57: =IF(D53=0,0,D56/D53) -> 0 | E57: 0 | H57: 0.0018 | I57: 0.0012 | J57: 0.0016
A58: Nyckeltal: Svinn potentiellt kött från slaktsvin | B58: kg | C58: =(C55*(C53+C54)+C57*C53)*90 -> 0 | D58: =(D55*(D53+D54)+D57*D53)*90 -> 0 | E58: 0 | G58: Antal avlivade/självdöda och kasserade grisar omräknat till 90 kg slaktkropp
A60: Nyckeltal: Totalt svinn potentiellt kött från gården | B60: kg | C60: =C39+C48+C58 -> 0 | D60: =D39+D48+D58 -> 0 | E60: 0 | G60: Kött fån suggor och slaktsvin

Sheet 2 Intro foder
A1: 2 Intro foder | I1: Det här betyder färgerna:
A2: =VLOOKUP(B10,'Teknisk administration'!G4:H6,2,FALSE) -> Obligatoriskt blad | I2: Cell med värden hämtade från annan cell
A3: I del 2 fyller du i uppgifter om foder till djuren, inklusive bete och växtodling. Vissa uppgifter används på flera platser, så därför ska du fylla i dem på detta blad så förs de över till kommande blad. | I3: Fyll i din egen siffra
I4: Möjligt fylla i eget värde, om du har
I5: Resultat för nyckeltalet (cellen innehåller en formel)
A6: I tabellen nedan får du en kort beskrivning av bladen i del 2, och instruktion huruvida du behöver fylla i bladet. | I6: Förklaringar till raden
A7: ="Instruktionen stryrs av dina svar på ja/nej-frågorna på Bakgrund, så gå tillbaks till Bakgrund om du vill ändra dina svar. " & IF(Bakgrund!BG37=0,"Du svarade att du inte är intresserad av foderfrågor så därför markeras bladen som ej relevanta för dig","") -> Instruktionen stryrs av dina svar på ja/nej-frågorna på Bakgrund, så gå tillbaks till Bakgrund om du vill ändra dina svar. | I7: Plats för egna kommentarer
A8: Om du svarat att du vill ta fram nyckeltal om foderåtgång, förluster i foderkedjan och/eller växtnäringsutnyttjande kommer de blad som behöver fyllas i att markeras som obligatoriska
A9: Del 2. Foder | B9: Ska bladet fyllas i? | C9: Om bladet | I9: Snabblänkar till bladen i verktyget:
A10: =C_Foder -> 2 Intro foder | B10: =IF(AND(Bakgrund!BG37=0,Bakgrund!BH37=0),'Teknisk administration'!G6,'Teknisk administration'!G4) -> obligatoriskt | C10: Sammanställning av arealen åkermark, åkerbete och naturbete | I10: Instruktion
A11: =C_Odling_foder -> 2.1 Odling foder | B11: =IF(B10='Teknisk administration'!$G$6,'Teknisk administration'!G6,IF(Bakgrund!AR37=0,'Teknisk administration'!$G$6,IF(SUM(Bakgrund!BG37:BH37)=0,'Teknisk administration'!$G$5,'Teknisk administration'!$G$4))) -> obligatoriskt | C11: Mängden odlat foder (kg ts och MJ). Underlag för beräkna förluster i foderkedjan. | I11: Bakgrund
A12: ='2.1b Halm, odling grovfoder'!A1 -> 2.1b Halm, odling grovfoder | B12: =IF(Bakgrund!BJ37=0,inte_relevant,frivilligt) -> inte relevant för dig | C12: Mängden bärgad halm och ev odlat grovfoder. Underlag för att beräkna förluster, men ger inga särskilda nyckeltal | I12: 1 Intro djuren
A13: =C_forluster_lagring -> 2.2 Förluster vid lagring | B13: =IF(B11=inte_relevant,inte_relevant,IF(Bakgrund!BH37>0,obligatoriskt,frivilligt)) -> obligatoriskt | C13: Förluster vid lagring av odlat foder, före uttag. Underlag för att beräkna förluster i foderkedjan | I13: 1.1 Kött
A14: =C_G_Summering -> 2.3 Utfodrat | B14: =IF(Bakgrund!BG37>0,'Teknisk administration'!G4,'Teknisk administration'!G5) -> obligatoriskt | C14: Beräknad foderåtgång. Underlag för beräkningar av förluster och växtnäringsutnyttjande | I14: 1.2 Tillväxt & förökning
A15: ='2.4 Kasserat foder och spill'!A1 -> 2.4 Kasserat foder och spill | B15: =IF(Bakgrund!BH37>0,obligatoriskt,frivilligt) -> obligatoriskt | C15: Kasserat foder (mögligt foder, skrotbalar etc.) och spill vid utfodring | I15: 1.3 Hälsa & dödlighet
I16: 2 Intro foder
I17: 2.1 Odling foder
I18: 2.1b Halm, odling grovfoder
I19: 2.2 Förluster vid lagring
A20: Fyll i areal åkermark respektive naturbetesmark i gula celler. Om en kategori inte är relavant lämnar du cellen tom. | I20: 2.3 Utfodrat
A21: Areal åkermark | B21: Enhet | C21: =Bakgrund!R$7 -> Period 1 | D21: =Bakgrund!S$7 -> Period 2 | E21: =Bakgrund!T$7 -> Period 3 | F21: Förklaring | G21: Egen kommentar | I21: 2.4 Kasserat foder och spill
A22: Avsalugrödor | B22: hektar åker | F22: Arealer med slåttervall, spannmål, oljeväxter etc. som säljs och som inte används till eget foder | I22: 3 Växtnäringsutnyttjande (1)
A23: Spannmål till tröskning | B23: hektar åker | F23: Spannmål som går till eget foder | I23: 3 Växtnäringsutnyttjande (2)
A24: Proteingrödor till tröskning | B24: hektar åker | F24: Proteingrödor som tröskas och går till eget foder | I24: 3 Växtnäringsutnyttjande (3)
A25: Grödor till ensilage, hö, hösilage, grönfoder - eget foder | B25: hektar åker | F25: Grödor som inte tröskas. T ex vall eller spannmål/blandsäd/proteingrödor som ensilieras. | I25: 4 Energi och bränsle
A26: Övriga grödor, ej foder | B26: hektar åker | F26: Ej foder, t ex salix, gröngödsling | I26: 5 Vattenanvändning
A27: Träda | B27: hektar åker | I27: 6 Resultat
A28: Total åkerareal | B28: hektar åker | C28: =SUM(C22:C27) -> 0 | D28: =SUM(D22:D27) -> 0 | E28: 0 | F28: Summering av alla rader ovan. | I28: 6B Klimat | N28: =SUM(C22:C27) -> 0 | O28: =SUM(D22:D27) -> 0 | P28: =SUM(E22:E27) -> 0
A29: Varav areal åker för egen foderproduktion | B29: hektar åker | C29: =SUM(C23:C24) -> 0 | D29: =SUM(D23:D24) -> 0 | E29: 0 | F29: summering av raderna ovan, exklusive Areal avsalugrödor, träda och övriga grödor | N29: =SUM(C23:C24) -> 0 | O29: =SUM(D23:D25) -> 0 | P29: =SUM(E23:E25) -> 0

Sheet 2.1 Odling foder
A1: 2.1 Odling foder | O1: Det här betyder färgerna:
A2: =VLOOKUP('2 Intro foder'!B11,'Teknisk administration'!$G$4:$H$6,2,FALSE) -> Obligatoriskt blad | O2: Cell med värden hämtade från annan cell
A3: Här beräknar du mängden foder (MJ och kg ts) som tröskats. | O3: Fyll i din egen siffra
A4: ="Mängd bärgad halm och ev slåttervall, grönfoder etc. sammanställs på bladet "&'2.1b Halm, odling grovfoder'!A1 -> Mängd bärgad halm och ev slåttervall, grönfoder etc. sammanställs på bladet 2.1b Halm, odling grovfoder | O4: Resultat/uträkning
A5: Avsalugrödor, t ex brödspannmål, kan men behöver inte tas med. | O5: Förklaringar till raden
A6: Räcker inte raderna till? Ta bort bladets skrivskydd (Granska/Skydda), inget lösenord krävs. Högerklicka i tabellen och välj Infoga > Infoga rad ovanför | O6: Plats för egna kommentarer
A7: Perioderna ligger under varandra på detta blad | O7: Egen uppgift, men välj värde ur rullista.
O9: Snabblänkar till bladen i verktyget:
A10: ="Tröskat "&period_1 -> Tröskat Period 1 | O10: Instruktion
A11: Välj typ av ur lista och mängden bärgat foder aktuell period (enhet visas när du valt ett foder ur listan). Enhet och ts-halt hämtas från en databas. | F11: Växande grisar | G11: Suggor | O11: Bakgrund
A12: Typ av foder - välj ur lista | B12: Mängd | C12: Enhet och ts-halt | D12: Egen kommentar | E12: ts-halt | F12: MJ NE | G12: MJ NE2 | H12: typ av foder | I12: spannmål | J12: trindsäd | K12: oljeväxter | L12: rotfrukter | O12: 1 Intro djuren
C13: =IF(ISTEXT(A13),VLOOKUP(A13,'Teknisk administration'!$B$323:$G$338,2,FALSE),"") ->  | E13: =IF(ISTEXT(A13),VLOOKUP(A13,'Teknisk administration'!$B$323:$G$338,3,FALSE),"") ->  | F13: =IF(ISTEXT($A13),VLOOKUP($A13,'Teknisk administration'!$B$323:$I$338,5,FALSE)*$B13,"") ->  | G13: =IF(ISTEXT($A13),VLOOKUP($A13,'Teknisk administration'!$B$323:$I$338,6,FALSE)*$B13,"") ->  | H13: =IF(ISTEXT(A13),VLOOKUP(A13,'Teknisk administration'!$B$323:$I$338,8,FALSE),"") ->  | I13: =IF($H13=I$12,1,0) -> 0 | J13: 0 | K13: 0 | L13: 0 | O13: 1.1 Kött
C14: =IF(ISTEXT(A14),VLOOKUP(A14,'Teknisk administration'!$B$323:$G$338,2,FALSE),"") ->  | E14: =IF(ISTEXT(A14),VLOOKUP(A14,'Teknisk administration'!$B$323:$G$338,3,FALSE),"") ->  | F14: =IF(ISTEXT($A14),VLOOKUP($A14,'Teknisk administration'!$B$323:$I$338,5,FALSE)*$B14,"") ->  | G14: =IF(ISTEXT($A14),VLOOKUP($A14,'Teknisk administration'!$B$323:$I$338,6,FALSE)*$B14,"") ->  | H14: =IF(ISTEXT(A14),VLOOKUP(A14,'Teknisk administration'!$B$323:$I$338,8,FALSE),"") ->  | I14: 0 | J14: 0 | K14: 0 | L14: 0 | O14: 1.2 Tillväxt & förökning
C15: =IF(ISTEXT(A15),VLOOKUP(A15,'Teknisk administration'!$B$323:$G$338,2,FALSE),"") ->  | E15: =IF(ISTEXT(A15),VLOOKUP(A15,'Teknisk administration'!$B$323:$G$338,3,FALSE),"") ->  | F15: =IF(ISTEXT($A15),VLOOKUP($A15,'Teknisk administration'!$B$323:$I$338,5,FALSE)*$B15,"") ->  | G15: =IF(ISTEXT($A15),VLOOKUP($A15,'Teknisk administration'!$B$323:$I$338,6,FALSE)*$B15,"") ->  | H15: =IF(ISTEXT(A15),VLOOKUP(A15,'Teknisk administration'!$B$323:$I$338,8,FALSE),"") ->  | I15: 0 | J15: 0 | K15: 0 | L15: 0 | O15: 1.3 Hälsa & dödlighet
C16: =IF(ISTEXT(A16),VLOOKUP(A16,'Teknisk administration'!$B$323:$G$338,2,FALSE),"") ->  | E16: =IF(ISTEXT(A16),VLOOKUP(A16,'Teknisk administration'!$B$323:$G$338,3,FALSE),"") ->  | F16: =IF(ISTEXT($A16),VLOOKUP($A16,'Teknisk administration'!$B$323:$I$338,5,FALSE)*$B16,"") ->  | G16: =IF(ISTEXT($A16),VLOOKUP($A16,'Teknisk administration'!$B$323:$I$338,6,FALSE)*$B16,"") ->  | H16: =IF(ISTEXT(A16),VLOOKUP(A16,'Teknisk administration'!$B$323:$I$338,8,FALSE),"") ->  | I16: 0 | J16: 0 | K16: 0 | L16: 0 | O16: 2 Intro foder
C17: =IF(ISTEXT(A17),VLOOKUP(A17,'Teknisk administration'!$B$323:$G$338,2,FALSE),"") ->  | E17: =IF(ISTEXT(A17),VLOOKUP(A17,'Teknisk administration'!$B$323:$G$338,3,FALSE),"") ->  | F17: =IF(ISTEXT($A17),VLOOKUP($A17,'Teknisk administration'!$B$323:$I$338,5,FALSE)*$B17,"") ->  | G17: =IF(ISTEXT($A17),VLOOKUP($A17,'Teknisk administration'!$B$323:$I$338,6,FALSE)*$B17,"") ->  | H17: =IF(ISTEXT(A17),VLOOKUP(A17,'Teknisk administration'!$B$323:$I$338,8,FALSE),"") ->  | I17: 0 | J17: 0 | K17: 0 | L17: 0 | O17: 2.1 Odling foder
C18: =IF(ISTEXT(A18),VLOOKUP(A18,'Teknisk administration'!$B$323:$G$338,2,FALSE),"") ->  | E18: =IF(ISTEXT(A18),VLOOKUP(A18,'Teknisk administration'!$B$323:$G$338,3,FALSE),"") ->  | F18: =IF(ISTEXT($A18),VLOOKUP($A18,'Teknisk administration'!$B$323:$I$338,5,FALSE)*$B18,"") ->  | G18: =IF(ISTEXT($A18),VLOOKUP($A18,'Teknisk administration'!$B$323:$I$338,6,FALSE)*$B18,"") ->  | H18: =IF(ISTEXT(A18),VLOOKUP(A18,'Teknisk administration'!$B$323:$I$338,8,FALSE),"") ->  | I18: 0 | J18: 0 | K18: 0 | L18: 0 | O18: 2.1b Halm, odling grovfoder
C19: =IF(ISTEXT(A19),VLOOKUP(A19,'Teknisk administration'!$B$323:$G$338,2,FALSE),"") ->  | E19: =IF(ISTEXT(A19),VLOOKUP(A19,'Teknisk administration'!$B$323:$G$338,3,FALSE),"") ->  | F19: =IF(ISTEXT($A19),VLOOKUP($A19,'Teknisk administration'!$B$323:$I$338,5,FALSE)*$B19,"") ->  | G19: =IF(ISTEXT($A19),VLOOKUP($A19,'Teknisk administration'!$B$323:$I$338,6,FALSE)*$B19,"") ->  | H19: =IF(ISTEXT(A19),VLOOKUP(A19,'Teknisk administration'!$B$323:$I$338,8,FALSE),"") ->  | I19: 0 | J19: 0 | K19: 0 | L19: 0 | O19: 2.2 Förluster vid lagring
C20: =IF(ISTEXT(A20),VLOOKUP(A20,'Teknisk administration'!$B$323:$G$338,2,FALSE),"") ->  | E20: =IF(ISTEXT(A20),VLOOKUP(A20,'Teknisk administration'!$B$323:$G$338,3,FALSE),"") ->  | F20: =IF(ISTEXT($A20),VLOOKUP($A20,'Teknisk administration'!$B$323:$I$338,5,FALSE)*$B20,"") ->  | G20: =IF(ISTEXT($A20),VLOOKUP($A20,'Teknisk administration'!$B$323:$I$338,6,FALSE)*$B20,"") ->  | H20: =IF(ISTEXT(A20),VLOOKUP(A20,'Teknisk administration'!$B$323:$I$338,8,FALSE),"") ->  | I20: 0 | J20: 0 | K20: 0 | L20: 0 | O20: 2.3 Utfodrat
C21: =IF(ISTEXT(A21),VLOOKUP(A21,'Teknisk administration'!$B$323:$G$338,2,FALSE),"") ->  | E21: =IF(ISTEXT(A21),VLOOKUP(A21,'Teknisk administration'!$B$323:$G$338,3,FALSE),"") ->  | F21: =IF(ISTEXT($A21),VLOOKUP($A21,'Teknisk administration'!$B$323:$I$338,5,FALSE)*$B21,"") ->  | G21: =IF(ISTEXT($A21),VLOOKUP($A21,'Teknisk administration'!$B$323:$I$338,6,FALSE)*$B21,"") ->  | H21: =IF(ISTEXT(A21),VLOOKUP(A21,'Teknisk administration'!$B$323:$I$338,8,FALSE),"") ->  | I21: 0 | J21: 0 | K21: 0 | L21: 0 | O21: 2.4 Kasserat foder och spill
C22: =IF(ISTEXT(A22),VLOOKUP(A22,'Teknisk administration'!$B$323:$G$338,2,FALSE),"") ->  | E22: =IF(ISTEXT(A22),VLOOKUP(A22,'Teknisk administration'!$B$323:$G$338,3,FALSE),"") ->  | F22: =IF(ISTEXT($A22),VLOOKUP($A22,'Teknisk administration'!$B$323:$I$338,5,FALSE)*$B22,"") ->  | G22: =IF(ISTEXT($A22),VLOOKUP($A22,'Teknisk administration'!$B$323:$I$338,6,FALSE)*$B22,"") ->  | H22: =IF(ISTEXT(A22),VLOOKUP(A22,'Teknisk administration'!$B$323:$I$338,8,FALSE),"") ->  | I22: 0 | J22: 0 | K22: 0 | L22: 0 | O22: 3 Växtnäringsutnyttjande (1)
C23: =IF(ISTEXT(A23),VLOOKUP(A23,'Teknisk administration'!$B$323:$G$338,2,FALSE),"") ->  | E23: =IF(ISTEXT(A23),VLOOKUP(A23,'Teknisk administration'!$B$323:$G$338,3,FALSE),"") ->  | F23: =IF(ISTEXT($A23),VLOOKUP($A23,'Teknisk administration'!$B$323:$I$338,5,FALSE)*$B23,"") ->  | G23: =IF(ISTEXT($A23),VLOOKUP($A23,'Teknisk administration'!$B$323:$I$338,6,FALSE)*$B23,"") ->  | H23: =IF(ISTEXT(A23),VLOOKUP(A23,'Teknisk administration'!$B$323:$I$338,8,FALSE),"") ->  | I23: 0 | J23: 0 | K23: 0 | L23: 0 | O23: 3 Växtnäringsutnyttjande (2)
C24: =IF(ISTEXT(A24),VLOOKUP(A24,'Teknisk administration'!$B$323:$G$338,2,FALSE),"") ->  | E24: =IF(ISTEXT(A24),VLOOKUP(A24,'Teknisk administration'!$B$323:$G$338,3,FALSE),"") ->  | F24: =IF(ISTEXT($A24),VLOOKUP($A24,'Teknisk administration'!$B$323:$I$338,5,FALSE)*$B24,"") ->  | G24: =IF(ISTEXT($A24),VLOOKUP($A24,'Teknisk administration'!$B$323:$I$338,6,FALSE)*$B24,"") ->  | H24: =IF(ISTEXT(A24),VLOOKUP(A24,'Teknisk administration'!$B$323:$I$338,8,FALSE),"") ->  | I24: 0 | J24: 0 | K24: 0 | L24: 0 | O24: 3 Växtnäringsutnyttjande (3)
A25: totalt, kg ts | B25: =SUMPRODUCT(B13:B24,E13:E24) -> 0 | F25: =SUM(F13:F24) -> 0 | G25: =SUM(G13:G24) -> 0 | O25: 4 Energi och bränsle
O26: 5 Vattenanvändning
O27: 6 Resultat
O28: 6B Klimat
A30: ="Tröskat "&period_2 -> Tröskat Period 2
A31: Välj typ av ur lista och mängden bärgat foder aktuell period (enhet visas när du valt ett foder ur listan). Enhet och ts-halt hämtas från en databas. | F31: Växande grisar | G31: Suggor
A32: Typ av foder - välj ur lista | B32: Mängd | C32: Enhet och ts-halt | D32: Egen kommentar | E32: ts-halt | F32: MJ NE | G32: MJ NE2 | H32: typ av foder | I32: spannmål | J32: trindsäd | K32: oljeväxter | L32: rotfrukter
C33: =IF(ISTEXT(A33),VLOOKUP(A33,'Teknisk administration'!$B$323:$G$338,2,FALSE),"") ->  | E33: =IF(ISTEXT(A33),VLOOKUP(A33,'Teknisk administration'!$B$323:$G$338,3,FALSE),"") ->  | F33: =IF(ISTEXT($A33),VLOOKUP($A33,'Teknisk administration'!$B$323:$I$338,5,FALSE)*$B33,"") ->  | G33: =IF(ISTEXT($A33),VLOOKUP($A33,'Teknisk administration'!$B$323:$I$338,6,FALSE)*$B33,"") ->  | H33: =IF(ISTEXT(A33),VLOOKUP(A33,'Teknisk administration'!$B$323:$I$338,8,FALSE),"") ->  | I33: =IF($H33=I$12,1,0) -> 0 | J33: 0 | K33: 0 | L33: 0
C34: =IF(ISTEXT(A34),VLOOKUP(A34,'Teknisk administration'!$B$323:$G$338,2,FALSE),"") ->  | E34: =IF(ISTEXT(A34),VLOOKUP(A34,'Teknisk administration'!$B$323:$G$338,3,FALSE),"") ->  | F34: =IF(ISTEXT($A34),VLOOKUP($A34,'Teknisk administration'!$B$323:$I$338,5,FALSE)*$B34,"") ->  | G34: =IF(ISTEXT($A34),VLOOKUP($A34,'Teknisk administration'!$B$323:$I$338,6,FALSE)*$B34,"") ->  | H34: =IF(ISTEXT(A34),VLOOKUP(A34,'Teknisk administration'!$B$323:$I$338,8,FALSE),"") ->  | I34: 0 | J34: 0 | K34: 0 | L34: 0
C35: =IF(ISTEXT(A35),VLOOKUP(A35,'Teknisk administration'!$B$323:$G$338,2,FALSE),"") ->  | E35: =IF(ISTEXT(A35),VLOOKUP(A35,'Teknisk administration'!$B$323:$G$338,3,FALSE),"") ->  | F35: =IF(ISTEXT($A35),VLOOKUP($A35,'Teknisk administration'!$B$323:$I$338,5,FALSE)*$B35,"") ->  | G35: =IF(ISTEXT($A35),VLOOKUP($A35,'Teknisk administration'!$B$323:$I$338,6,FALSE)*$B35,"") ->  | H35: =IF(ISTEXT(A35),VLOOKUP(A35,'Teknisk administration'!$B$323:$I$338,8,FALSE),"") ->  | I35: 0 | J35: 0 | K35: 0 | L35: 0
C36: =IF(ISTEXT(A36),VLOOKUP(A36,'Teknisk administration'!$B$323:$G$338,2,FALSE),"") ->  | E36: =IF(ISTEXT(A36),VLOOKUP(A36,'Teknisk administration'!$B$323:$G$338,3,FALSE),"") ->  | F36: =IF(ISTEXT($A36),VLOOKUP($A36,'Teknisk administration'!$B$323:$I$338,5,FALSE)*$B36,"") ->  | G36: =IF(ISTEXT($A36),VLOOKUP($A36,'Teknisk administration'!$B$323:$I$338,6,FALSE)*$B36,"") ->  | H36: =IF(ISTEXT(A36),VLOOKUP(A36,'Teknisk administration'!$B$323:$I$338,8,FALSE),"") ->  | I36: 0 | J36: 0 | K36: 0 | L36: 0
C37: =IF(ISTEXT(A37),VLOOKUP(A37,'Teknisk administration'!$B$323:$G$338,2,FALSE),"") ->  | E37: =IF(ISTEXT(A37),VLOOKUP(A37,'Teknisk administration'!$B$323:$G$338,3,FALSE),"") ->  | F37: =IF(ISTEXT($A37),VLOOKUP($A37,'Teknisk administration'!$B$323:$I$338,5,FALSE)*$B37,"") ->  | G37: =IF(ISTEXT($A37),VLOOKUP($A37,'Teknisk administration'!$B$323:$I$338,6,FALSE)*$B37,"") ->  | H37: =IF(ISTEXT(A37),VLOOKUP(A37,'Teknisk administration'!$B$323:$I$338,8,FALSE),"") ->  | I37: 0 | J37: 0 | K37: 0 | L37: 0
C38: =IF(ISTEXT(A38),VLOOKUP(A38,'Teknisk administration'!$B$323:$G$338,2,FALSE),"") ->  | E38: =IF(ISTEXT(A38),VLOOKUP(A38,'Teknisk administration'!$B$323:$G$338,3,FALSE),"") ->  | F38: =IF(ISTEXT($A38),VLOOKUP($A38,'Teknisk administration'!$B$323:$I$338,5,FALSE)*$B38,"") ->  | G38: =IF(ISTEXT($A38),VLOOKUP($A38,'Teknisk administration'!$B$323:$I$338,6,FALSE)*$B38,"") ->  | H38: =IF(ISTEXT(A38),VLOOKUP(A38,'Teknisk administration'!$B$323:$I$338,8,FALSE),"") ->  | I38: 0 | J38: 0 | K38: 0 | L38: 0
C39: =IF(ISTEXT(A39),VLOOKUP(A39,'Teknisk administration'!$B$323:$G$338,2,FALSE),"") ->  | E39: =IF(ISTEXT(A39),VLOOKUP(A39,'Teknisk administration'!$B$323:$G$338,3,FALSE),"") ->  | F39: =IF(ISTEXT($A39),VLOOKUP($A39,'Teknisk administration'!$B$323:$I$338,5,FALSE)*$B39,"") ->  | G39: =IF(ISTEXT($A39),VLOOKUP($A39,'Teknisk administration'!$B$323:$I$338,6,FALSE)*$B39,"") ->  | H39: =IF(ISTEXT(A39),VLOOKUP(A39,'Teknisk administration'!$B$323:$I$338,8,FALSE),"") ->  | I39: 0 | J39: 0 | K39: 0 | L39: 0
C40: =IF(ISTEXT(A40),VLOOKUP(A40,'Teknisk administration'!$B$323:$G$338,2,FALSE),"") ->  | E40: =IF(ISTEXT(A40),VLOOKUP(A40,'Teknisk administration'!$B$323:$G$338,3,FALSE),"") ->  | F40: =IF(ISTEXT($A40),VLOOKUP($A40,'Teknisk administration'!$B$323:$I$338,5,FALSE)*$B40,"") ->  | G40: =IF(ISTEXT($A40),VLOOKUP($A40,'Teknisk administration'!$B$323:$I$338,6,FALSE)*$B40,"") ->  | H40: =IF(ISTEXT(A40),VLOOKUP(A40,'Teknisk administration'!$B$323:$I$338,8,FALSE),"") ->  | I40: 0 | J40: 0 | K40: 0 | L40: 0
C41: =IF(ISTEXT(A41),VLOOKUP(A41,'Teknisk administration'!$B$323:$G$338,2,FALSE),"") ->  | E41: =IF(ISTEXT(A41),VLOOKUP(A41,'Teknisk administration'!$B$323:$G$338,3,FALSE),"") ->  | F41: =IF(ISTEXT($A41),VLOOKUP($A41,'Teknisk administration'!$B$323:$I$338,5,FALSE)*$B41,"") ->  | G41: =IF(ISTEXT($A41),VLOOKUP($A41,'Teknisk administration'!$B$323:$I$338,6,FALSE)*$B41,"") ->  | H41: =IF(ISTEXT(A41),VLOOKUP(A41,'Teknisk administration'!$B$323:$I$338,8,FALSE),"") ->  | I41: 0 | J41: 0 | K41: 0 | L41: 0
C42: =IF(ISTEXT(A42),VLOOKUP(A42,'Teknisk administration'!$B$323:$G$338,2,FALSE),"") ->  | E42: =IF(ISTEXT(A42),VLOOKUP(A42,'Teknisk administration'!$B$323:$G$338,3,FALSE),"") ->  | F42: =IF(ISTEXT($A42),VLOOKUP($A42,'Teknisk administration'!$B$323:$I$338,5,FALSE)*$B42,"") ->  | G42: =IF(ISTEXT($A42),VLOOKUP($A42,'Teknisk administration'!$B$323:$I$338,6,FALSE)*$B42,"") ->  | H42: =IF(ISTEXT(A42),VLOOKUP(A42,'Teknisk administration'!$B$323:$I$338,8,FALSE),"") ->  | I42: 0 | J42: 0 | K42: 0 | L42: 0
C43: =IF(ISTEXT(A43),VLOOKUP(A43,'Teknisk administration'!$B$323:$G$338,2,FALSE),"") ->  | E43: =IF(ISTEXT(A43),VLOOKUP(A43,'Teknisk administration'!$B$323:$G$338,3,FALSE),"") ->  | F43: =IF(ISTEXT($A43),VLOOKUP($A43,'Teknisk administration'!$B$323:$I$338,5,FALSE)*$B43,"") ->  | G43: =IF(ISTEXT($A43),VLOOKUP($A43,'Teknisk administration'!$B$323:$I$338,6,FALSE)*$B43,"") ->  | H43: =IF(ISTEXT(A43),VLOOKUP(A43,'Teknisk administration'!$B$323:$I$338,8,FALSE),"") ->  | I43: 0 | J43: 0 | K43: 0 | L43: 0
C44: =IF(ISTEXT(A44),VLOOKUP(A44,'Teknisk administration'!$B$323:$G$338,2,FALSE),"") ->  | E44: =IF(ISTEXT(A44),VLOOKUP(A44,'Teknisk administration'!$B$323:$G$338,3,FALSE),"") ->  | F44: =IF(ISTEXT($A44),VLOOKUP($A44,'Teknisk administration'!$B$323:$I$338,5,FALSE)*$B44,"") ->  | G44: =IF(ISTEXT($A44),VLOOKUP($A44,'Teknisk administration'!$B$323:$I$338,6,FALSE)*$B44,"") ->  | H44: =IF(ISTEXT(A44),VLOOKUP(A44,'Teknisk administration'!$B$323:$I$338,8,FALSE),"") ->  | I44: 0 | J44: 0 | K44: 0 | L44: 0
A45: totalt, kg ts | B45: =SUMPRODUCT(B33:B44,E33:E44) -> 0 | F45: =SUM(F33:F44) -> 0 | G45: =SUM(G33:G44) -> 0
A52: ="Tröskat "&period_3 -> Tröskat Period 3
A53: Välj typ av ur lista och mängden bärgat foder aktuell period (enhet visas när du valt ett foder ur listan). Enhet och ts-halt hämtas från en databas. | F53: Växande grisar | G53: Suggor
A54: Typ av foder - välj ur lista | B54: Mängd | C54: Enhet och ts-halt | D54: Egen kommentar | E54: ts-halt | F54: MJ NE | G54: MJ NE2 | H54: typ av foder | I54: spannmål | J54: trindsäd | K54: oljeväxter | L54: rotfrukter
C55: =IF(ISTEXT(A55),VLOOKUP(A55,'Teknisk administration'!$B$323:$G$338,2,FALSE),"") ->  | E55: =IF(ISTEXT(A55),VLOOKUP(A55,'Teknisk administration'!$B$323:$G$338,3,FALSE),"") ->  | F55: =IF(ISTEXT($A55),VLOOKUP($A55,'Teknisk administration'!$B$323:$I$338,5,FALSE)*$B55,"") ->  | G55: =IF(ISTEXT($A55),VLOOKUP($A55,'Teknisk administration'!$B$323:$I$338,6,FALSE)*$B55,"") ->  | H55: =IF(ISTEXT(A55),VLOOKUP(A55,'Teknisk administration'!$B$323:$I$338,8,FALSE),"") ->  | I55: =IF($H55=I$12,1,0) -> 0 | J55: 0 | K55: 0 | L55: 0
C56: =IF(ISTEXT(A56),VLOOKUP(A56,'Teknisk administration'!$B$323:$G$338,2,FALSE),"") ->  | E56: =IF(ISTEXT(A56),VLOOKUP(A56,'Teknisk administration'!$B$323:$G$338,3,FALSE),"") ->  | F56: =IF(ISTEXT($A56),VLOOKUP($A56,'Teknisk administration'!$B$323:$I$338,5,FALSE)*$B56,"") ->  | G56: =IF(ISTEXT($A56),VLOOKUP($A56,'Teknisk administration'!$B$323:$I$338,6,FALSE)*$B56,"") ->  | H56: =IF(ISTEXT(A56),VLOOKUP(A56,'Teknisk administration'!$B$323:$I$338,8,FALSE),"") ->  | I56: 0 | J56: 0 | K56: 0 | L56: 0
C57: =IF(ISTEXT(A57),VLOOKUP(A57,'Teknisk administration'!$B$323:$G$338,2,FALSE),"") ->  | E57: =IF(ISTEXT(A57),VLOOKUP(A57,'Teknisk administration'!$B$323:$G$338,3,FALSE),"") ->  | F57: =IF(ISTEXT($A57),VLOOKUP($A57,'Teknisk administration'!$B$323:$I$338,5,FALSE)*$B57,"") ->  | G57: =IF(ISTEXT($A57),VLOOKUP($A57,'Teknisk administration'!$B$323:$I$338,6,FALSE)*$B57,"") ->  | H57: =IF(ISTEXT(A57),VLOOKUP(A57,'Teknisk administration'!$B$323:$I$338,8,FALSE),"") ->  | I57: 0 | J57: 0 | K57: 0 | L57: 0
C58: =IF(ISTEXT(A58),VLOOKUP(A58,'Teknisk administration'!$B$323:$G$338,2,FALSE),"") ->  | E58: =IF(ISTEXT(A58),VLOOKUP(A58,'Teknisk administration'!$B$323:$G$338,3,FALSE),"") ->  | F58: =IF(ISTEXT($A58),VLOOKUP($A58,'Teknisk administration'!$B$323:$I$338,5,FALSE)*$B58,"") ->  | G58: =IF(ISTEXT($A58),VLOOKUP($A58,'Teknisk administration'!$B$323:$I$338,6,FALSE)*$B58,"") ->  | H58: =IF(ISTEXT(A58),VLOOKUP(A58,'Teknisk administration'!$B$323:$I$338,8,FALSE),"") ->  | I58: 0 | J58: 0 | K58: 0 | L58: 0
C59: =IF(ISTEXT(A59),VLOOKUP(A59,'Teknisk administration'!$B$323:$G$338,2,FALSE),"") ->  | E59: =IF(ISTEXT(A59),VLOOKUP(A59,'Teknisk administration'!$B$323:$G$338,3,FALSE),"") ->  | F59: =IF(ISTEXT($A59),VLOOKUP($A59,'Teknisk administration'!$B$323:$I$338,5,FALSE)*$B59,"") ->  | G59: =IF(ISTEXT($A59),VLOOKUP($A59,'Teknisk administration'!$B$323:$I$338,6,FALSE)*$B59,"") ->  | H59: =IF(ISTEXT(A59),VLOOKUP(A59,'Teknisk administration'!$B$323:$I$338,8,FALSE),"") ->  | I59: 0 | J59: 0 | K59: 0 | L59: 0
C60: =IF(ISTEXT(A60),VLOOKUP(A60,'Teknisk administration'!$B$323:$G$338,2,FALSE),"") ->  | E60: =IF(ISTEXT(A60),VLOOKUP(A60,'Teknisk administration'!$B$323:$G$338,3,FALSE),"") ->  | F60: =IF(ISTEXT($A60),VLOOKUP($A60,'Teknisk administration'!$B$323:$I$338,5,FALSE)*$B60,"") ->  | G60: =IF(ISTEXT($A60),VLOOKUP($A60,'Teknisk administration'!$B$323:$I$338,6,FALSE)*$B60,"") ->  | H60: =IF(ISTEXT(A60),VLOOKUP(A60,'Teknisk administration'!$B$323:$I$338,8,FALSE),"") ->  | I60: 0 | J60: 0 | K60: 0 | L60: 0
C61: =IF(ISTEXT(A61),VLOOKUP(A61,'Teknisk administration'!$B$323:$G$338,2,FALSE),"") ->  | E61: =IF(ISTEXT(A61),VLOOKUP(A61,'Teknisk administration'!$B$323:$G$338,3,FALSE),"") ->  | F61: =IF(ISTEXT($A61),VLOOKUP($A61,'Teknisk administration'!$B$323:$I$338,5,FALSE)*$B61,"") ->  | G61: =IF(ISTEXT($A61),VLOOKUP($A61,'Teknisk administration'!$B$323:$I$338,6,FALSE)*$B61,"") ->  | H61: =IF(ISTEXT(A61),VLOOKUP(A61,'Teknisk administration'!$B$323:$I$338,8,FALSE),"") ->  | I61: 0 | J61: 0 | K61: 0 | L61: 0
C62: =IF(ISTEXT(A62),VLOOKUP(A62,'Teknisk administration'!$B$323:$G$338,2,FALSE),"") ->  | E62: =IF(ISTEXT(A62),VLOOKUP(A62,'Teknisk administration'!$B$323:$G$338,3,FALSE),"") ->  | F62: =IF(ISTEXT($A62),VLOOKUP($A62,'Teknisk administration'!$B$323:$I$338,5,FALSE)*$B62,"") ->  | G62: =IF(ISTEXT($A62),VLOOKUP($A62,'Teknisk administration'!$B$323:$I$338,6,FALSE)*$B62,"") ->  | H62: =IF(ISTEXT(A62),VLOOKUP(A62,'Teknisk administration'!$B$323:$I$338,8,FALSE),"") ->  | I62: 0 | J62: 0 | K62: 0 | L62: 0
C63: =IF(ISTEXT(A63),VLOOKUP(A63,'Teknisk administration'!$B$323:$G$338,2,FALSE),"") ->  | E63: =IF(ISTEXT(A63),VLOOKUP(A63,'Teknisk administration'!$B$323:$G$338,3,FALSE),"") ->  | F63: =IF(ISTEXT($A63),VLOOKUP($A63,'Teknisk administration'!$B$323:$I$338,5,FALSE)*$B63,"") ->  | G63: =IF(ISTEXT($A63),VLOOKUP($A63,'Teknisk administration'!$B$323:$I$338,6,FALSE)*$B63,"") ->  | H63: =IF(ISTEXT(A63),VLOOKUP(A63,'Teknisk administration'!$B$323:$I$338,8,FALSE),"") ->  | I63: 0 | J63: 0 | K63: 0 | L63: 0
C64: =IF(ISTEXT(A64),VLOOKUP(A64,'Teknisk administration'!$B$323:$G$338,2,FALSE),"") ->  | E64: =IF(ISTEXT(A64),VLOOKUP(A64,'Teknisk administration'!$B$323:$G$338,3,FALSE),"") ->  | F64: =IF(ISTEXT($A64),VLOOKUP($A64,'Teknisk administration'!$B$323:$I$338,5,FALSE)*$B64,"") ->  | G64: =IF(ISTEXT($A64),VLOOKUP($A64,'Teknisk administration'!$B$323:$I$338,6,FALSE)*$B64,"") ->  | H64: =IF(ISTEXT(A64),VLOOKUP(A64,'Teknisk administration'!$B$323:$I$338,8,FALSE),"") ->  | I64: 0 | J64: 0 | K64: 0 | L64: 0
C65: =IF(ISTEXT(A65),VLOOKUP(A65,'Teknisk administration'!$B$323:$G$338,2,FALSE),"") ->  | E65: =IF(ISTEXT(A65),VLOOKUP(A65,'Teknisk administration'!$B$323:$G$338,3,FALSE),"") ->  | F65: =IF(ISTEXT($A65),VLOOKUP($A65,'Teknisk administration'!$B$323:$I$338,5,FALSE)*$B65,"") ->  | G65: =IF(ISTEXT($A65),VLOOKUP($A65,'Teknisk administration'!$B$323:$I$338,6,FALSE)*$B65,"") ->  | H65: =IF(ISTEXT(A65),VLOOKUP(A65,'Teknisk administration'!$B$323:$I$338,8,FALSE),"") ->  | I65: 0 | J65: 0 | K65: 0 | L65: 0
C66: =IF(ISTEXT(A66),VLOOKUP(A66,'Teknisk administration'!$B$323:$G$338,2,FALSE),"") ->  | E66: =IF(ISTEXT(A66),VLOOKUP(A66,'Teknisk administration'!$B$323:$G$338,3,FALSE),"") ->  | F66: =IF(ISTEXT($A66),VLOOKUP($A66,'Teknisk administration'!$B$323:$I$338,5,FALSE)*$B66,"") ->  | G66: =IF(ISTEXT($A66),VLOOKUP($A66,'Teknisk administration'!$B$323:$I$338,6,FALSE)*$B66,"") ->  | H66: =IF(ISTEXT(A66),VLOOKUP(A66,'Teknisk administration'!$B$323:$I$338,8,FALSE),"") ->  | I66: 0 | J66: 0 | K66: 0 | L66: 0
A67: totalt, kg ts | B67: =SUMPRODUCT(B55:B66,E55:E66) -> 0 | F67: =SUM(F55:F66) -> 0 | G67: =SUM(G55:G66) -> 0

Sheet 2.1b Halm, odling grovfoder
A1: 2.1b Halm, odling grovfoder | L1: Det här betyder färgerna:
A2: =IF(Bakgrund!BJ37=0,'Teknisk administration'!H6,'Teknisk administration'!H5) -> Bladet är inte relevant för dig | L2: Cell med värden hämtade från annan cell
A3: Här beräknar du mängden halm (kg ts) och ev grovfoder (MJ och kg ts) som bärgats. Beräkningarna är de samma som i verktygen för Nöt och Lamm, därav tyngdpunkten på grovfoder | L3: Fyll i din egen siffra
L4: Fyll i egen siffra - frivilligt, t ex om du har tillgång till uppgift eller om du vill räkna med annat värde än det schablonvärde som visas i angränsande cell
A5: Räcker inte raderna till?! Högerklicka i tabellen och välj Infoga > Infoga rad ovanför | L5: Egen uppgift, men välj värde ur rullista.
A6: Perioderna ligger under varandra på detta blad | L6: Resultat/uträkning
L7: Schablonvärde
L8: Förklaringar till raden
L9: Plats för egna kommentarer
L10: Glöm inte att fylla i värde! (Här krävs ett värde för att andra beräkningar ska fungera
L11: grå text, ev vit bakgrund: Avsnittet är inte relevant för dig baserat på svaren på ja/nej-frågor på bladet Bakgrund
L13: Snabblänkar till bladen i verktyget:
L14: Instruktion | M14: 2.3 Utfodrat
A15: =Bakgrund!R7 -> Period 1 | L15: Bakgrund | M15: 2.4 Kasserat foder och spill
A16: Mängd halm och grovfoder | L16: 1 Intro djuren | M16: 3 Växtnäringsutnyttjande (1)
A17: Skördemängden kan anges med två olika alternativ: | L17: 1.1 Kött | M17: 3 Växtnäringsutnyttjande (2)
A18: 1. Fyll i färdigt värde om du mätt skörden som lagts in (kg och ts). | L18: 1.2 Tillväxt & förökning | M18: 3 Växtnäringsutnyttjande (3)
A19: 2. Uppskatta mängden (kg och ts) genom att beräkna volymen inlagt grovfoder och direktutfodrad grönmassa. | L19: 1.3 Hälsa & dödlighet | M19: 4 Energi och bränsle
A20: Du kan ha en kombination av alternativ under en och samma period, t ex om du inte vägt mängden vid varje skörd. | L20: 2 Intro foder | M20: 5 Vattenanvändning
A21: Börja med att välja typ av system (plansilo, rundbal, halm etc. i den vänstraste kolumnen. Då tänds de celler du ska skriva siffror i (gula celler) eller där du ska välja ur en lista (orange celler). Övriga celler i lämnar du tomma. | L21: 2.1 Odling foder | M21: 6 Resultat
A22: När det gäller energi i fodret kan du antingen välja ur lista (orange cell) eller skriva in ett eget värde (ljusgul cell) | L22: 2.1b Halm, odling grovfoder | M22: 6B Klimat
A23: Du kan lägga in flera rader med samma system, t ex om du vill särkilja 1:a 2:a och 3:e skörd eller vill räkna separat för olika skriften. Om du hellre vill det kan du lägga allt på en rad. | L23: 2.2 Förluster vid lagring
A26: Alternativ 1. Har vägt skörden och har ts-analys
A27: Mängden ts och MJ beräknas först när MJ/kg ts, ts-halt och kg grönmassa fyllts i. | AQ27: Gruppering av system
C28: Energi - välj ur lista eller skriv eget värde | E28: TS-halt (%) | G28: Mängd | H28: Beräknad mängd | AQ28: Plansilo | AR28: Torn | AS28: Storbalar (rund- och fyrkantsbalar) | AT28: Hö | AU28: Direktutfodrad grönmassa | AV28: Halm till foder
A29: System - välj alternativ ur listan! | B29: Egen kommentar | C29: Välj ur lista | D29: Eget värde (MJ/kg ts) | E29: % ts | F29: Förklaring | G29: kg grönmassa | H29: kg ts | I29: MJ | R29: Kolumn9 | S29: Kolumn10 | T29: Kolumn11 | U29: Kolumn12 | V29: 2 | W29: TS-halt | X29: Kolumn15 | Y29: Kolumn16 | Z29: Kolumn17 | AA29: Kolumn18 | AB29: Kolumn19 | AC29: Kolumn20 | AD29: Kolumn21 | AE29: Kolumn22 | AF29: Kolumn23 | AG29: Kolumn24 | AH29: Kolumn25 | AI29: Kolumn26 | AJ29: Kolumn27 | AK29: Kolumn28 | AL29: Kolumn29 | AM29: Kolumn30 | AN29: Kolumn31 | AO29: Kolumn32 | AP29: MJ/kg ts | AQ29: Plansilo12 | AR29: Torn13 | AS29: Storbalar (rund- och fyrkantsbalar) | AT29: Hö14 | AU29: Direktutfodrad grönmassa15 | AV29: Halm
F30: =IF(ISTEXT(A30),VLOOKUP(A30,Tabell203[],3,FALSE),"") ->  | H30: =W30*G30 -> 0 | I30: =H30*IF(D30>0,D30,IF(AND(ISTEXT(A30),(OR(ISTEXT(C30),ISNUMBER(D30)))),IF(D30>0,D46,VLOOKUP(C30,INDIRECT(A30),2,FALSE)),0)) -> 0 | W30: =IF(ISTEXT(A30),IF(E30>0.000001,E30,VLOOKUP(A30,Tabell203[],2,FALSE)),0) -> 0 | AP30: =IF(AND(ISTEXT(A30),(OR(ISTEXT(C30),ISNUMBER(D30)))),IF(D30>0,D30,VLOOKUP(C30,INDIRECT(A30),2,FALSE)),0) -> 0 | AQ30: =IF(ISTEXT($A30),VLOOKUP($A30,Tabell203[],11,FALSE),0) -> 0 | AR30: =IF(ISTEXT($A30),VLOOKUP($A30,Tabell203[],12,FALSE),0) -> 0 | AS30: =IF(ISTEXT($A30),VLOOKUP($A30,Tabell203[],13,FALSE),0) -> 0 | AT30: =IF(ISTEXT($A30),VLOOKUP($A30,Tabell203[],14,FALSE),0) -> 0 | AU30: =IF(ISTEXT($A30),VLOOKUP($A30,Tabell203[],15,FALSE),0) -> 0 | AV30: =IF(ISTEXT($A30),VLOOKUP($A30,Tabell203[],16,FALSE),0) -> 0
F31: =IF(ISTEXT(A31),VLOOKUP(A31,Tabell203[],3,FALSE),"") ->  | H31: 0 | I31: 0 | W31: =IF(ISTEXT(A31),IF(E31>0.000001,E31,VLOOKUP(A31,Tabell203[],2,FALSE)),0) -> 0 | AP31: 0 | AQ31: =IF(ISTEXT($A31),VLOOKUP($A31,Tabell203[],11,FALSE),0) -> 0 | AR31: =IF(ISTEXT($A31),VLOOKUP($A31,Tabell203[],12,FALSE),0) -> 0 | AS31: =IF(ISTEXT($A31),VLOOKUP($A31,Tabell203[],13,FALSE),0) -> 0 | AT31: =IF(ISTEXT($A31),VLOOKUP($A31,Tabell203[],14,FALSE),0) -> 0 | AU31: =IF(ISTEXT($A31),VLOOKUP($A31,Tabell203[],15,FALSE),0) -> 0 | AV31: =IF(ISTEXT($A31),VLOOKUP($A31,Tabell203[],16,FALSE),0) -> 0
F32: =IF(ISTEXT(A32),VLOOKUP(A32,Tabell203[],3,FALSE),"") ->  | H32: 0 | I32: 0 | W32: =IF(ISTEXT(A32),IF(E32>0.000001,E32,VLOOKUP(A32,Tabell203[],2,FALSE)),0) -> 0 | AP32: 0 | AQ32: =IF(ISTEXT($A32),VLOOKUP($A32,Tabell203[],11,FALSE),0) -> 0 | AR32: =IF(ISTEXT($A32),VLOOKUP($A32,Tabell203[],12,FALSE),0) -> 0 | AS32: =IF(ISTEXT($A32),VLOOKUP($A32,Tabell203[],13,FALSE),0) -> 0 | AT32: =IF(ISTEXT($A32),VLOOKUP($A32,Tabell203[],14,FALSE),0) -> 0 | AU32: =IF(ISTEXT($A32),VLOOKUP($A32,Tabell203[],15,FALSE),0) -> 0 | AV32: =IF(ISTEXT($A32),VLOOKUP($A32,Tabell203[],16,FALSE),0) -> 0
F33: =IF(ISTEXT(A33),VLOOKUP(A33,Tabell203[],3,FALSE),"") ->  | H33: 0 | I33: 0 | W33: =IF(ISTEXT(A33),IF(E33>0.000001,E33,VLOOKUP(A33,Tabell203[],2,FALSE)),0) -> 0 | AP33: 0 | AQ33: =IF(ISTEXT($A33),VLOOKUP($A33,Tabell203[],11,FALSE),0) -> 0 | AR33: =IF(ISTEXT($A33),VLOOKUP($A33,Tabell203[],12,FALSE),0) -> 0 | AS33: =IF(ISTEXT($A33),VLOOKUP($A33,Tabell203[],13,FALSE),0) -> 0 | AT33: =IF(ISTEXT($A33),VLOOKUP($A33,Tabell203[],14,FALSE),0) -> 0 | AU33: =IF(ISTEXT($A33),VLOOKUP($A33,Tabell203[],15,FALSE),0) -> 0 | AV33: =IF(ISTEXT($A33),VLOOKUP($A33,Tabell203[],16,FALSE),0) -> 0
F34: =IF(ISTEXT(A34),VLOOKUP(A34,Tabell203[],3,FALSE),"") ->  | H34: 0 | I34: 0 | W34: =IF(ISTEXT(A34),IF(E34>0.000001,E34,VLOOKUP(A34,Tabell203[],2,FALSE)),0) -> 0 | AP34: 0 | AQ34: =IF(ISTEXT($A34),VLOOKUP($A34,Tabell203[],11,FALSE),0) -> 0 | AR34: =IF(ISTEXT($A34),VLOOKUP($A34,Tabell203[],12,FALSE),0) -> 0 | AS34: =IF(ISTEXT($A34),VLOOKUP($A34,Tabell203[],13,FALSE),0) -> 0 | AT34: =IF(ISTEXT($A34),VLOOKUP($A34,Tabell203[],14,FALSE),0) -> 0 | AU34: =IF(ISTEXT($A34),VLOOKUP($A34,Tabell203[],15,FALSE),0) -> 0 | AV34: =IF(ISTEXT($A34),VLOOKUP($A34,Tabell203[],16,FALSE),0) -> 0
F35: =IF(ISTEXT(A35),VLOOKUP(A35,Tabell203[],3,FALSE),"") ->  | H35: 0 | I35: 0 | W35: =IF(ISTEXT(A35),IF(E35>0.000001,E35,VLOOKUP(A35,Tabell203[],2,FALSE)),0) -> 0 | AP35: 0 | AQ35: =IF(ISTEXT($A35),VLOOKUP($A35,Tabell203[],11,FALSE),0) -> 0 | AR35: =IF(ISTEXT($A35),VLOOKUP($A35,Tabell203[],12,FALSE),0) -> 0 | AS35: =IF(ISTEXT($A35),VLOOKUP($A35,Tabell203[],13,FALSE),0) -> 0 | AT35: =IF(ISTEXT($A35),VLOOKUP($A35,Tabell203[],14,FALSE),0) -> 0 | AU35: =IF(ISTEXT($A35),VLOOKUP($A35,Tabell203[],15,FALSE),0) -> 0 | AV35: =IF(ISTEXT($A35),VLOOKUP($A35,Tabell203[],16,FALSE),0) -> 0
F36: =IF(ISTEXT(A36),VLOOKUP(A36,Tabell203[],3,FALSE),"") ->  | H36: 0 | I36: 0 | W36: =IF(ISTEXT(A36),IF(E36>0.000001,E36,VLOOKUP(A36,Tabell203[],2,FALSE)),0) -> 0 | AP36: 0 | AQ36: =IF(ISTEXT($A36),VLOOKUP($A36,Tabell203[],11,FALSE),0) -> 0 | AR36: =IF(ISTEXT($A36),VLOOKUP($A36,Tabell203[],12,FALSE),0) -> 0 | AS36: =IF(ISTEXT($A36),VLOOKUP($A36,Tabell203[],13,FALSE),0) -> 0 | AT36: =IF(ISTEXT($A36),VLOOKUP($A36,Tabell203[],14,FALSE),0) -> 0 | AU36: =IF(ISTEXT($A36),VLOOKUP($A36,Tabell203[],15,FALSE),0) -> 0 | AV36: =IF(ISTEXT($A36),VLOOKUP($A36,Tabell203[],16,FALSE),0) -> 0
F37: =IF(ISTEXT(A37),VLOOKUP(A37,Tabell203[],3,FALSE),"") ->  | H37: 0 | I37: 0 | W37: =IF(ISTEXT(A37),IF(E37>0.000001,E37,VLOOKUP(A37,Tabell203[],2,FALSE)),0) -> 0 | AP37: 0 | AQ37: =IF(ISTEXT($A37),VLOOKUP($A37,Tabell203[],11,FALSE),0) -> 0 | AR37: =IF(ISTEXT($A37),VLOOKUP($A37,Tabell203[],12,FALSE),0) -> 0 | AS37: =IF(ISTEXT($A37),VLOOKUP($A37,Tabell203[],13,FALSE),0) -> 0 | AT37: =IF(ISTEXT($A37),VLOOKUP($A37,Tabell203[],14,FALSE),0) -> 0 | AU37: =IF(ISTEXT($A37),VLOOKUP($A37,Tabell203[],15,FALSE),0) -> 0 | AV37: =IF(ISTEXT($A37),VLOOKUP($A37,Tabell203[],16,FALSE),0) -> 0
A38: Totalt | H38: =SUM(H30:H37) -> 0 | I38: =SUM(I30:I37) -> 0
A42: Alternativ 2. Har inte vägt skörden, behöver räkna ut mängden skördat | R42: ska dölja
A43: Om det står "Saknas!" eller "0" under rubriken "Beräknad mängd foder" beror det på att någon uppgift saknas. Kontrollera då att du fyllt i alla gula celler på raden samt valt något i alla orange celler på raden | R43: Beskrivning av systemet | W43: TS-halt | X43: Vilket system? 1=ja, 0=nej | AG43: Volymvikt (kg ts/m3) | AP43: Energi | AQ43: Gruppering av system
C44: Energi - välj ur lista eller skriv eget värde | E44: TS-halt (%) | G44: Antal balar | H44: Teknik | I44: Lagrets respektive balarnas storlek | M44: Beräknad mängd foder | X44: Halm | Y44: Plansilo | Z44: Torn | AA44: Rundbalar | AB44: Fyrkantsbalar_ensilage | AC44: Fyrkantsbalar_hö | AD44: Hö | AE44: tom | AF44: tom | AG44: =X44 -> Halm | AH44: Plansilo | AI44: Torn | AJ44: Rundbalar | AK44: Fyrkantsbalar_ensilage | AL44: Fyrkantsbalar_hö | AM44: Hö | AN44: tom | AO44: tom | AP44: MJ/kg ts | AQ44: Plansilo | AR44: Torn | AS44: Storbalar (rund- och fyrkantsbalar) | AT44: Hö | AU44: Direktutfodrad | AV44: Halm till foder
A45: System - välj alternativ ur listan! | B45: Egen kommentar | C45: Välj ur lista | D45: Eget värde (MJ/kg ts) | E45: % ts | F45: Förklaring | G45: stycken | H45: välj ur listan i orange celler! | I45: Höjd (m) | J45: Bredd (m) | K45: Längd (m) | L45: Förklaring för volymberäkning | M45: Volym (m3) | N45: Volymvikt (kg ts/m3) | O45: Mängd (kg ts) | P45: Mängd (MJ) | Q45: m3 | R45: Antal | S45: Mängd per lass | T45: Teknik | U45: rätblock | V45: cylinder | W45: TS-halt | X45: Plansilo | Y45: Torn | Z45: Rundbalar | AA45: Fyrkantsbalar | AB45: Hö | AC45: Grönfoder | AD45: Halm | AE45: Fyrkantsbalar_hö | AF45: tom | AG45: Plansilo3 | AH45: Torn4 | AI45: Rundbalar5 | AJ45: Fyrkantsbalar6 | AK45: Hö7 | AL45: Direktutfodrat | AM45: Kolumn1 | AN45: Fyrkantsbalar_hö2 | AO45: Visa ts? | AP45: MJ/kg ts | AQ45: Plansilo12 | AR45: Torn13 | AS45: Storbalar (rund- och fyrkantsbalar) | AT45: Hö14 | AU45: Direktutfodrad | AV45: Halm2
F46: =IF(ISTEXT(A46),VLOOKUP(A46,Tabell203[],3,FALSE),"") ->  | L46: =IF(ISTEXT(A46),VLOOKUP(A46,Tabell203[],10,FALSE),"") ->  | M46: =IF(ISTEXT(A46),IF(U46=1,I46*J46*K46,IF(V46=1,I46*(J46/2)^2*PI(),1))*IF(R46=1,G46,1)*IF(S46=1,Q46,1),0) -> 0 | N46: =SUM(AG46:AN46) -> 0 | O46: =M46*N46 -> 0 | P46: =O46*AP46 -> 0 | R46: =IF(ISTEXT(A46),VLOOKUP(A46,Tabell203[],4,FALSE),0) -> 0 | S46: =IF(ISTEXT(A46),VLOOKUP(A46,Tabell203[],6,FALSE),0) -> 0 | T46: =IF(ISTEXT(A46),VLOOKUP(A46,Tabell203[],5,FALSE),0) -> 0 | U46: =IF(ISTEXT(A46),VLOOKUP(A46,Tabell203[],8,FALSE),0) -> 0 | V46: =IF(ISTEXT(A46),VLOOKUP(A46,Tabell203[],9,FALSE),0) -> 0 | W46: =IF(ISTEXT(A46),IF(E46>0.000001,E46,VLOOKUP(A46,Tabell203[],2,FALSE)),0) -> 0 | X46: =IF($A46=X$44,1,0) -> 0 | Y46: 0 | Z46: 0 | AA46: 0 | AB46: 0 | AC46: 0 | AD46: 0 | AE46: 0 | AF46: 0 | AG46: =IF(X46=1,VLOOKUP(H46,Tabell220[],2,FALSE),0) -> 0 | AH46: =IF(Y46=1,IF(OR(W46<'Teknisk administration'!$P$262,W46>'Teknisk administration'!$P$263),'Teknisk administration'!$Q$262*I46^2+'Teknisk administration'!$R$262*I46+'Teknisk administration'!$S$262,'Teknisk administration'!$Q$263*I46^2+'Teknisk administration'!$R$263*I46+'Teknisk administration'!$S$263),0) -> 0 | AI46: =IF(Z46=1,VLOOKUP(H46,Tabell214[],2,FALSE)*W46+VLOOKUP(H46,Tabell214[],3,FALSE),0) -> 0 | AJ46: =IF(AA46=1,VLOOKUP(H46,Tabell215[],2,FALSE)*W46+VLOOKUP(H46,Tabell215[],3,FALSE),0) -> 0 | AK46: =IF(AB46=1,VLOOKUP(H46,Tabell216[],2,FALSE)*W46,0) -> 0 | AL46: =IF(AC46=1,'Teknisk administration'!$AP$378,0) -> 0 | AM46: =IF(AD46=1,VLOOKUP($H46,Tabell217[],2,FALSE)*$W46,0) -> 0 | AN46: =IF(AE46=1,VLOOKUP($H46,Tabell29[],2,FALSE)*$W46,0) -> 0 | AO46: =IF(ISTEXT(A46),VLOOKUP(A46,Tabell203[],7,FALSE),0) -> 0 | AP46: =IF(AND(ISTEXT(A46),(OR(ISTEXT(C46),ISNUMBER(D46)))),IF(D46>0,D46,VLOOKUP(C46,INDIRECT(A46),2,FALSE)),0) -> 0 | AQ46: =IF(ISTEXT($A46),VLOOKUP($A46,Tabell203[],11,FALSE),0) -> 0 | AR46: =IF(ISTEXT($A46),VLOOKUP($A46,Tabell203[],12,FALSE),0) -> 0 | AS46: =IF(ISTEXT($A46),VLOOKUP($A46,Tabell203[],13,FALSE),0) -> 0 | AT46: =IF(ISTEXT($A46),VLOOKUP($A46,Tabell203[],14,FALSE),0) -> 0 | AU46: =IF(ISTEXT($A46),VLOOKUP($A46,Tabell203[],15,FALSE),0) -> 0 | AV46: =IF(ISTEXT($A46),VLOOKUP($A46,Tabell203[],16,FALSE),0) -> 0
F47: =IF(ISTEXT(A47),VLOOKUP(A47,Tabell203[],3,FALSE),"") ->  | L47: =IF(ISTEXT(A47),VLOOKUP(A47,Tabell203[],10,FALSE),"") ->  | M47: 0 | N47: 0 | O47: 0 | P47: 0 | R47: =IF(ISTEXT(A47),VLOOKUP(A47,Tabell203[],4,FALSE),0) -> 0 | S47: =IF(ISTEXT(A47),VLOOKUP(A47,Tabell203[],6,FALSE),0) -> 0 | T47: =IF(ISTEXT(A47),VLOOKUP(A47,Tabell203[],5,FALSE),0) -> 0 | U47: =IF(ISTEXT(A47),VLOOKUP(A47,Tabell203[],8,FALSE),0) -> 0 | V47: =IF(ISTEXT(A47),VLOOKUP(A47,Tabell203[],9,FALSE),0) -> 0 | W47: =IF(ISTEXT(A47),IF(E47>0.000001,E47,VLOOKUP(A47,Tabell203[],2,FALSE)),0) -> 0 | X47: 0 | Y47: 0 | Z47: 0 | AA47: 0 | AB47: 0 | AC47: 0 | AD47: 0 | AE47: 0 | AF47: 0 | AG47: =IF(X47=1,VLOOKUP(H47,Tabell220[],2,FALSE),0) -> 0 | AH47: =IF(Y47=1,IF(OR(W47<'Teknisk administration'!$P$262,W47>'Teknisk administration'!$P$263),'Teknisk administration'!$Q$262*I47^2+'Teknisk administration'!$R$262*I47+'Teknisk administration'!$S$262,'Teknisk administration'!$Q$263*I47^2+'Teknisk administration'!$R$263*I47+'Teknisk administration'!$S$263),0) -> 0 | AI47: =IF(Z47=1,VLOOKUP(H47,Tabell214[],2,FALSE)*W47+VLOOKUP(H47,Tabell214[],3,FALSE),0) -> 0 | AJ47: =IF(AA47=1,VLOOKUP(H47,Tabell215[],2,FALSE)*W47+VLOOKUP(H47,Tabell215[],3,FALSE),0) -> 0 | AK47: =IF(AB47=1,VLOOKUP(H47,Tabell216[],2,FALSE)*W47,0) -> 0 | AL47: =IF(AC47=1,'Teknisk administration'!$AP$378,0) -> 0 | AM47: =IF(AD47=1,VLOOKUP($H47,Tabell217[],2,FALSE)*$W47,0) -> 0 | AN47: =IF(AE47=1,VLOOKUP($H47,Tabell29[],2,FALSE)*$W47,0) -> 0 | AO47: =IF(ISTEXT(A47),VLOOKUP(A47,Tabell203[],7,FALSE),0) -> 0 | AP47: 0 | AQ47: =IF(ISTEXT($A47),VLOOKUP($A47,Tabell203[],11,FALSE),0) -> 0 | AR47: =IF(ISTEXT($A47),VLOOKUP($A47,Tabell203[],12,FALSE),0) -> 0 | AS47: =IF(ISTEXT($A47),VLOOKUP($A47,Tabell203[],13,FALSE),0) -> 0 | AT47: =IF(ISTEXT($A47),VLOOKUP($A47,Tabell203[],14,FALSE),0) -> 0 | AU47: =IF(ISTEXT($A47),VLOOKUP($A47,Tabell203[],15,FALSE),0) -> 0 | AV47: =IF(ISTEXT($A47),VLOOKUP($A47,Tabell203[],16,FALSE),0) -> 0
F48: =IF(ISTEXT(A48),VLOOKUP(A48,Tabell203[],3,FALSE),"") ->  | L48: =IF(ISTEXT(A48),VLOOKUP(A48,Tabell203[],10,FALSE),"") ->  | M48: =IF(ISTEXT(A48),IF(U48=1,I48*J48*K48,IF(V48=1,I48*(J48/2)^2*PI(),1))*IF(R48=1,G48,1)*IF(S48=1,Q48,1),0) -> 0 | N48: 0 | O48: 0 | P48: 0 | R48: =IF(ISTEXT(A48),VLOOKUP(A48,Tabell203[],4,FALSE),0) -> 0 | S48: =IF(ISTEXT(A48),VLOOKUP(A48,Tabell203[],6,FALSE),0) -> 0 | T48: =IF(ISTEXT(A48),VLOOKUP(A48,Tabell203[],5,FALSE),0) -> 0 | U48: =IF(ISTEXT(A48),VLOOKUP(A48,Tabell203[],8,FALSE),0) -> 0 | V48: =IF(ISTEXT(A48),VLOOKUP(A48,Tabell203[],9,FALSE),0) -> 0 | W48: =IF(ISTEXT(A48),IF(E48>0.000001,E48,VLOOKUP(A48,Tabell203[],2,FALSE)),0) -> 0 | X48: 0 | Y48: 0 | Z48: 0 | AA48: 0 | AB48: 0 | AC48: 0 | AD48: 0 | AE48: 0 | AF48: 0 | AG48: =IF(X48=1,VLOOKUP(H48,Tabell220[],2,FALSE),0) -> 0 | AH48: =IF(Y48=1,IF(OR(W48<'Teknisk administration'!$P$262,W48>'Teknisk administration'!$P$263),'Teknisk administration'!$Q$262*I48^2+'Teknisk administration'!$R$262*I48+'Teknisk administration'!$S$262,'Teknisk administration'!$Q$263*I48^2+'Teknisk administration'!$R$263*I48+'Teknisk administration'!$S$263),0) -> 0 | AI48: =IF(Z48=1,VLOOKUP(H48,Tabell214[],2,FALSE)*W48+VLOOKUP(H48,Tabell214[],3,FALSE),0) -> 0 | AJ48: =IF(AA48=1,VLOOKUP(H48,Tabell215[],2,FALSE)*W48+VLOOKUP(H48,Tabell215[],3,FALSE),0) -> 0 | AK48: =IF(AB48=1,VLOOKUP(H48,Tabell216[],2,FALSE)*W48,0) -> 0 | AL48: =IF(AC48=1,'Teknisk administration'!$AP$378,0) -> 0 | AM48: =IF(AD48=1,VLOOKUP($H48,Tabell217[],2,FALSE)*$W48,0) -> 0 | AN48: =IF(AE48=1,VLOOKUP($H48,Tabell29[],2,FALSE)*$W48,0) -> 0 | AO48: =IF(ISTEXT(A48),VLOOKUP(A48,Tabell203[],7,FALSE),0) -> 0 | AP48: 0 | AQ48: =IF(ISTEXT($A48),VLOOKUP($A48,Tabell203[],11,FALSE),0) -> 0 | AR48: =IF(ISTEXT($A48),VLOOKUP($A48,Tabell203[],12,FALSE),0) -> 0 | AS48: =IF(ISTEXT($A48),VLOOKUP($A48,Tabell203[],13,FALSE),0) -> 0 | AT48: =IF(ISTEXT($A48),VLOOKUP($A48,Tabell203[],14,FALSE),0) -> 0 | AU48: =IF(ISTEXT($A48),VLOOKUP($A48,Tabell203[],15,FALSE),0) -> 0 | AV48: =IF(ISTEXT($A48),VLOOKUP($A48,Tabell203[],16,FALSE),0) -> 0
F49: =IF(ISTEXT(A49),VLOOKUP(A49,Tabell203[],3,FALSE),"") ->  | L49: =IF(ISTEXT(A49),VLOOKUP(A49,Tabell203[],10,FALSE),"") ->  | M49: 0 | N49: 0 | O49: 0 | P49: 0 | R49: =IF(ISTEXT(A49),VLOOKUP(A49,Tabell203[],4,FALSE),0) -> 0 | S49: =IF(ISTEXT(A49),VLOOKUP(A49,Tabell203[],6,FALSE),0) -> 0 | T49: =IF(ISTEXT(A49),VLOOKUP(A49,Tabell203[],5,FALSE),0) -> 0 | U49: =IF(ISTEXT(A49),VLOOKUP(A49,Tabell203[],8,FALSE),0) -> 0 | V49: =IF(ISTEXT(A49),VLOOKUP(A49,Tabell203[],9,FALSE),0) -> 0 | W49: =IF(ISTEXT(A49),IF(E49>0.000001,E49,VLOOKUP(A49,Tabell203[],2,FALSE)),0) -> 0 | X49: 0 | Y49: 0 | Z49: 0 | AA49: 0 | AB49: 0 | AC49: 0 | AD49: 0 | AE49: 0 | AF49: 0 | AG49: =IF(X49=1,VLOOKUP(H49,Tabell220[],2,FALSE),0) -> 0 | AH49: =IF(Y49=1,IF(OR(W49<'Teknisk administration'!$P$262,W49>'Teknisk administration'!$P$263),'Teknisk administration'!$Q$262*I49^2+'Teknisk administration'!$R$262*I49+'Teknisk administration'!$S$262,'Teknisk administration'!$Q$263*I49^2+'Teknisk administration'!$R$263*I49+'Teknisk administration'!$S$263),0) -> 0 | AI49: =IF(Z49=1,VLOOKUP(H49,Tabell214[],2,FALSE)*W49+VLOOKUP(H49,Tabell214[],3,FALSE),0) -> 0 | AJ49: =IF(AA49=1,VLOOKUP(H49,Tabell215[],2,FALSE)*W49+VLOOKUP(H49,Tabell215[],3,FALSE),0) -> 0 | AK49: =IF(AB49=1,VLOOKUP(H49,Tabell216[],2,FALSE)*W49,0) -> 0 | AL49: =IF(AC49=1,'Teknisk administration'!$AP$378,0) -> 0 | AM49: =IF(AD49=1,VLOOKUP($H49,Tabell217[],2,FALSE)*$W49,0) -> 0 | AN49: =IF(AE49=1,VLOOKUP($H49,Tabell29[],2,FALSE)*$W49,0) -> 0 | AO49: =IF(ISTEXT(A49),VLOOKUP(A49,Tabell203[],7,FALSE),0) -> 0 | AP49: 0 | AQ49: =IF(ISTEXT($A49),VLOOKUP($A49,Tabell203[],11,FALSE),0) -> 0 | AR49: =IF(ISTEXT($A49),VLOOKUP($A49,Tabell203[],12,FALSE),0) -> 0 | AS49: =IF(ISTEXT($A49),VLOOKUP($A49,Tabell203[],13,FALSE),0) -> 0 | AT49: =IF(ISTEXT($A49),VLOOKUP($A49,Tabell203[],14,FALSE),0) -> 0 | AU49: =IF(ISTEXT($A49),VLOOKUP($A49,Tabell203[],15,FALSE),0) -> 0 | AV49: =IF(ISTEXT($A49),VLOOKUP($A49,Tabell203[],16,FALSE),0) -> 0
F50: =IF(ISTEXT(A50),VLOOKUP(A50,Tabell203[],3,FALSE),"") ->  | L50: =IF(ISTEXT(A50),VLOOKUP(A50,Tabell203[],10,FALSE),"") ->  | M50: 0 | N50: 0 | O50: 0 | P50: 0 | R50: =IF(ISTEXT(A50),VLOOKUP(A50,Tabell203[],4,FALSE),0) -> 0 | S50: =IF(ISTEXT(A50),VLOOKUP(A50,Tabell203[],6,FALSE),0) -> 0 | T50: =IF(ISTEXT(A50),VLOOKUP(A50,Tabell203[],5,FALSE),0) -> 0 | U50: =IF(ISTEXT(A50),VLOOKUP(A50,Tabell203[],8,FALSE),0) -> 0 | V50: =IF(ISTEXT(A50),VLOOKUP(A50,Tabell203[],9,FALSE),0) -> 0 | W50: =IF(ISTEXT(A50),IF(E50>0.000001,E50,VLOOKUP(A50,Tabell203[],2,FALSE)),0) -> 0 | X50: 0 | Y50: 0 | Z50: 0 | AA50: 0 | AB50: 0 | AC50: 0 | AD50: 0 | AE50: 0 | AF50: 0 | AG50: =IF(X50=1,VLOOKUP(H50,Tabell220[],2,FALSE),0) -> 0 | AH50: =IF(Y50=1,IF(OR(W50<'Teknisk administration'!$P$262,W50>'Teknisk administration'!$P$263),'Teknisk administration'!$Q$262*I50^2+'Teknisk administration'!$R$262*I50+'Teknisk administration'!$S$262,'Teknisk administration'!$Q$263*I50^2+'Teknisk administration'!$R$263*I50+'Teknisk administration'!$S$263),0) -> 0 | AI50: =IF(Z50=1,VLOOKUP(H50,Tabell214[],2,FALSE)*W50+VLOOKUP(H50,Tabell214[],3,FALSE),0) -> 0 | AJ50: =IF(AA50=1,VLOOKUP(H50,Tabell215[],2,FALSE)*W50+VLOOKUP(H50,Tabell215[],3,FALSE),0) -> 0 | AK50: =IF(AB50=1,VLOOKUP(H50,Tabell216[],2,FALSE)*W50,0) -> 0 | AL50: =IF(AC50=1,'Teknisk administration'!$AP$378,0) -> 0 | AM50: =IF(AD50=1,VLOOKUP($H50,Tabell217[],2,FALSE)*$W50,0) -> 0 | AN50: =IF(AE50=1,VLOOKUP($H50,Tabell29[],2,FALSE)*$W50,0) -> 0 | AO50: =IF(ISTEXT(A50),VLOOKUP(A50,Tabell203[],7,FALSE),0) -> 0 | AP50: 0 | AQ50: =IF(ISTEXT($A50),VLOOKUP($A50,Tabell203[],11,FALSE),0) -> 0 | AR50: =IF(ISTEXT($A50),VLOOKUP($A50,Tabell203[],12,FALSE),0) -> 0 | AS50: =IF(ISTEXT($A50),VLOOKUP($A50,Tabell203[],13,FALSE),0) -> 0 | AT50: =IF(ISTEXT($A50),VLOOKUP($A50,Tabell203[],14,FALSE),0) -> 0 | AU50: =IF(ISTEXT($A50),VLOOKUP($A50,Tabell203[],15,FALSE),0) -> 0 | AV50: =IF(ISTEXT($A50),VLOOKUP($A50,Tabell203[],16,FALSE),0) -> 0
F51: =IF(ISTEXT(A51),VLOOKUP(A51,Tabell203[],3,FALSE),"") ->  | L51: =IF(ISTEXT(A51),VLOOKUP(A51,Tabell203[],10,FALSE),"") ->  | M51: 0 | N51: 0 | O51: 0 | P51: 0 | R51: =IF(ISTEXT(A51),VLOOKUP(A51,Tabell203[],4,FALSE),0) -> 0 | S51: =IF(ISTEXT(A51),VLOOKUP(A51,Tabell203[],6,FALSE),0) -> 0 | T51: =IF(ISTEXT(A51),VLOOKUP(A51,Tabell203[],5,FALSE),0) -> 0 | U51: =IF(ISTEXT(A51),VLOOKUP(A51,Tabell203[],8,FALSE),0) -> 0 | V51: =IF(ISTEXT(A51),VLOOKUP(A51,Tabell203[],9,FALSE),0) -> 0 | W51: =IF(ISTEXT(A51),IF(E51>0.000001,E51,VLOOKUP(A51,Tabell203[],2,FALSE)),0) -> 0 | X51: 0 | Y51: 0 | Z51: 0 | AA51: 0 | AB51: 0 | AC51: 0 | AD51: 0 | AE51: 0 | AF51: 0 | AG51: =IF(X51=1,VLOOKUP(H51,Tabell220[],2,FALSE),0) -> 0 | AH51: =IF(Y51=1,IF(OR(W51<'Teknisk administration'!$P$262,W51>'Teknisk administration'!$P$263),'Teknisk administration'!$Q$262*I51^2+'Teknisk administration'!$R$262*I51+'Teknisk administration'!$S$262,'Teknisk administration'!$Q$263*I51^2+'Teknisk administration'!$R$263*I51+'Teknisk administration'!$S$263),0) -> 0 | AI51: =IF(Z51=1,VLOOKUP(H51,Tabell214[],2,FALSE)*W51+VLOOKUP(H51,Tabell214[],3,FALSE),0) -> 0 | AJ51: =IF(AA51=1,VLOOKUP(H51,Tabell215[],2,FALSE)*W51+VLOOKUP(H51,Tabell215[],3,FALSE),0) -> 0 | AK51: =IF(AB51=1,VLOOKUP(H51,Tabell216[],2,FALSE)*W51,0) -> 0 | AL51: =IF(AC51=1,'Teknisk administration'!$AP$378,0) -> 0 | AM51: =IF(AD51=1,VLOOKUP($H51,Tabell217[],2,FALSE)*$W51,0) -> 0 | AN51: =IF(AE51=1,VLOOKUP($H51,Tabell29[],2,FALSE)*$W51,0) -> 0 | AO51: =IF(ISTEXT(A51),VLOOKUP(A51,Tabell203[],7,FALSE),0) -> 0 | AP51: 0 | AQ51: =IF(ISTEXT($A51),VLOOKUP($A51,Tabell203[],11,FALSE),0) -> 0 | AR51: =IF(ISTEXT($A51),VLOOKUP($A51,Tabell203[],12,FALSE),0) -> 0 | AS51: =IF(ISTEXT($A51),VLOOKUP($A51,Tabell203[],13,FALSE),0) -> 0 | AT51: =IF(ISTEXT($A51),VLOOKUP($A51,Tabell203[],14,FALSE),0) -> 0 | AU51: =IF(ISTEXT($A51),VLOOKUP($A51,Tabell203[],15,FALSE),0) -> 0 | AV51: =IF(ISTEXT($A51),VLOOKUP($A51,Tabell203[],16,FALSE),0) -> 0
F52: =IF(ISTEXT(A52),VLOOKUP(A52,Tabell203[],3,FALSE),"") ->  | L52: =IF(ISTEXT(A52),VLOOKUP(A52,Tabell203[],10,FALSE),"") ->  | M52: 0 | N52: 0 | O52: 0 | P52: 0 | R52: =IF(ISTEXT(A52),VLOOKUP(A52,Tabell203[],4,FALSE),0) -> 0 | S52: =IF(ISTEXT(A52),VLOOKUP(A52,Tabell203[],6,FALSE),0) -> 0 | T52: =IF(ISTEXT(A52),VLOOKUP(A52,Tabell203[],5,FALSE),0) -> 0 | U52: =IF(ISTEXT(A52),VLOOKUP(A52,Tabell203[],8,FALSE),0) -> 0 | V52: =IF(ISTEXT(A52),VLOOKUP(A52,Tabell203[],9,FALSE),0) -> 0 | W52: =IF(ISTEXT(A52),IF(E52>0.000001,E52,VLOOKUP(A52,Tabell203[],2,FALSE)),0) -> 0 | X52: 0 | Y52: 0 | Z52: 0 | AA52: 0 | AB52: 0 | AC52: 0 | AD52: 0 | AE52: 0 | AF52: 0 | AG52: =IF(X52=1,VLOOKUP(H52,Tabell220[],2,FALSE),0) -> 0 | AH52: =IF(Y52=1,IF(OR(W52<'Teknisk administration'!$P$262,W52>'Teknisk administration'!$P$263),'Teknisk administration'!$Q$262*I52^2+'Teknisk administration'!$R$262*I52+'Teknisk administration'!$S$262,'Teknisk administration'!$Q$263*I52^2+'Teknisk administration'!$R$263*I52+'Teknisk administration'!$S$263),0) -> 0 | AI52: =IF(Z52=1,VLOOKUP(H52,Tabell214[],2,FALSE)*W52+VLOOKUP(H52,Tabell214[],3,FALSE),0) -> 0 | AJ52: =IF(AA52=1,VLOOKUP(H52,Tabell215[],2,FALSE)*W52+VLOOKUP(H52,Tabell215[],3,FALSE),0) -> 0 | AK52: =IF(AB52=1,VLOOKUP(H52,Tabell216[],2,FALSE)*W52,0) -> 0 | AL52: =IF(AC52=1,'Teknisk administration'!$AP$378,0) -> 0 | AM52: =IF(AD52=1,VLOOKUP($H52,Tabell217[],2,FALSE)*$W52,0) -> 0 | AN52: =IF(AE52=1,VLOOKUP($H52,Tabell29[],2,FALSE)*$W52,0) -> 0 | AO52: =IF(ISTEXT(A52),VLOOKUP(A52,Tabell203[],7,FALSE),0) -> 0 | AP52: 0 | AQ52: =IF(ISTEXT($A52),VLOOKUP($A52,Tabell203[],11,FALSE),0) -> 0 | AR52: =IF(ISTEXT($A52),VLOOKUP($A52,Tabell203[],12,FALSE),0) -> 0 | AS52: =IF(ISTEXT($A52),VLOOKUP($A52,Tabell203[],13,FALSE),0) -> 0 | AT52: =IF(ISTEXT($A52),VLOOKUP($A52,Tabell203[],14,FALSE),0) -> 0 | AU52: =IF(ISTEXT($A52),VLOOKUP($A52,Tabell203[],15,FALSE),0) -> 0 | AV52: =IF(ISTEXT($A52),VLOOKUP($A52,Tabell203[],16,FALSE),0) -> 0
F53: =IF(ISTEXT(A53),VLOOKUP(A53,Tabell203[],3,FALSE),"") ->  | L53: =IF(ISTEXT(A53),VLOOKUP(A53,Tabell203[],10,FALSE),"") ->  | M53: 0 | N53: 0 | O53: 0 | P53: 0 | R53: =IF(ISTEXT(A53),VLOOKUP(A53,Tabell203[],4,FALSE),0) -> 0 | S53: =IF(ISTEXT(A53),VLOOKUP(A53,Tabell203[],6,FALSE),0) -> 0 | T53: =IF(ISTEXT(A53),VLOOKUP(A53,Tabell203[],5,FALSE),0) -> 0 | U53: =IF(ISTEXT(A53),VLOOKUP(A53,Tabell203[],8,FALSE),0) -> 0 | V53: =IF(ISTEXT(A53),VLOOKUP(A53,Tabell203[],9,FALSE),0) -> 0 | W53: =IF(ISTEXT(A53),IF(E53>0.000001,E53,VLOOKUP(A53,Tabell203[],2,FALSE)),0) -> 0 | X53: 0 | Y53: 0 | Z53: 0 | AA53: 0 | AB53: 0 | AC53: 0 | AD53: 0 | AE53: 0 | AF53: 0 | AG53: =IF(X53=1,VLOOKUP(H53,Tabell220[],2,FALSE),0) -> 0 | AH53: =IF(Y53=1,IF(OR(W53<'Teknisk administration'!$P$262,W53>'Teknisk administration'!$P$263),'Teknisk administration'!$Q$262*I53^2+'Teknisk administration'!$R$262*I53+'Teknisk administration'!$S$262,'Teknisk administration'!$Q$263*I53^2+'Teknisk administration'!$R$263*I53+'Teknisk administration'!$S$263),0) -> 0 | AI53: =IF(Z53=1,VLOOKUP(H53,Tabell214[],2,FALSE)*W53+VLOOKUP(H53,Tabell214[],3,FALSE),0) -> 0 | AJ53: =IF(AA53=1,VLOOKUP(H53,Tabell215[],2,FALSE)*W53+VLOOKUP(H53,Tabell215[],3,FALSE),0) -> 0 | AK53: =IF(AB53=1,VLOOKUP(H53,Tabell216[],2,FALSE)*W53,0) -> 0 | AL53: =IF(AC53=1,'Teknisk administration'!$AP$378,0) -> 0 | AM53: =IF(AD53=1,VLOOKUP($H53,Tabell217[],2,FALSE)*$W53,0) -> 0 | AN53: =IF(AE53=1,VLOOKUP($H53,Tabell29[],2,FALSE)*$W53,0) -> 0 | AO53: =IF(ISTEXT(A53),VLOOKUP(A53,Tabell203[],7,FALSE),0) -> 0 | AP53: 0 | AQ53: =IF(ISTEXT($A53),VLOOKUP($A53,Tabell203[],11,FALSE),0) -> 0 | AR53: =IF(ISTEXT($A53),VLOOKUP($A53,Tabell203[],12,FALSE),0) -> 0 | AS53: =IF(ISTEXT($A53),VLOOKUP($A53,Tabell203[],13,FALSE),0) -> 0 | AT53: =IF(ISTEXT($A53),VLOOKUP($A53,Tabell203[],14,FALSE),0) -> 0 | AU53: =IF(ISTEXT($A53),VLOOKUP($A53,Tabell203[],15,FALSE),0) -> 0 | AV53: =IF(ISTEXT($A53),VLOOKUP($A53,Tabell203[],16,FALSE),0) -> 0
F54: =IF(ISTEXT(A54),VLOOKUP(A54,Tabell203[],3,FALSE),"") ->  | L54: =IF(ISTEXT(A54),VLOOKUP(A54,Tabell203[],10,FALSE),"") ->  | M54: 0 | N54: 0 | O54: 0 | P54: 0 | R54: =IF(ISTEXT(A54),VLOOKUP(A54,Tabell203[],4,FALSE),0) -> 0 | S54: =IF(ISTEXT(A54),VLOOKUP(A54,Tabell203[],6,FALSE),0) -> 0 | T54: =IF(ISTEXT(A54),VLOOKUP(A54,Tabell203[],5,FALSE),0) -> 0 | U54: =IF(ISTEXT(A54),VLOOKUP(A54,Tabell203[],8,FALSE),0) -> 0 | V54: =IF(ISTEXT(A54),VLOOKUP(A54,Tabell203[],9,FALSE),0) -> 0 | W54: =IF(ISTEXT(A54),IF(E54>0.000001,E54,VLOOKUP(A54,Tabell203[],2,FALSE)),0) -> 0 | X54: 0 | Y54: 0 | Z54: 0 | AA54: 0 | AB54: 0 | AC54: 0 | AD54: 0 | AE54: 0 | AF54: 0 | AG54: =IF(X54=1,VLOOKUP(H54,Tabell220[],2,FALSE),0) -> 0 | AH54: =IF(Y54=1,IF(OR(W54<'Teknisk administration'!$P$262,W54>'Teknisk administration'!$P$263),'Teknisk administration'!$Q$262*I54^2+'Teknisk administration'!$R$262*I54+'Teknisk administration'!$S$262,'Teknisk administration'!$Q$263*I54^2+'Teknisk administration'!$R$263*I54+'Teknisk administration'!$S$263),0) -> 0 | AI54: =IF(Z54=1,VLOOKUP(H54,Tabell214[],2,FALSE)*W54+VLOOKUP(H54,Tabell214[],3,FALSE),0) -> 0 | AJ54: =IF(AA54=1,VLOOKUP(H54,Tabell215[],2,FALSE)*W54+VLOOKUP(H54,Tabell215[],3,FALSE),0) -> 0 | AK54: =IF(AB54=1,VLOOKUP(H54,Tabell216[],2,FALSE)*W54,0) -> 0 | AL54: =IF(AC54=1,'Teknisk administration'!$AP$378,0) -> 0 | AM54: =IF(AD54=1,VLOOKUP($H54,Tabell217[],2,FALSE)*$W54,0) -> 0 | AN54: =IF(AE54=1,VLOOKUP($H54,Tabell29[],2,FALSE)*$W54,0) -> 0 | AO54: =IF(ISTEXT(A54),VLOOKUP(A54,Tabell203[],7,FALSE),0) -> 0 | AP54: 0 | AQ54: =IF(ISTEXT($A54),VLOOKUP($A54,Tabell203[],11,FALSE),0) -> 0 | AR54: =IF(ISTEXT($A54),VLOOKUP($A54,Tabell203[],12,FALSE),0) -> 0 | AS54: =IF(ISTEXT($A54),VLOOKUP($A54,Tabell203[],13,FALSE),0) -> 0 | AT54: =IF(ISTEXT($A54),VLOOKUP($A54,Tabell203[],14,FALSE),0) -> 0 | AU54: =IF(ISTEXT($A54),VLOOKUP($A54,Tabell203[],15,FALSE),0) -> 0 | AV54: =IF(ISTEXT($A54),VLOOKUP($A54,Tabell203[],16,FALSE),0) -> 0
F55: =IF(ISTEXT(A55),VLOOKUP(A55,Tabell203[],3,FALSE),"") ->  | L55: =IF(ISTEXT(A55),VLOOKUP(A55,Tabell203[],10,FALSE),"") ->  | M55: 0 | N55: 0 | O55: 0 | P55: 0 | R55: =IF(ISTEXT(A55),VLOOKUP(A55,Tabell203[],4,FALSE),0) -> 0 | S55: =IF(ISTEXT(A55),VLOOKUP(A55,Tabell203[],6,FALSE),0) -> 0 | T55: =IF(ISTEXT(A55),VLOOKUP(A55,Tabell203[],5,FALSE),0) -> 0 | U55: =IF(ISTEXT(A55),VLOOKUP(A55,Tabell203[],8,FALSE),0) -> 0 | V55: =IF(ISTEXT(A55),VLOOKUP(A55,Tabell203[],9,FALSE),0) -> 0 | W55: =IF(ISTEXT(A55),IF(E55>0.000001,E55,VLOOKUP(A55,Tabell203[],2,FALSE)),0) -> 0 | X55: 0 | Y55: 0 | Z55: 0 | AA55: 0 | AB55: 0 | AC55: 0 | AD55: 0 | AE55: 0 | AF55: 0 | AG55: =IF(X55=1,VLOOKUP(H55,Tabell220[],2,FALSE),0) -> 0 | AH55: =IF(Y55=1,IF(OR(W55<'Teknisk administration'!$P$262,W55>'Teknisk administration'!$P$263),'Teknisk administration'!$Q$262*I55^2+'Teknisk administration'!$R$262*I55+'Teknisk administration'!$S$262,'Teknisk administration'!$Q$263*I55^2+'Teknisk administration'!$R$263*I55+'Teknisk administration'!$S$263),0) -> 0 | AI55: =IF(Z55=1,VLOOKUP(H55,Tabell214[],2,FALSE)*W55+VLOOKUP(H55,Tabell214[],3,FALSE),0) -> 0 | AJ55: =IF(AA55=1,VLOOKUP(H55,Tabell215[],2,FALSE)*W55+VLOOKUP(H55,Tabell215[],3,FALSE),0) -> 0 | AK55: =IF(AB55=1,VLOOKUP(H55,Tabell216[],2,FALSE)*W55,0) -> 0 | AL55: =IF(AC55=1,'Teknisk administration'!$AP$378,0) -> 0 | AM55: =IF(AD55=1,VLOOKUP($H55,Tabell217[],2,FALSE)*$W55,0) -> 0 | AN55: =IF(AE55=1,VLOOKUP($H55,Tabell29[],2,FALSE)*$W55,0) -> 0 | AO55: =IF(ISTEXT(A55),VLOOKUP(A55,Tabell203[],7,FALSE),0) -> 0 | AP55: 0 | AQ55: =IF(ISTEXT($A55),VLOOKUP($A55,Tabell203[],11,FALSE),0) -> 0 | AR55: =IF(ISTEXT($A55),VLOOKUP($A55,Tabell203[],12,FALSE),0) -> 0 | AS55: =IF(ISTEXT($A55),VLOOKUP($A55,Tabell203[],13,FALSE),0) -> 0 | AT55: =IF(ISTEXT($A55),VLOOKUP($A55,Tabell203[],14,FALSE),0) -> 0 | AU55: =IF(ISTEXT($A55),VLOOKUP($A55,Tabell203[],15,FALSE),0) -> 0 | AV55: =IF(ISTEXT($A55),VLOOKUP($A55,Tabell203[],16,FALSE),0) -> 0
F56: =IF(ISTEXT(A56),VLOOKUP(A56,Tabell203[],3,FALSE),"") ->  | L56: =IF(ISTEXT(A56),VLOOKUP(A56,Tabell203[],10,FALSE),"") ->  | M56: 0 | N56: 0 | O56: 0 | P56: 0 | R56: =IF(ISTEXT(A56),VLOOKUP(A56,Tabell203[],4,FALSE),0) -> 0 | S56: =IF(ISTEXT(A56),VLOOKUP(A56,Tabell203[],6,FALSE),0) -> 0 | T56: =IF(ISTEXT(A56),VLOOKUP(A56,Tabell203[],5,FALSE),0) -> 0 | U56: =IF(ISTEXT(A56),VLOOKUP(A56,Tabell203[],8,FALSE),0) -> 0 | V56: =IF(ISTEXT(A56),VLOOKUP(A56,Tabell203[],9,FALSE),0) -> 0 | W56: =IF(ISTEXT(A56),IF(E56>0.000001,E56,VLOOKUP(A56,Tabell203[],2,FALSE)),0) -> 0 | X56: 0 | Y56: 0 | Z56: 0 | AA56: 0 | AB56: 0 | AC56: 0 | AD56: 0 | AE56: 0 | AF56: 0 | AG56: =IF(X56=1,VLOOKUP(H56,Tabell220[],2,FALSE),0) -> 0 | AH56: =IF(Y56=1,IF(OR(W56<'Teknisk administration'!$P$262,W56>'Teknisk administration'!$P$263),'Teknisk administration'!$Q$262*I56^2+'Teknisk administration'!$R$262*I56+'Teknisk administration'!$S$262,'Teknisk administration'!$Q$263*I56^2+'Teknisk administration'!$R$263*I56+'Teknisk administration'!$S$263),0) -> 0 | AI56: =IF(Z56=1,VLOOKUP(H56,Tabell214[],2,FALSE)*W56+VLOOKUP(H56,Tabell214[],3,FALSE),0) -> 0 | AJ56: =IF(AA56=1,VLOOKUP(H56,Tabell215[],2,FALSE)*W56+VLOOKUP(H56,Tabell215[],3,FALSE),0) -> 0 | AK56: =IF(AB56=1,VLOOKUP(H56,Tabell216[],2,FALSE)*W56,0) -> 0 | AL56: =IF(AC56=1,'Teknisk administration'!$AP$378,0) -> 0 | AM56: =IF(AD56=1,VLOOKUP($H56,Tabell217[],2,FALSE)*$W56,0) -> 0 | AN56: =IF(AE56=1,VLOOKUP($H56,Tabell29[],2,FALSE)*$W56,0) -> 0 | AO56: =IF(ISTEXT(A56),VLOOKUP(A56,Tabell203[],7,FALSE),0) -> 0 | AP56: 0 | AQ56: =IF(ISTEXT($A56),VLOOKUP($A56,Tabell203[],11,FALSE),0) -> 0 | AR56: =IF(ISTEXT($A56),VLOOKUP($A56,Tabell203[],12,FALSE),0) -> 0 | AS56: =IF(ISTEXT($A56),VLOOKUP($A56,Tabell203[],13,FALSE),0) -> 0 | AT56: =IF(ISTEXT($A56),VLOOKUP($A56,Tabell203[],14,FALSE),0) -> 0 | AU56: =IF(ISTEXT($A56),VLOOKUP($A56,Tabell203[],15,FALSE),0) -> 0 | AV56: =IF(ISTEXT($A56),VLOOKUP($A56,Tabell203[],16,FALSE),0) -> 0
F57: =IF(ISTEXT(A57),VLOOKUP(A57,Tabell203[],3,FALSE),"") ->  | L57: =IF(ISTEXT(A57),VLOOKUP(A57,Tabell203[],10,FALSE),"") ->  | M57: 0 | N57: 0 | O57: 0 | P57: 0 | R57: =IF(ISTEXT(A57),VLOOKUP(A57,Tabell203[],4,FALSE),0) -> 0 | S57: =IF(ISTEXT(A57),VLOOKUP(A57,Tabell203[],6,FALSE),0) -> 0 | T57: =IF(ISTEXT(A57),VLOOKUP(A57,Tabell203[],5,FALSE),0) -> 0 | U57: =IF(ISTEXT(A57),VLOOKUP(A57,Tabell203[],8,FALSE),0) -> 0 | V57: =IF(ISTEXT(A57),VLOOKUP(A57,Tabell203[],9,FALSE),0) -> 0 | W57: =IF(ISTEXT(A57),IF(E57>0.000001,E57,VLOOKUP(A57,Tabell203[],2,FALSE)),0) -> 0 | X57: 0 | Y57: 0 | Z57: 0 | AA57: 0 | AB57: 0 | AC57: 0 | AD57: 0 | AE57: 0 | AF57: 0 | AG57: =IF(X57=1,VLOOKUP(H57,Tabell220[],2,FALSE),0) -> 0 | AH57: =IF(Y57=1,IF(OR(W57<'Teknisk administration'!$P$262,W57>'Teknisk administration'!$P$263),'Teknisk administration'!$Q$262*I57^2+'Teknisk administration'!$R$262*I57+'Teknisk administration'!$S$262,'Teknisk administration'!$Q$263*I57^2+'Teknisk administration'!$R$263*I57+'Teknisk administration'!$S$263),0) -> 0 | AI57: =IF(Z57=1,VLOOKUP(H57,Tabell214[],2,FALSE)*W57+VLOOKUP(H57,Tabell214[],3,FALSE),0) -> 0 | AJ57: =IF(AA57=1,VLOOKUP(H57,Tabell215[],2,FALSE)*W57+VLOOKUP(H57,Tabell215[],3,FALSE),0) -> 0 | AK57: =IF(AB57=1,VLOOKUP(H57,Tabell216[],2,FALSE)*W57,0) -> 0 | AL57: =IF(AC57=1,'Teknisk administration'!$AP$378,0) -> 0 | AM57: =IF(AD57=1,VLOOKUP($H57,Tabell217[],2,FALSE)*$W57,0) -> 0 | AN57: =IF(AE57=1,VLOOKUP($H57,Tabell29[],2,FALSE)*$W57,0) -> 0 | AO57: =IF(ISTEXT(A57),VLOOKUP(A57,Tabell203[],7,FALSE),0) -> 0 | AP57: 0 | AQ57: =IF(ISTEXT($A57),VLOOKUP($A57,Tabell203[],11,FALSE),0) -> 0 | AR57: =IF(ISTEXT($A57),VLOOKUP($A57,Tabell203[],12,FALSE),0) -> 0 | AS57: =IF(ISTEXT($A57),VLOOKUP($A57,Tabell203[],13,FALSE),0) -> 0 | AT57: =IF(ISTEXT($A57),VLOOKUP($A57,Tabell203[],14,FALSE),0) -> 0 | AU57: =IF(ISTEXT($A57),VLOOKUP($A57,Tabell203[],15,FALSE),0) -> 0 | AV57: =IF(ISTEXT($A57),VLOOKUP($A57,Tabell203[],16,FALSE),0) -> 0
L58: Totalt mängd inlagt eller direkttfodrat | M58: =SUM(Tabell221[Volym (m3)]) -> 0 | O58: =SUM(O46:O57) -> 0 | P58: =SUM(P46:P57) -> 0 | Z58: =IF(SUMPRODUCT(Z46:Z57,$G46:$G57)=0,0,SUMPRODUCT($O46:$O57,Z46:Z57)/SUMPRODUCT(Z46:Z57,$G46:$G57)) -> 0 | AA58: =IF(SUMPRODUCT(AA46:AA57,$G46:$G57)=0,0,SUMPRODUCT($O46:$O57,AA46:AA57)/SUMPRODUCT(AA46:AA57,$G46:$G57)) -> 0
A61: =period_2 -> Period 2
A62: Mängd vallfoder, direktutfodrad grönmassa och halm
A63: Skördemängden kan anges med två olika alternativ:
A64: 1. Fyll i färdigt värde om du mätt skörden som lagts in (kg och ts).
A65: 2. Uppskatta mängden (kg och ts) genom att beräkna volymen inlagt grovfoder och direktutfodrad grönmassa.
A66: Du kan ha en kombination av alternativ under en och samma period, t ex om du inte vägt mängden vid varje skörd.
A67: Börja med att välja typ av system (plansilo, rundbal, halm etc. i den vänstraste kolumnen. Då tänds de celler du ska skriva siffror i (gula celler) eller där du ska välja ur en lista (orange celler). Övriga celler i lämnar du tomma.
A68: När det gäller energi i fodret kan du antingen välja ur lista (orange cell) eller skriva in ett eget värde (ljusgul cell)
A69: Du kan lägga in flera rader med samma system, t ex om du vill särkilja 1:a 2:a och 3:e skörd eller vill räkna separat för olika skriften. Om du hellre vill det kan du lägga allt på en rad.
A72: Alternativ 1. Har vägt skörden och har ts-analys
A73: Mängden ts och MJ beräknas först när MJ/kg ts, ts-halt och kg grönmassa fyllts i. | AQ73: Gruppering av system
C74: Energi - välj ur lista eller skriv eget värde | E74: TS-halt (%) | G74: Mängd | H74: Beräknad mängd foder | AQ74: Plansilo | AR74: Torn | AS74: Storbalar (rund- och fyrkantsbalar) | AT74: Hö | AU74: Direktutfodrad grönmassa | AV74: Halm till foder
A75: System - välj alternativ ur listan! | B75: Egen kommentar | C75: Välj ur lista | D75: Eget värde (MJ/kg ts) | E75: % ts | F75: Förklaring | G75: kg grönmassa | H75: kg ts | I75: MJ | Q75: Kolumn8 | R75: Kolumn9 | S75: Kolumn10 | T75: Kolumn11 | U75: Kolumn12 | V75: 2 | W75: TS-halt | X75: Kolumn15 | Y75: Kolumn16 | Z75: Kolumn17 | AA75: Kolumn18 | AB75: Kolumn19 | AC75: Kolumn20 | AD75: Kolumn21 | AE75: Kolumn22 | AF75: Kolumn23 | AG75: Kolumn24 | AH75: Kolumn25 | AI75: Kolumn26 | AJ75: Kolumn27 | AK75: Kolumn28 | AL75: Kolumn29 | AM75: Kolumn30 | AN75: Kolumn31 | AO75: Kolumn32 | AP75: MJ/kg ts | AQ75: Plansilo12 | AR75: Torn13 | AS75: Storbalar (rund- och fyrkantsbalar) | AT75: Hö14 | AU75: Direktutfodrad grönmassa15 | AV75: Halm
F76: =IF(ISTEXT(A76),VLOOKUP(A76,Tabell203[],3,FALSE),"") ->  | H76: =W76*G76 -> 0 | I76: =H76*IF(D76>0,D76,IF(AND(ISTEXT(A76),(OR(ISTEXT(C76),ISNUMBER(D76)))),IF(D76>0,D92,VLOOKUP(C76,INDIRECT(A76),2,FALSE)),0)) -> 0 | W76: =IF(ISTEXT(A76),IF(E76>0.000001,E76,VLOOKUP(A76,Tabell203[],2,FALSE)),0) -> 0 | AP76: =IF(AND(ISTEXT(A76),(OR(ISTEXT(C76),ISNUMBER(D76)))),IF(D76>0,D76,VLOOKUP(C76,INDIRECT(A76),2,FALSE)),0) -> 0 | AQ76: =IF(ISTEXT($A76),VLOOKUP($A76,Tabell203[],11,FALSE),0) -> 0 | AR76: =IF(ISTEXT($A76),VLOOKUP($A76,Tabell203[],12,FALSE),0) -> 0 | AS76: =IF(ISTEXT($A76),VLOOKUP($A76,Tabell203[],13,FALSE),0) -> 0 | AT76: =IF(ISTEXT($A76),VLOOKUP($A76,Tabell203[],14,FALSE),0) -> 0 | AU76: =IF(ISTEXT($A76),VLOOKUP($A76,Tabell203[],15,FALSE),0) -> 0 | AV76: =IF(ISTEXT($A76),VLOOKUP($A76,Tabell203[],16,FALSE),0) -> 0
F77: =IF(ISTEXT(A77),VLOOKUP(A77,Tabell203[],3,FALSE),"") ->  | H77: 0 | I77: 0 | W77: =IF(ISTEXT(A77),IF(E77>0.000001,E77,VLOOKUP(A77,Tabell203[],2,FALSE)),0) -> 0 | AP77: 0 | AQ77: =IF(ISTEXT($A77),VLOOKUP($A77,Tabell203[],11,FALSE),0) -> 0 | AR77: =IF(ISTEXT($A77),VLOOKUP($A77,Tabell203[],12,FALSE),0) -> 0 | AS77: =IF(ISTEXT($A77),VLOOKUP($A77,Tabell203[],13,FALSE),0) -> 0 | AT77: =IF(ISTEXT($A77),VLOOKUP($A77,Tabell203[],14,FALSE),0) -> 0 | AU77: =IF(ISTEXT($A77),VLOOKUP($A77,Tabell203[],15,FALSE),0) -> 0 | AV77: =IF(ISTEXT($A77),VLOOKUP($A77,Tabell203[],16,FALSE),0) -> 0
F78: =IF(ISTEXT(A78),VLOOKUP(A78,Tabell203[],3,FALSE),"") ->  | H78: 0 | I78: 0 | W78: =IF(ISTEXT(A78),IF(E78>0.000001,E78,VLOOKUP(A78,Tabell203[],2,FALSE)),0) -> 0 | AP78: 0 | AQ78: =IF(ISTEXT($A78),VLOOKUP($A78,Tabell203[],11,FALSE),0) -> 0 | AR78: =IF(ISTEXT($A78),VLOOKUP($A78,Tabell203[],12,FALSE),0) -> 0 | AS78: =IF(ISTEXT($A78),VLOOKUP($A78,Tabell203[],13,FALSE),0) -> 0 | AT78: =IF(ISTEXT($A78),VLOOKUP($A78,Tabell203[],14,FALSE),0) -> 0 | AU78: =IF(ISTEXT($A78),VLOOKUP($A78,Tabell203[],15,FALSE),0) -> 0 | AV78: =IF(ISTEXT($A78),VLOOKUP($A78,Tabell203[],16,FALSE),0) -> 0
F79: =IF(ISTEXT(A79),VLOOKUP(A79,Tabell203[],3,FALSE),"") ->  | H79: 0 | I79: 0 | W79: =IF(ISTEXT(A79),IF(E79>0.000001,E79,VLOOKUP(A79,Tabell203[],2,FALSE)),0) -> 0 | AP79: 0 | AQ79: =IF(ISTEXT($A79),VLOOKUP($A79,Tabell203[],11,FALSE),0) -> 0 | AR79: =IF(ISTEXT($A79),VLOOKUP($A79,Tabell203[],12,FALSE),0) -> 0 | AS79: =IF(ISTEXT($A79),VLOOKUP($A79,Tabell203[],13,FALSE),0) -> 0 | AT79: =IF(ISTEXT($A79),VLOOKUP($A79,Tabell203[],14,FALSE),0) -> 0 | AU79: =IF(ISTEXT($A79),VLOOKUP($A79,Tabell203[],15,FALSE),0) -> 0 | AV79: =IF(ISTEXT($A79),VLOOKUP($A79,Tabell203[],16,FALSE),0) -> 0
F80: =IF(ISTEXT(A80),VLOOKUP(A80,Tabell203[],3,FALSE),"") ->  | H80: 0 | I80: 0 | W80: =IF(ISTEXT(A80),IF(E80>0.000001,E80,VLOOKUP(A80,Tabell203[],2,FALSE)),0) -> 0 | AP80: 0 | AQ80: =IF(ISTEXT($A80),VLOOKUP($A80,Tabell203[],11,FALSE),0) -> 0 | AR80: =IF(ISTEXT($A80),VLOOKUP($A80,Tabell203[],12,FALSE),0) -> 0 | AS80: =IF(ISTEXT($A80),VLOOKUP($A80,Tabell203[],13,FALSE),0) -> 0 | AT80: =IF(ISTEXT($A80),VLOOKUP($A80,Tabell203[],14,FALSE),0) -> 0 | AU80: =IF(ISTEXT($A80),VLOOKUP($A80,Tabell203[],15,FALSE),0) -> 0 | AV80: =IF(ISTEXT($A80),VLOOKUP($A80,Tabell203[],16,FALSE),0) -> 0
F81: =IF(ISTEXT(A81),VLOOKUP(A81,Tabell203[],3,FALSE),"") ->  | H81: 0 | I81: 0 | W81: =IF(ISTEXT(A81),IF(E81>0.000001,E81,VLOOKUP(A81,Tabell203[],2,FALSE)),0) -> 0 | AP81: 0 | AQ81: =IF(ISTEXT($A81),VLOOKUP($A81,Tabell203[],11,FALSE),0) -> 0 | AR81: =IF(ISTEXT($A81),VLOOKUP($A81,Tabell203[],12,FALSE),0) -> 0 | AS81: =IF(ISTEXT($A81),VLOOKUP($A81,Tabell203[],13,FALSE),0) -> 0 | AT81: =IF(ISTEXT($A81),VLOOKUP($A81,Tabell203[],14,FALSE),0) -> 0 | AU81: =IF(ISTEXT($A81),VLOOKUP($A81,Tabell203[],15,FALSE),0) -> 0 | AV81: =IF(ISTEXT($A81),VLOOKUP($A81,Tabell203[],16,FALSE),0) -> 0
F82: =IF(ISTEXT(A82),VLOOKUP(A82,Tabell203[],3,FALSE),"") ->  | H82: 0 | I82: 0 | W82: =IF(ISTEXT(A82),IF(E82>0.000001,E82,VLOOKUP(A82,Tabell203[],2,FALSE)),0) -> 0 | AP82: 0 | AQ82: =IF(ISTEXT($A82),VLOOKUP($A82,Tabell203[],11,FALSE),0) -> 0 | AR82: =IF(ISTEXT($A82),VLOOKUP($A82,Tabell203[],12,FALSE),0) -> 0 | AS82: =IF(ISTEXT($A82),VLOOKUP($A82,Tabell203[],13,FALSE),0) -> 0 | AT82: =IF(ISTEXT($A82),VLOOKUP($A82,Tabell203[],14,FALSE),0) -> 0 | AU82: =IF(ISTEXT($A82),VLOOKUP($A82,Tabell203[],15,FALSE),0) -> 0 | AV82: =IF(ISTEXT($A82),VLOOKUP($A82,Tabell203[],16,FALSE),0) -> 0
F83: =IF(ISTEXT(A83),VLOOKUP(A83,Tabell203[],3,FALSE),"") ->  | H83: 0 | I83: 0 | W83: =IF(ISTEXT(A83),IF(E83>0.000001,E83,VLOOKUP(A83,Tabell203[],2,FALSE)),0) -> 0 | AP83: 0 | AQ83: =IF(ISTEXT($A83),VLOOKUP($A83,Tabell203[],11,FALSE),0) -> 0 | AR83: =IF(ISTEXT($A83),VLOOKUP($A83,Tabell203[],12,FALSE),0) -> 0 | AS83: =IF(ISTEXT($A83),VLOOKUP($A83,Tabell203[],13,FALSE),0) -> 0 | AT83: =IF(ISTEXT($A83),VLOOKUP($A83,Tabell203[],14,FALSE),0) -> 0 | AU83: =IF(ISTEXT($A83),VLOOKUP($A83,Tabell203[],15,FALSE),0) -> 0 | AV83: =IF(ISTEXT($A83),VLOOKUP($A83,Tabell203[],16,FALSE),0) -> 0
A84: Totalt | H84: =SUM(H76:H83) -> 0 | I84: =SUM(I76:I83) -> 0
A88: Alternativ 2. Har inte vägt skörden, behöver räkna ut mängden skördat | R88: ska dölja
A89: Om det står "Saknas!" eller "0" under rubriken "Beräknad mängd foder" beror det på att någon uppgift saknas. Kontrollera då att du fyllt i alla gula celler på raden samt valt något i alla orange celler på raden | R89: Beskrivning av systemet | W89: TS-halt | X89: Vilket system? 1=ja, 0=nej | AG89: Volymvikt (kg ts/m3) | AP89: Energi | AQ89: Gruppering av system
C90: Energi - välj ur lista eller skriv eget värde | E90: TS-halt (%) | G90: Antal balar | H90: Teknik | I90: Lagrets respektive balarnas storlek | M90: Beräknad mängd foder | X90: Plansilo | Y90: Torn | Z90: Rundbalar | AA90: Fyrkantsbalar | AB90: Hö | AC90: Grönfoder | AD90: Halm | AE90: Fyrkantsbalar_hö | AF90: ='Teknisk administration'!$B$400 -> 0 | AG90: =X90 -> Plansilo | AH90: Torn | AI90: Rundbalar | AJ90: Fyrkantsbalar | AK90: Hö | AL90: Grönfoder | AM90: Halm | AN90: Fyrkantsbalar_hö | AO90: 0 | AP90: MJ/kg ts | AQ90: Plansilo | AR90: Torn | AS90: Storbalar (rund- och fyrkantsbalar) | AT90: Hö | AU90: Direktutfodrad | AV90: Halm till foder
A91: System - välj alternativ ur listan! | B91: Egen kommentar | C91: Välj ur lista | D91: Eget värde (MJ/kg ts) | E91: % ts | F91: Förklaring | G91: stycken | H91: välj ur listan i orange celler! | I91: Höjd (m) | J91: Bredd (m) | K91: Längd (m) | L91: Förklaring för volymberäkning | M91: Volym (m3) | N91: Volymvikt (kg ts/m3) | O91: Mängd (kg ts) | P91: Mängd (MJ) | Q91: m3 | R91: Antal | S91: Mängd per lass | T91: Teknik | U91: rätblock | V91: cylinder | W91: TS-halt | X91: Plansilo | Y91: Torn | Z91: Rundbalar | AA91: Fyrkantsbalar | AB91: Hö | AC91: Grönfoder | AD91: Halm | AE91: Fyrkantsbalar_hö | AF91: tom | AG91: Plansilo3 | AH91: Torn4 | AI91: Rundbalar5 | AJ91: Fyrkantsbalar6 | AK91: Hö7 | AL91: Direktutfodrat | AM91: Kolumn1 | AN91: Fyrkantsbalar_hö2 | AO91: Visa ts? | AP91: MJ/kg ts | AQ91: Plansilo12 | AR91: Torn13 | AS91: Storbalar (rund- och fyrkantsbalar) | AT91: Hö14 | AU91: Direktutfodrad | AV91: Halm2
F92: =IF(ISTEXT(A92),VLOOKUP(A92,Tabell203[],3,FALSE),"") ->  | L92: =IF(ISTEXT(A92),VLOOKUP(A92,Tabell203[],10,FALSE),"") ->  | M92: =IF(ISTEXT(A92),IF(U92=1,I92*J92*K92,IF(V92=1,I92*(J92/2)^2*PI(),1))*IF(R92=1,G92,1)*IF(S92=1,Q92,1),0) -> 0 | N92: =SUM(AG92:AN92) -> 0 | O92: =M92*N92 -> 0 | P92: =O92*AP92 -> 0 | R92: =IF(ISTEXT(A92),VLOOKUP(A92,Tabell203[],4,FALSE),0) -> 0 | S92: =IF(ISTEXT(A92),VLOOKUP(A92,Tabell203[],6,FALSE),0) -> 0 | T92: =IF(ISTEXT(A92),VLOOKUP(A92,Tabell203[],5,FALSE),0) -> 0 | U92: =IF(ISTEXT(A92),VLOOKUP(A92,Tabell203[],8,FALSE),0) -> 0 | V92: =IF(ISTEXT(A92),VLOOKUP(A92,Tabell203[],9,FALSE),0) -> 0 | W92: =IF(ISTEXT(A92),IF(E92>0.000001,E92,VLOOKUP(A92,Tabell203[],2,FALSE)),0) -> 0 | X92: =IF($A92='2.1b Halm, odling grovfoder'!X$44,1,0) -> 0 | Y92: =IF($A92='2.1b Halm, odling grovfoder'!Y$44,1,0) -> 0 | Z92: =IF($A92='2.1b Halm, odling grovfoder'!Z$44,1,0) -> 0 | AA92: =IF($A92='2.1b Halm, odling grovfoder'!AA$44,1,0) -> 0 | AB92: =IF($A92='2.1b Halm, odling grovfoder'!AB$44,1,0) -> 0 | AC92: =IF($A92='2.1b Halm, odling grovfoder'!AC$44,1,0) -> 0 | AD92: =IF($A92='2.1b Halm, odling grovfoder'!AD$44,1,0) -> 0 | AE92: =IF($A92='2.1b Halm, odling grovfoder'!AE$44,1,0) -> 0 | AF92: =IF($A92='2.1b Halm, odling grovfoder'!AF$44,1,0) -> 0 | AG92: =IF(X92=1,VLOOKUP(H92,Tabell220[],2,FALSE),0) -> 0 | AH92: =IF(Y92=1,IF(OR(W92<'Teknisk administration'!$P$262,W92>'Teknisk administration'!$P$263),'Teknisk administration'!$Q$262*I92^2+'Teknisk administration'!$R$262*I92+'Teknisk administration'!$S$262,'Teknisk administration'!$Q$263*I92^2+'Teknisk administration'!$R$263*I92+'Teknisk administration'!$S$263),0) -> 0 | AI92: =IF(Z92=1,VLOOKUP(H92,Tabell214[],2,FALSE)*W92+VLOOKUP(H92,Tabell214[],3,FALSE),0) -> 0 | AJ92: =IF(AA92=1,VLOOKUP(H92,Tabell215[],2,FALSE)*W92+VLOOKUP(H92,Tabell215[],3,FALSE),0) -> 0 | AK92: =IF(AB92=1,VLOOKUP(H92,Tabell216[],2,FALSE)*W92,0) -> 0 | AL92: =IF(AC92=1,'Teknisk administration'!$AP$378,0) -> 0 | AM92: =IF(AD92=1,VLOOKUP($H92,Tabell217[],2,FALSE)*$W92,0) -> 0 | AN92: =IF(AE92=1,VLOOKUP($H92,Tabell29[],2,FALSE)*$W92,0) -> 0 | AO92: =IF(ISTEXT(A92),VLOOKUP(A92,Tabell203[],7,FALSE),0) -> 0 | AP92: =IF(AND(ISTEXT(A92),(OR(ISTEXT(C92),ISNUMBER(D92)))),IF(D92>0,D92,VLOOKUP(C92,INDIRECT(A92),2,FALSE)),0) -> 0 | AQ92: =IF(ISTEXT($A92),VLOOKUP($A92,Tabell203[],11,FALSE),0) -> 0 | AR92: =IF(ISTEXT($A92),VLOOKUP($A92,Tabell203[],12,FALSE),0) -> 0 | AS92: =IF(ISTEXT($A92),VLOOKUP($A92,Tabell203[],13,FALSE),0) -> 0 | AT92: =IF(ISTEXT($A92),VLOOKUP($A92,Tabell203[],14,FALSE),0) -> 0 | AU92: =IF(ISTEXT($A92),VLOOKUP($A92,Tabell203[],15,FALSE),0) -> 0 | AV92: =IF(ISTEXT($A92),VLOOKUP($A92,Tabell203[],16,FALSE),0) -> 0
F93: =IF(ISTEXT(A93),VLOOKUP(A93,Tabell203[],3,FALSE),"") ->  | L93: =IF(ISTEXT(A93),VLOOKUP(A93,Tabell203[],10,FALSE),"") ->  | M93: 0 | N93: 0 | O93: 0 | P93: 0 | R93: =IF(ISTEXT(A93),VLOOKUP(A93,Tabell203[],4,FALSE),0) -> 0 | S93: =IF(ISTEXT(A93),VLOOKUP(A93,Tabell203[],6,FALSE),0) -> 0 | T93: =IF(ISTEXT(A93),VLOOKUP(A93,Tabell203[],5,FALSE),0) -> 0 | U93: =IF(ISTEXT(A93),VLOOKUP(A93,Tabell203[],8,FALSE),0) -> 0 | V93: =IF(ISTEXT(A93),VLOOKUP(A93,Tabell203[],9,FALSE),0) -> 0 | W93: =IF(ISTEXT(A93),IF(E93>0.000001,E93,VLOOKUP(A93,Tabell203[],2,FALSE)),0) -> 0 | X93: =IF($A93='2.1b Halm, odling grovfoder'!X$44,1,0) -> 0 | Y93: =IF($A93='2.1b Halm, odling grovfoder'!Y$44,1,0) -> 0 | Z93: =IF($A93='2.1b Halm, odling grovfoder'!Z$44,1,0) -> 0 | AA93: =IF($A93='2.1b Halm, odling grovfoder'!AA$44,1,0) -> 0 | AB93: =IF($A93='2.1b Halm, odling grovfoder'!AB$44,1,0) -> 0 | AC93: =IF($A93='2.1b Halm, odling grovfoder'!AC$44,1,0) -> 0 | AD93: =IF($A93='2.1b Halm, odling grovfoder'!AD$44,1,0) -> 0 | AE93: =IF($A93='2.1b Halm, odling grovfoder'!AE$44,1,0) -> 0 | AF93: =IF($A93='2.1b Halm, odling grovfoder'!AF$44,1,0) -> 0 | AG93: =IF(X93=1,VLOOKUP(H93,Tabell220[],2,FALSE),0) -> 0 | AH93: =IF(Y93=1,IF(OR(W93<'Teknisk administration'!$P$262,W93>'Teknisk administration'!$P$263),'Teknisk administration'!$Q$262*I93^2+'Teknisk administration'!$R$262*I93+'Teknisk administration'!$S$262,'Teknisk administration'!$Q$263*I93^2+'Teknisk administration'!$R$263*I93+'Teknisk administration'!$S$263),0) -> 0 | AI93: =IF(Z93=1,VLOOKUP(H93,Tabell214[],2,FALSE)*W93+VLOOKUP(H93,Tabell214[],3,FALSE),0) -> 0 | AJ93: =IF(AA93=1,VLOOKUP(H93,Tabell215[],2,FALSE)*W93+VLOOKUP(H93,Tabell215[],3,FALSE),0) -> 0 | AK93: =IF(AB93=1,VLOOKUP(H93,Tabell216[],2,FALSE)*W93,0) -> 0 | AL93: =IF(AC93=1,'Teknisk administration'!$AP$378,0) -> 0 | AM93: =IF(AD93=1,VLOOKUP($H93,Tabell217[],2,FALSE)*$W93,0) -> 0 | AN93: =IF(AE93=1,VLOOKUP($H93,Tabell29[],2,FALSE)*$W93,0) -> 0 | AO93: =IF(ISTEXT(A93),VLOOKUP(A93,Tabell203[],7,FALSE),0) -> 0 | AP93: 0 | AQ93: =IF(ISTEXT($A93),VLOOKUP($A93,Tabell203[],11,FALSE),0) -> 0 | AR93: =IF(ISTEXT($A93),VLOOKUP($A93,Tabell203[],12,FALSE),0) -> 0 | AS93: =IF(ISTEXT($A93),VLOOKUP($A93,Tabell203[],13,FALSE),0) -> 0 | AT93: =IF(ISTEXT($A93),VLOOKUP($A93,Tabell203[],14,FALSE),0) -> 0 | AU93: =IF(ISTEXT($A93),VLOOKUP($A93,Tabell203[],15,FALSE),0) -> 0 | AV93: =IF(ISTEXT($A93),VLOOKUP($A93,Tabell203[],16,FALSE),0) -> 0
F94: =IF(ISTEXT(A94),VLOOKUP(A94,Tabell203[],3,FALSE),"") ->  | L94: =IF(ISTEXT(A94),VLOOKUP(A94,Tabell203[],10,FALSE),"") ->  | M94: 0 | N94: 0 | O94: 0 | P94: 0 | R94: =IF(ISTEXT(A94),VLOOKUP(A94,Tabell203[],4,FALSE),0) -> 0 | S94: =IF(ISTEXT(A94),VLOOKUP(A94,Tabell203[],6,FALSE),0) -> 0 | T94: =IF(ISTEXT(A94),VLOOKUP(A94,Tabell203[],5,FALSE),0) -> 0 | U94: =IF(ISTEXT(A94),VLOOKUP(A94,Tabell203[],8,FALSE),0) -> 0 | V94: =IF(ISTEXT(A94),VLOOKUP(A94,Tabell203[],9,FALSE),0) -> 0 | W94: =IF(ISTEXT(A94),IF(E94>0.000001,E94,VLOOKUP(A94,Tabell203[],2,FALSE)),0) -> 0 | X94: =IF($A94='2.1b Halm, odling grovfoder'!X$44,1,0) -> 0 | Y94: =IF($A94='2.1b Halm, odling grovfoder'!Y$44,1,0) -> 0 | Z94: =IF($A94='2.1b Halm, odling grovfoder'!Z$44,1,0) -> 0 | AA94: =IF($A94='2.1b Halm, odling grovfoder'!AA$44,1,0) -> 0 | AB94: =IF($A94='2.1b Halm, odling grovfoder'!AB$44,1,0) -> 0 | AC94: =IF($A94='2.1b Halm, odling grovfoder'!AC$44,1,0) -> 0 | AD94: =IF($A94='2.1b Halm, odling grovfoder'!AD$44,1,0) -> 0 | AE94: =IF($A94='2.1b Halm, odling grovfoder'!AE$44,1,0) -> 0 | AF94: =IF($A94='2.1b Halm, odling grovfoder'!AF$44,1,0) -> 0 | AG94: =IF(X94=1,VLOOKUP(H94,Tabell220[],2,FALSE),0) -> 0 | AH94: =IF(Y94=1,IF(OR(W94<'Teknisk administration'!$P$262,W94>'Teknisk administration'!$P$263),'Teknisk administration'!$Q$262*I94^2+'Teknisk administration'!$R$262*I94+'Teknisk administration'!$S$262,'Teknisk administration'!$Q$263*I94^2+'Teknisk administration'!$R$263*I94+'Teknisk administration'!$S$263),0) -> 0 | AI94: =IF(Z94=1,VLOOKUP(H94,Tabell214[],2,FALSE)*W94+VLOOKUP(H94,Tabell214[],3,FALSE),0) -> 0 | AJ94: =IF(AA94=1,VLOOKUP(H94,Tabell215[],2,FALSE)*W94+VLOOKUP(H94,Tabell215[],3,FALSE),0) -> 0 | AK94: =IF(AB94=1,VLOOKUP(H94,Tabell216[],2,FALSE)*W94,0) -> 0 | AL94: =IF(AC94=1,'Teknisk administration'!$AP$378,0) -> 0 | AM94: =IF(AD94=1,VLOOKUP($H94,Tabell217[],2,FALSE)*$W94,0) -> 0 | AN94: =IF(AE94=1,VLOOKUP($H94,Tabell29[],2,FALSE)*$W94,0) -> 0 | AO94: =IF(ISTEXT(A94),VLOOKUP(A94,Tabell203[],7,FALSE),0) -> 0 | AP94: 0 | AQ94: =IF(ISTEXT($A94),VLOOKUP($A94,Tabell203[],11,FALSE),0) -> 0 | AR94: =IF(ISTEXT($A94),VLOOKUP($A94,Tabell203[],12,FALSE),0) -> 0 | AS94: =IF(ISTEXT($A94),VLOOKUP($A94,Tabell203[],13,FALSE),0) -> 0 | AT94: =IF(ISTEXT($A94),VLOOKUP($A94,Tabell203[],14,FALSE),0) -> 0 | AU94: =IF(ISTEXT($A94),VLOOKUP($A94,Tabell203[],15,FALSE),0) -> 0 | AV94: =IF(ISTEXT($A94),VLOOKUP($A94,Tabell203[],16,FALSE),0) -> 0
F95: =IF(ISTEXT(A95),VLOOKUP(A95,Tabell203[],3,FALSE),"") ->  | L95: =IF(ISTEXT(A95),VLOOKUP(A95,Tabell203[],10,FALSE),"") ->  | M95: 0 | N95: 0 | O95: 0 | P95: 0 | R95: =IF(ISTEXT(A95),VLOOKUP(A95,Tabell203[],4,FALSE),0) -> 0 | S95: =IF(ISTEXT(A95),VLOOKUP(A95,Tabell203[],6,FALSE),0) -> 0 | T95: =IF(ISTEXT(A95),VLOOKUP(A95,Tabell203[],5,FALSE),0) -> 0 | U95: =IF(ISTEXT(A95),VLOOKUP(A95,Tabell203[],8,FALSE),0) -> 0 | V95: =IF(ISTEXT(A95),VLOOKUP(A95,Tabell203[],9,FALSE),0) -> 0 | W95: =IF(ISTEXT(A95),IF(E95>0.000001,E95,VLOOKUP(A95,Tabell203[],2,FALSE)),0) -> 0 | X95: =IF($A95='2.1b Halm, odling grovfoder'!X$44,1,0) -> 0 | Y95: =IF($A95='2.1b Halm, odling grovfoder'!Y$44,1,0) -> 0 | Z95: =IF($A95='2.1b Halm, odling grovfoder'!Z$44,1,0) -> 0 | AA95: =IF($A95='2.1b Halm, odling grovfoder'!AA$44,1,0) -> 0 | AB95: =IF($A95='2.1b Halm, odling grovfoder'!AB$44,1,0) -> 0 | AC95: =IF($A95='2.1b Halm, odling grovfoder'!AC$44,1,0) -> 0 | AD95: =IF($A95='2.1b Halm, odling grovfoder'!AD$44,1,0) -> 0 | AE95: =IF($A95='2.1b Halm, odling grovfoder'!AE$44,1,0) -> 0 | AF95: =IF($A95='2.1b Halm, odling grovfoder'!AF$44,1,0) -> 0 | AG95: =IF(X95=1,VLOOKUP(H95,Tabell220[],2,FALSE),0) -> 0 | AH95: =IF(Y95=1,IF(OR(W95<'Teknisk administration'!$P$262,W95>'Teknisk administration'!$P$263),'Teknisk administration'!$Q$262*I95^2+'Teknisk administration'!$R$262*I95+'Teknisk administration'!$S$262,'Teknisk administration'!$Q$263*I95^2+'Teknisk administration'!$R$263*I95+'Teknisk administration'!$S$263),0) -> 0 | AI95: =IF(Z95=1,VLOOKUP(H95,Tabell214[],2,FALSE)*W95+VLOOKUP(H95,Tabell214[],3,FALSE),0) -> 0 | AJ95: =IF(AA95=1,VLOOKUP(H95,Tabell215[],2,FALSE)*W95+VLOOKUP(H95,Tabell215[],3,FALSE),0) -> 0 | AK95: =IF(AB95=1,VLOOKUP(H95,Tabell216[],2,FALSE)*W95,0) -> 0 | AL95: =IF(AC95=1,'Teknisk administration'!$AP$378,0) -> 0 | AM95: =IF(AD95=1,VLOOKUP($H95,Tabell217[],2,FALSE)*$W95,0) -> 0 | AN95: =IF(AE95=1,VLOOKUP($H95,Tabell29[],2,FALSE)*$W95,0) -> 0 | AO95: =IF(ISTEXT(A95),VLOOKUP(A95,Tabell203[],7,FALSE),0) -> 0 | AP95: 0 | AQ95: =IF(ISTEXT($A95),VLOOKUP($A95,Tabell203[],11,FALSE),0) -> 0 | AR95: =IF(ISTEXT($A95),VLOOKUP($A95,Tabell203[],12,FALSE),0) -> 0 | AS95: =IF(ISTEXT($A95),VLOOKUP($A95,Tabell203[],13,FALSE),0) -> 0 | AT95: =IF(ISTEXT($A95),VLOOKUP($A95,Tabell203[],14,FALSE),0) -> 0 | AU95: =IF(ISTEXT($A95),VLOOKUP($A95,Tabell203[],15,FALSE),0) -> 0 | AV95: =IF(ISTEXT($A95),VLOOKUP($A95,Tabell203[],16,FALSE),0) -> 0
F96: =IF(ISTEXT(A96),VLOOKUP(A96,Tabell203[],3,FALSE),"") ->  | L96: =IF(ISTEXT(A96),VLOOKUP(A96,Tabell203[],10,FALSE),"") ->  | M96: 0 | N96: 0 | O96: 0 | P96: 0 | R96: =IF(ISTEXT(A96),VLOOKUP(A96,Tabell203[],4,FALSE),0) -> 0 | S96: =IF(ISTEXT(A96),VLOOKUP(A96,Tabell203[],6,FALSE),0) -> 0 | T96: =IF(ISTEXT(A96),VLOOKUP(A96,Tabell203[],5,FALSE),0) -> 0 | U96: =IF(ISTEXT(A96),VLOOKUP(A96,Tabell203[],8,FALSE),0) -> 0 | V96: =IF(ISTEXT(A96),VLOOKUP(A96,Tabell203[],9,FALSE),0) -> 0 | W96: =IF(ISTEXT(A96),IF(E96>0.000001,E96,VLOOKUP(A96,Tabell203[],2,FALSE)),0) -> 0 | X96: =IF($A96='2.1b Halm, odling grovfoder'!X$44,1,0) -> 0 | Y96: =IF($A96='2.1b Halm, odling grovfoder'!Y$44,1,0) -> 0 | Z96: =IF($A96='2.1b Halm, odling grovfoder'!Z$44,1,0) -> 0 | AA96: =IF($A96='2.1b Halm, odling grovfoder'!AA$44,1,0) -> 0 | AB96: =IF($A96='2.1b Halm, odling grovfoder'!AB$44,1,0) -> 0 | AC96: =IF($A96='2.1b Halm, odling grovfoder'!AC$44,1,0) -> 0 | AD96: =IF($A96='2.1b Halm, odling grovfoder'!AD$44,1,0) -> 0 | AE96: =IF($A96='2.1b Halm, odling grovfoder'!AE$44,1,0) -> 0 | AF96: =IF($A96='2.1b Halm, odling grovfoder'!AF$44,1,0) -> 0 | AG96: =IF(X96=1,VLOOKUP(H96,Tabell220[],2,FALSE),0) -> 0 | AH96: =IF(Y96=1,IF(OR(W96<'Teknisk administration'!$P$262,W96>'Teknisk administration'!$P$263),'Teknisk administration'!$Q$262*I96^2+'Teknisk administration'!$R$262*I96+'Teknisk administration'!$S$262,'Teknisk administration'!$Q$263*I96^2+'Teknisk administration'!$R$263*I96+'Teknisk administration'!$S$263),0) -> 0 | AI96: =IF(Z96=1,VLOOKUP(H96,Tabell214[],2,FALSE)*W96+VLOOKUP(H96,Tabell214[],3,FALSE),0) -> 0 | AJ96: =IF(AA96=1,VLOOKUP(H96,Tabell215[],2,FALSE)*W96+VLOOKUP(H96,Tabell215[],3,FALSE),0) -> 0 | AK96: =IF(AB96=1,VLOOKUP(H96,Tabell216[],2,FALSE)*W96,0) -> 0 | AL96: =IF(AC96=1,'Teknisk administration'!$AP$378,0) -> 0 | AM96: =IF(AD96=1,VLOOKUP($H96,Tabell217[],2,FALSE)*$W96,0) -> 0 | AN96: =IF(AE96=1,VLOOKUP($H96,Tabell29[],2,FALSE)*$W96,0) -> 0 | AO96: =IF(ISTEXT(A96),VLOOKUP(A96,Tabell203[],7,FALSE),0) -> 0 | AP96: 0 | AQ96: =IF(ISTEXT($A96),VLOOKUP($A96,Tabell203[],11,FALSE),0) -> 0 | AR96: =IF(ISTEXT($A96),VLOOKUP($A96,Tabell203[],12,FALSE),0) -> 0 | AS96: =IF(ISTEXT($A96),VLOOKUP($A96,Tabell203[],13,FALSE),0) -> 0 | AT96: =IF(ISTEXT($A96),VLOOKUP($A96,Tabell203[],14,FALSE),0) -> 0 | AU96: =IF(ISTEXT($A96),VLOOKUP($A96,Tabell203[],15,FALSE),0) -> 0 | AV96: =IF(ISTEXT($A96),VLOOKUP($A96,Tabell203[],16,FALSE),0) -> 0
F97: =IF(ISTEXT(A97),VLOOKUP(A97,Tabell203[],3,FALSE),"") ->  | L97: =IF(ISTEXT(A97),VLOOKUP(A97,Tabell203[],10,FALSE),"") ->  | M97: 0 | N97: 0 | O97: 0 | P97: 0 | R97: =IF(ISTEXT(A97),VLOOKUP(A97,Tabell203[],4,FALSE),0) -> 0 | S97: =IF(ISTEXT(A97),VLOOKUP(A97,Tabell203[],6,FALSE),0) -> 0 | T97: =IF(ISTEXT(A97),VLOOKUP(A97,Tabell203[],5,FALSE),0) -> 0 | U97: =IF(ISTEXT(A97),VLOOKUP(A97,Tabell203[],8,FALSE),0) -> 0 | V97: =IF(ISTEXT(A97),VLOOKUP(A97,Tabell203[],9,FALSE),0) -> 0 | W97: =IF(ISTEXT(A97),IF(E97>0.000001,E97,VLOOKUP(A97,Tabell203[],2,FALSE)),0) -> 0 | X97: =IF($A97='2.1b Halm, odling grovfoder'!X$44,1,0) -> 0 | Y97: =IF($A97='2.1b Halm, odling grovfoder'!Y$44,1,0) -> 0 | Z97: =IF($A97='2.1b Halm, odling grovfoder'!Z$44,1,0) -> 0 | AA97: =IF($A97='2.1b Halm, odling grovfoder'!AA$44,1,0) -> 0 | AB97: =IF($A97='2.1b Halm, odling grovfoder'!AB$44,1,0) -> 0 | AC97: =IF($A97='2.1b Halm, odling grovfoder'!AC$44,1,0) -> 0 | AD97: =IF($A97='2.1b Halm, odling grovfoder'!AD$44,1,0) -> 0 | AE97: =IF($A97='2.1b Halm, odling grovfoder'!AE$44,1,0) -> 0 | AF97: =IF($A97='2.1b Halm, odling grovfoder'!AF$44,1,0) -> 0 | AG97: =IF(X97=1,VLOOKUP(H97,Tabell220[],2,FALSE),0) -> 0 | AH97: =IF(Y97=1,IF(OR(W97<'Teknisk administration'!$P$262,W97>'Teknisk administration'!$P$263),'Teknisk administration'!$Q$262*I97^2+'Teknisk administration'!$R$262*I97+'Teknisk administration'!$S$262,'Teknisk administration'!$Q$263*I97^2+'Teknisk administration'!$R$263*I97+'Teknisk administration'!$S$263),0) -> 0 | AI97: =IF(Z97=1,VLOOKUP(H97,Tabell214[],2,FALSE)*W97+VLOOKUP(H97,Tabell214[],3,FALSE),0) -> 0 | AJ97: =IF(AA97=1,VLOOKUP(H97,Tabell215[],2,FALSE)*W97+VLOOKUP(H97,Tabell215[],3,FALSE),0) -> 0 | AK97: =IF(AB97=1,VLOOKUP(H97,Tabell216[],2,FALSE)*W97,0) -> 0 | AL97: =IF(AC97=1,'Teknisk administration'!$AP$378,0) -> 0 | AM97: =IF(AD97=1,VLOOKUP($H97,Tabell217[],2,FALSE)*$W97,0) -> 0 | AN97: =IF(AE97=1,VLOOKUP($H97,Tabell29[],2,FALSE)*$W97,0) -> 0 | AO97: =IF(ISTEXT(A97),VLOOKUP(A97,Tabell203[],7,FALSE),0) -> 0 | AP97: 0 | AQ97: =IF(ISTEXT($A97),VLOOKUP($A97,Tabell203[],11,FALSE),0) -> 0 | AR97: =IF(ISTEXT($A97),VLOOKUP($A97,Tabell203[],12,FALSE),0) -> 0 | AS97: =IF(ISTEXT($A97),VLOOKUP($A97,Tabell203[],13,FALSE),0) -> 0 | AT97: =IF(ISTEXT($A97),VLOOKUP($A97,Tabell203[],14,FALSE),0) -> 0 | AU97: =IF(ISTEXT($A97),VLOOKUP($A97,Tabell203[],15,FALSE),0) -> 0 | AV97: =IF(ISTEXT($A97),VLOOKUP($A97,Tabell203[],16,FALSE),0) -> 0
F98: =IF(ISTEXT(A98),VLOOKUP(A98,Tabell203[],3,FALSE),"") ->  | L98: =IF(ISTEXT(A98),VLOOKUP(A98,Tabell203[],10,FALSE),"") ->  | M98: 0 | N98: 0 | O98: 0 | P98: 0 | R98: =IF(ISTEXT(A98),VLOOKUP(A98,Tabell203[],4,FALSE),0) -> 0 | S98: =IF(ISTEXT(A98),VLOOKUP(A98,Tabell203[],6,FALSE),0) -> 0 | T98: =IF(ISTEXT(A98),VLOOKUP(A98,Tabell203[],5,FALSE),0) -> 0 | U98: =IF(ISTEXT(A98),VLOOKUP(A98,Tabell203[],8,FALSE),0) -> 0 | V98: =IF(ISTEXT(A98),VLOOKUP(A98,Tabell203[],9,FALSE),0) -> 0 | W98: =IF(ISTEXT(A98),IF(E98>0.000001,E98,VLOOKUP(A98,Tabell203[],2,FALSE)),0) -> 0 | X98: =IF($A98='2.1b Halm, odling grovfoder'!X$44,1,0) -> 0 | Y98: =IF($A98='2.1b Halm, odling grovfoder'!Y$44,1,0) -> 0 | Z98: =IF($A98='2.1b Halm, odling grovfoder'!Z$44,1,0) -> 0 | AA98: =IF($A98='2.1b Halm, odling grovfoder'!AA$44,1,0) -> 0 | AB98: =IF($A98='2.1b Halm, odling grovfoder'!AB$44,1,0) -> 0 | AC98: =IF($A98='2.1b Halm, odling grovfoder'!AC$44,1,0) -> 0 | AD98: =IF($A98='2.1b Halm, odling grovfoder'!AD$44,1,0) -> 0 | AE98: =IF($A98='2.1b Halm, odling grovfoder'!AE$44,1,0) -> 0 | AF98: =IF($A98='2.1b Halm, odling grovfoder'!AF$44,1,0) -> 0 | AG98: =IF(X98=1,VLOOKUP(H98,Tabell220[],2,FALSE),0) -> 0 | AH98: =IF(Y98=1,IF(OR(W98<'Teknisk administration'!$P$262,W98>'Teknisk administration'!$P$263),'Teknisk administration'!$Q$262*I98^2+'Teknisk administration'!$R$262*I98+'Teknisk administration'!$S$262,'Teknisk administration'!$Q$263*I98^2+'Teknisk administration'!$R$263*I98+'Teknisk administration'!$S$263),0) -> 0 | AI98: =IF(Z98=1,VLOOKUP(H98,Tabell214[],2,FALSE)*W98+VLOOKUP(H98,Tabell214[],3,FALSE),0) -> 0 | AJ98: =IF(AA98=1,VLOOKUP(H98,Tabell215[],2,FALSE)*W98+VLOOKUP(H98,Tabell215[],3,FALSE),0) -> 0 | AK98: =IF(AB98=1,VLOOKUP(H98,Tabell216[],2,FALSE)*W98,0) -> 0 | AL98: =IF(AC98=1,'Teknisk administration'!$AP$378,0) -> 0 | AM98: =IF(AD98=1,VLOOKUP($H98,Tabell217[],2,FALSE)*$W98,0) -> 0 | AN98: =IF(AE98=1,VLOOKUP($H98,Tabell29[],2,FALSE)*$W98,0) -> 0 | AO98: =IF(ISTEXT(A98),VLOOKUP(A98,Tabell203[],7,FALSE),0) -> 0 | AP98: 0 | AQ98: =IF(ISTEXT($A98),VLOOKUP($A98,Tabell203[],11,FALSE),0) -> 0 | AR98: =IF(ISTEXT($A98),VLOOKUP($A98,Tabell203[],12,FALSE),0) -> 0 | AS98: =IF(ISTEXT($A98),VLOOKUP($A98,Tabell203[],13,FALSE),0) -> 0 | AT98: =IF(ISTEXT($A98),VLOOKUP($A98,Tabell203[],14,FALSE),0) -> 0 | AU98: =IF(ISTEXT($A98),VLOOKUP($A98,Tabell203[],15,FALSE),0) -> 0 | AV98: =IF(ISTEXT($A98),VLOOKUP($A98,Tabell203[],16,FALSE),0) -> 0
F99: =IF(ISTEXT(A99),VLOOKUP(A99,Tabell203[],3,FALSE),"") ->  | L99: =IF(ISTEXT(A99),VLOOKUP(A99,Tabell203[],10,FALSE),"") ->  | M99: 0 | N99: 0 | O99: 0 | P99: 0 | R99: =IF(ISTEXT(A99),VLOOKUP(A99,Tabell203[],4,FALSE),0) -> 0 | S99: =IF(ISTEXT(A99),VLOOKUP(A99,Tabell203[],6,FALSE),0) -> 0 | T99: =IF(ISTEXT(A99),VLOOKUP(A99,Tabell203[],5,FALSE),0) -> 0 | U99: =IF(ISTEXT(A99),VLOOKUP(A99,Tabell203[],8,FALSE),0) -> 0 | V99: =IF(ISTEXT(A99),VLOOKUP(A99,Tabell203[],9,FALSE),0) -> 0 | W99: =IF(ISTEXT(A99),IF(E99>0.000001,E99,VLOOKUP(A99,Tabell203[],2,FALSE)),0) -> 0 | X99: =IF($A99='2.1b Halm, odling grovfoder'!X$44,1,0) -> 0 | Y99: =IF($A99='2.1b Halm, odling grovfoder'!Y$44,1,0) -> 0 | Z99: =IF($A99='2.1b Halm, odling grovfoder'!Z$44,1,0) -> 0 | AA99: =IF($A99='2.1b Halm, odling grovfoder'!AA$44,1,0) -> 0 | AB99: =IF($A99='2.1b Halm, odling grovfoder'!AB$44,1,0) -> 0 | AC99: =IF($A99='2.1b Halm, odling grovfoder'!AC$44,1,0) -> 0 | AD99: =IF($A99='2.1b Halm, odling grovfoder'!AD$44,1,0) -> 0 | AE99: =IF($A99='2.1b Halm, odling grovfoder'!AE$44,1,0) -> 0 | AF99: =IF($A99='2.1b Halm, odling grovfoder'!AF$44,1,0) -> 0 | AG99: =IF(X99=1,VLOOKUP(H99,Tabell220[],2,FALSE),0) -> 0 | AH99: =IF(Y99=1,IF(OR(W99<'Teknisk administration'!$P$262,W99>'Teknisk administration'!$P$263),'Teknisk administration'!$Q$262*I99^2+'Teknisk administration'!$R$262*I99+'Teknisk administration'!$S$262,'Teknisk administration'!$Q$263*I99^2+'Teknisk administration'!$R$263*I99+'Teknisk administration'!$S$263),0) -> 0 | AI99: =IF(Z99=1,VLOOKUP(H99,Tabell214[],2,FALSE)*W99+VLOOKUP(H99,Tabell214[],3,FALSE),0) -> 0 | AJ99: =IF(AA99=1,VLOOKUP(H99,Tabell215[],2,FALSE)*W99+VLOOKUP(H99,Tabell215[],3,FALSE),0) -> 0 | AK99: =IF(AB99=1,VLOOKUP(H99,Tabell216[],2,FALSE)*W99,0) -> 0 | AL99: =IF(AC99=1,'Teknisk administration'!$AP$378,0) -> 0 | AM99: =IF(AD99=1,VLOOKUP($H99,Tabell217[],2,FALSE)*$W99,0) -> 0 | AN99: =IF(AE99=1,VLOOKUP($H99,Tabell29[],2,FALSE)*$W99,0) -> 0 | AO99: =IF(ISTEXT(A99),VLOOKUP(A99,Tabell203[],7,FALSE),0) -> 0 | AP99: 0 | AQ99: =IF(ISTEXT($A99),VLOOKUP($A99,Tabell203[],11,FALSE),0) -> 0 | AR99: =IF(ISTEXT($A99),VLOOKUP($A99,Tabell203[],12,FALSE),0) -> 0 | AS99: =IF(ISTEXT($A99),VLOOKUP($A99,Tabell203[],13,FALSE),0) -> 0 | AT99: =IF(ISTEXT($A99),VLOOKUP($A99,Tabell203[],14,FALSE),0) -> 0 | AU99: =IF(ISTEXT($A99),VLOOKUP($A99,Tabell203[],15,FALSE),0) -> 0 | AV99: =IF(ISTEXT($A99),VLOOKUP($A99,Tabell203[],16,FALSE),0) -> 0
F100: =IF(ISTEXT(A100),VLOOKUP(A100,Tabell203[],3,FALSE),"") ->  | L100: =IF(ISTEXT(A100),VLOOKUP(A100,Tabell203[],10,FALSE),"") ->  | M100: 0 | N100: 0 | O100: 0 | P100: 0 | R100: =IF(ISTEXT(A100),VLOOKUP(A100,Tabell203[],4,FALSE),0) -> 0 | S100: =IF(ISTEXT(A100),VLOOKUP(A100,Tabell203[],6,FALSE),0) -> 0 | T100: =IF(ISTEXT(A100),VLOOKUP(A100,Tabell203[],5,FALSE),0) -> 0 | U100: =IF(ISTEXT(A100),VLOOKUP(A100,Tabell203[],8,FALSE),0) -> 0 | V100: =IF(ISTEXT(A100),VLOOKUP(A100,Tabell203[],9,FALSE),0) -> 0 | W100: =IF(ISTEXT(A100),IF(E100>0.000001,E100,VLOOKUP(A100,Tabell203[],2,FALSE)),0) -> 0 | X100: =IF($A100='2.1b Halm, odling grovfoder'!X$44,1,0) -> 0 | Y100: =IF($A100='2.1b Halm, odling grovfoder'!Y$44,1,0) -> 0 | Z100: =IF($A100='2.1b Halm, odling grovfoder'!Z$44,1,0) -> 0 | AA100: =IF($A100='2.1b Halm, odling grovfoder'!AA$44,1,0) -> 0 | AB100: =IF($A100='2.1b Halm, odling grovfoder'!AB$44,1,0) -> 0 | AC100: =IF($A100='2.1b Halm, odling grovfoder'!AC$44,1,0) -> 0 | AD100: =IF($A100='2.1b Halm, odling grovfoder'!AD$44,1,0) -> 0 | AE100: =IF($A100='2.1b Halm, odling grovfoder'!AE$44,1,0) -> 0 | AF100: =IF($A100='2.1b Halm, odling grovfoder'!AF$44,1,0) -> 0 | AG100: =IF(X100=1,VLOOKUP(H100,Tabell220[],2,FALSE),0) -> 0 | AH100: =IF(Y100=1,IF(OR(W100<'Teknisk administration'!$P$262,W100>'Teknisk administration'!$P$263),'Teknisk administration'!$Q$262*I100^2+'Teknisk administration'!$R$262*I100+'Teknisk administration'!$S$262,'Teknisk administration'!$Q$263*I100^2+'Teknisk administration'!$R$263*I100+'Teknisk administration'!$S$263),0) -> 0 | AI100: =IF(Z100=1,VLOOKUP(H100,Tabell214[],2,FALSE)*W100+VLOOKUP(H100,Tabell214[],3,FALSE),0) -> 0 | AJ100: =IF(AA100=1,VLOOKUP(H100,Tabell215[],2,FALSE)*W100+VLOOKUP(H100,Tabell215[],3,FALSE),0) -> 0 | AK100: =IF(AB100=1,VLOOKUP(H100,Tabell216[],2,FALSE)*W100,0) -> 0 | AL100: =IF(AC100=1,'Teknisk administration'!$AP$378,0) -> 0 | AM100: =IF(AD100=1,VLOOKUP($H100,Tabell217[],2,FALSE)*$W100,0) -> 0 | AN100: =IF(AE100=1,VLOOKUP($H100,Tabell29[],2,FALSE)*$W100,0) -> 0 | AO100: =IF(ISTEXT(A100),VLOOKUP(A100,Tabell203[],7,FALSE),0) -> 0 | AP100: 0 | AQ100: =IF(ISTEXT($A100),VLOOKUP($A100,Tabell203[],11,FALSE),0) -> 0 | AR100: =IF(ISTEXT($A100),VLOOKUP($A100,Tabell203[],12,FALSE),0) -> 0 | AS100: =IF(ISTEXT($A100),VLOOKUP($A100,Tabell203[],13,FALSE),0) -> 0 | AT100: =IF(ISTEXT($A100),VLOOKUP($A100,Tabell203[],14,FALSE),0) -> 0 | AU100: =IF(ISTEXT($A100),VLOOKUP($A100,Tabell203[],15,FALSE),0) -> 0 | AV100: =IF(ISTEXT($A100),VLOOKUP($A100,Tabell203[],16,FALSE),0) -> 0
F101: =IF(ISTEXT(A101),VLOOKUP(A101,Tabell203[],3,FALSE),"") ->  | L101: =IF(ISTEXT(A101),VLOOKUP(A101,Tabell203[],10,FALSE),"") ->  | M101: 0 | N101: 0 | O101: 0 | P101: 0 | R101: =IF(ISTEXT(A101),VLOOKUP(A101,Tabell203[],4,FALSE),0) -> 0 | S101: =IF(ISTEXT(A101),VLOOKUP(A101,Tabell203[],6,FALSE),0) -> 0 | T101: =IF(ISTEXT(A101),VLOOKUP(A101,Tabell203[],5,FALSE),0) -> 0 | U101: =IF(ISTEXT(A101),VLOOKUP(A101,Tabell203[],8,FALSE),0) -> 0 | V101: =IF(ISTEXT(A101),VLOOKUP(A101,Tabell203[],9,FALSE),0) -> 0 | W101: =IF(ISTEXT(A101),IF(E101>0.000001,E101,VLOOKUP(A101,Tabell203[],2,FALSE)),0) -> 0 | X101: =IF($A101='2.1b Halm, odling grovfoder'!X$44,1,0) -> 0 | Y101: =IF($A101='2.1b Halm, odling grovfoder'!Y$44,1,0) -> 0 | Z101: =IF($A101='2.1b Halm, odling grovfoder'!Z$44,1,0) -> 0 | AA101: =IF($A101='2.1b Halm, odling grovfoder'!AA$44,1,0) -> 0 | AB101: =IF($A101='2.1b Halm, odling grovfoder'!AB$44,1,0) -> 0 | AC101: =IF($A101='2.1b Halm, odling grovfoder'!AC$44,1,0) -> 0 | AD101: =IF($A101='2.1b Halm, odling grovfoder'!AD$44,1,0) -> 0 | AE101: =IF($A101='2.1b Halm, odling grovfoder'!AE$44,1,0) -> 0 | AF101: =IF($A101='2.1b Halm, odling grovfoder'!AF$44,1,0) -> 0 | AG101: =IF(X101=1,VLOOKUP(H101,Tabell220[],2,FALSE),0) -> 0 | AH101: =IF(Y101=1,IF(OR(W101<'Teknisk administration'!$P$262,W101>'Teknisk administration'!$P$263),'Teknisk administration'!$Q$262*I101^2+'Teknisk administration'!$R$262*I101+'Teknisk administration'!$S$262,'Teknisk administration'!$Q$263*I101^2+'Teknisk administration'!$R$263*I101+'Teknisk administration'!$S$263),0) -> 0 | AI101: =IF(Z101=1,VLOOKUP(H101,Tabell214[],2,FALSE)*W101+VLOOKUP(H101,Tabell214[],3,FALSE),0) -> 0 | AJ101: =IF(AA101=1,VLOOKUP(H101,Tabell215[],2,FALSE)*W101+VLOOKUP(H101,Tabell215[],3,FALSE),0) -> 0 | AK101: =IF(AB101=1,VLOOKUP(H101,Tabell216[],2,FALSE)*W101,0) -> 0 | AL101: =IF(AC101=1,'Teknisk administration'!$AP$378,0) -> 0 | AM101: =IF(AD101=1,VLOOKUP($H101,Tabell217[],2,FALSE)*$W101,0) -> 0 | AN101: =IF(AE101=1,VLOOKUP($H101,Tabell29[],2,FALSE)*$W101,0) -> 0 | AO101: =IF(ISTEXT(A101),VLOOKUP(A101,Tabell203[],7,FALSE),0) -> 0 | AP101: 0 | AQ101: =IF(ISTEXT($A101),VLOOKUP($A101,Tabell203[],11,FALSE),0) -> 0 | AR101: =IF(ISTEXT($A101),VLOOKUP($A101,Tabell203[],12,FALSE),0) -> 0 | AS101: =IF(ISTEXT($A101),VLOOKUP($A101,Tabell203[],13,FALSE),0) -> 0 | AT101: =IF(ISTEXT($A101),VLOOKUP($A101,Tabell203[],14,FALSE),0) -> 0 | AU101: =IF(ISTEXT($A101),VLOOKUP($A101,Tabell203[],15,FALSE),0) -> 0 | AV101: =IF(ISTEXT($A101),VLOOKUP($A101,Tabell203[],16,FALSE),0) -> 0
F102: =IF(ISTEXT(A102),VLOOKUP(A102,Tabell203[],3,FALSE),"") ->  | L102: =IF(ISTEXT(A102),VLOOKUP(A102,Tabell203[],10,FALSE),"") ->  | M102: 0 | N102: 0 | O102: 0 | P102: 0 | R102: =IF(ISTEXT(A102),VLOOKUP(A102,Tabell203[],4,FALSE),0) -> 0 | S102: =IF(ISTEXT(A102),VLOOKUP(A102,Tabell203[],6,FALSE),0) -> 0 | T102: =IF(ISTEXT(A102),VLOOKUP(A102,Tabell203[],5,FALSE),0) -> 0 | U102: =IF(ISTEXT(A102),VLOOKUP(A102,Tabell203[],8,FALSE),0) -> 0 | V102: =IF(ISTEXT(A102),VLOOKUP(A102,Tabell203[],9,FALSE),0) -> 0 | W102: =IF(ISTEXT(A102),IF(E102>0.000001,E102,VLOOKUP(A102,Tabell203[],2,FALSE)),0) -> 0 | X102: =IF($A102='2.1b Halm, odling grovfoder'!X$44,1,0) -> 0 | Y102: =IF($A102='2.1b Halm, odling grovfoder'!Y$44,1,0) -> 0 | Z102: =IF($A102='2.1b Halm, odling grovfoder'!Z$44,1,0) -> 0 | AA102: =IF($A102='2.1b Halm, odling grovfoder'!AA$44,1,0) -> 0 | AB102: =IF($A102='2.1b Halm, odling grovfoder'!AB$44,1,0) -> 0 | AC102: =IF($A102='2.1b Halm, odling grovfoder'!AC$44,1,0) -> 0 | AD102: =IF($A102='2.1b Halm, odling grovfoder'!AD$44,1,0) -> 0 | AE102: =IF($A102='2.1b Halm, odling grovfoder'!AE$44,1,0) -> 0 | AF102: =IF($A102='2.1b Halm, odling grovfoder'!AF$44,1,0) -> 0 | AG102: =IF(X102=1,VLOOKUP(H102,Tabell220[],2,FALSE),0) -> 0 | AH102: =IF(Y102=1,IF(OR(W102<'Teknisk administration'!$P$262,W102>'Teknisk administration'!$P$263),'Teknisk administration'!$Q$262*I102^2+'Teknisk administration'!$R$262*I102+'Teknisk administration'!$S$262,'Teknisk administration'!$Q$263*I102^2+'Teknisk administration'!$R$263*I102+'Teknisk administration'!$S$263),0) -> 0 | AI102: =IF(Z102=1,VLOOKUP(H102,Tabell214[],2,FALSE)*W102+VLOOKUP(H102,Tabell214[],3,FALSE),0) -> 0 | AJ102: =IF(AA102=1,VLOOKUP(H102,Tabell215[],2,FALSE)*W102+VLOOKUP(H102,Tabell215[],3,FALSE),0) -> 0 | AK102: =IF(AB102=1,VLOOKUP(H102,Tabell216[],2,FALSE)*W102,0) -> 0 | AL102: =IF(AC102=1,'Teknisk administration'!$AP$378,0) -> 0 | AM102: =IF(AD102=1,VLOOKUP($H102,Tabell217[],2,FALSE)*$W102,0) -> 0 | AN102: =IF(AE102=1,VLOOKUP($H102,Tabell29[],2,FALSE)*$W102,0) -> 0 | AO102: =IF(ISTEXT(A102),VLOOKUP(A102,Tabell203[],7,FALSE),0) -> 0 | AP102: 0 | AQ102: =IF(ISTEXT($A102),VLOOKUP($A102,Tabell203[],11,FALSE),0) -> 0 | AR102: =IF(ISTEXT($A102),VLOOKUP($A102,Tabell203[],12,FALSE),0) -> 0 | AS102: =IF(ISTEXT($A102),VLOOKUP($A102,Tabell203[],13,FALSE),0) -> 0 | AT102: =IF(ISTEXT($A102),VLOOKUP($A102,Tabell203[],14,FALSE),0) -> 0 | AU102: =IF(ISTEXT($A102),VLOOKUP($A102,Tabell203[],15,FALSE),0) -> 0 | AV102: =IF(ISTEXT($A102),VLOOKUP($A102,Tabell203[],16,FALSE),0) -> 0
F103: =IF(ISTEXT(A103),VLOOKUP(A103,Tabell203[],3,FALSE),"") ->  | L103: =IF(ISTEXT(A103),VLOOKUP(A103,Tabell203[],10,FALSE),"") ->  | M103: 0 | N103: 0 | O103: 0 | P103: 0 | R103: =IF(ISTEXT(A103),VLOOKUP(A103,Tabell203[],4,FALSE),0) -> 0 | S103: =IF(ISTEXT(A103),VLOOKUP(A103,Tabell203[],6,FALSE),0) -> 0 | T103: =IF(ISTEXT(A103),VLOOKUP(A103,Tabell203[],5,FALSE),0) -> 0 | U103: =IF(ISTEXT(A103),VLOOKUP(A103,Tabell203[],8,FALSE),0) -> 0 | V103: =IF(ISTEXT(A103),VLOOKUP(A103,Tabell203[],9,FALSE),0) -> 0 | W103: =IF(ISTEXT(A103),IF(E103>0.000001,E103,VLOOKUP(A103,Tabell203[],2,FALSE)),0) -> 0 | X103: =IF($A103='2.1b Halm, odling grovfoder'!X$44,1,0) -> 0 | Y103: =IF($A103='2.1b Halm, odling grovfoder'!Y$44,1,0) -> 0 | Z103: =IF($A103='2.1b Halm, odling grovfoder'!Z$44,1,0) -> 0 | AA103: =IF($A103='2.1b Halm, odling grovfoder'!AA$44,1,0) -> 0 | AB103: =IF($A103='2.1b Halm, odling grovfoder'!AB$44,1,0) -> 0 | AC103: =IF($A103='2.1b Halm, odling grovfoder'!AC$44,1,0) -> 0 | AD103: =IF($A103='2.1b Halm, odling grovfoder'!AD$44,1,0) -> 0 | AE103: =IF($A103='2.1b Halm, odling grovfoder'!AE$44,1,0) -> 0 | AF103: =IF($A103='2.1b Halm, odling grovfoder'!AF$44,1,0) -> 0 | AG103: =IF(X103=1,VLOOKUP(H103,Tabell220[],2,FALSE),0) -> 0 | AH103: =IF(Y103=1,IF(OR(W103<'Teknisk administration'!$P$262,W103>'Teknisk administration'!$P$263),'Teknisk administration'!$Q$262*I103^2+'Teknisk administration'!$R$262*I103+'Teknisk administration'!$S$262,'Teknisk administration'!$Q$263*I103^2+'Teknisk administration'!$R$263*I103+'Teknisk administration'!$S$263),0) -> 0 | AI103: =IF(Z103=1,VLOOKUP(H103,Tabell214[],2,FALSE)*W103+VLOOKUP(H103,Tabell214[],3,FALSE),0) -> 0 | AJ103: =IF(AA103=1,VLOOKUP(H103,Tabell215[],2,FALSE)*W103+VLOOKUP(H103,Tabell215[],3,FALSE),0) -> 0 | AK103: =IF(AB103=1,VLOOKUP(H103,Tabell216[],2,FALSE)*W103,0) -> 0 | AL103: =IF(AC103=1,'Teknisk administration'!$AP$378,0) -> 0 | AM103: =IF(AD103=1,VLOOKUP($H103,Tabell217[],2,FALSE)*$W103,0) -> 0 | AN103: =IF(AE103=1,VLOOKUP($H103,Tabell29[],2,FALSE)*$W103,0) -> 0 | AO103: =IF(ISTEXT(A103),VLOOKUP(A103,Tabell203[],7,FALSE),0) -> 0 | AP103: 0 | AQ103: =IF(ISTEXT($A103),VLOOKUP($A103,Tabell203[],11,FALSE),0) -> 0 | AR103: =IF(ISTEXT($A103),VLOOKUP($A103,Tabell203[],12,FALSE),0) -> 0 | AS103: =IF(ISTEXT($A103),VLOOKUP($A103,Tabell203[],13,FALSE),0) -> 0 | AT103: =IF(ISTEXT($A103),VLOOKUP($A103,Tabell203[],14,FALSE),0) -> 0 | AU103: =IF(ISTEXT($A103),VLOOKUP($A103,Tabell203[],15,FALSE),0) -> 0 | AV103: =IF(ISTEXT($A103),VLOOKUP($A103,Tabell203[],16,FALSE),0) -> 0
L104: Totalt mängd inlagt eller direkttfodrat | M104: =SUM(M92:M103) -> 0 | O104: =SUM(O92:O103) -> 0 | P104: =SUM(P92:P103) -> 0 | Z104: =IF(SUMPRODUCT(Z92:Z103,$G92:$G103)=0,0,SUMPRODUCT($O92:$O103,Z92:Z103)/SUMPRODUCT(Z92:Z103,$G92:$G103)) -> 0 | AA104: =IF(SUMPRODUCT(AA92:AA103,$G92:$G103)=0,0,SUMPRODUCT($O92:$O103,AA92:AA103)/SUMPRODUCT(AA92:AA103,$G92:$G103)) -> 0
A109: =period_3 -> Period 3
A110: Mängd vallfoder, direktutfodrad grönmassa och halm
A111: Skördemängden kan anges med två olika alternativ:
A112: 1. Fyll i färdigt värde om du mätt skörden som lagts in (kg och ts).
A113: 2. Uppskatta mängden (kg och ts) genom att beräkna volymen inlagt grovfoder och direktutfodrad grönmassa.
A114: Du kan ha en kombination av alternativ under en och samma period, t ex om du inte vägt mängden vid varje skörd.
A115: Börja med att välja typ av system (plansilo, rundbal, halm etc. i den vänstraste kolumnen. Då tänds de celler du ska skriva siffror i (gula celler) eller där du ska välja ur en lista (orange celler). Övriga celler i lämnar du tomma.
A116: När det gäller energi i fodret kan du antingen välja ur lista (orange cell) eller skriva in ett eget värde (ljusgul cell)
A117: Du kan lägga in flera rader med samma system, t ex om du vill särkilja 1:a 2:a och 3:e skörd eller vill räkna separat för olika skriften. Om du hellre vill det kan du lägga allt på en rad.
A120: Alternativ 1. Har vägt skörden och har ts-analys | W120: TS-halt
A121: Mängden ts och MJ beräknas först när MJ/kg ts, ts-halt och kg grönmassa fyllts i. | AQ121: Gruppering av system
C122: Energi - välj ur lista eller skriv eget värde | E122: TS-halt (%) | G122: Mängd | H122: Beräknad mängd foder | AQ122: Plansilo | AR122: Torn | AS122: Storbalar (rund- och fyrkantsbalar) | AT122: Hö | AU122: Direktutfodrad grönmassa | AV122: Halm till foder
A123: System - välj alternativ ur listan! | B123: Egen kommentar | C123: Välj ur lista | D123: Eget värde (MJ/kg ts) | E123: % ts | F123: Förklaring | G123: kg grönmassa | H123: kg ts | I123: MJ | Q123: Kolumn8 | R123: Kolumn9 | S123: Kolumn10 | T123: Kolumn11 | U123: Kolumn12 | V123: 2 | W123: TS-halt | X123: Kolumn15 | Y123: Kolumn16 | Z123: Kolumn17 | AA123: Kolumn18 | AB123: Kolumn19 | AC123: Kolumn20 | AD123: Kolumn21 | AE123: Kolumn22 | AF123: Kolumn23 | AG123: Kolumn24 | AH123: Kolumn25 | AI123: Kolumn26 | AJ123: Kolumn27 | AK123: Kolumn28 | AL123: Kolumn29 | AM123: Kolumn30 | AN123: Kolumn31 | AO123: Kolumn32 | AP123: MJ/kg ts | AQ123: Plansilo12 | AR123: Torn13 | AS123: Storbalar (rund- och fyrkantsbalar) | AT123: Hö14 | AU123: Direktutfodrad grönmassa15 | AV123: Halm
F124: =IF(ISTEXT(A124),VLOOKUP(A124,Tabell203[],3,FALSE),"") ->  | H124: =W124*G124 -> 0 | I124: =H124*IF(D124>0,D124,IF(AND(ISTEXT(A124),(OR(ISTEXT(C124),ISNUMBER(D124)))),IF(D124>0,D140,VLOOKUP(C124,INDIRECT(A124),2,FALSE)),0)) -> 0 | W124: =IF(ISTEXT(A124),IF(E124>0.000001,E124,VLOOKUP(A124,Tabell203[],2,FALSE)),0) -> 0 | AP124: =IF(AND(ISTEXT(A124),(OR(ISTEXT(C124),ISNUMBER(D124)))),IF(D124>0,D124,VLOOKUP(C124,INDIRECT(A124),2,FALSE)),0) -> 0 | AQ124: =IF(ISTEXT($A124),VLOOKUP($A124,Tabell203[],11,FALSE),0) -> 0 | AR124: =IF(ISTEXT($A124),VLOOKUP($A124,Tabell203[],12,FALSE),0) -> 0 | AS124: =IF(ISTEXT($A124),VLOOKUP($A124,Tabell203[],13,FALSE),0) -> 0 | AT124: =IF(ISTEXT($A124),VLOOKUP($A124,Tabell203[],14,FALSE),0) -> 0 | AU124: =IF(ISTEXT($A124),VLOOKUP($A124,Tabell203[],15,FALSE),0) -> 0 | AV124: =IF(ISTEXT($A124),VLOOKUP($A124,Tabell203[],16,FALSE),0) -> 0
F125: =IF(ISTEXT(A125),VLOOKUP(A125,Tabell203[],3,FALSE),"") ->  | H125: 0 | I125: 0 | W125: =IF(ISTEXT(A125),IF(E125>0.000001,E125,VLOOKUP(A125,Tabell203[],2,FALSE)),0) -> 0 | AP125: 0 | AQ125: =IF(ISTEXT($A125),VLOOKUP($A125,Tabell203[],11,FALSE),0) -> 0 | AR125: =IF(ISTEXT($A125),VLOOKUP($A125,Tabell203[],12,FALSE),0) -> 0 | AS125: =IF(ISTEXT($A125),VLOOKUP($A125,Tabell203[],13,FALSE),0) -> 0 | AT125: =IF(ISTEXT($A125),VLOOKUP($A125,Tabell203[],14,FALSE),0) -> 0 | AU125: =IF(ISTEXT($A125),VLOOKUP($A125,Tabell203[],15,FALSE),0) -> 0 | AV125: =IF(ISTEXT($A125),VLOOKUP($A125,Tabell203[],16,FALSE),0) -> 0
F126: =IF(ISTEXT(A126),VLOOKUP(A126,Tabell203[],3,FALSE),"") ->  | H126: 0 | I126: 0 | W126: =IF(ISTEXT(A126),IF(E126>0.000001,E126,VLOOKUP(A126,Tabell203[],2,FALSE)),0) -> 0 | AP126: 0 | AQ126: =IF(ISTEXT($A126),VLOOKUP($A126,Tabell203[],11,FALSE),0) -> 0 | AR126: =IF(ISTEXT($A126),VLOOKUP($A126,Tabell203[],12,FALSE),0) -> 0 | AS126: =IF(ISTEXT($A126),VLOOKUP($A126,Tabell203[],13,FALSE),0) -> 0 | AT126: =IF(ISTEXT($A126),VLOOKUP($A126,Tabell203[],14,FALSE),0) -> 0 | AU126: =IF(ISTEXT($A126),VLOOKUP($A126,Tabell203[],15,FALSE),0) -> 0 | AV126: =IF(ISTEXT($A126),VLOOKUP($A126,Tabell203[],16,FALSE),0) -> 0
F127: =IF(ISTEXT(A127),VLOOKUP(A127,Tabell203[],3,FALSE),"") ->  | H127: 0 | I127: 0 | W127: =IF(ISTEXT(A127),IF(E127>0.000001,E127,VLOOKUP(A127,Tabell203[],2,FALSE)),0) -> 0 | AP127: 0 | AQ127: =IF(ISTEXT($A127),VLOOKUP($A127,Tabell203[],11,FALSE),0) -> 0 | AR127: =IF(ISTEXT($A127),VLOOKUP($A127,Tabell203[],12,FALSE),0) -> 0 | AS127: =IF(ISTEXT($A127),VLOOKUP($A127,Tabell203[],13,FALSE),0) -> 0 | AT127: =IF(ISTEXT($A127),VLOOKUP($A127,Tabell203[],14,FALSE),0) -> 0 | AU127: =IF(ISTEXT($A127),VLOOKUP($A127,Tabell203[],15,FALSE),0) -> 0 | AV127: =IF(ISTEXT($A127),VLOOKUP($A127,Tabell203[],16,FALSE),0) -> 0
F128: =IF(ISTEXT(A128),VLOOKUP(A128,Tabell203[],3,FALSE),"") ->  | H128: 0 | I128: 0 | W128: =IF(ISTEXT(A128),IF(E128>0.000001,E128,VLOOKUP(A128,Tabell203[],2,FALSE)),0) -> 0 | AP128: 0 | AQ128: =IF(ISTEXT($A128),VLOOKUP($A128,Tabell203[],11,FALSE),0) -> 0 | AR128: =IF(ISTEXT($A128),VLOOKUP($A128,Tabell203[],12,FALSE),0) -> 0 | AS128: =IF(ISTEXT($A128),VLOOKUP($A128,Tabell203[],13,FALSE),0) -> 0 | AT128: =IF(ISTEXT($A128),VLOOKUP($A128,Tabell203[],14,FALSE),0) -> 0 | AU128: =IF(ISTEXT($A128),VLOOKUP($A128,Tabell203[],15,FALSE),0) -> 0 | AV128: =IF(ISTEXT($A128),VLOOKUP($A128,Tabell203[],16,FALSE),0) -> 0
F129: =IF(ISTEXT(A129),VLOOKUP(A129,Tabell203[],3,FALSE),"") ->  | H129: 0 | I129: 0 | W129: =IF(ISTEXT(A129),IF(E129>0.000001,E129,VLOOKUP(A129,Tabell203[],2,FALSE)),0) -> 0 | AP129: 0 | AQ129: =IF(ISTEXT($A129),VLOOKUP($A129,Tabell203[],11,FALSE),0) -> 0 | AR129: =IF(ISTEXT($A129),VLOOKUP($A129,Tabell203[],12,FALSE),0) -> 0 | AS129: =IF(ISTEXT($A129),VLOOKUP($A129,Tabell203[],13,FALSE),0) -> 0 | AT129: =IF(ISTEXT($A129),VLOOKUP($A129,Tabell203[],14,FALSE),0) -> 0 | AU129: =IF(ISTEXT($A129),VLOOKUP($A129,Tabell203[],15,FALSE),0) -> 0 | AV129: =IF(ISTEXT($A129),VLOOKUP($A129,Tabell203[],16,FALSE),0) -> 0
F130: =IF(ISTEXT(A130),VLOOKUP(A130,Tabell203[],3,FALSE),"") ->  | H130: 0 | I130: 0 | W130: =IF(ISTEXT(A130),IF(E130>0.000001,E130,VLOOKUP(A130,Tabell203[],2,FALSE)),0) -> 0 | AP130: 0 | AQ130: =IF(ISTEXT($A130),VLOOKUP($A130,Tabell203[],11,FALSE),0) -> 0 | AR130: =IF(ISTEXT($A130),VLOOKUP($A130,Tabell203[],12,FALSE),0) -> 0 | AS130: =IF(ISTEXT($A130),VLOOKUP($A130,Tabell203[],13,FALSE),0) -> 0 | AT130: =IF(ISTEXT($A130),VLOOKUP($A130,Tabell203[],14,FALSE),0) -> 0 | AU130: =IF(ISTEXT($A130),VLOOKUP($A130,Tabell203[],15,FALSE),0) -> 0 | AV130: =IF(ISTEXT($A130),VLOOKUP($A130,Tabell203[],16,FALSE),0) -> 0
F131: =IF(ISTEXT(A131),VLOOKUP(A131,Tabell203[],3,FALSE),"") ->  | H131: 0 | I131: 0 | W131: =IF(ISTEXT(A131),IF(E131>0.000001,E131,VLOOKUP(A131,Tabell203[],2,FALSE)),0) -> 0 | AP131: 0 | AQ131: =IF(ISTEXT($A131),VLOOKUP($A131,Tabell203[],11,FALSE),0) -> 0 | AR131: =IF(ISTEXT($A131),VLOOKUP($A131,Tabell203[],12,FALSE),0) -> 0 | AS131: =IF(ISTEXT($A131),VLOOKUP($A131,Tabell203[],13,FALSE),0) -> 0 | AT131: =IF(ISTEXT($A131),VLOOKUP($A131,Tabell203[],14,FALSE),0) -> 0 | AU131: =IF(ISTEXT($A131),VLOOKUP($A131,Tabell203[],15,FALSE),0) -> 0 | AV131: =IF(ISTEXT($A131),VLOOKUP($A131,Tabell203[],16,FALSE),0) -> 0
A132: Totalt | H132: =SUM(H124:H131) -> 0 | I132: =SUM(I124:I131) -> 0
A136: Alternativ 2. Har inte vägt skörden, behöver räkna ut mängden skördat | R136: ska dölja
A137: Om det står "Saknas!" eller "0" under rubriken "Beräknad mängd foder" beror det på att någon uppgift saknas. Kontrollera då att du fyllt i alla gula celler på raden samt valt något i alla orange celler på raden | R137: Beskrivning av systemet | W137: TS-halt | X137: Vilket system? 1=ja, 0=nej | AG137: Volymvikt (kg ts/m3) | AP137: Energi | AQ137: Gruppering av system
C138: Energi - välj ur lista eller skriv eget värde | E138: TS-halt (%) | G138: Antal balar | H138: Teknik | I138: Lagrets respektive balarnas storlek | M138: Beräknad mängd foder | X138: Plansilo | Y138: Torn | Z138: Rundbalar | AA138: Fyrkantsbalar | AB138: Hö | AC138: Grönfoder | AD138: Halm | AE138: Fyrkantsbalar_hö | AF138: ='Teknisk administration'!$B$400 -> 0 | AG138: =X138 -> Plansilo | AH138: Torn | AI138: Rundbalar | AJ138: Fyrkantsbalar | AK138: Hö | AL138: Grönfoder | AM138: Halm | AN138: Fyrkantsbalar_hö | AO138: 0 | AP138: MJ/kg ts | AQ138: Plansilo | AR138: Torn | AS138: Storbalar (rund- och fyrkantsbalar) | AT138: Hö | AU138: Direktutfodrad | AV138: Halm till foder
A139: System - välj alternativ ur listan! | B139: Egen kommentar | C139: Välj ur lista | D139: Eget värde (MJ/kg ts) | E139: % ts | F139: Förklaring | G139: stycken | H139: välj ur listan i orange celler! | I139: Höjd (m) | J139: Bredd (m) | K139: Längd (m) | L139: Förklaring för volymberäkning | M139: Volym (m3) | N139: Volymvikt (kg ts/m3) | O139: Mängd (kg ts) | P139: Mängd (MJ) | Q139: m3 | R139: Antal | S139: Mängd per lass | T139: Teknik | U139: rätblock | V139: cylinder | W139: TS-halt | X139: Plansilo | Y139: Torn | Z139: Rundbalar | AA139: Fyrkantsbalar | AB139: Hö | AC139: Grönfoder | AD139: Halm | AE139: Fyrkantsbalar_hö | AF139: tom | AG139: Plansilo3 | AH139: Torn4 | AI139: Rundbalar5 | AJ139: Fyrkantsbalar6 | AK139: Hö7 | AL139: Direktutfodrat | AM139: Kolumn1 | AN139: Fyrkantsbalar_hö2 | AO139: Visa ts? | AP139: MJ/kg ts | AQ139: Plansilo12 | AR139: Torn13 | AS139: Storbalar (rund- och fyrkantsbalar) | AT139: Hö14 | AU139: Direktutfodrad | AV139: Halm2
F140: =IF(ISTEXT(A140),VLOOKUP(A140,Tabell203[],3,FALSE),"") ->  | L140: =IF(ISTEXT(A140),VLOOKUP(A140,Tabell203[],10,FALSE),"") ->  | M140: =IF(ISTEXT(A140),IF(U140=1,I140*J140*K140,IF(V140=1,I140*(J140/2)^2*PI(),1))*IF(R140=1,G140,1)*IF(S140=1,Q140,1),0) -> 0 | N140: =SUM(AG140:AN140) -> 0 | O140: =M140*N140 -> 0 | P140: =O140*AP140 -> 0 | R140: =IF(ISTEXT(A140),VLOOKUP(A140,Tabell203[],4,FALSE),0) -> 0 | S140: =IF(ISTEXT(A140),VLOOKUP(A140,Tabell203[],6,FALSE),0) -> 0 | T140: =IF(ISTEXT(A140),VLOOKUP(A140,Tabell203[],5,FALSE),0) -> 0 | U140: =IF(ISTEXT(A140),VLOOKUP(A140,Tabell203[],8,FALSE),0) -> 0 | V140: =IF(ISTEXT(A140),VLOOKUP(A140,Tabell203[],9,FALSE),0) -> 0 | W140: =IF(ISTEXT(A140),IF(E140>0.000001,E140,VLOOKUP(A140,Tabell203[],2,FALSE)),0) -> 0 | X140: =IF($A140='2.1b Halm, odling grovfoder'!X$44,1,0) -> 0 | Y140: =IF($A140='2.1b Halm, odling grovfoder'!Y$44,1,0) -> 0 | Z140: =IF($A140='2.1b Halm, odling grovfoder'!Z$44,1,0) -> 0 | AA140: =IF($A140='2.1b Halm, odling grovfoder'!AA$44,1,0) -> 0 | AB140: =IF($A140='2.1b Halm, odling grovfoder'!AB$44,1,0) -> 0 | AC140: =IF($A140='2.1b Halm, odling grovfoder'!AC$44,1,0) -> 0 | AD140: =IF($A140='2.1b Halm, odling grovfoder'!AD$44,1,0) -> 0 | AE140: =IF($A140='2.1b Halm, odling grovfoder'!AE$44,1,0) -> 0 | AF140: =IF($A140='2.1b Halm, odling grovfoder'!AF$44,1,0) -> 0 | AG140: =IF(X140=1,VLOOKUP(H140,Tabell220[],2,FALSE),0) -> 0 | AH140: =IF(Y140=1,IF(OR(W140<'Teknisk administration'!$P$262,W140>'Teknisk administration'!$P$263),'Teknisk administration'!$Q$262*I140^2+'Teknisk administration'!$R$262*I140+'Teknisk administration'!$S$262,'Teknisk administration'!$Q$263*I140^2+'Teknisk administration'!$R$263*I140+'Teknisk administration'!$S$263),0) -> 0 | AI140: =IF(Z140=1,VLOOKUP(H140,Tabell214[],2,FALSE)*W140+VLOOKUP(H140,Tabell214[],3,FALSE),0) -> 0 | AJ140: =IF(AA140=1,VLOOKUP(H140,Tabell215[],2,FALSE)*W140+VLOOKUP(H140,Tabell215[],3,FALSE),0) -> 0 | AK140: =IF(AB140=1,VLOOKUP(H140,Tabell216[],2,FALSE)*W140,0) -> 0 | AL140: =IF(AC140=1,'Teknisk administration'!$AP$378,0) -> 0 | AM140: =IF(AD140=1,VLOOKUP($H140,Tabell217[],2,FALSE)*$W140,0) -> 0 | AN140: =IF(AE140=1,VLOOKUP($H140,Tabell29[],2,FALSE)*$W140,0) -> 0 | AO140: =IF(ISTEXT(A140),VLOOKUP(A140,Tabell203[],7,FALSE),0) -> 0 | AP140: =IF(AND(ISTEXT(A140),(OR(ISTEXT(C140),ISNUMBER(D140)))),IF(D140>0,D140,VLOOKUP(C140,INDIRECT(A140),2,FALSE)),0) -> 0 | AQ140: =IF(ISTEXT($A140),VLOOKUP($A140,Tabell203[],11,FALSE),0) -> 0 | AR140: =IF(ISTEXT($A140),VLOOKUP($A140,Tabell203[],12,FALSE),0) -> 0 | AS140: =IF(ISTEXT($A140),VLOOKUP($A140,Tabell203[],13,FALSE),0) -> 0 | AT140: =IF(ISTEXT($A140),VLOOKUP($A140,Tabell203[],14,FALSE),0) -> 0 | AU140: =IF(ISTEXT($A140),VLOOKUP($A140,Tabell203[],15,FALSE),0) -> 0 | AV140: =IF(ISTEXT($A140),VLOOKUP($A140,Tabell203[],16,FALSE),0) -> 0
F141: =IF(ISTEXT(A141),VLOOKUP(A141,Tabell203[],3,FALSE),"") ->  | L141: =IF(ISTEXT(A141),VLOOKUP(A141,Tabell203[],10,FALSE),"") ->  | M141: 0 | N141: 0 | O141: 0 | P141: 0 | R141: =IF(ISTEXT(A141),VLOOKUP(A141,Tabell203[],4,FALSE),0) -> 0 | S141: =IF(ISTEXT(A141),VLOOKUP(A141,Tabell203[],6,FALSE),0) -> 0 | T141: =IF(ISTEXT(A141),VLOOKUP(A141,Tabell203[],5,FALSE),0) -> 0 | U141: =IF(ISTEXT(A141),VLOOKUP(A141,Tabell203[],8,FALSE),0) -> 0 | V141: =IF(ISTEXT(A141),VLOOKUP(A141,Tabell203[],9,FALSE),0) -> 0 | W141: =IF(ISTEXT(A141),IF(E141>0.000001,E141,VLOOKUP(A141,Tabell203[],2,FALSE)),0) -> 0 | X141: =IF($A141='2.1b Halm, odling grovfoder'!X$44,1,0) -> 0 | Y141: =IF($A141='2.1b Halm, odling grovfoder'!Y$44,1,0) -> 0 | Z141: =IF($A141='2.1b Halm, odling grovfoder'!Z$44,1,0) -> 0 | AA141: =IF($A141='2.1b Halm, odling grovfoder'!AA$44,1,0) -> 0 | AB141: =IF($A141='2.1b Halm, odling grovfoder'!AB$44,1,0) -> 0 | AC141: =IF($A141='2.1b Halm, odling grovfoder'!AC$44,1,0) -> 0 | AD141: =IF($A141='2.1b Halm, odling grovfoder'!AD$44,1,0) -> 0 | AE141: =IF($A141='2.1b Halm, odling grovfoder'!AE$44,1,0) -> 0 | AF141: =IF($A141='2.1b Halm, odling grovfoder'!AF$44,1,0) -> 0 | AG141: =IF(X141=1,VLOOKUP(H141,Tabell220[],2,FALSE),0) -> 0 | AH141: =IF(Y141=1,IF(OR(W141<'Teknisk administration'!$P$262,W141>'Teknisk administration'!$P$263),'Teknisk administration'!$Q$262*I141^2+'Teknisk administration'!$R$262*I141+'Teknisk administration'!$S$262,'Teknisk administration'!$Q$263*I141^2+'Teknisk administration'!$R$263*I141+'Teknisk administration'!$S$263),0) -> 0 | AI141: =IF(Z141=1,VLOOKUP(H141,Tabell214[],2,FALSE)*W141+VLOOKUP(H141,Tabell214[],3,FALSE),0) -> 0 | AJ141: =IF(AA141=1,VLOOKUP(H141,Tabell215[],2,FALSE)*W141+VLOOKUP(H141,Tabell215[],3,FALSE),0) -> 0 | AK141: =IF(AB141=1,VLOOKUP(H141,Tabell216[],2,FALSE)*W141,0) -> 0 | AL141: =IF(AC141=1,'Teknisk administration'!$AP$378,0) -> 0 | AM141: =IF(AD141=1,VLOOKUP($H141,Tabell217[],2,FALSE)*$W141,0) -> 0 | AN141: =IF(AE141=1,VLOOKUP($H141,Tabell29[],2,FALSE)*$W141,0) -> 0 | AO141: =IF(ISTEXT(A141),VLOOKUP(A141,Tabell203[],7,FALSE),0) -> 0 | AP141: 0 | AQ141: =IF(ISTEXT($A141),VLOOKUP($A141,Tabell203[],11,FALSE),0) -> 0 | AR141: =IF(ISTEXT($A141),VLOOKUP($A141,Tabell203[],12,FALSE),0) -> 0 | AS141: =IF(ISTEXT($A141),VLOOKUP($A141,Tabell203[],13,FALSE),0) -> 0 | AT141: =IF(ISTEXT($A141),VLOOKUP($A141,Tabell203[],14,FALSE),0) -> 0 | AU141: =IF(ISTEXT($A141),VLOOKUP($A141,Tabell203[],15,FALSE),0) -> 0 | AV141: =IF(ISTEXT($A141),VLOOKUP($A141,Tabell203[],16,FALSE),0) -> 0
F142: =IF(ISTEXT(A142),VLOOKUP(A142,Tabell203[],3,FALSE),"") ->  | L142: =IF(ISTEXT(A142),VLOOKUP(A142,Tabell203[],10,FALSE),"") ->  | M142: 0 | N142: 0 | O142: 0 | P142: 0 | R142: =IF(ISTEXT(A142),VLOOKUP(A142,Tabell203[],4,FALSE),0) -> 0 | S142: =IF(ISTEXT(A142),VLOOKUP(A142,Tabell203[],6,FALSE),0) -> 0 | T142: =IF(ISTEXT(A142),VLOOKUP(A142,Tabell203[],5,FALSE),0) -> 0 | U142: =IF(ISTEXT(A142),VLOOKUP(A142,Tabell203[],8,FALSE),0) -> 0 | V142: =IF(ISTEXT(A142),VLOOKUP(A142,Tabell203[],9,FALSE),0) -> 0 | W142: =IF(ISTEXT(A142),IF(E142>0.000001,E142,VLOOKUP(A142,Tabell203[],2,FALSE)),0) -> 0 | X142: =IF($A142='2.1b Halm, odling grovfoder'!X$44,1,0) -> 0 | Y142: =IF($A142='2.1b Halm, odling grovfoder'!Y$44,1,0) -> 0 | Z142: =IF($A142='2.1b Halm, odling grovfoder'!Z$44,1,0) -> 0 | AA142: =IF($A142='2.1b Halm, odling grovfoder'!AA$44,1,0) -> 0 | AB142: =IF($A142='2.1b Halm, odling grovfoder'!AB$44,1,0) -> 0 | AC142: =IF($A142='2.1b Halm, odling grovfoder'!AC$44,1,0) -> 0 | AD142: =IF($A142='2.1b Halm, odling grovfoder'!AD$44,1,0) -> 0 | AE142: =IF($A142='2.1b Halm, odling grovfoder'!AE$44,1,0) -> 0 | AF142: =IF($A142='2.1b Halm, odling grovfoder'!AF$44,1,0) -> 0 | AG142: =IF(X142=1,VLOOKUP(H142,Tabell220[],2,FALSE),0) -> 0 | AH142: =IF(Y142=1,IF(OR(W142<'Teknisk administration'!$P$262,W142>'Teknisk administration'!$P$263),'Teknisk administration'!$Q$262*I142^2+'Teknisk administration'!$R$262*I142+'Teknisk administration'!$S$262,'Teknisk administration'!$Q$263*I142^2+'Teknisk administration'!$R$263*I142+'Teknisk administration'!$S$263),0) -> 0 | AI142: =IF(Z142=1,VLOOKUP(H142,Tabell214[],2,FALSE)*W142+VLOOKUP(H142,Tabell214[],3,FALSE),0) -> 0 | AJ142: =IF(AA142=1,VLOOKUP(H142,Tabell215[],2,FALSE)*W142+VLOOKUP(H142,Tabell215[],3,FALSE),0) -> 0 | AK142: =IF(AB142=1,VLOOKUP(H142,Tabell216[],2,FALSE)*W142,0) -> 0 | AL142: =IF(AC142=1,'Teknisk administration'!$AP$378,0) -> 0 | AM142: =IF(AD142=1,VLOOKUP($H142,Tabell217[],2,FALSE)*$W142,0) -> 0 | AN142: =IF(AE142=1,VLOOKUP($H142,Tabell29[],2,FALSE)*$W142,0) -> 0 | AO142: =IF(ISTEXT(A142),VLOOKUP(A142,Tabell203[],7,FALSE),0) -> 0 | AP142: 0 | AQ142: =IF(ISTEXT($A142),VLOOKUP($A142,Tabell203[],11,FALSE),0) -> 0 | AR142: =IF(ISTEXT($A142),VLOOKUP($A142,Tabell203[],12,FALSE),0) -> 0 | AS142: =IF(ISTEXT($A142),VLOOKUP($A142,Tabell203[],13,FALSE),0) -> 0 | AT142: =IF(ISTEXT($A142),VLOOKUP($A142,Tabell203[],14,FALSE),0) -> 0 | AU142: =IF(ISTEXT($A142),VLOOKUP($A142,Tabell203[],15,FALSE),0) -> 0 | AV142: =IF(ISTEXT($A142),VLOOKUP($A142,Tabell203[],16,FALSE),0) -> 0
F143: =IF(ISTEXT(A143),VLOOKUP(A143,Tabell203[],3,FALSE),"") ->  | L143: =IF(ISTEXT(A143),VLOOKUP(A143,Tabell203[],10,FALSE),"") ->  | M143: 0 | N143: 0 | O143: 0 | P143: 0 | R143: =IF(ISTEXT(A143),VLOOKUP(A143,Tabell203[],4,FALSE),0) -> 0 | S143: =IF(ISTEXT(A143),VLOOKUP(A143,Tabell203[],6,FALSE),0) -> 0 | T143: =IF(ISTEXT(A143),VLOOKUP(A143,Tabell203[],5,FALSE),0) -> 0 | U143: =IF(ISTEXT(A143),VLOOKUP(A143,Tabell203[],8,FALSE),0) -> 0 | V143: =IF(ISTEXT(A143),VLOOKUP(A143,Tabell203[],9,FALSE),0) -> 0 | W143: =IF(ISTEXT(A143),IF(E143>0.000001,E143,VLOOKUP(A143,Tabell203[],2,FALSE)),0) -> 0 | X143: =IF($A143='2.1b Halm, odling grovfoder'!X$44,1,0) -> 0 | Y143: =IF($A143='2.1b Halm, odling grovfoder'!Y$44,1,0) -> 0 | Z143: =IF($A143='2.1b Halm, odling grovfoder'!Z$44,1,0) -> 0 | AA143: =IF($A143='2.1b Halm, odling grovfoder'!AA$44,1,0) -> 0 | AB143: =IF($A143='2.1b Halm, odling grovfoder'!AB$44,1,0) -> 0 | AC143: =IF($A143='2.1b Halm, odling grovfoder'!AC$44,1,0) -> 0 | AD143: =IF($A143='2.1b Halm, odling grovfoder'!AD$44,1,0) -> 0 | AE143: =IF($A143='2.1b Halm, odling grovfoder'!AE$44,1,0) -> 0 | AF143: =IF($A143='2.1b Halm, odling grovfoder'!AF$44,1,0) -> 0 | AG143: =IF(X143=1,VLOOKUP(H143,Tabell220[],2,FALSE),0) -> 0 | AH143: =IF(Y143=1,IF(OR(W143<'Teknisk administration'!$P$262,W143>'Teknisk administration'!$P$263),'Teknisk administration'!$Q$262*I143^2+'Teknisk administration'!$R$262*I143+'Teknisk administration'!$S$262,'Teknisk administration'!$Q$263*I143^2+'Teknisk administration'!$R$263*I143+'Teknisk administration'!$S$263),0) -> 0 | AI143: =IF(Z143=1,VLOOKUP(H143,Tabell214[],2,FALSE)*W143+VLOOKUP(H143,Tabell214[],3,FALSE),0) -> 0 | AJ143: =IF(AA143=1,VLOOKUP(H143,Tabell215[],2,FALSE)*W143+VLOOKUP(H143,Tabell215[],3,FALSE),0) -> 0 | AK143: =IF(AB143=1,VLOOKUP(H143,Tabell216[],2,FALSE)*W143,0) -> 0 | AL143: =IF(AC143=1,'Teknisk administration'!$AP$378,0) -> 0 | AM143: =IF(AD143=1,VLOOKUP($H143,Tabell217[],2,FALSE)*$W143,0) -> 0 | AN143: =IF(AE143=1,VLOOKUP($H143,Tabell29[],2,FALSE)*$W143,0) -> 0 | AO143: =IF(ISTEXT(A143),VLOOKUP(A143,Tabell203[],7,FALSE),0) -> 0 | AP143: 0 | AQ143: =IF(ISTEXT($A143),VLOOKUP($A143,Tabell203[],11,FALSE),0) -> 0 | AR143: =IF(ISTEXT($A143),VLOOKUP($A143,Tabell203[],12,FALSE),0) -> 0 | AS143: =IF(ISTEXT($A143),VLOOKUP($A143,Tabell203[],13,FALSE),0) -> 0 | AT143: =IF(ISTEXT($A143),VLOOKUP($A143,Tabell203[],14,FALSE),0) -> 0 | AU143: =IF(ISTEXT($A143),VLOOKUP($A143,Tabell203[],15,FALSE),0) -> 0 | AV143: =IF(ISTEXT($A143),VLOOKUP($A143,Tabell203[],16,FALSE),0) -> 0
F144: =IF(ISTEXT(A144),VLOOKUP(A144,Tabell203[],3,FALSE),"") ->  | L144: =IF(ISTEXT(A144),VLOOKUP(A144,Tabell203[],10,FALSE),"") ->  | M144: 0 | N144: 0 | O144: 0 | P144: 0 | R144: =IF(ISTEXT(A144),VLOOKUP(A144,Tabell203[],4,FALSE),0) -> 0 | S144: =IF(ISTEXT(A144),VLOOKUP(A144,Tabell203[],6,FALSE),0) -> 0 | T144: =IF(ISTEXT(A144),VLOOKUP(A144,Tabell203[],5,FALSE),0) -> 0 | U144: =IF(ISTEXT(A144),VLOOKUP(A144,Tabell203[],8,FALSE),0) -> 0 | V144: =IF(ISTEXT(A144),VLOOKUP(A144,Tabell203[],9,FALSE),0) -> 0 | W144: =IF(ISTEXT(A144),IF(E144>0.000001,E144,VLOOKUP(A144,Tabell203[],2,FALSE)),0) -> 0 | X144: =IF($A144='2.1b Halm, odling grovfoder'!X$44,1,0) -> 0 | Y144: =IF($A144='2.1b Halm, odling grovfoder'!Y$44,1,0) -> 0 | Z144: =IF($A144='2.1b Halm, odling grovfoder'!Z$44,1,0) -> 0 | AA144: =IF($A144='2.1b Halm, odling grovfoder'!AA$44,1,0) -> 0 | AB144: =IF($A144='2.1b Halm, odling grovfoder'!AB$44,1,0) -> 0 | AC144: =IF($A144='2.1b Halm, odling grovfoder'!AC$44,1,0) -> 0 | AD144: =IF($A144='2.1b Halm, odling grovfoder'!AD$44,1,0) -> 0 | AE144: =IF($A144='2.1b Halm, odling grovfoder'!AE$44,1,0) -> 0 | AF144: =IF($A144='2.1b Halm, odling grovfoder'!AF$44,1,0) -> 0 | AG144: =IF(X144=1,VLOOKUP(H144,Tabell220[],2,FALSE),0) -> 0 | AH144: =IF(Y144=1,IF(OR(W144<'Teknisk administration'!$P$262,W144>'Teknisk administration'!$P$263),'Teknisk administration'!$Q$262*I144^2+'Teknisk administration'!$R$262*I144+'Teknisk administration'!$S$262,'Teknisk administration'!$Q$263*I144^2+'Teknisk administration'!$R$263*I144+'Teknisk administration'!$S$263),0) -> 0 | AI144: =IF(Z144=1,VLOOKUP(H144,Tabell214[],2,FALSE)*W144+VLOOKUP(H144,Tabell214[],3,FALSE),0) -> 0 | AJ144: =IF(AA144=1,VLOOKUP(H144,Tabell215[],2,FALSE)*W144+VLOOKUP(H144,Tabell215[],3,FALSE),0) -> 0 | AK144: =IF(AB144=1,VLOOKUP(H144,Tabell216[],2,FALSE)*W144,0) -> 0 | AL144: =IF(AC144=1,'Teknisk administration'!$AP$378,0) -> 0 | AM144: =IF(AD144=1,VLOOKUP($H144,Tabell217[],2,FALSE)*$W144,0) -> 0 | AN144: =IF(AE144=1,VLOOKUP($H144,Tabell29[],2,FALSE)*$W144,0) -> 0 | AO144: =IF(ISTEXT(A144),VLOOKUP(A144,Tabell203[],7,FALSE),0) -> 0 | AP144: 0 | AQ144: =IF(ISTEXT($A144),VLOOKUP($A144,Tabell203[],11,FALSE),0) -> 0 | AR144: =IF(ISTEXT($A144),VLOOKUP($A144,Tabell203[],12,FALSE),0) -> 0 | AS144: =IF(ISTEXT($A144),VLOOKUP($A144,Tabell203[],13,FALSE),0) -> 0 | AT144: =IF(ISTEXT($A144),VLOOKUP($A144,Tabell203[],14,FALSE),0) -> 0 | AU144: =IF(ISTEXT($A144),VLOOKUP($A144,Tabell203[],15,FALSE),0) -> 0 | AV144: =IF(ISTEXT($A144),VLOOKUP($A144,Tabell203[],16,FALSE),0) -> 0
F145: =IF(ISTEXT(A145),VLOOKUP(A145,Tabell203[],3,FALSE),"") ->  | L145: =IF(ISTEXT(A145),VLOOKUP(A145,Tabell203[],10,FALSE),"") ->  | M145: 0 | N145: 0 | O145: 0 | P145: 0 | R145: =IF(ISTEXT(A145),VLOOKUP(A145,Tabell203[],4,FALSE),0) -> 0 | S145: =IF(ISTEXT(A145),VLOOKUP(A145,Tabell203[],6,FALSE),0) -> 0 | T145: =IF(ISTEXT(A145),VLOOKUP(A145,Tabell203[],5,FALSE),0) -> 0 | U145: =IF(ISTEXT(A145),VLOOKUP(A145,Tabell203[],8,FALSE),0) -> 0 | V145: =IF(ISTEXT(A145),VLOOKUP(A145,Tabell203[],9,FALSE),0) -> 0 | W145: =IF(ISTEXT(A145),IF(E145>0.000001,E145,VLOOKUP(A145,Tabell203[],2,FALSE)),0) -> 0 | X145: =IF($A145='2.1b Halm, odling grovfoder'!X$44,1,0) -> 0 | Y145: =IF($A145='2.1b Halm, odling grovfoder'!Y$44,1,0) -> 0 | Z145: =IF($A145='2.1b Halm, odling grovfoder'!Z$44,1,0) -> 0 | AA145: =IF($A145='2.1b Halm, odling grovfoder'!AA$44,1,0) -> 0 | AB145: =IF($A145='2.1b Halm, odling grovfoder'!AB$44,1,0) -> 0 | AC145: =IF($A145='2.1b Halm, odling grovfoder'!AC$44,1,0) -> 0 | AD145: =IF($A145='2.1b Halm, odling grovfoder'!AD$44,1,0) -> 0 | AE145: =IF($A145='2.1b Halm, odling grovfoder'!AE$44,1,0) -> 0 | AF145: =IF($A145='2.1b Halm, odling grovfoder'!AF$44,1,0) -> 0 | AG145: =IF(X145=1,VLOOKUP(H145,Tabell220[],2,FALSE),0) -> 0 | AH145: =IF(Y145=1,IF(OR(W145<'Teknisk administration'!$P$262,W145>'Teknisk administration'!$P$263),'Teknisk administration'!$Q$262*I145^2+'Teknisk administration'!$R$262*I145+'Teknisk administration'!$S$262,'Teknisk administration'!$Q$263*I145^2+'Teknisk administration'!$R$263*I145+'Teknisk administration'!$S$263),0) -> 0 | AI145: =IF(Z145=1,VLOOKUP(H145,Tabell214[],2,FALSE)*W145+VLOOKUP(H145,Tabell214[],3,FALSE),0) -> 0 | AJ145: =IF(AA145=1,VLOOKUP(H145,Tabell215[],2,FALSE)*W145+VLOOKUP(H145,Tabell215[],3,FALSE),0) -> 0 | AK145: =IF(AB145=1,VLOOKUP(H145,Tabell216[],2,FALSE)*W145,0) -> 0 | AL145: =IF(AC145=1,'Teknisk administration'!$AP$378,0) -> 0 | AM145: =IF(AD145=1,VLOOKUP($H145,Tabell217[],2,FALSE)*$W145,0) -> 0 | AN145: =IF(AE145=1,VLOOKUP($H145,Tabell29[],2,FALSE)*$W145,0) -> 0 | AO145: =IF(ISTEXT(A145),VLOOKUP(A145,Tabell203[],7,FALSE),0) -> 0 | AP145: 0 | AQ145: =IF(ISTEXT($A145),VLOOKUP($A145,Tabell203[],11,FALSE),0) -> 0 | AR145: =IF(ISTEXT($A145),VLOOKUP($A145,Tabell203[],12,FALSE),0) -> 0 | AS145: =IF(ISTEXT($A145),VLOOKUP($A145,Tabell203[],13,FALSE),0) -> 0 | AT145: =IF(ISTEXT($A145),VLOOKUP($A145,Tabell203[],14,FALSE),0) -> 0 | AU145: =IF(ISTEXT($A145),VLOOKUP($A145,Tabell203[],15,FALSE),0) -> 0 | AV145: =IF(ISTEXT($A145),VLOOKUP($A145,Tabell203[],16,FALSE),0) -> 0
F146: =IF(ISTEXT(A146),VLOOKUP(A146,Tabell203[],3,FALSE),"") ->  | L146: =IF(ISTEXT(A146),VLOOKUP(A146,Tabell203[],10,FALSE),"") ->  | M146: 0 | N146: 0 | O146: 0 | P146: 0 | R146: =IF(ISTEXT(A146),VLOOKUP(A146,Tabell203[],4,FALSE),0) -> 0 | S146: =IF(ISTEXT(A146),VLOOKUP(A146,Tabell203[],6,FALSE),0) -> 0 | T146: =IF(ISTEXT(A146),VLOOKUP(A146,Tabell203[],5,FALSE),0) -> 0 | U146: =IF(ISTEXT(A146),VLOOKUP(A146,Tabell203[],8,FALSE),0) -> 0 | V146: =IF(ISTEXT(A146),VLOOKUP(A146,Tabell203[],9,FALSE),0) -> 0 | W146: =IF(ISTEXT(A146),IF(E146>0.000001,E146,VLOOKUP(A146,Tabell203[],2,FALSE)),0) -> 0 | X146: =IF($A146='2.1b Halm, odling grovfoder'!X$44,1,0) -> 0 | Y146: =IF($A146='2.1b Halm, odling grovfoder'!Y$44,1,0) -> 0 | Z146: =IF($A146='2.1b Halm, odling grovfoder'!Z$44,1,0) -> 0 | AA146: =IF($A146='2.1b Halm, odling grovfoder'!AA$44,1,0) -> 0 | AB146: =IF($A146='2.1b Halm, odling grovfoder'!AB$44,1,0) -> 0 | AC146: =IF($A146='2.1b Halm, odling grovfoder'!AC$44,1,0) -> 0 | AD146: =IF($A146='2.1b Halm, odling grovfoder'!AD$44,1,0) -> 0 | AE146: =IF($A146='2.1b Halm, odling grovfoder'!AE$44,1,0) -> 0 | AF146: =IF($A146='2.1b Halm, odling grovfoder'!AF$44,1,0) -> 0 | AG146: =IF(X146=1,VLOOKUP(H146,Tabell220[],2,FALSE),0) -> 0 | AH146: =IF(Y146=1,IF(OR(W146<'Teknisk administration'!$P$262,W146>'Teknisk administration'!$P$263),'Teknisk administration'!$Q$262*I146^2+'Teknisk administration'!$R$262*I146+'Teknisk administration'!$S$262,'Teknisk administration'!$Q$263*I146^2+'Teknisk administration'!$R$263*I146+'Teknisk administration'!$S$263),0) -> 0 | AI146: =IF(Z146=1,VLOOKUP(H146,Tabell214[],2,FALSE)*W146+VLOOKUP(H146,Tabell214[],3,FALSE),0) -> 0 | AJ146: =IF(AA146=1,VLOOKUP(H146,Tabell215[],2,FALSE)*W146+VLOOKUP(H146,Tabell215[],3,FALSE),0) -> 0 | AK146: =IF(AB146=1,VLOOKUP(H146,Tabell216[],2,FALSE)*W146,0) -> 0 | AL146: =IF(AC146=1,'Teknisk administration'!$AP$378,0) -> 0 | AM146: =IF(AD146=1,VLOOKUP($H146,Tabell217[],2,FALSE)*$W146,0) -> 0 | AN146: =IF(AE146=1,VLOOKUP($H146,Tabell29[],2,FALSE)*$W146,0) -> 0 | AO146: =IF(ISTEXT(A146),VLOOKUP(A146,Tabell203[],7,FALSE),0) -> 0 | AP146: 0 | AQ146: =IF(ISTEXT($A146),VLOOKUP($A146,Tabell203[],11,FALSE),0) -> 0 | AR146: =IF(ISTEXT($A146),VLOOKUP($A146,Tabell203[],12,FALSE),0) -> 0 | AS146: =IF(ISTEXT($A146),VLOOKUP($A146,Tabell203[],13,FALSE),0) -> 0 | AT146: =IF(ISTEXT($A146),VLOOKUP($A146,Tabell203[],14,FALSE),0) -> 0 | AU146: =IF(ISTEXT($A146),VLOOKUP($A146,Tabell203[],15,FALSE),0) -> 0 | AV146: =IF(ISTEXT($A146),VLOOKUP($A146,Tabell203[],16,FALSE),0) -> 0
F147: =IF(ISTEXT(A147),VLOOKUP(A147,Tabell203[],3,FALSE),"") ->  | L147: =IF(ISTEXT(A147),VLOOKUP(A147,Tabell203[],10,FALSE),"") ->  | M147: 0 | N147: 0 | O147: 0 | P147: 0 | R147: =IF(ISTEXT(A147),VLOOKUP(A147,Tabell203[],4,FALSE),0) -> 0 | S147: =IF(ISTEXT(A147),VLOOKUP(A147,Tabell203[],6,FALSE),0) -> 0 | T147: =IF(ISTEXT(A147),VLOOKUP(A147,Tabell203[],5,FALSE),0) -> 0 | U147: =IF(ISTEXT(A147),VLOOKUP(A147,Tabell203[],8,FALSE),0) -> 0 | V147: =IF(ISTEXT(A147),VLOOKUP(A147,Tabell203[],9,FALSE),0) -> 0 | W147: =IF(ISTEXT(A147),IF(E147>0.000001,E147,VLOOKUP(A147,Tabell203[],2,FALSE)),0) -> 0 | X147: =IF($A147='2.1b Halm, odling grovfoder'!X$44,1,0) -> 0 | Y147: =IF($A147='2.1b Halm, odling grovfoder'!Y$44,1,0) -> 0 | Z147: =IF($A147='2.1b Halm, odling grovfoder'!Z$44,1,0) -> 0 | AA147: =IF($A147='2.1b Halm, odling grovfoder'!AA$44,1,0) -> 0 | AB147: =IF($A147='2.1b Halm, odling grovfoder'!AB$44,1,0) -> 0 | AC147: =IF($A147='2.1b Halm, odling grovfoder'!AC$44,1,0) -> 0 | AD147: =IF($A147='2.1b Halm, odling grovfoder'!AD$44,1,0) -> 0 | AE147: =IF($A147='2.1b Halm, odling grovfoder'!AE$44,1,0) -> 0 | AF147: =IF($A147='2.1b Halm, odling grovfoder'!AF$44,1,0) -> 0 | AG147: =IF(X147=1,VLOOKUP(H147,Tabell220[],2,FALSE),0) -> 0 | AH147: =IF(Y147=1,IF(OR(W147<'Teknisk administration'!$P$262,W147>'Teknisk administration'!$P$263),'Teknisk administration'!$Q$262*I147^2+'Teknisk administration'!$R$262*I147+'Teknisk administration'!$S$262,'Teknisk administration'!$Q$263*I147^2+'Teknisk administration'!$R$263*I147+'Teknisk administration'!$S$263),0) -> 0 | AI147: =IF(Z147=1,VLOOKUP(H147,Tabell214[],2,FALSE)*W147+VLOOKUP(H147,Tabell214[],3,FALSE),0) -> 0 | AJ147: =IF(AA147=1,VLOOKUP(H147,Tabell215[],2,FALSE)*W147+VLOOKUP(H147,Tabell215[],3,FALSE),0) -> 0 | AK147: =IF(AB147=1,VLOOKUP(H147,Tabell216[],2,FALSE)*W147,0) -> 0 | AL147: =IF(AC147=1,'Teknisk administration'!$AP$378,0) -> 0 | AM147: =IF(AD147=1,VLOOKUP($H147,Tabell217[],2,FALSE)*$W147,0) -> 0 | AN147: =IF(AE147=1,VLOOKUP($H147,Tabell29[],2,FALSE)*$W147,0) -> 0 | AO147: =IF(ISTEXT(A147),VLOOKUP(A147,Tabell203[],7,FALSE),0) -> 0 | AP147: 0 | AQ147: =IF(ISTEXT($A147),VLOOKUP($A147,Tabell203[],11,FALSE),0) -> 0 | AR147: =IF(ISTEXT($A147),VLOOKUP($A147,Tabell203[],12,FALSE),0) -> 0 | AS147: =IF(ISTEXT($A147),VLOOKUP($A147,Tabell203[],13,FALSE),0) -> 0 | AT147: =IF(ISTEXT($A147),VLOOKUP($A147,Tabell203[],14,FALSE),0) -> 0 | AU147: =IF(ISTEXT($A147),VLOOKUP($A147,Tabell203[],15,FALSE),0) -> 0 | AV147: =IF(ISTEXT($A147),VLOOKUP($A147,Tabell203[],16,FALSE),0) -> 0
F148: =IF(ISTEXT(A148),VLOOKUP(A148,Tabell203[],3,FALSE),"") ->  | L148: =IF(ISTEXT(A148),VLOOKUP(A148,Tabell203[],10,FALSE),"") ->  | M148: 0 | N148: 0 | O148: 0 | P148: 0 | R148: =IF(ISTEXT(A148),VLOOKUP(A148,Tabell203[],4,FALSE),0) -> 0 | S148: =IF(ISTEXT(A148),VLOOKUP(A148,Tabell203[],6,FALSE),0) -> 0 | T148: =IF(ISTEXT(A148),VLOOKUP(A148,Tabell203[],5,FALSE),0) -> 0 | U148: =IF(ISTEXT(A148),VLOOKUP(A148,Tabell203[],8,FALSE),0) -> 0 | V148: =IF(ISTEXT(A148),VLOOKUP(A148,Tabell203[],9,FALSE),0) -> 0 | W148: =IF(ISTEXT(A148),IF(E148>0.000001,E148,VLOOKUP(A148,Tabell203[],2,FALSE)),0) -> 0 | X148: =IF($A148='2.1b Halm, odling grovfoder'!X$44,1,0) -> 0 | Y148: =IF($A148='2.1b Halm, odling grovfoder'!Y$44,1,0) -> 0 | Z148: =IF($A148='2.1b Halm, odling grovfoder'!Z$44,1,0) -> 0 | AA148: =IF($A148='2.1b Halm, odling grovfoder'!AA$44,1,0) -> 0 | AB148: =IF($A148='2.1b Halm, odling grovfoder'!AB$44,1,0) -> 0 | AC148: =IF($A148='2.1b Halm, odling grovfoder'!AC$44,1,0) -> 0 | AD148: =IF($A148='2.1b Halm, odling grovfoder'!AD$44,1,0) -> 0 | AE148: =IF($A148='2.1b Halm, odling grovfoder'!AE$44,1,0) -> 0 | AF148: =IF($A148='2.1b Halm, odling grovfoder'!AF$44,1,0) -> 0 | AG148: =IF(X148=1,VLOOKUP(H148,Tabell220[],2,FALSE),0) -> 0 | AH148: =IF(Y148=1,IF(OR(W148<'Teknisk administration'!$P$262,W148>'Teknisk administration'!$P$263),'Teknisk administration'!$Q$262*I148^2+'Teknisk administration'!$R$262*I148+'Teknisk administration'!$S$262,'Teknisk administration'!$Q$263*I148^2+'Teknisk administration'!$R$263*I148+'Teknisk administration'!$S$263),0) -> 0 | AI148: =IF(Z148=1,VLOOKUP(H148,Tabell214[],2,FALSE)*W148+VLOOKUP(H148,Tabell214[],3,FALSE),0) -> 0 | AJ148: =IF(AA148=1,VLOOKUP(H148,Tabell215[],2,FALSE)*W148+VLOOKUP(H148,Tabell215[],3,FALSE),0) -> 0 | AK148: =IF(AB148=1,VLOOKUP(H148,Tabell216[],2,FALSE)*W148,0) -> 0 | AL148: =IF(AC148=1,'Teknisk administration'!$AP$378,0) -> 0 | AM148: =IF(AD148=1,VLOOKUP($H148,Tabell217[],2,FALSE)*$W148,0) -> 0 | AN148: =IF(AE148=1,VLOOKUP($H148,Tabell29[],2,FALSE)*$W148,0) -> 0 | AO148: =IF(ISTEXT(A148),VLOOKUP(A148,Tabell203[],7,FALSE),0) -> 0 | AP148: 0 | AQ148: =IF(ISTEXT($A148),VLOOKUP($A148,Tabell203[],11,FALSE),0) -> 0 | AR148: =IF(ISTEXT($A148),VLOOKUP($A148,Tabell203[],12,FALSE),0) -> 0 | AS148: =IF(ISTEXT($A148),VLOOKUP($A148,Tabell203[],13,FALSE),0) -> 0 | AT148: =IF(ISTEXT($A148),VLOOKUP($A148,Tabell203[],14,FALSE),0) -> 0 | AU148: =IF(ISTEXT($A148),VLOOKUP($A148,Tabell203[],15,FALSE),0) -> 0 | AV148: =IF(ISTEXT($A148),VLOOKUP($A148,Tabell203[],16,FALSE),0) -> 0
F149: =IF(ISTEXT(A149),VLOOKUP(A149,Tabell203[],3,FALSE),"") ->  | L149: =IF(ISTEXT(A149),VLOOKUP(A149,Tabell203[],10,FALSE),"") ->  | M149: 0 | N149: 0 | O149: 0 | P149: 0 | R149: =IF(ISTEXT(A149),VLOOKUP(A149,Tabell203[],4,FALSE),0) -> 0 | S149: =IF(ISTEXT(A149),VLOOKUP(A149,Tabell203[],6,FALSE),0) -> 0 | T149: =IF(ISTEXT(A149),VLOOKUP(A149,Tabell203[],5,FALSE),0) -> 0 | U149: =IF(ISTEXT(A149),VLOOKUP(A149,Tabell203[],8,FALSE),0) -> 0 | V149: =IF(ISTEXT(A149),VLOOKUP(A149,Tabell203[],9,FALSE),0) -> 0 | W149: =IF(ISTEXT(A149),IF(E149>0.000001,E149,VLOOKUP(A149,Tabell203[],2,FALSE)),0) -> 0 | X149: =IF($A149='2.1b Halm, odling grovfoder'!X$44,1,0) -> 0 | Y149: =IF($A149='2.1b Halm, odling grovfoder'!Y$44,1,0) -> 0 | Z149: =IF($A149='2.1b Halm, odling grovfoder'!Z$44,1,0) -> 0 | AA149: =IF($A149='2.1b Halm, odling grovfoder'!AA$44,1,0) -> 0 | AB149: =IF($A149='2.1b Halm, odling grovfoder'!AB$44,1,0) -> 0 | AC149: =IF($A149='2.1b Halm, odling grovfoder'!AC$44,1,0) -> 0 | AD149: =IF($A149='2.1b Halm, odling grovfoder'!AD$44,1,0) -> 0 | AE149: =IF($A149='2.1b Halm, odling grovfoder'!AE$44,1,0) -> 0 | AF149: =IF($A149='2.1b Halm, odling grovfoder'!AF$44,1,0) -> 0 | AG149: =IF(X149=1,VLOOKUP(H149,Tabell220[],2,FALSE),0) -> 0 | AH149: =IF(Y149=1,IF(OR(W149<'Teknisk administration'!$P$262,W149>'Teknisk administration'!$P$263),'Teknisk administration'!$Q$262*I149^2+'Teknisk administration'!$R$262*I149+'Teknisk administration'!$S$262,'Teknisk administration'!$Q$263*I149^2+'Teknisk administration'!$R$263*I149+'Teknisk administration'!$S$263),0) -> 0 | AI149: =IF(Z149=1,VLOOKUP(H149,Tabell214[],2,FALSE)*W149+VLOOKUP(H149,Tabell214[],3,FALSE),0) -> 0 | AJ149: =IF(AA149=1,VLOOKUP(H149,Tabell215[],2,FALSE)*W149+VLOOKUP(H149,Tabell215[],3,FALSE),0) -> 0 | AK149: =IF(AB149=1,VLOOKUP(H149,Tabell216[],2,FALSE)*W149,0) -> 0 | AL149: =IF(AC149=1,'Teknisk administration'!$AP$378,0) -> 0 | AM149: =IF(AD149=1,VLOOKUP($H149,Tabell217[],2,FALSE)*$W149,0) -> 0 | AN149: =IF(AE149=1,VLOOKUP($H149,Tabell29[],2,FALSE)*$W149,0) -> 0 | AO149: =IF(ISTEXT(A149),VLOOKUP(A149,Tabell203[],7,FALSE),0) -> 0 | AP149: 0 | AQ149: =IF(ISTEXT($A149),VLOOKUP($A149,Tabell203[],11,FALSE),0) -> 0 | AR149: =IF(ISTEXT($A149),VLOOKUP($A149,Tabell203[],12,FALSE),0) -> 0 | AS149: =IF(ISTEXT($A149),VLOOKUP($A149,Tabell203[],13,FALSE),0) -> 0 | AT149: =IF(ISTEXT($A149),VLOOKUP($A149,Tabell203[],14,FALSE),0) -> 0 | AU149: =IF(ISTEXT($A149),VLOOKUP($A149,Tabell203[],15,FALSE),0) -> 0 | AV149: =IF(ISTEXT($A149),VLOOKUP($A149,Tabell203[],16,FALSE),0) -> 0
F150: =IF(ISTEXT(A150),VLOOKUP(A150,Tabell203[],3,FALSE),"") ->  | L150: =IF(ISTEXT(A150),VLOOKUP(A150,Tabell203[],10,FALSE),"") ->  | M150: 0 | N150: 0 | O150: 0 | P150: 0 | R150: =IF(ISTEXT(A150),VLOOKUP(A150,Tabell203[],4,FALSE),0) -> 0 | S150: =IF(ISTEXT(A150),VLOOKUP(A150,Tabell203[],6,FALSE),0) -> 0 | T150: =IF(ISTEXT(A150),VLOOKUP(A150,Tabell203[],5,FALSE),0) -> 0 | U150: =IF(ISTEXT(A150),VLOOKUP(A150,Tabell203[],8,FALSE),0) -> 0 | V150: =IF(ISTEXT(A150),VLOOKUP(A150,Tabell203[],9,FALSE),0) -> 0 | W150: =IF(ISTEXT(A150),IF(E150>0.000001,E150,VLOOKUP(A150,Tabell203[],2,FALSE)),0) -> 0 | X150: =IF($A150='2.1b Halm, odling grovfoder'!X$44,1,0) -> 0 | Y150: =IF($A150='2.1b Halm, odling grovfoder'!Y$44,1,0) -> 0 | Z150: =IF($A150='2.1b Halm, odling grovfoder'!Z$44,1,0) -> 0 | AA150: =IF($A150='2.1b Halm, odling grovfoder'!AA$44,1,0) -> 0 | AB150: =IF($A150='2.1b Halm, odling grovfoder'!AB$44,1,0) -> 0 | AC150: =IF($A150='2.1b Halm, odling grovfoder'!AC$44,1,0) -> 0 | AD150: =IF($A150='2.1b Halm, odling grovfoder'!AD$44,1,0) -> 0 | AE150: =IF($A150='2.1b Halm, odling grovfoder'!AE$44,1,0) -> 0 | AF150: =IF($A150='2.1b Halm, odling grovfoder'!AF$44,1,0) -> 0 | AG150: =IF(X150=1,VLOOKUP(H150,Tabell220[],2,FALSE),0) -> 0 | AH150: =IF(Y150=1,IF(OR(W150<'Teknisk administration'!$P$262,W150>'Teknisk administration'!$P$263),'Teknisk administration'!$Q$262*I150^2+'Teknisk administration'!$R$262*I150+'Teknisk administration'!$S$262,'Teknisk administration'!$Q$263*I150^2+'Teknisk administration'!$R$263*I150+'Teknisk administration'!$S$263),0) -> 0 | AI150: =IF(Z150=1,VLOOKUP(H150,Tabell214[],2,FALSE)*W150+VLOOKUP(H150,Tabell214[],3,FALSE),0) -> 0 | AJ150: =IF(AA150=1,VLOOKUP(H150,Tabell215[],2,FALSE)*W150+VLOOKUP(H150,Tabell215[],3,FALSE),0) -> 0 | AK150: =IF(AB150=1,VLOOKUP(H150,Tabell216[],2,FALSE)*W150,0) -> 0 | AL150: =IF(AC150=1,'Teknisk administration'!$AP$378,0) -> 0 | AM150: =IF(AD150=1,VLOOKUP($H150,Tabell217[],2,FALSE)*$W150,0) -> 0 | AN150: =IF(AE150=1,VLOOKUP($H150,Tabell29[],2,FALSE)*$W150,0) -> 0 | AO150: =IF(ISTEXT(A150),VLOOKUP(A150,Tabell203[],7,FALSE),0) -> 0 | AP150: 0 | AQ150: =IF(ISTEXT($A150),VLOOKUP($A150,Tabell203[],11,FALSE),0) -> 0 | AR150: =IF(ISTEXT($A150),VLOOKUP($A150,Tabell203[],12,FALSE),0) -> 0 | AS150: =IF(ISTEXT($A150),VLOOKUP($A150,Tabell203[],13,FALSE),0) -> 0 | AT150: =IF(ISTEXT($A150),VLOOKUP($A150,Tabell203[],14,FALSE),0) -> 0 | AU150: =IF(ISTEXT($A150),VLOOKUP($A150,Tabell203[],15,FALSE),0) -> 0 | AV150: =IF(ISTEXT($A150),VLOOKUP($A150,Tabell203[],16,FALSE),0) -> 0
F151: =IF(ISTEXT(A151),VLOOKUP(A151,Tabell203[],3,FALSE),"") ->  | L151: =IF(ISTEXT(A151),VLOOKUP(A151,Tabell203[],10,FALSE),"") ->  | M151: 0 | N151: 0 | O151: 0 | P151: 0 | R151: =IF(ISTEXT(A151),VLOOKUP(A151,Tabell203[],4,FALSE),0) -> 0 | S151: =IF(ISTEXT(A151),VLOOKUP(A151,Tabell203[],6,FALSE),0) -> 0 | T151: =IF(ISTEXT(A151),VLOOKUP(A151,Tabell203[],5,FALSE),0) -> 0 | U151: =IF(ISTEXT(A151),VLOOKUP(A151,Tabell203[],8,FALSE),0) -> 0 | V151: =IF(ISTEXT(A151),VLOOKUP(A151,Tabell203[],9,FALSE),0) -> 0 | W151: =IF(ISTEXT(A151),IF(E151>0.000001,E151,VLOOKUP(A151,Tabell203[],2,FALSE)),0) -> 0 | X151: =IF($A151='2.1b Halm, odling grovfoder'!X$44,1,0) -> 0 | Y151: =IF($A151='2.1b Halm, odling grovfoder'!Y$44,1,0) -> 0 | Z151: =IF($A151='2.1b Halm, odling grovfoder'!Z$44,1,0) -> 0 | AA151: =IF($A151='2.1b Halm, odling grovfoder'!AA$44,1,0) -> 0 | AB151: =IF($A151='2.1b Halm, odling grovfoder'!AB$44,1,0) -> 0 | AC151: =IF($A151='2.1b Halm, odling grovfoder'!AC$44,1,0) -> 0 | AD151: =IF($A151='2.1b Halm, odling grovfoder'!AD$44,1,0) -> 0 | AE151: =IF($A151='2.1b Halm, odling grovfoder'!AE$44,1,0) -> 0 | AF151: =IF($A151='2.1b Halm, odling grovfoder'!AF$44,1,0) -> 0 | AG151: =IF(X151=1,VLOOKUP(H151,Tabell220[],2,FALSE),0) -> 0 | AH151: =IF(Y151=1,IF(OR(W151<'Teknisk administration'!$P$262,W151>'Teknisk administration'!$P$263),'Teknisk administration'!$Q$262*I151^2+'Teknisk administration'!$R$262*I151+'Teknisk administration'!$S$262,'Teknisk administration'!$Q$263*I151^2+'Teknisk administration'!$R$263*I151+'Teknisk administration'!$S$263),0) -> 0 | AI151: =IF(Z151=1,VLOOKUP(H151,Tabell214[],2,FALSE)*W151+VLOOKUP(H151,Tabell214[],3,FALSE),0) -> 0 | AJ151: =IF(AA151=1,VLOOKUP(H151,Tabell215[],2,FALSE)*W151+VLOOKUP(H151,Tabell215[],3,FALSE),0) -> 0 | AK151: =IF(AB151=1,VLOOKUP(H151,Tabell216[],2,FALSE)*W151,0) -> 0 | AL151: =IF(AC151=1,'Teknisk administration'!$AP$378,0) -> 0 | AM151: =IF(AD151=1,VLOOKUP($H151,Tabell217[],2,FALSE)*$W151,0) -> 0 | AN151: =IF(AE151=1,VLOOKUP($H151,Tabell29[],2,FALSE)*$W151,0) -> 0 | AO151: =IF(ISTEXT(A151),VLOOKUP(A151,Tabell203[],7,FALSE),0) -> 0 | AP151: 0 | AQ151: =IF(ISTEXT($A151),VLOOKUP($A151,Tabell203[],11,FALSE),0) -> 0 | AR151: =IF(ISTEXT($A151),VLOOKUP($A151,Tabell203[],12,FALSE),0) -> 0 | AS151: =IF(ISTEXT($A151),VLOOKUP($A151,Tabell203[],13,FALSE),0) -> 0 | AT151: =IF(ISTEXT($A151),VLOOKUP($A151,Tabell203[],14,FALSE),0) -> 0 | AU151: =IF(ISTEXT($A151),VLOOKUP($A151,Tabell203[],15,FALSE),0) -> 0 | AV151: =IF(ISTEXT($A151),VLOOKUP($A151,Tabell203[],16,FALSE),0) -> 0
L152: Totalt mängd inlagt eller direkttfodrat | M152: =SUM(M140:M151) -> 0 | O152: =SUM(O140:O151) -> 0 | P152: =SUM(P140:P151) -> 0 | Z152: =IF(SUMPRODUCT(Z140:Z151,$G140:$G151)=0,0,SUMPRODUCT($O140:$O151,Z140:Z151)/SUMPRODUCT(Z140:Z151,$G140:$G151)) -> 0 | AA152: =IF(SUMPRODUCT(AA140:AA151,$G140:$G151)=0,0,SUMPRODUCT($O140:$O151,AA140:AA151)/SUMPRODUCT(AA140:AA151,$G140:$G151)) -> 0

Sheet 2.2 Förluster vid lagring
A1: 2.2 Förluster vid lagring | I1: Det här betyder färgerna
A2: =VLOOKUP('2 Intro foder'!B13,'Teknisk administration'!$G$4:$H$6,2,FALSE) -> Obligatoriskt blad | I2: Cell med värden hämtade från annan cell
A3: Under lagring av foder, speciellt av ensilage, kan det ske stora förluster av ts och energi till följd av att mikroorganismer bryter ner foder ("varmgång") och via pressvatten | I3: Fyll i din egen siffra
A4: ="På detta blad beräknas förluster under lagring, före uttag, av fodret som odlats aktuell period. Mängd odlat foder hämtas från bladet " &C_Odling_foder -> På detta blad beräknas förluster under lagring, före uttag, av fodret som odlats aktuell period. Mängd odlat foder hämtas från bladet 2.1 Odling foder | I4: Fyll i egen siffra - frivilligt, t ex om du har tillgång till uppgift eller om du vill räkna med annat värde än det schablonvärde som visas i angränsande cell
A5: Justera ev värdet som står i gula celler. Grå text = inte aktuellt för dig eftersom du ännu inte registrerat något på den perioden alternativt inte på det foderslaget eller lagringssystemet. | I5: Resultat/uträkning
I6: Schablonvärde
A7: ="Förluster i samband med uttag och utfodring sammanställs på bladet " &'2.4 Kasserat foder och spill'!A1 -> Förluster i samband med uttag och utfodring sammanställs på bladet 2.4 Kasserat foder och spill | I7: Förklaringar till raden
I8: Plats för egna kommentarer
I10: Snabblänkar till bladen i verktyget:
A11: Tröskat foder | I11: Instruktion
A12: I tabellen nedan sammanställs förluster under lagring, d v s efter skörd och före uttag. Fyll i eget värde eller behåll befintligt i prickiga celler. Schabloner i tabellen till höger. | I12: Bakgrund
B13: Enhet | C13: =Bakgrund!R$7 -> Period 1 | D13: =Bakgrund!S$7 -> Period 2 | E13: =Bakgrund!T$7 -> Period 3 | F13: Egen kommentar | G13: Förklaring | I13: 1 Intro djuren
A14: Skördad mängd | B14: kg ts | C14: ='2.1 Odling foder'!B25 -> 0 | D14: ='2.1 Odling foder'!B45 -> 0 | E14: ='2.1 Odling foder'!B67 -> 0 | I14: 1.1 Kött
A15: Förluster under lagring | B15: % | C15: 0.02 | D15: 0.02 | E15: 0.02 | G15: Behåll värde eller skriv över med eget! | I15: 1.2 Tillväxt & förökning
A16: Totala förluster | B16: kg ts | C16: =C14*C15 -> 0 | D16: =D14*D15 -> 0 | E16: =E14*E15 -> 0 | I16: 1.3 Hälsa & dödlighet
A17: Totalt kvar till uttag | B17: kg ts | C17: =ROUND(C14-C16,3-LEN(INT(C14-C16))) -> 0 | D17: =ROUND(D14-D16,3-LEN(INT(D14-D16))) -> 0 | E17: =ROUND(E14-E16,3-LEN(INT(E14-E16))) -> 0 | I17: 2 Intro foder
I18: 2.1 Odling foder
I19: 2.1b Halm, odling grovfoder
I20: 2.2 Förluster vid lagring
I21: 2.3 Utfodrat
A22: Bärgad halm och grovfoder | I22: 2.4 Kasserat foder och spill
A23: ="Sammanställning från bladet " & '2.1b Halm, odling grovfoder'!A1 -> Sammanställning från bladet 2.1b Halm, odling grovfoder | I23: 3 Växtnäringsutnyttjande (1)
A24: Mängd inlagt i silo, balar och lador | B24: Enhet | C24: =Bakgrund!R$7 -> Period 1 | D24: =Bakgrund!S$7 -> Period 2 | E24: =Bakgrund!T$7 -> Period 3 | F24: Egen kommentar | G24: Förklaring | I24: 3 Växtnäringsutnyttjande (2)
A25: Halm | B25: kg ts | C25: =SUMPRODUCT('2.1b Halm, odling grovfoder'!O46:O57,'2.1b Halm, odling grovfoder'!AV46:AV57)+SUMPRODUCT('2.1b Halm, odling grovfoder'!H30:H37,'2.1b Halm, odling grovfoder'!AV30:AV37) -> 0 | D25: =SUMPRODUCT('2.1b Halm, odling grovfoder'!O92:O103,'2.1b Halm, odling grovfoder'!AV92:AV103)+SUMPRODUCT('2.1b Halm, odling grovfoder'!H76:H83,'2.1b Halm, odling grovfoder'!AV76:AV83) -> 0 | E25: =SUMPRODUCT('2.1b Halm, odling grovfoder'!O140:O151,'2.1b Halm, odling grovfoder'!AV140:AV151)+SUMPRODUCT('2.1b Halm, odling grovfoder'!H124:H131,'2.1b Halm, odling grovfoder'!AV124:AV131) -> 0 | I25: 3 Växtnäringsutnyttjande (3)
A26: Plansilo | C26: =SUMPRODUCT('2.1b Halm, odling grovfoder'!O46:O57,'2.1b Halm, odling grovfoder'!AQ46:AQ57)+SUMPRODUCT('2.1b Halm, odling grovfoder'!H30:H37,'2.1b Halm, odling grovfoder'!AQ30:AQ37) -> 0 | D26: =SUMPRODUCT('2.1b Halm, odling grovfoder'!O92:O103,'2.1b Halm, odling grovfoder'!AQ92:AQ103)+SUMPRODUCT('2.1b Halm, odling grovfoder'!H76:H83,'2.1b Halm, odling grovfoder'!AQ76:AQ83) -> 0 | E26: =SUMPRODUCT('2.1b Halm, odling grovfoder'!O140:O151,'2.1b Halm, odling grovfoder'!AQ140:AQ151)+SUMPRODUCT('2.1b Halm, odling grovfoder'!H124:H131,'2.1b Halm, odling grovfoder'!AQ124:AQ131) -> 0 | I26: 4 Energi och bränsle
A27: Torn | C27: =SUMPRODUCT('2.1b Halm, odling grovfoder'!O46:O57,'2.1b Halm, odling grovfoder'!AR46:AR57)+SUMPRODUCT('2.1b Halm, odling grovfoder'!H30:H37,'2.1b Halm, odling grovfoder'!AR30:AR37) -> 0 | D27: =SUMPRODUCT('2.1b Halm, odling grovfoder'!O92:O103,'2.1b Halm, odling grovfoder'!AR92:AR103)+SUMPRODUCT('2.1b Halm, odling grovfoder'!H76:H83,'2.1b Halm, odling grovfoder'!AR76:AR83) -> 0 | E27: =SUMPRODUCT('2.1b Halm, odling grovfoder'!O140:O151,'2.1b Halm, odling grovfoder'!AR140:AR151)+SUMPRODUCT('2.1b Halm, odling grovfoder'!H124:H131,'2.1b Halm, odling grovfoder'!AR124:AR131) -> 0 | I27: 5 Vattenanvändning
A28: Storbalar (rund- och fyrkantsbalar) | C28: =SUMPRODUCT('2.1b Halm, odling grovfoder'!O46:O57,'2.1b Halm, odling grovfoder'!AS46:AS57)+SUMPRODUCT('2.1b Halm, odling grovfoder'!H30:H37,'2.1b Halm, odling grovfoder'!AS30:AS37) -> 0 | D28: =SUMPRODUCT('2.1b Halm, odling grovfoder'!O92:O103,'2.1b Halm, odling grovfoder'!AS92:AS103)+SUMPRODUCT('2.1b Halm, odling grovfoder'!H76:H83,'2.1b Halm, odling grovfoder'!AS76:AS83) -> 0 | E28: =SUMPRODUCT('2.1b Halm, odling grovfoder'!O140:O151,'2.1b Halm, odling grovfoder'!AS140:AS151)+SUMPRODUCT('2.1b Halm, odling grovfoder'!H124:H131,'2.1b Halm, odling grovfoder'!AS124:AS131) -> 0 | I28: 6 Resultat
A29: Hö | C29: =SUMPRODUCT('2.1b Halm, odling grovfoder'!O46:O57,'2.1b Halm, odling grovfoder'!AT46:AT57)+SUMPRODUCT('2.1b Halm, odling grovfoder'!H30:H37,'2.1b Halm, odling grovfoder'!AT30:AT37) -> 0 | D29: =SUMPRODUCT('2.1b Halm, odling grovfoder'!O92:O103,'2.1b Halm, odling grovfoder'!AT92:AT103)+SUMPRODUCT('2.1b Halm, odling grovfoder'!H76:H83,'2.1b Halm, odling grovfoder'!AT76:AT83) -> 0 | E29: =SUMPRODUCT('2.1b Halm, odling grovfoder'!O140:O151,'2.1b Halm, odling grovfoder'!AT140:AT151)+SUMPRODUCT('2.1b Halm, odling grovfoder'!H124:H131,'2.1b Halm, odling grovfoder'!AT124:AT131) -> 0 | I29: 6B Klimat
A30: Totalt inlagt | B30: kg ts | C30: =SUM(C25:C29) -> 0 | D30: =SUM(D25:D29) -> 0 | E30: 0 | G30: Total mängd grönmassa inlagt och direktutfodrat
A31: Halm | B31: MJ NE | C31: =SUMPRODUCT('2.1b Halm, odling grovfoder'!P46:P57,'2.1b Halm, odling grovfoder'!AV46:AV57)+SUMPRODUCT('2.1b Halm, odling grovfoder'!I30:I37,'2.1b Halm, odling grovfoder'!AV30:AV37) -> 0 | D31: =SUMPRODUCT('2.1b Halm, odling grovfoder'!P92:P103,'2.1b Halm, odling grovfoder'!AV92:AV103)+SUMPRODUCT('2.1b Halm, odling grovfoder'!I76:I83,'2.1b Halm, odling grovfoder'!AV76:AV83) -> 0 | E31: =SUMPRODUCT('2.1b Halm, odling grovfoder'!P140:P151,'2.1b Halm, odling grovfoder'!AV140:AV151)+SUMPRODUCT('2.1b Halm, odling grovfoder'!I124:I131,'2.1b Halm, odling grovfoder'!AV124:AV131) -> 0
A32: Plansilo | C32: =SUMPRODUCT('2.1b Halm, odling grovfoder'!P46:P57,'2.1b Halm, odling grovfoder'!AQ46:AQ57)+SUMPRODUCT('2.1b Halm, odling grovfoder'!I30:I37,'2.1b Halm, odling grovfoder'!AQ30:AQ37) -> 0 | D32: =SUMPRODUCT('2.1b Halm, odling grovfoder'!P92:P103,'2.1b Halm, odling grovfoder'!AQ92:AQ103)+SUMPRODUCT('2.1b Halm, odling grovfoder'!I76:I83,'2.1b Halm, odling grovfoder'!AQ76:AQ83) -> 0 | E32: =SUMPRODUCT('2.1b Halm, odling grovfoder'!P140:P151,'2.1b Halm, odling grovfoder'!AQ140:AQ151)+SUMPRODUCT('2.1b Halm, odling grovfoder'!I124:I131,'2.1b Halm, odling grovfoder'!AQ124:AQ131) -> 0
A33: Torn | C33: =SUMPRODUCT('2.1b Halm, odling grovfoder'!P46:P57,'2.1b Halm, odling grovfoder'!AR46:AR57)+SUMPRODUCT('2.1b Halm, odling grovfoder'!I30:I37,'2.1b Halm, odling grovfoder'!AR30:AR37) -> 0 | D33: =SUMPRODUCT('2.1b Halm, odling grovfoder'!P92:P103,'2.1b Halm, odling grovfoder'!AR92:AR103)+SUMPRODUCT('2.1b Halm, odling grovfoder'!I76:I83,'2.1b Halm, odling grovfoder'!AR76:AR83) -> 0 | E33: =SUMPRODUCT('2.1b Halm, odling grovfoder'!P140:P151,'2.1b Halm, odling grovfoder'!AR140:AR151)+SUMPRODUCT('2.1b Halm, odling grovfoder'!I124:I131,'2.1b Halm, odling grovfoder'!AR124:AR131) -> 0
A34: Storbalar (rund- och fyrkantsbalar) | C34: =SUMPRODUCT('2.1b Halm, odling grovfoder'!P46:P57,'2.1b Halm, odling grovfoder'!AS46:AS57)+SUMPRODUCT('2.1b Halm, odling grovfoder'!I30:I37,'2.1b Halm, odling grovfoder'!AS30:AS37) -> 0 | D34: =SUMPRODUCT('2.1b Halm, odling grovfoder'!P92:P103,'2.1b Halm, odling grovfoder'!AS92:AS103)+SUMPRODUCT('2.1b Halm, odling grovfoder'!I76:I83,'2.1b Halm, odling grovfoder'!AS76:AS83) -> 0 | E34: =SUMPRODUCT('2.1b Halm, odling grovfoder'!P140:P151,'2.1b Halm, odling grovfoder'!AS140:AS151)+SUMPRODUCT('2.1b Halm, odling grovfoder'!I124:I131,'2.1b Halm, odling grovfoder'!AS124:AS131) -> 0
A35: Hö | C35: =SUMPRODUCT('2.1b Halm, odling grovfoder'!P46:P57,'2.1b Halm, odling grovfoder'!AT46:AT57)+SUMPRODUCT('2.1b Halm, odling grovfoder'!I30:I37,'2.1b Halm, odling grovfoder'!AT30:AT37) -> 0 | D35: =SUMPRODUCT('2.1b Halm, odling grovfoder'!P92:P103,'2.1b Halm, odling grovfoder'!AT92:AT103)+SUMPRODUCT('2.1b Halm, odling grovfoder'!I76:I83,'2.1b Halm, odling grovfoder'!AT76:AT83) -> 0 | E35: =SUMPRODUCT('2.1b Halm, odling grovfoder'!P140:P151,'2.1b Halm, odling grovfoder'!AT140:AT151)+SUMPRODUCT('2.1b Halm, odling grovfoder'!I124:I131,'2.1b Halm, odling grovfoder'!AT124:AT131) -> 0
A36: Totalt inlagt | B36: MJ OM | C36: =SUM(C31:C35) -> 0 | D36: =SUM(D31:D35) -> 0 | E36: 0 | G36: Total mängd grönmassa inlagt omräknat till MJ, fodervärdering idisslare
A40: I tabellen nedan sammanställs förluster under lagring, d v s efter skörd och före uttag. Fyll i eget värde eller behåll befintligt i prickiga celler. Schabloner i tabellen till höger.
A41: Förluster under lagring (andningsförluster) | B41: Enhet | C41: =Bakgrund!R$7 -> Period 1 | D41: =Bakgrund!S$7 -> Period 2 | E41: =Bakgrund!T$7 -> Period 3 | F41: Egen kommentar | G41: Förklaring | I41: Andningsförluster etc under lagring | J41: låg förlust | K41: medel | L41: hög förlust
A42: Halm | B42: % av ts i inlagd grönmassa | C42: 0.02 | D42: 0.02 | E42: 0.02 | I42: Plansilo | J42: 0.13 | K42: 0.15 | L42: 0.2
A43: Plansilo | C43: 0.15 | D43: 0.15 | E43: 0.15 | G43: Förlusterna är höga vid dålig packning | I43: Torn, slang | J43: 0.08 | K43: 0.1 | L43: 0.15
A44: Torn | C44: 0.1 | D44: 0.1 | E44: 0.1 | I44: Storbalar | J44: 0.01 | K44: 0.02 | L44: 0.05
A45: Storbalar (rund- och fyrkantsbalar) | C45: 0.02 | D45: 0.02 | E45: 0.02 | G45: Generellt låga förluster i storbalar under lagring | I45: Hö | J45: 0.01 | K45: 0.02 | L45: 0.03
A46: Hö | C46: 0.01 | D46: 0.01 | E46: 0.01 | G46: Generellt låga förluster under lagring av hö
A47: Beräknade förluster under lagring
A48: Halm | B48: MJ NE | C48: =C42*C25 -> 0 | D48: 0 | E48: 0
A49: Plansilo, förluster | C49: 0 | D49: 0 | E49: 0
A50: Torn, förluster | C50: 0 | D50: 0 | E50: 0
A51: Storbalar, förluster | C51: 0 | D51: 0 | E51: 0
A52: Hö, förluster | C52: 0 | D52: 0 | E52: 0
A54: Totala förluster, ts | B54: kg ts | C54: =ROUND(SUM(C48:C52),3-LEN(INT(SUM(C48:C52)))) -> 0 | D54: =ROUND(SUM(D48:D52),3-LEN(INT(SUM(D48:D52)))) -> 0 | E54: 0
A55: Totala förluster, MJ | B55: MJ | C55: =ROUND(SUMPRODUCT(C31:C35,C42:C46),3-LEN(INT(SUMPRODUCT(C31:C35,C42:C46)))) -> 0 | D55: =ROUND(SUMPRODUCT(D31:D35,D42:D46),3-LEN(INT(SUMPRODUCT(D31:D35,D42:D46)))) -> 0 | E55: 0
A56: Totala förluster | B56: % av ts i inlagd grönmassa | C56: =IF(C54=0,0,C54/C30) -> 0 | D56: =IF(D54=0,0,D54/D30) -> 0 | E56: =IF(E54=0,0,E54/E30) -> 0
A57: Totalt kvar till uttag | B57: kg ts | C57: =C30-C54 -> 0 | D57: =D30-D54 -> 0 | E57: =E30-E54 -> 0

Sheet 2.3 Utfodrat
A1: 2.3 Utfodrat | J1: Snabblänkar till bladen i verktyget: | W1: Det här betyder färgerna:
A2: =VLOOKUP('2 Intro foder'!B14,'Teknisk administration'!$G$4:$H$6,2,FALSE) -> Obligatoriskt blad | J2: Instruktion | K2: 2.3 Utfodrat | W2: Cell med värden hämtade från annan cell
A3: Här beräknas mängden ts och MJ i foder som förbrukats under perioden, inköpt och eget foder. Justera för ev överlagring! | J3: Bakgrund | K3: 2.4 Kasserat foder och spill | W3: Fyll i din egen siffra
A4: Resultatet används även för att beräkna energi- och ts-förluster vid utfodring. | J4: 1 Intro djuren | K4: 3 Växtnäringsutnyttjande (1) | W4: Fyll i egen siffra - frivilligt, t ex om du har tillgång till uppgift eller om du vill räkna med annat värde än det schablonvärde som visas i angränsande cell
A5: På detta blad kan du även beräkna mängden N, P och K i fodret, uppgifterna behövs i beräkningarna på bladen om växtnäringsutnyttjande. | J5: 1.1 Kött | K5: 3 Växtnäringsutnyttjande (2) | W5: Egen uppgift, men välj värde ur rullista.
J6: 1.2 Tillväxt & förökning | K6: 3 Växtnäringsutnyttjande (3) | W6: Resultat/uträkning
A7: Dina svar på ja/nej-frågorna på Bakgrund styr vilka delar som visas. Grå text eller vita celler = inte relevant för dig. | J7: 1.3 Hälsa & dödlighet | K7: 4 Energi och bränsle | W7: Schablonvärde
A8: Du kan antingen lägga in ett eget recept (alternativ 1) eller välja ett färdigt foder ur en lista (alternativ 2). | J8: 2 Intro foder | K8: 5 Vattenanvändning | W8: Förklaringar till raden
A9: =IF(Bakgrund!$BI$37=1,"Om du ska beräkna växtnäringsutnyttjandet rekommenderas att du enbart använder Alternativ 2! Då beräknas mängden N, P och K i inköpt foder automatiskt, och du slipper fylla i råprotein, P- och K-innehåll själv","Du kan använda båda alternativen samma period. ") -> Du kan använda båda alternativen samma period. | J9: 2.1 Odling foder | K9: 6 Resultat | W9: Plats för egna kommentarer
A10: Röd cell = välj alternativ ur listan eller fyll i ett värde så släcks varningen! | J10: 2.1b Halm, odling grovfoder | K10: 6B Klimat | W10: Glöm inte att fylla i värde! (Här krävs ett värde för att andra beräkningar ska fungera
A11: Perioderna ligger under varandra | J11: 2.2 Förluster vid lagring | W11: grå text, ev vit bakgrund: Avsnittet är inte relevant för dig baserat på svaren på ja/nej-frågor på bladet Bakgrund
A12: Räcker inte raderna till? Högerklicka i tabellen och välj Infoga/Infoga rad
A16: =Bakgrund!R7 -> Period 1 | W16: Hjälptabeller för inköpt foder
A17: ="Alternativ 1: Lägg in eget recept. "&IF(Bakgrund!$BI$37>0," För att beräkna växtnäringsutnyttjandet behöver du ange om fodret är inköpt eller eget. Om fodret innehåller både och ska du dela upp komponenterna i receptet på olika rader.","") -> Alternativ 1: Lägg in eget recept.
A18: Foder, fritext | B18: Fodret ges till: Välj ur lista! | C18: Mängd (kg) | D18: ts-halt (%)* | E18: Råprotein (g/kg)** | F18: Fosfor (g/kg)** | G18: Kalium (g/kg)** | H18: Energi (MJ NE per kg)*** | I18: Inköpt eller eget foder - välj ur lista! | J18: Egen kommentar | M18: växande | N18: suggor | O18: Kolumn3 | P18: inköpt | W18: Energiinnehåll foder (MJ NE per kg foder), exempel. Fyll i eget värde i tabellerna till vänster!
D19: 0.88 | M19: =IF($B19=M$18,1,0) -> 0 | N19: =IF($B19=N$18,1,0) -> 0 | P19: =IF(OR(I19=inköpt,NOT(ISTEXT(I19))),1,0) -> 1 | W19: Typ | X19: Växande | Y19: Suggor. | Z19: ts-halt
D20: 0.88 | M20: =IF($B20=M$18,1,0) -> 0 | N20: 0 | P20: 1 | W20: Spannmål | X20: 9,5-10,5 | Y20: 9,7-10,6 | Z20: 0.86
D21: 0.88 | M21: 0 | N21: 0 | P21: 1 | W21: Åkerböna | X21: 9-9,2 | Y21: 9,2-9,4 | Z21: 0.76
D22: 0.88 | M22: 0 | N22: 0 | P22: 1 | W22: Färdigfoder | X22: 9,3-9,7 | Y22: 9,1-9,8 | Z22: 0.88
D23: 0.88 | M23: 0 | N23: 0 | P23: 1 | W23: Koncentrat | X23: 5,7-6,5 | Y23: 5,8-6,9 | Z23: 0.88
D24: 0.88 | M24: 0 | N24: 0 | P24: 1 | W24: Blötfoder | X24: 2,7-3 | Y24: 2,7-3
A25: Summa (kg, kg ts, N, P, K resp MJ) | C25: =SUM(C19:C24) -> 0 | D25: =SUMPRODUCT(C19:C24,D19:D24) -> 0 | E25: =SUMPRODUCT(C19:C24,E19:E24)/1000/6.25 -> 0 | F25: =SUMPRODUCT(C19:C24,F19:F24)/1000 -> 0 | G25: =SUMPRODUCT(C19:C24,G19:G24)/1000 -> 0 | H25: =SUMPRODUCT(C19:C24,H19:H24) -> 0 | W25: Torrfoder | X25: 9-10 | Y25: 9-10,0 | Z25: 0.88
A26: Varav i inköpt foder | C26: =SUMPRODUCT(C19:C24,$P19:$P24) -> 0 | D26: =SUMPRODUCT(C19:C24,D19:D24,$P19:$P24) -> 0 | E26: =SUMPRODUCT(C19:C24,E19:E24,P19:P24)/1000/6.25 -> 0 | F26: =SUMPRODUCT(F19:F24,P19:P24,C19:C24)/1000 -> 0 | G26: =SUMPRODUCT(G19:G24,P19:P24,C19:C24)/1000 -> 0 | H26: =SUMPRODUCT(H19:H24,P19:P24,C19:C24) -> 0
A27: *Behåll ts-halten eller skriv över med eget värde
A28: ** Ange råprotein, fosfor och kalium som g per kg ts . 1 kg råprotein = 0,16 kg N. Uppgifterna behövs om du ska beräkna växtnäringsutnyttjandet
A29: *** Se hjälptabell till höger!
W31: Hitta fodermedel (kraftfoder, spanmmål, protein etc.)
A32: ="Alternativ 2: Välj bland färdiga schablonfoder, råvaror eller namngivna kraftfoder ur lista. " &IF(Bakgrund!$BI$37=1," Om det behövs, ange om det är ett eget eller inköpt foder (välj ur lista) så överförs resultatet till växtnäringsberäkningarna","") -> Alternativ 2: Välj bland färdiga schablonfoder, råvaror eller namngivna kraftfoder ur lista. | W32: skriv in ett helt ord (t ex "havre" eller "premix") eller en del av ett ord (t ex "bland") i fodret du letar efter i den gula cellen nedan. Tryck Enter!
A33: Foder välj ur lista , eller använd hjälpfunktion till höger! | B33: Fodret ges till: Välj ur lista! | C33: Mängd (kg) | D33: ts-halt (%) | E33: Kväve | F33: Fosfor | G33: Kalium | H33: MJ NE per kg, från tabell | I33: MJ NE per kg, eget värde* | J33: Inköpt eller eget foder - välj ur lista om cellen är orange!** | K33: Egen kommentar | L33: MJ/kg, använt | M33: växande | N33: suggor | O33: Kolumn1 | P33: Kolumn2 | Q33: Kväve2 | R33: Fosfor3 | S33: Kalium4 | W33: Alla träffar i databasen visas i listan därunder. Kopiera rätt alternativ och klistra in i orange cell .
D34: =IF(ISTEXT(A34),VLOOKUP(A34,'tekn adm - produktlistor'!$AR$6:$AY$511,7,FALSE),0) -> 0 | E34: =Q34 -> 0 | F34: =R34 -> 0 | G34: =S34 -> 0 | H34: =IF(ISTEXT('2.3 Utfodrat'!A34),VLOOKUP('2.3 Utfodrat'!$A34,'tekn adm - produktlistor'!$AR$6:$BA$511,IF(B34='Teknisk administration'!$K$356,10,9),FALSE),0) -> 0 | L34: =IF(AND(I34>0,I34<40),I34,'2.3 Utfodrat'!H34) -> 0 | M34: =IF($B34=M$18,1,0) -> 0 | N34: =IF($B34=N$18,1,0) -> 0 | O34: =IF(ISTEXT(A34),IF(VLOOKUP(A34,'tekn adm - produktlistor'!$AR$6:$BB$511,11,FALSE)=inköpt,inköpt,'Teknisk administration'!$L$3),'Teknisk administration'!$L$3) -> Välj | P34: =IF(OR(J34=inköpt,NOT(ISTEXT(J34))),1,0) -> 1 | Q34: =IF(ISTEXT(A34),VLOOKUP(A34,'tekn adm - produktlistor'!$AR$6:$AV$511,3,FALSE)*C34,0) -> 0 | R34: =IF(ISTEXT(A34),VLOOKUP($A34,'tekn adm - produktlistor'!$AR$6:$AV$511,4,FALSE)*$C34,0) -> 0 | S34: =IF(ISTEXT(A34),VLOOKUP($A34,'tekn adm - produktlistor'!$AR$6:$AV$511,5,FALSE)*$C34,0) -> 0 | W34: Hittar du inte rätt? Testa ett annat ord! I databasen finns både foderåvaror (t ex havre) och foder (t ex L Blenda).
D35: =IF(ISTEXT(A35),VLOOKUP(A35,'tekn adm - produktlistor'!$AR$6:$AY$511,7,FALSE),0) -> 0 | E35: 0 | F35: 0 | G35: 0 | H35: =IF(ISTEXT('2.3 Utfodrat'!A35),VLOOKUP('2.3 Utfodrat'!$A35,'tekn adm - produktlistor'!$AR$6:$BA$511,IF(B35='Teknisk administration'!$K$356,10,9),FALSE),0) -> 0 | L35: =IF(AND(I35>0,I35<40),I35,H35) -> 0 | M35: =IF($B35=M$18,1,0) -> 0 | N35: 0 | O35: =IF(ISTEXT(A35),IF(VLOOKUP(A35,'tekn adm - produktlistor'!$AR$6:$BB$511,11,FALSE)=inköpt,inköpt,'Teknisk administration'!$L$3),'Teknisk administration'!$L$3) -> Välj | P35: 1 | Q35: =IF(ISTEXT(A35),VLOOKUP(A35,'tekn adm - produktlistor'!$AR$6:$AV$511,3,FALSE)*C35,0) -> 0 | R35: =IF(ISTEXT(A35),VLOOKUP($A35,'tekn adm - produktlistor'!$AR$6:$AV$511,4,FALSE)*$C35,0) -> 0 | S35: =IF(ISTEXT(A35),VLOOKUP($A35,'tekn adm - produktlistor'!$AR$6:$AV$511,5,FALSE)*$C35,0) -> 0 | W35: Förkortning framför kraftfoder indikerar foderleverantör (L = Lantmännen)
D36: =IF(ISTEXT(A36),VLOOKUP(A36,'tekn adm - produktlistor'!$AR$6:$AY$511,7,FALSE),0) -> 0 | E36: 0 | F36: 0 | G36: 0 | H36: =IF(ISTEXT('2.3 Utfodrat'!A36),VLOOKUP('2.3 Utfodrat'!$A36,'tekn adm - produktlistor'!$AR$6:$BA$511,IF(B36='Teknisk administration'!$K$356,10,9),FALSE),0) -> 0 | L36: 0 | M36: 0 | N36: 0 | O36: =IF(ISTEXT(A36),IF(VLOOKUP(A36,'tekn adm - produktlistor'!$AR$6:$BB$511,11,FALSE)=inköpt,inköpt,'Teknisk administration'!$L$3),'Teknisk administration'!$L$3) -> Välj | P36: 1 | Q36: =IF(ISTEXT(A36),VLOOKUP(A36,'tekn adm - produktlistor'!$AR$6:$AV$511,3,FALSE)*C36,0) -> 0 | R36: =IF(ISTEXT(A36),VLOOKUP($A36,'tekn adm - produktlistor'!$AR$6:$AV$511,4,FALSE)*$C36,0) -> 0 | S36: =IF(ISTEXT(A36),VLOOKUP($A36,'tekn adm - produktlistor'!$AR$6:$AV$511,5,FALSE)*$C36,0) -> 0 | W36: fodermedelet som jag söker efter:
D37: =IF(ISTEXT(A37),VLOOKUP(A37,'tekn adm - produktlistor'!$AR$6:$AY$511,7,FALSE),0) -> 0 | E37: 0 | F37: 0 | G37: 0 | H37: =IF(ISTEXT('2.3 Utfodrat'!A37),VLOOKUP('2.3 Utfodrat'!$A37,'tekn adm - produktlistor'!$AR$6:$BA$511,IF(B37='Teknisk administration'!$K$356,10,9),FALSE),0) -> 0 | L37: 0 | M37: 0 | N37: 0 | O37: =IF(ISTEXT(A37),IF(VLOOKUP(A37,'tekn adm - produktlistor'!$AR$6:$BB$511,11,FALSE)=inköpt,inköpt,'Teknisk administration'!$L$3),'Teknisk administration'!$L$3) -> Välj | P37: 1 | Q37: =IF(ISTEXT(A37),VLOOKUP(A37,'tekn adm - produktlistor'!$AR$6:$AV$511,3,FALSE)*C37,0) -> 0 | R37: =IF(ISTEXT(A37),VLOOKUP($A37,'tekn adm - produktlistor'!$AR$6:$AV$511,4,FALSE)*$C37,0) -> 0 | S37: =IF(ISTEXT(A37),VLOOKUP($A37,'tekn adm - produktlistor'!$AR$6:$AV$511,5,FALSE)*$C37,0) -> 0 | W37: premix
D38: =IF(ISTEXT(A38),VLOOKUP(A38,'tekn adm - produktlistor'!$AR$6:$AY$511,7,FALSE),0) -> 0 | E38: 0 | F38: 0 | G38: 0 | H38: =IF(ISTEXT('2.3 Utfodrat'!A38),VLOOKUP('2.3 Utfodrat'!$A38,'tekn adm - produktlistor'!$AR$6:$BA$511,IF(B38='Teknisk administration'!$K$356,10,9),FALSE),0) -> 0 | L38: 0 | M38: =IF($B38=M$18,1,0) -> 0 | N38: 0 | O38: =IF(ISTEXT(A38),IF(VLOOKUP(A38,'tekn adm - produktlistor'!$AR$6:$BB$511,11,FALSE)=inköpt,inköpt,'Teknisk administration'!$L$3),'Teknisk administration'!$L$3) -> Välj | P38: 1 | Q38: =IF(ISTEXT(A38),VLOOKUP(A38,'tekn adm - produktlistor'!$AR$6:$AV$511,3,FALSE)*C38,0) -> 0 | R38: =IF(ISTEXT(A38),VLOOKUP($A38,'tekn adm - produktlistor'!$AR$6:$AV$511,4,FALSE)*$C38,0) -> 0 | S38: =IF(ISTEXT(A38),VLOOKUP($A38,'tekn adm - produktlistor'!$AR$6:$AV$511,5,FALSE)*$C38,0) -> 0
D39: =IF(ISTEXT(A39),VLOOKUP(A39,'tekn adm - produktlistor'!$AR$6:$AY$511,7,FALSE),0) -> 0 | E39: 0 | F39: 0 | G39: 0 | H39: =IF(ISTEXT('2.3 Utfodrat'!A39),VLOOKUP('2.3 Utfodrat'!$A39,'tekn adm - produktlistor'!$AR$6:$BA$511,IF(B39='Teknisk administration'!$K$356,10,9),FALSE),0) -> 0 | L39: 0 | M39: 0 | N39: 0 | O39: =IF(ISTEXT(A39),IF(VLOOKUP(A39,'tekn adm - produktlistor'!$AR$6:$BB$511,11,FALSE)=inköpt,inköpt,'Teknisk administration'!$L$3),'Teknisk administration'!$L$3) -> Välj | P39: 1 | Q39: =IF(ISTEXT(A39),VLOOKUP(A39,'tekn adm - produktlistor'!$AR$6:$AV$511,3,FALSE)*C39,0) -> 0 | R39: =IF(ISTEXT(A39),VLOOKUP($A39,'tekn adm - produktlistor'!$AR$6:$AV$511,4,FALSE)*$C39,0) -> 0 | S39: =IF(ISTEXT(A39),VLOOKUP($A39,'tekn adm - produktlistor'!$AR$6:$AV$511,5,FALSE)*$C39,0) -> 0 | W39: Lista över fodermedel att välja på:
D40: =IF(ISTEXT(A40),VLOOKUP(A40,'tekn adm - produktlistor'!$AR$6:$AY$511,7,FALSE),0) -> 0 | E40: 0 | F40: 0 | G40: 0 | H40: =IF(ISTEXT('2.3 Utfodrat'!A40),VLOOKUP('2.3 Utfodrat'!$A40,'tekn adm - produktlistor'!$AR$6:$BA$511,IF(B40='Teknisk administration'!$K$356,10,9),FALSE),0) -> 0 | L40: 0 | M40: 0 | N40: 0 | O40: =IF(ISTEXT(A40),IF(VLOOKUP(A40,'tekn adm - produktlistor'!$AR$6:$BB$511,11,FALSE)=inköpt,inköpt,'Teknisk administration'!$L$3),'Teknisk administration'!$L$3) -> Välj | P40: 1 | Q40: =IF(ISTEXT(A40),VLOOKUP(A40,'tekn adm - produktlistor'!$AR$6:$AV$511,3,FALSE)*C40,0) -> 0 | R40: =IF(ISTEXT(A40),VLOOKUP($A40,'tekn adm - produktlistor'!$AR$6:$AV$511,4,FALSE)*$C40,0) -> 0 | S40: =IF(ISTEXT(A40),VLOOKUP($A40,'tekn adm - produktlistor'!$AR$6:$AV$511,5,FALSE)*$C40,0) -> 0 | W40: =IF(ISTEXT(AL41),AL41,"--Inga foder hittade, ändra sökningen---") -> L Gårdspremix Vit + Spårämne Slakt | AM40: rad nr
D41: =IF(ISTEXT(A41),VLOOKUP(A41,'tekn adm - produktlistor'!$AR$6:$AY$511,7,FALSE),0) -> 0 | E41: 0 | F41: 0 | G41: 0 | H41: =IF(ISTEXT('2.3 Utfodrat'!A41),VLOOKUP('2.3 Utfodrat'!$A41,'tekn adm - produktlistor'!$AR$6:$BA$511,IF(B41='Teknisk administration'!$K$356,10,9),FALSE),0) -> 0 | L41: 0 | M41: 0 | N41: 0 | O41: =IF(ISTEXT(A41),IF(VLOOKUP(A41,'tekn adm - produktlistor'!$AR$6:$BB$511,11,FALSE)=inköpt,inköpt,'Teknisk administration'!$L$3),'Teknisk administration'!$L$3) -> Välj | P41: 1 | Q41: =IF(ISTEXT(A41),VLOOKUP(A41,'tekn adm - produktlistor'!$AR$6:$AV$511,3,FALSE)*C41,0) -> 0 | R41: =IF(ISTEXT(A41),VLOOKUP($A41,'tekn adm - produktlistor'!$AR$6:$AV$511,4,FALSE)*$C41,0) -> 0 | S41: =IF(ISTEXT(A41),VLOOKUP($A41,'tekn adm - produktlistor'!$AR$6:$AV$511,5,FALSE)*$C41,0) -> 0 | W41: =IF(AN42=1,AL42,"") -> SF Premix 301 Slakt | AL41: =INDEX('tekn adm - produktlistor'!AR6:AR512,MATCH("*"&'2.3 Utfodrat'!$W$37&"*",'tekn adm - produktlistor'!AR6:AR512,0)) -> L Gårdspremix Vit + Spårämne Slakt | AM41: =VLOOKUP(AL41,'tekn adm - produktlistor'!$AR$6:$AW$631,6,FALSE) -> 272 | AN41: 1
D42: =IF(ISTEXT(A42),VLOOKUP(A42,'tekn adm - produktlistor'!$AR$6:$AY$511,7,FALSE),0) -> 0 | E42: 0 | F42: 0 | G42: 0 | H42: =IF(ISTEXT('2.3 Utfodrat'!A42),VLOOKUP('2.3 Utfodrat'!$A42,'tekn adm - produktlistor'!$AR$6:$BA$511,IF(B42='Teknisk administration'!$K$356,10,9),FALSE),0) -> 0 | L42: 0 | M42: 0 | N42: 0 | O42: =IF(ISTEXT(A42),IF(VLOOKUP(A42,'tekn adm - produktlistor'!$AR$6:$BB$511,11,FALSE)=inköpt,inköpt,'Teknisk administration'!$L$3),'Teknisk administration'!$L$3) -> Välj | P42: 1 | Q42: =IF(ISTEXT(A42),VLOOKUP(A42,'tekn adm - produktlistor'!$AR$6:$AV$511,3,FALSE)*C42,0) -> 0 | R42: =IF(ISTEXT(A42),VLOOKUP($A42,'tekn adm - produktlistor'!$AR$6:$AV$511,4,FALSE)*$C42,0) -> 0 | S42: =IF(ISTEXT(A42),VLOOKUP($A42,'tekn adm - produktlistor'!$AR$6:$AV$511,5,FALSE)*$C42,0) -> 0 | W42: =IF(AN43=1,AL43,"") -> SF Premix 302 Slakt | AL42: =INDEX(OFFSET('tekn adm - produktlistor'!$AR$6,AM41,0):'tekn adm - produktlistor'!$AR$511,MATCH("*"&'2.3 Utfodrat'!$W$37&"*",OFFSET('tekn adm - produktlistor'!$AR$6,AM41,0):'tekn adm - produktlistor'!$AR$511,0)) -> SF Premix 301 Slakt | AM42: =VLOOKUP(AL42,'tekn adm - produktlistor'!$AR$6:$AW$631,6,FALSE) -> 384 | AN42: =IF(ISNUMBER(AM42),IF(AND(AM42>AM41,AN41=1),1,0),0) -> 1
A43: Summa (kg, kg ts, N, P, K resp MJ) | C43: =SUM(C34:C42) -> 0 | D43: =SUMPRODUCT(C34:C42,D34:D42) -> 0 | E43: =SUM(Q34:Q42) -> 0 | F43: =SUM(R34:R42) -> 0 | G43: =SUM(S34:S42) -> 0 | H43: =SUMPRODUCT(C34:C42,L34:L42) -> 0 | M43: =IF(SUMPRODUCT(C34:C42,H34:H42)+SUMPRODUCT(C19:C24,H19:H24)=0,0,(SUMPRODUCT(C34:C42,H34:H42,M34:M42)+SUMPRODUCT(C19:C24,H19:H24,M19:M24))/(SUMPRODUCT(C34:C42,H34:H42)+SUMPRODUCT(C19:C24,H19:H24))) -> 0 | W43: =IF(AN44=1,AL44,"") -> SF Premix 303 Slakt | AL43: =INDEX(OFFSET('tekn adm - produktlistor'!$AR$6,AM42,0):'tekn adm - produktlistor'!$AR$511,MATCH("*"&'2.3 Utfodrat'!$W$37&"*",OFFSET('tekn adm - produktlistor'!$AR$6,AM42,0):'tekn adm - produktlistor'!$AR$511,0)) -> SF Premix 302 Slakt | AM43: =VLOOKUP(AL43,'tekn adm - produktlistor'!$AR$6:$AW$631,6,FALSE) -> 385 | AN43: =IF(ISNUMBER(AM43),IF(AND(AM43>AM42,AN42=1),1,0),0) -> 1
A44: Varav i inköpt foder | C44: =SUMPRODUCT(C34:C42,$P34:$P42) -> 0 | D44: =SUMPRODUCT(C34:C42,D34:D42,P34:P42) -> 0 | E44: =SUMPRODUCT(Q34:Q42,$P34:$P42) -> 0 | F44: =SUMPRODUCT(R34:R42,$P34:$P42) -> 0 | G44: =SUMPRODUCT(S34:S42,$P34:$P42) -> 0 | H44: =SUMPRODUCT(L34:L42,$P34:$P42,C34:C42) -> 0 | W44: =IF(AN45=1,AL45,"") -> SF Premix 304 Knorr | AL44: =INDEX(OFFSET('tekn adm - produktlistor'!$AR$6,AM43,0):'tekn adm - produktlistor'!$AR$511,MATCH("*"&'2.3 Utfodrat'!$W$37&"*",OFFSET('tekn adm - produktlistor'!$AR$6,AM43,0):'tekn adm - produktlistor'!$AR$511,0)) -> SF Premix 303 Slakt | AM44: =VLOOKUP(AL44,'tekn adm - produktlistor'!$AR$6:$AW$631,6,FALSE) -> 386 | AN44: 1
A45: * Om cellen är röd finns inte energiinnehållet i databasen, och du behöver fylla i ett värde för att MJ foder ska kunna beräknas. Varningen släcks när du fyllt i värde. Om cellen är prickig innebär det att du kan skriva in eget värde, om du vill. | W45: =IF(AN46=1,AL46,"") -> SF Premix 305 Slakt | AL45: =INDEX(OFFSET('tekn adm - produktlistor'!$AR$6,AM44,0):'tekn adm - produktlistor'!$AR$511,MATCH("*"&'2.3 Utfodrat'!$W$37&"*",OFFSET('tekn adm - produktlistor'!$AR$6,AM44,0):'tekn adm - produktlistor'!$AR$511,0)) -> SF Premix 304 Knorr | AM45: =VLOOKUP(AL45,'tekn adm - produktlistor'!$AR$6:$AW$631,6,FALSE) -> 387 | AN45: 1
A46: ** Om cellen är orange ska du ange om det är ett inköpt foder (=införd växtnäring) eller eget foder (=tas inte med i beräkning av växtnäringsutnyttjandet). Vissa foder, som inköpta färdigfoder, förutsätts alltid vara inköpta. | W46: =IF(AN47=1,AL47,"") -> SF Premix 401 Sugg | AL46: =INDEX(OFFSET('tekn adm - produktlistor'!$AR$6,AM45,0):'tekn adm - produktlistor'!$AR$511,MATCH("*"&'2.3 Utfodrat'!$W$37&"*",OFFSET('tekn adm - produktlistor'!$AR$6,AM45,0):'tekn adm - produktlistor'!$AR$511,0)) -> SF Premix 305 Slakt | AM46: =VLOOKUP(AL46,'tekn adm - produktlistor'!$AR$6:$AW$631,6,FALSE) -> 388 | AN46: 1
W47: SF Premix 410 Sugg | AL47: =INDEX(OFFSET('tekn adm - produktlistor'!$AR$6,AM46,0):'tekn adm - produktlistor'!$AR$511,MATCH("*"&'2.3 Utfodrat'!$W$37&"*",OFFSET('tekn adm - produktlistor'!$AR$6,AM46,0):'tekn adm - produktlistor'!$AR$511,0)) -> SF Premix 401 Sugg | AM47: =VLOOKUP(AL47,'tekn adm - produktlistor'!$AR$6:$AW$631,6,FALSE) -> 389 | AN47: 1
W48: SF Premix Grön KRAV PK | AL48: =INDEX(OFFSET('tekn adm - produktlistor'!$AR$6,AM47,0):'tekn adm - produktlistor'!$AR$511,MATCH("*"&'2.3 Utfodrat'!$W$37&"*",OFFSET('tekn adm - produktlistor'!$AR$6,AM47,0):'tekn adm - produktlistor'!$AR$511,0)) -> SF Premix 410 Sugg | AM48: =VLOOKUP(AL48,'tekn adm - produktlistor'!$AR$6:$AW$631,6,FALSE) -> 390 | AN48: 1
AL49: =INDEX(OFFSET('tekn adm - produktlistor'!$AR$6,AM48,0):'tekn adm - produktlistor'!$AR$511,MATCH("*"&'2.3 Utfodrat'!$W$37&"*",OFFSET('tekn adm - produktlistor'!$AR$6,AM48,0):'tekn adm - produktlistor'!$AR$511,0)) -> SF Premix Grön KRAV PK | AM49: =VLOOKUP(AL49,'tekn adm - produktlistor'!$AR$6:$AW$631,6,FALSE) -> 391 | AN49: 1
A50: ="Summering utfodrat " &period_1 -> Summering utfodrat Period 1 | B50: Enhet | C50: kg | D50: kg ts | E50: MJ | F50: Förklaring | AL50: =INDEX(OFFSET('tekn adm - produktlistor'!$AR$6,AM49,0):'tekn adm - produktlistor'!$AR$511,MATCH("*"&'2.3 Utfodrat'!$W$37&"*",OFFSET('tekn adm - produktlistor'!$AR$6,AM49,0):'tekn adm - produktlistor'!$AR$511,0)) ->  | AM50: =VLOOKUP(AL50,'tekn adm - produktlistor'!$AR$6:$AW$631,6,FALSE) ->  | AN50: 0
A51: total mängd utfodrat | B51: totalt | C51: =SUM(C52:C53) -> 0 | D51: =SUM(D52:D53) -> 0 | E51: =SUM(E52:E53) -> 0 | F51: summering av mängderna enligt alternativ 1 och 2 ovan | AL51: =INDEX(OFFSET('tekn adm - produktlistor'!$AR$6,AM50,0):'tekn adm - produktlistor'!$AR$511,MATCH("*"&'2.3 Utfodrat'!$W$37&"*",OFFSET('tekn adm - produktlistor'!$AR$6,AM50,0):'tekn adm - produktlistor'!$AR$511,0)) ->  | AM51: =VLOOKUP(AL51,'tekn adm - produktlistor'!$AR$6:$AW$631,6,FALSE) ->  | AN51: 0
A52: växande | B52: till växande grisar | C52: =SUMPRODUCT(C34:C42,M34:M42)+SUMPRODUCT(C19:C24,M19:M24) -> 0 | D52: =SUMPRODUCT(C34:C42,D34:D42,M34:M42)+SUMPRODUCT(C19:C24,D19:D24,M19:M24) -> 0 | E52: =SUMPRODUCT(C34:C42,L34:L42,M34:M42)+SUMPRODUCT(C19:C24,H19:H24,M19:M24) -> 0 | F52: varav till växande grisar | AL52: =INDEX(OFFSET('tekn adm - produktlistor'!$AR$6,AM51,0):'tekn adm - produktlistor'!$AR$511,MATCH("*"&'2.3 Utfodrat'!$W$37&"*",OFFSET('tekn adm - produktlistor'!$AR$6,AM51,0):'tekn adm - produktlistor'!$AR$511,0)) ->  | AM52: =VLOOKUP(AL52,'tekn adm - produktlistor'!$AR$6:$AW$631,6,FALSE) ->  | AN52: 0
A53: suggor | B53: till suggor | C53: =SUMPRODUCT(C34:C42,N34:N42)+SUMPRODUCT(C19:C24,N19:N24) -> 0 | D53: =SUMPRODUCT(C34:C42,D34:D42,N34:N42)+SUMPRODUCT(C19:C24,D19:D24,N19:N24) -> 0 | E53: =SUMPRODUCT(C34:C42,L34:L42,N34:N42)+SUMPRODUCT(C19:C24,H19:H24,N19:N24) -> 0 | F53: varav till suggor och gyltor | AL53: =INDEX(OFFSET('tekn adm - produktlistor'!$AR$6,AM52,0):'tekn adm - produktlistor'!$AR$511,MATCH("*"&'2.3 Utfodrat'!$W$37&"*",OFFSET('tekn adm - produktlistor'!$AR$6,AM52,0):'tekn adm - produktlistor'!$AR$511,0)) ->  | AM53: =VLOOKUP(AL53,'tekn adm - produktlistor'!$AR$6:$AW$631,6,FALSE) ->  | AN53: 0
A54: Totalt mängd utfodrat dividerat med total mängd kött | B54: per kg kött (inkl förändringar i levandelager) | C54: =IF(SUM('6 Resultat'!$Q$35:$Q$37,'6 Resultat'!$Q$38)=0,0,C51/SUM('6 Resultat'!$Q$35:$Q$37,'6 Resultat'!$Q$38)) -> 0 | D54: =IF(SUM('6 Resultat'!$Q$35:$Q$37,'6 Resultat'!$Q$38)=0,0,D51/SUM('6 Resultat'!$Q$35:$Q$37,'6 Resultat'!$Q$38)) -> 0 | E54: =IF(SUM('6 Resultat'!$Q$35:$Q$37,'6 Resultat'!$Q$38)=0,0,E51/SUM('6 Resultat'!$Q$35:$Q$37,'6 Resultat'!$Q$38)) -> 0 | F54: Kött från tillväxtgrisar, suggor och ev förändrat levandelager | AL54: =INDEX(OFFSET('tekn adm - produktlistor'!$AR$6,AM53,0):'tekn adm - produktlistor'!$AR$511,MATCH("*"&'2.3 Utfodrat'!$W$37&"*",OFFSET('tekn adm - produktlistor'!$AR$6,AM53,0):'tekn adm - produktlistor'!$AR$511,0)) ->  | AM54: =VLOOKUP(AL54,'tekn adm - produktlistor'!$AR$6:$AW$631,6,FALSE) ->  | AN54: 0
A55: växande | B55: per kg kött | C55: =IF(SUM('6 Resultat'!$Q$35:$Q$36)=0,0,C52/SUM('6 Resultat'!$Q$35:$Q$36)) -> 0 | D55: =IF(SUM('6 Resultat'!$Q$35:$Q$36)=0,0,D52/SUM('6 Resultat'!$Q$35:$Q$36)) -> 0 | E55: =IF(SUM('6 Resultat'!$Q$35:$Q$36)=0,0,E52/SUM('6 Resultat'!$Q$35:$Q$36)) -> 0 | F55: Per kg kött från tillväxtgrisar | AL55: =INDEX(OFFSET('tekn adm - produktlistor'!$AR$6,AM54,0):'tekn adm - produktlistor'!$AR$511,MATCH("*"&'2.3 Utfodrat'!$W$37&"*",OFFSET('tekn adm - produktlistor'!$AR$6,AM54,0):'tekn adm - produktlistor'!$AR$511,0)) ->  | AM55: =VLOOKUP(AL55,'tekn adm - produktlistor'!$AR$6:$AW$631,6,FALSE) ->  | AN55: 0
A56: suggor | B56: per kg kött | C56: =IF('6 Resultat'!$Q$37=0,0,C53/'6 Resultat'!$Q$37) -> 0 | D56: =IF('6 Resultat'!$Q$37=0,0,D53/'6 Resultat'!$Q$37) -> 0 | E56: =IF('6 Resultat'!$Q$37=0,0,E53/'6 Resultat'!$Q$37) -> 0 | F56: Per kg kött från suggor | AL56: =INDEX(OFFSET('tekn adm - produktlistor'!$AR$6,AM55,0):'tekn adm - produktlistor'!$AR$511,MATCH("*"&'2.3 Utfodrat'!$W$37&"*",OFFSET('tekn adm - produktlistor'!$AR$6,AM55,0):'tekn adm - produktlistor'!$AR$511,0)) ->  | AM56: =VLOOKUP(AL56,'tekn adm - produktlistor'!$AR$6:$AW$631,6,FALSE) ->  | AN56: 0
AL57: =INDEX(OFFSET('tekn adm - produktlistor'!$AR$6,AM56,0):'tekn adm - produktlistor'!$AR$511,MATCH("*"&'2.3 Utfodrat'!$W$37&"*",OFFSET('tekn adm - produktlistor'!$AR$6,AM56,0):'tekn adm - produktlistor'!$AR$511,0)) ->  | AM57: =VLOOKUP(AL57,'tekn adm - produktlistor'!$AR$6:$AW$631,6,FALSE) ->  | AN57: 0
AL58: =INDEX(OFFSET('tekn adm - produktlistor'!$AR$6,AM57,0):'tekn adm - produktlistor'!$AR$511,MATCH("*"&'2.3 Utfodrat'!$W$37&"*",OFFSET('tekn adm - produktlistor'!$AR$6,AM57,0):'tekn adm - produktlistor'!$AR$511,0)) ->  | AM58: =VLOOKUP(AL58,'tekn adm - produktlistor'!$AR$6:$AW$631,6,FALSE) ->  | AN58: 0
AL59: =INDEX(OFFSET('tekn adm - produktlistor'!$AR$6,AM58,0):'tekn adm - produktlistor'!$AR$511,MATCH("*"&'2.3 Utfodrat'!$W$37&"*",OFFSET('tekn adm - produktlistor'!$AR$6,AM58,0):'tekn adm - produktlistor'!$AR$511,0)) ->  | AM59: =VLOOKUP(AL59,'tekn adm - produktlistor'!$AR$6:$AW$631,6,FALSE) ->  | AN59: 0
AL60: =INDEX(OFFSET('tekn adm - produktlistor'!$AR$6,AM59,0):'tekn adm - produktlistor'!$AR$511,MATCH("*"&'2.3 Utfodrat'!$W$37&"*",OFFSET('tekn adm - produktlistor'!$AR$6,AM59,0):'tekn adm - produktlistor'!$AR$511,0)) ->  | AM60: =VLOOKUP(AL60,'tekn adm - produktlistor'!$AR$6:$AW$631,6,FALSE) ->  | AN60: 0
AL61: =INDEX(OFFSET('tekn adm - produktlistor'!$AR$6,AM60,0):'tekn adm - produktlistor'!$AR$511,MATCH("*"&'2.3 Utfodrat'!$W$37&"*",OFFSET('tekn adm - produktlistor'!$AR$6,AM60,0):'tekn adm - produktlistor'!$AR$511,0)) ->  | AM61: =VLOOKUP(AL61,'tekn adm - produktlistor'!$AR$6:$AW$631,6,FALSE) ->  | AN61: 0
AL62: =INDEX(OFFSET('tekn adm - produktlistor'!$AR$6,AM61,0):'tekn adm - produktlistor'!$AR$511,MATCH("*"&'2.3 Utfodrat'!$W$37&"*",OFFSET('tekn adm - produktlistor'!$AR$6,AM61,0):'tekn adm - produktlistor'!$AR$511,0)) ->  | AM62: =VLOOKUP(AL62,'tekn adm - produktlistor'!$AR$6:$AW$631,6,FALSE) ->  | AN62: 0
AL63: =INDEX(OFFSET('tekn adm - produktlistor'!$AR$6,AM62,0):'tekn adm - produktlistor'!$AR$511,MATCH("*"&'2.3 Utfodrat'!$W$37&"*",OFFSET('tekn adm - produktlistor'!$AR$6,AM62,0):'tekn adm - produktlistor'!$AR$511,0)) ->  | AM63: =VLOOKUP(AL63,'tekn adm - produktlistor'!$AR$6:$AW$631,6,FALSE) ->  | AN63: 0
AL64: =INDEX(OFFSET('tekn adm - produktlistor'!$AR$6,AM63,0):'tekn adm - produktlistor'!$AR$511,MATCH("*"&'2.3 Utfodrat'!$W$37&"*",OFFSET('tekn adm - produktlistor'!$AR$6,AM63,0):'tekn adm - produktlistor'!$AR$511,0)) ->  | AM64: =VLOOKUP(AL64,'tekn adm - produktlistor'!$AR$6:$AW$631,6,FALSE) ->  | AN64: 0
AL65: =INDEX(OFFSET('tekn adm - produktlistor'!$AR$6,AM64,0):'tekn adm - produktlistor'!$AR$511,MATCH("*"&'2.3 Utfodrat'!$W$37&"*",OFFSET('tekn adm - produktlistor'!$AR$6,AM64,0):'tekn adm - produktlistor'!$AR$511,0)) ->  | AM65: =VLOOKUP(AL65,'tekn adm - produktlistor'!$AR$6:$AW$631,6,FALSE) ->  | AN65: 0
AL66: =INDEX(OFFSET('tekn adm - produktlistor'!$AR$6,AM65,0):'tekn adm - produktlistor'!$AR$511,MATCH("*"&'2.3 Utfodrat'!$W$37&"*",OFFSET('tekn adm - produktlistor'!$AR$6,AM65,0):'tekn adm - produktlistor'!$AR$511,0)) ->  | AM66: =VLOOKUP(AL66,'tekn adm - produktlistor'!$AR$6:$AW$631,6,FALSE) ->  | AN66: 0
A67: =Bakgrund!S7 -> Period 2 | AL67: =INDEX(OFFSET('tekn adm - produktlistor'!$AR$6,AM66,0):'tekn adm - produktlistor'!$AR$511,MATCH("*"&'2.3 Utfodrat'!$W$37&"*",OFFSET('tekn adm - produktlistor'!$AR$6,AM66,0):'tekn adm - produktlistor'!$AR$511,0)) ->  | AM67: =VLOOKUP(AL67,'tekn adm - produktlistor'!$AR$6:$AW$631,6,FALSE) ->  | AN67: 0
A68: Alternativ 1: Lägg in eget recept | AL68: =INDEX(OFFSET('tekn adm - produktlistor'!$AR$6,AM67,0):'tekn adm - produktlistor'!$AR$511,MATCH("*"&'2.3 Utfodrat'!$W$37&"*",OFFSET('tekn adm - produktlistor'!$AR$6,AM67,0):'tekn adm - produktlistor'!$AR$511,0)) ->  | AM68: =VLOOKUP(AL68,'tekn adm - produktlistor'!$AR$6:$AW$631,6,FALSE) ->  | AN68: 0
A69: Foder, fritext | B69: Fodret ges till: Välj ur lista! | C69: Mängd (kg) | D69: ts-halt (%)* | E69: Råprotein (g/kg)** | F69: Fosfor (g/kg)** | G69: Kalium (g/kg)** | H69: Energi (MJ NE per kg)*** | I69: Inköpt eller eget foder - välj ur lista! | J69: Egen kommentar | M69: växande | N69: suggor | O69: Kolumn3 | P69: inköpt | AL69: =INDEX(OFFSET('tekn adm - produktlistor'!$AR$6,AM68,0):'tekn adm - produktlistor'!$AR$511,MATCH("*"&'2.3 Utfodrat'!$W$37&"*",OFFSET('tekn adm - produktlistor'!$AR$6,AM68,0):'tekn adm - produktlistor'!$AR$511,0)) ->  | AM69: =VLOOKUP(AL69,'tekn adm - produktlistor'!$AR$6:$AW$631,6,FALSE) ->  | AN69: 0
D70: 0.88 | M70: =IF($B70=M$18,1,0) -> 0 | N70: =IF($B70=N$18,1,0) -> 0 | P70: =IF(OR(I70=inköpt,NOT(ISTEXT(I70))),1,0) -> 1 | AL70: =INDEX(OFFSET('tekn adm - produktlistor'!$AR$6,AM69,0):'tekn adm - produktlistor'!$AR$511,MATCH("*"&'2.3 Utfodrat'!$W$37&"*",OFFSET('tekn adm - produktlistor'!$AR$6,AM69,0):'tekn adm - produktlistor'!$AR$511,0)) ->  | AM70: =VLOOKUP(AL70,'tekn adm - produktlistor'!$AR$6:$AW$631,6,FALSE) ->  | AN70: 0
D71: 0.88 | M71: =IF($B71=M$18,1,0) -> 0 | N71: 0 | P71: 1 | AL71: =INDEX(OFFSET('tekn adm - produktlistor'!$AR$6,AM70,0):'tekn adm - produktlistor'!$AR$511,MATCH("*"&'2.3 Utfodrat'!$W$37&"*",OFFSET('tekn adm - produktlistor'!$AR$6,AM70,0):'tekn adm - produktlistor'!$AR$511,0)) ->  | AM71: =VLOOKUP(AL71,'tekn adm - produktlistor'!$AR$6:$AW$631,6,FALSE) ->  | AN71: 0
D72: 0.88 | M72: 0 | N72: 0 | P72: 1 | AL72: =INDEX(OFFSET('tekn adm - produktlistor'!$AR$6,AM71,0):'tekn adm - produktlistor'!$AR$511,MATCH("*"&'2.3 Utfodrat'!$W$37&"*",OFFSET('tekn adm - produktlistor'!$AR$6,AM71,0):'tekn adm - produktlistor'!$AR$511,0)) ->  | AM72: =VLOOKUP(AL72,'tekn adm - produktlistor'!$AR$6:$AW$631,6,FALSE) ->  | AN72: 0
D73: 0.88 | M73: 0 | N73: 0 | P73: 1 | AL73: =INDEX(OFFSET('tekn adm - produktlistor'!$AR$6,AM72,0):'tekn adm - produktlistor'!$AR$511,MATCH("*"&'2.3 Utfodrat'!$W$37&"*",OFFSET('tekn adm - produktlistor'!$AR$6,AM72,0):'tekn adm - produktlistor'!$AR$511,0)) ->  | AM73: =VLOOKUP(AL73,'tekn adm - produktlistor'!$AR$6:$AW$631,6,FALSE) ->  | AN73: 0
D74: 0.88 | M74: 0 | N74: 0 | P74: 1 | AL74: =INDEX(OFFSET('tekn adm - produktlistor'!$AR$6,AM73,0):'tekn adm - produktlistor'!$AR$511,MATCH("*"&'2.3 Utfodrat'!$W$37&"*",OFFSET('tekn adm - produktlistor'!$AR$6,AM73,0):'tekn adm - produktlistor'!$AR$511,0)) ->  | AM74: =VLOOKUP(AL74,'tekn adm - produktlistor'!$AR$6:$AW$631,6,FALSE) ->  | AN74: 0
D75: 0.88 | M75: 0 | N75: 0 | P75: 1 | W75: =IF(AN75=1,"--Förfina sökningen för att se fler alternativ--","") ->  | AL75: =INDEX(OFFSET('tekn adm - produktlistor'!$AR$6,AM74,0):'tekn adm - produktlistor'!$AR$511,MATCH("*"&'2.3 Utfodrat'!$W$37&"*",OFFSET('tekn adm - produktlistor'!$AR$6,AM74,0):'tekn adm - produktlistor'!$AR$511,0)) ->  | AM75: =VLOOKUP(AL75,'tekn adm - produktlistor'!$AR$6:$AW$631,6,FALSE) ->  | AN75: 0
A76: Summa (kg, kg ts, N, P, K resp MJ) | C76: =SUM(C70:C75) -> 0 | D76: =SUMPRODUCT(C70:C75,D70:D75) -> 0 | E76: =SUMPRODUCT(C70:C75,E70:E75)/1000/6.25 -> 0 | F76: =SUMPRODUCT(C70:C75,F70:F75)/1000 -> 0 | G76: =SUMPRODUCT(C70:C75,G70:G75)/1000 -> 0 | H76: =SUMPRODUCT(C70:C75,H70:H75) -> 0
A77: Varav i inköpt foder | C77: =SUMPRODUCT(C70:C75,$P70:$P75) -> 0 | D77: =SUMPRODUCT(C70:C75,D70:D75,$P70:$P75) -> 0 | E77: =SUMPRODUCT(C70:C75,E70:E75,P70:P75)/1000/6.25 -> 0 | F77: =SUMPRODUCT(F70:F75,P70:P75,C70:C75)/1000 -> 0 | G77: =SUMPRODUCT(G70:G75,P70:P75,C70:C75)/1000 -> 0 | H77: =SUMPRODUCT(H70:H75,P70:P75,C70:C75) -> 0
A78: *Behåll ts-halten eller skriv över med eget värde
A79: ** Ange råprotein, fosfor och kalium som g per kg ts . 1 kg råprotein = 0,16 kg N. Uppgifterna behövs om du ska beräkna växtnäringsutnyttjandet
A80: *** Se hjälptabell till höger!
A84: ="Alternativ 2: Välj bland färdiga schablonfoder, råvaror eller namngivna kraftfoder ur lista. " &IF(Bakgrund!$BI$37=1," Om det behövs, ange om det är ett eget eller inköpt foder (välj ur lista) så överförs resultatet till växtnäringsberäkningarna","") -> Alternativ 2: Välj bland färdiga schablonfoder, råvaror eller namngivna kraftfoder ur lista.
A85: Foder välj ur lista , eller använd hjälpfunktion till höger! | B85: Fodret ges till: Välj ur lista! | C85: Mängd (kg) | D85: ts-halt (%) | E85: Kväve | F85: Fosfor | G85: Kalium | H85: MJ NE per kg, från tabell | I85: MJ NE per kg, eget värde* | J85: Inköpt eller eget foder - välj ur lista om cellen är orange!** | K85: Egen kommentar | L85: MJ/kg, använt | M85: växande | N85: suggor | O85: Kolumn1 | P85: Kolumn2 | Q85: N | R85: P | S85: K
D86: =IF(ISTEXT(A86),VLOOKUP(A86,'tekn adm - produktlistor'!$AR$6:$AY$511,7,FALSE),0) -> 0 | E86: =Q86 -> 0 | F86: =R86 -> 0 | G86: =S86 -> 0 | H86: =IF(ISTEXT('2.3 Utfodrat'!A86),VLOOKUP('2.3 Utfodrat'!$A86,'tekn adm - produktlistor'!$AR$6:$BA$511,IF(B86='Teknisk administration'!$K$356,10,9),FALSE),0) -> 0 | L86: =IF(AND(I86>0,I86<40),I86,'2.3 Utfodrat'!H86) -> 0 | M86: =IF($B86=M$18,1,0) -> 0 | N86: =IF($B86=N$18,1,0) -> 0 | O86: =IF(ISTEXT(A86),IF(VLOOKUP(A86,'tekn adm - produktlistor'!$AR$6:$BB$511,11,FALSE)=inköpt,inköpt,'Teknisk administration'!$L$3),'Teknisk administration'!$L$3) -> Välj | P86: =IF(OR(J86=inköpt,NOT(ISTEXT(J86))),1,0) -> 1 | Q86: =IF(ISTEXT(A86),VLOOKUP(A86,'tekn adm - produktlistor'!$AR$6:$AV$511,3,FALSE)*C86,0) -> 0 | R86: =IF(ISTEXT(A86),VLOOKUP($A86,'tekn adm - produktlistor'!$AR$6:$AV$511,4,FALSE)*$C86,0) -> 0 | S86: =IF(ISTEXT(A86),VLOOKUP($A86,'tekn adm - produktlistor'!$AR$6:$AV$511,5,FALSE)*$C86,0) -> 0
D87: =IF(ISTEXT(A87),VLOOKUP(A87,'tekn adm - produktlistor'!$AR$6:$AY$511,7,FALSE),0) -> 0 | E87: 0 | F87: 0 | G87: 0 | H87: =IF(ISTEXT('2.3 Utfodrat'!A87),VLOOKUP('2.3 Utfodrat'!$A87,'tekn adm - produktlistor'!$AR$6:$BA$511,IF(B87='Teknisk administration'!$K$356,10,9),FALSE),0) -> 0 | L87: =IF(AND(I87>0,I87<40),I87,H87) -> 0 | M87: =IF($B87=M$18,1,0) -> 0 | N87: 0 | O87: =IF(ISTEXT(A87),IF(VLOOKUP(A87,'tekn adm - produktlistor'!$AR$6:$BB$511,11,FALSE)=inköpt,inköpt,'Teknisk administration'!$L$3),'Teknisk administration'!$L$3) -> Välj | P87: 1 | Q87: =IF(ISTEXT(A87),VLOOKUP(A87,'tekn adm - produktlistor'!$AR$6:$AV$511,3,FALSE)*C87,0) -> 0 | R87: =IF(ISTEXT(A87),VLOOKUP($A87,'tekn adm - produktlistor'!$AR$6:$AV$511,4,FALSE)*$C87,0) -> 0 | S87: =IF(ISTEXT(A87),VLOOKUP($A87,'tekn adm - produktlistor'!$AR$6:$AV$511,5,FALSE)*$C87,0) -> 0
D88: =IF(ISTEXT(A88),VLOOKUP(A88,'tekn adm - produktlistor'!$AR$6:$AY$511,7,FALSE),0) -> 0 | E88: 0 | F88: 0 | G88: 0 | H88: =IF(ISTEXT('2.3 Utfodrat'!A88),VLOOKUP('2.3 Utfodrat'!$A88,'tekn adm - produktlistor'!$AR$6:$BA$511,IF(B88='Teknisk administration'!$K$356,10,9),FALSE),0) -> 0 | L88: 0 | M88: 0 | N88: 0 | O88: =IF(ISTEXT(A88),IF(VLOOKUP(A88,'tekn adm - produktlistor'!$AR$6:$BB$511,11,FALSE)=inköpt,inköpt,'Teknisk administration'!$L$3),'Teknisk administration'!$L$3) -> Välj | P88: 1 | Q88: =IF(ISTEXT(A88),VLOOKUP(A88,'tekn adm - produktlistor'!$AR$6:$AV$511,3,FALSE)*C88,0) -> 0 | R88: =IF(ISTEXT(A88),VLOOKUP($A88,'tekn adm - produktlistor'!$AR$6:$AV$511,4,FALSE)*$C88,0) -> 0 | S88: =IF(ISTEXT(A88),VLOOKUP($A88,'tekn adm - produktlistor'!$AR$6:$AV$511,5,FALSE)*$C88,0) -> 0
D89: =IF(ISTEXT(A89),VLOOKUP(A89,'tekn adm - produktlistor'!$AR$6:$AY$511,7,FALSE),0) -> 0 | E89: 0 | F89: 0 | G89: 0 | H89: =IF(ISTEXT('2.3 Utfodrat'!A89),VLOOKUP('2.3 Utfodrat'!$A89,'tekn adm - produktlistor'!$AR$6:$BA$511,IF(B89='Teknisk administration'!$K$356,10,9),FALSE),0) -> 0 | L89: 0 | M89: =IF($B89=M$18,1,0) -> 0 | N89: =IF($B89=N$18,1,0) -> 0 | O89: =IF(ISTEXT(A89),IF(VLOOKUP(A89,'tekn adm - produktlistor'!$AR$6:$BB$511,11,FALSE)=inköpt,inköpt,'Teknisk administration'!$L$3),'Teknisk administration'!$L$3) -> Välj | P89: 1 | Q89: =IF(ISTEXT(A89),VLOOKUP(A89,'tekn adm - produktlistor'!$AR$6:$AV$511,3,FALSE)*C89,0) -> 0 | R89: =IF(ISTEXT(A89),VLOOKUP($A89,'tekn adm - produktlistor'!$AR$6:$AV$511,4,FALSE)*$C89,0) -> 0 | S89: =IF(ISTEXT(A89),VLOOKUP($A89,'tekn adm - produktlistor'!$AR$6:$AV$511,5,FALSE)*$C89,0) -> 0
D90: =IF(ISTEXT(A90),VLOOKUP(A90,'tekn adm - produktlistor'!$AR$6:$AY$511,7,FALSE),0) -> 0 | E90: 0 | F90: 0 | G90: 0 | H90: =IF(ISTEXT('2.3 Utfodrat'!A90),VLOOKUP('2.3 Utfodrat'!$A90,'tekn adm - produktlistor'!$AR$6:$BA$511,IF(B90='Teknisk administration'!$K$356,10,9),FALSE),0) -> 0 | L90: 0 | M90: =IF($B90=M$18,1,0) -> 0 | N90: =IF($B90=N$18,1,0) -> 0 | O90: =IF(ISTEXT(A90),IF(VLOOKUP(A90,'tekn adm - produktlistor'!$AR$6:$BB$511,11,FALSE)=inköpt,inköpt,'Teknisk administration'!$L$3),'Teknisk administration'!$L$3) -> Välj | P90: 1 | Q90: =IF(ISTEXT(A90),VLOOKUP(A90,'tekn adm - produktlistor'!$AR$6:$AV$511,3,FALSE)*C90,0) -> 0 | R90: =IF(ISTEXT(A90),VLOOKUP($A90,'tekn adm - produktlistor'!$AR$6:$AV$511,4,FALSE)*$C90,0) -> 0 | S90: =IF(ISTEXT(A90),VLOOKUP($A90,'tekn adm - produktlistor'!$AR$6:$AV$511,5,FALSE)*$C90,0) -> 0
D91: =IF(ISTEXT(A91),VLOOKUP(A91,'tekn adm - produktlistor'!$AR$6:$AY$511,7,FALSE),0) -> 0 | E91: 0 | F91: 0 | G91: 0 | H91: =IF(ISTEXT('2.3 Utfodrat'!A91),VLOOKUP('2.3 Utfodrat'!$A91,'tekn adm - produktlistor'!$AR$6:$BA$511,IF(B91='Teknisk administration'!$K$356,10,9),FALSE),0) -> 0 | L91: 0 | M91: 0 | N91: 0 | O91: =IF(ISTEXT(A91),IF(VLOOKUP(A91,'tekn adm - produktlistor'!$AR$6:$BB$511,11,FALSE)=inköpt,inköpt,'Teknisk administration'!$L$3),'Teknisk administration'!$L$3) -> Välj | P91: 1 | Q91: =IF(ISTEXT(A91),VLOOKUP(A91,'tekn adm - produktlistor'!$AR$6:$AV$511,3,FALSE)*C91,0) -> 0 | R91: =IF(ISTEXT(A91),VLOOKUP($A91,'tekn adm - produktlistor'!$AR$6:$AV$511,4,FALSE)*$C91,0) -> 0 | S91: =IF(ISTEXT(A91),VLOOKUP($A91,'tekn adm - produktlistor'!$AR$6:$AV$511,5,FALSE)*$C91,0) -> 0
D92: =IF(ISTEXT(A92),VLOOKUP(A92,'tekn adm - produktlistor'!$AR$6:$AY$511,7,FALSE),0) -> 0 | E92: 0 | F92: 0 | G92: 0 | H92: =IF(ISTEXT('2.3 Utfodrat'!A92),VLOOKUP('2.3 Utfodrat'!$A92,'tekn adm - produktlistor'!$AR$6:$BA$511,IF(B92='Teknisk administration'!$K$356,10,9),FALSE),0) -> 0 | L92: 0 | M92: 0 | N92: 0 | O92: =IF(ISTEXT(A92),IF(VLOOKUP(A92,'tekn adm - produktlistor'!$AR$6:$BB$511,11,FALSE)=inköpt,inköpt,'Teknisk administration'!$L$3),'Teknisk administration'!$L$3) -> Välj | P92: 1 | Q92: =IF(ISTEXT(A92),VLOOKUP(A92,'tekn adm - produktlistor'!$AR$6:$AV$511,3,FALSE)*C92,0) -> 0 | R92: =IF(ISTEXT(A92),VLOOKUP($A92,'tekn adm - produktlistor'!$AR$6:$AV$511,4,FALSE)*$C92,0) -> 0 | S92: =IF(ISTEXT(A92),VLOOKUP($A92,'tekn adm - produktlistor'!$AR$6:$AV$511,5,FALSE)*$C92,0) -> 0
D93: =IF(ISTEXT(A93),VLOOKUP(A93,'tekn adm - produktlistor'!$AR$6:$AY$511,7,FALSE),0) -> 0 | E93: 0 | F93: 0 | G93: 0 | H93: =IF(ISTEXT('2.3 Utfodrat'!A93),VLOOKUP('2.3 Utfodrat'!$A93,'tekn adm - produktlistor'!$AR$6:$BA$511,IF(B93='Teknisk administration'!$K$356,10,9),FALSE),0) -> 0 | L93: 0 | M93: 0 | N93: 0 | O93: =IF(ISTEXT(A93),IF(VLOOKUP(A93,'tekn adm - produktlistor'!$AR$6:$BB$511,11,FALSE)=inköpt,inköpt,'Teknisk administration'!$L$3),'Teknisk administration'!$L$3) -> Välj | P93: 1 | Q93: =IF(ISTEXT(A93),VLOOKUP(A93,'tekn adm - produktlistor'!$AR$6:$AV$511,3,FALSE)*C93,0) -> 0 | R93: =IF(ISTEXT(A93),VLOOKUP($A93,'tekn adm - produktlistor'!$AR$6:$AV$511,4,FALSE)*$C93,0) -> 0 | S93: =IF(ISTEXT(A93),VLOOKUP($A93,'tekn adm - produktlistor'!$AR$6:$AV$511,5,FALSE)*$C93,0) -> 0
D94: =IF(ISTEXT(A94),VLOOKUP(A94,'tekn adm - produktlistor'!$AR$6:$AY$511,7,FALSE),0) -> 0 | E94: 0 | F94: 0 | G94: 0 | H94: =IF(ISTEXT('2.3 Utfodrat'!A94),VLOOKUP('2.3 Utfodrat'!$A94,'tekn adm - produktlistor'!$AR$6:$BA$511,IF(B94='Teknisk administration'!$K$356,10,9),FALSE),0) -> 0 | L94: 0 | M94: 0 | N94: 0 | O94: =IF(ISTEXT(A94),IF(VLOOKUP(A94,'tekn adm - produktlistor'!$AR$6:$BB$511,11,FALSE)=inköpt,inköpt,'Teknisk administration'!$L$3),'Teknisk administration'!$L$3) -> Välj | P94: 1 | Q94: =IF(ISTEXT(A94),VLOOKUP(A94,'tekn adm - produktlistor'!$AR$6:$AV$511,3,FALSE)*C94,0) -> 0 | R94: =IF(ISTEXT(A94),VLOOKUP($A94,'tekn adm - produktlistor'!$AR$6:$AV$511,4,FALSE)*$C94,0) -> 0 | S94: =IF(ISTEXT(A94),VLOOKUP($A94,'tekn adm - produktlistor'!$AR$6:$AV$511,5,FALSE)*$C94,0) -> 0
A95: Summa (kg, kg ts, N, P, K resp MJ) | C95: =SUM(C86:C94) -> 0 | D95: =SUMPRODUCT(C86:C94,D86:D94) -> 0 | E95: =SUM(Q86:Q94) -> 0 | F95: =SUM(R86:R94) -> 0 | G95: =SUM(S86:S94) -> 0 | H95: =SUMPRODUCT(C86:C94,L86:L94) -> 0 | M95: =IF(SUMPRODUCT(C86:C94,H86:H94)+SUMPRODUCT(C70:C75,H70:H75)=0,0,(SUMPRODUCT(C86:C94,H86:H94,M86:M94)+SUMPRODUCT(C70:C75,H70:H75,M70:M75))/(SUMPRODUCT(C86:C94,H86:H94)+SUMPRODUCT(C70:C75,H70:H75))) -> 0
A96: Varav i inköpt foder | C96: =SUMPRODUCT(C86:C94,$P86:$P94) -> 0 | D96: =SUMPRODUCT(C86:C94,D86:D94,P86:P94) -> 0 | E96: =SUMPRODUCT(Q86:Q94,$P86:$P94) -> 0 | F96: =SUMPRODUCT(R86:R94,$P86:$P94) -> 0 | G96: =SUMPRODUCT(S86:S94,$P86:$P94) -> 0 | H96: =SUMPRODUCT(L86:L94,$P86:$P94,C86:C94) -> 0
A97: * Om cellen är röd finns inte energiinnehållet i databasen, och du behöver fylla i ett värde för att MJ foder ska kunna beräknas. Varningen släcks när du fyllt i värde. Om cellen är prickig innebär det att du kan skriva in eget värde, om du vill.
A98: ** Om cellen är orange ska du ange om det är ett inköpt foder (=införd växtnäring) eller eget foder (=tas inte med i beräkning av växtnäringsutnyttjandet). Vissa foder, som inköpta färdigfoder, förutsätts alltid vara inköpta.
A103: ="Summering utfodrat " &period_2 -> Summering utfodrat Period 2 | B103: Enhet | C103: kg | D103: kg ts | E103: MJ
A104: total mängd utfodrat | B104: totalt | C104: =SUM(C105:C106) -> 0 | D104: =SUM(D105:D106) -> 0 | E104: =SUM(E105:E106) -> 0 | F104: summering av mängderna enligt alternativ 1 och 2 ovan
A105: växande | B105: till växande grisar | C105: =SUMPRODUCT(C86:C94,M86:M94)+SUMPRODUCT(C70:C75,M70:M75) -> 0 | D105: =SUMPRODUCT(C86:C94,D86:D94,M86:M94)+SUMPRODUCT(C70:C75,D70:D75,M70:M75) -> 0 | E105: =SUMPRODUCT(C86:C94,L86:L94,M86:M94)+SUMPRODUCT(C70:C75,H70:H75,M70:M75) -> 0 | F105: varav till växande grisar
A106: suggor | B106: till suggor | C106: =SUMPRODUCT(C86:C94,N86:N94)+SUMPRODUCT(C70:C75,N70:N75) -> 0 | D106: =SUMPRODUCT(C86:C94,D86:D94,N86:N94)+SUMPRODUCT(C70:C75,D70:D75,N70:N75) -> 0 | E106: =SUMPRODUCT(C86:C94,L86:L94,N86:N94)+SUMPRODUCT(C70:C75,H70:H75,N70:N75) -> 0 | F106: varav till suggor och gyltor
A107: Totalt mängd utfodrat dividerat med total mängd kött | B107: per kg kött (inkl förändringar i levandelager) | C107: =IF(SUM('6 Resultat'!$R$35:$R$37,'6 Resultat'!$R$38)=0,0,C104/SUM('6 Resultat'!$R$35:$R$37,'6 Resultat'!$R$38)) -> 0 | D107: =IF(SUM('6 Resultat'!$R$35:$R$37,'6 Resultat'!$R$38)=0,0,D104/SUM('6 Resultat'!$R$35:$R$37,'6 Resultat'!$R$38)) -> 0 | E107: =IF(SUM('6 Resultat'!$R$35:$R$37,'6 Resultat'!$R$38)=0,0,E104/SUM('6 Resultat'!$R$35:$R$37,'6 Resultat'!$R$38)) -> 0 | F107: Kött från tillväxtgrisar, suggor och ev förändrat levandelager
A108: växande | B108: per kg kött | C108: =IF(SUM('6 Resultat'!$R$35:$R$36)=0,0,C105/SUM('6 Resultat'!$R$35:$R$36)) -> 0 | D108: =IF(SUM('6 Resultat'!$R$35:$R$36)=0,0,D105/SUM('6 Resultat'!$R$35:$R$36)) -> 0 | E108: =IF(SUM('6 Resultat'!$R$35:$R$36)=0,0,E105/SUM('6 Resultat'!$R$35:$R$36)) -> 0 | F108: Per kg kött från tillväxtgrisar
A109: suggor | B109: per kg kött | C109: =IF('6 Resultat'!$R$37=0,0,C106/'6 Resultat'!$R$37) -> 0 | D109: =IF('6 Resultat'!$R$37=0,0,D106/'6 Resultat'!$R$37) -> 0 | E109: =IF('6 Resultat'!$R$37=0,0,E106/'6 Resultat'!$R$37) -> 0 | F109: Per kg kött från suggor
A119: =Bakgrund!T7 -> Period 3
A120: Alternativ 1: Lägg in eget recept
A121: Foder, fritext | B121: Fodret ges till: Välj ur lista! | C121: Mängd (kg) | D121: ts-halt (%)* | E121: Råprotein (g/kg)** | F121: Fosfor (g/kg)** | G121: Kalium (g/kg)** | H121: Energi (MJ NE per kg)*** | I121: Inköpt eller eget foder - välj ur lista! | J121: Egen kommentar | M121: växande | N121: suggor | O121: Kolumn3 | P121: inköpt?
D122: 0.88 | M122: =IF($B122=M$18,1,0) -> 0 | N122: =IF($B122=N$18,1,0) -> 0 | P122: =IF(OR(I122=inköpt,NOT(ISTEXT(I122))),1,0) -> 1
D123: 0.88 | M123: =IF($B123=M$18,1,0) -> 0 | N123: 0 | P123: 1
D124: 0.88 | M124: 0 | N124: 0 | P124: 1
D125: 0.88 | M125: 0 | N125: 0 | P125: 1
D126: 0.88 | M126: 0 | N126: 0 | P126: 1
D127: 0.88 | M127: 0 | N127: 0 | P127: 1
A128: Summa (kg, kg ts, N, P, K resp MJ) | C128: =SUM(C122:C127) -> 0 | D128: =SUMPRODUCT(C122:C127,D122:D127) -> 0 | E128: =SUMPRODUCT(C122:C127,E122:E127)/1000/6.25 -> 0 | F128: =SUMPRODUCT(C122:C127,F122:F127)/1000 -> 0 | G128: =SUMPRODUCT(C122:C127,G122:G127)/1000 -> 0 | H128: =SUMPRODUCT(C122:C127,H122:H127) -> 0
A129: Varav i inköpt foder | C129: =SUMPRODUCT(C122:C127,$P122:$P127) -> 0 | D129: =SUMPRODUCT(C122:C127,D122:D127,$P122:$P127) -> 0 | E129: =SUMPRODUCT(C122:C127,E122:E127,P122:P127)/1000/6.25 -> 0 | F129: =SUMPRODUCT(F122:F127,P122:P127,C122:C127)/1000 -> 0 | G129: =SUMPRODUCT(G122:G127,P122:P127,C122:C127)/1000 -> 0 | H129: =SUMPRODUCT(H122:H127,P122:P127,C122:C127) -> 0
A130: *Behåll ts-halten eller skriv över med eget värde
A131: ** Ange råprotein, fosfor och kalium som g per kg ts . 1 kg råprotein = 0,16 kg N. Uppgifterna behövs om du ska beräkna växtnäringsutnyttjandet
A132: *** Se hjälptabell till höger!
A136: ="Alternativ 2: Välj bland färdiga schablonfoder, råvaror eller namngivna kraftfoder ur lista. " &IF(Bakgrund!$BI$37=1," Om det behövs, ange om det är ett eget eller inköpt foder (välj ur lista) så överförs resultatet till växtnäringsberäkningarna","") -> Alternativ 2: Välj bland färdiga schablonfoder, råvaror eller namngivna kraftfoder ur lista.
A137: Foder välj ur lista , eller använd hjälpfunktion till höger! | B137: Fodret ges till: Välj ur lista! | C137: Mängd (kg) | D137: ts-halt (%) | E137: Kväve | F137: Fosfor | G137: Kalium | H137: MJ NE per kg, från tabell | I137: MJ NE per kg, eget värde* | J137: Inköpt eller eget foder - välj ur lista om cellen är orange!** | K137: Egen kommentar | L137: MJ/kg, använt | M137: växande | N137: suggor | O137: Kolumn1 | P137: Kolumn2 | Q137: Kväve2 | R137: Fosfor3 | S137: Kalium4
D138: =IF(ISTEXT(A138),VLOOKUP(A138,'tekn adm - produktlistor'!$AR$6:$AY$511,7,FALSE),0) -> 0 | E138: =Q138 -> 0 | F138: =R138 -> 0 | G138: =S138 -> 0 | H138: =IF(ISTEXT('2.3 Utfodrat'!A138),VLOOKUP('2.3 Utfodrat'!$A138,'tekn adm - produktlistor'!$AR$6:$BA$511,IF(B138='Teknisk administration'!$K$356,10,9),FALSE),0) -> 0 | L138: =IF(AND(I138>0,I138<40),I138,'2.3 Utfodrat'!H138) -> 0 | M138: =IF($B138=M$18,1,0) -> 0 | N138: =IF($B138=N$18,1,0) -> 0 | O138: =IF(ISTEXT(A138),IF(VLOOKUP(A138,'tekn adm - produktlistor'!$AR$6:$BB$511,11,FALSE)=inköpt,inköpt,'Teknisk administration'!$L$3),'Teknisk administration'!$L$3) -> Välj | P138: =IF(OR(J138=inköpt,NOT(ISTEXT(J138))),1,0) -> 1 | Q138: =IF(ISTEXT(A138),VLOOKUP(A138,'tekn adm - produktlistor'!$AR$6:$AV$511,3,FALSE)*C138,0) -> 0 | R138: =IF(ISTEXT(A138),VLOOKUP($A138,'tekn adm - produktlistor'!$AR$6:$AV$511,4,FALSE)*$C138,0) -> 0 | S138: =IF(ISTEXT(A138),VLOOKUP($A138,'tekn adm - produktlistor'!$AR$6:$AV$511,5,FALSE)*$C138,0) -> 0
D139: =IF(ISTEXT(A139),VLOOKUP(A139,'tekn adm - produktlistor'!$AR$6:$AY$511,7,FALSE),0) -> 0 | E139: 0 | F139: =R139 -> 0 | G139: =S139 -> 0 | H139: =IF(ISTEXT('2.3 Utfodrat'!A139),VLOOKUP('2.3 Utfodrat'!$A139,'tekn adm - produktlistor'!$AR$6:$BA$511,IF(B139='Teknisk administration'!$K$356,10,9),FALSE),0) -> 0 | L139: =IF(AND(I139>0,I139<40),I139,H139) -> 0 | M139: =IF($B139=M$18,1,0) -> 0 | N139: 0 | O139: =IF(ISTEXT(A139),IF(VLOOKUP(A139,'tekn adm - produktlistor'!$AR$6:$BB$511,11,FALSE)=inköpt,inköpt,'Teknisk administration'!$L$3),'Teknisk administration'!$L$3) -> Välj | P139: 1 | Q139: =IF(ISTEXT(A139),VLOOKUP(A139,'tekn adm - produktlistor'!$AR$6:$AV$511,3,FALSE)*C139,0) -> 0 | R139: =IF(ISTEXT(A139),VLOOKUP($A139,'tekn adm - produktlistor'!$AR$6:$AV$511,4,FALSE)*$C139,0) -> 0 | S139: =IF(ISTEXT(A139),VLOOKUP($A139,'tekn adm - produktlistor'!$AR$6:$AV$511,5,FALSE)*$C139,0) -> 0
D140: =IF(ISTEXT(A140),VLOOKUP(A140,'tekn adm - produktlistor'!$AR$6:$AY$511,7,FALSE),0) -> 0 | E140: 0 | F140: 0 | G140: 0 | H140: =IF(ISTEXT('2.3 Utfodrat'!A140),VLOOKUP('2.3 Utfodrat'!$A140,'tekn adm - produktlistor'!$AR$6:$BA$511,IF(B140='Teknisk administration'!$K$356,10,9),FALSE),0) -> 0 | L140: 0 | M140: 0 | N140: 0 | O140: =IF(ISTEXT(A140),IF(VLOOKUP(A140,'tekn adm - produktlistor'!$AR$6:$BB$511,11,FALSE)=inköpt,inköpt,'Teknisk administration'!$L$3),'Teknisk administration'!$L$3) -> Välj | P140: 1 | Q140: =IF(ISTEXT(A140),VLOOKUP(A140,'tekn adm - produktlistor'!$AR$6:$AV$511,3,FALSE)*C140,0) -> 0 | R140: =IF(ISTEXT(A140),VLOOKUP($A140,'tekn adm - produktlistor'!$AR$6:$AV$511,4,FALSE)*$C140,0) -> 0 | S140: =IF(ISTEXT(A140),VLOOKUP($A140,'tekn adm - produktlistor'!$AR$6:$AV$511,5,FALSE)*$C140,0) -> 0
D141: =IF(ISTEXT(A141),VLOOKUP(A141,'tekn adm - produktlistor'!$AR$6:$AY$511,7,FALSE),0) -> 0 | E141: 0 | F141: 0 | G141: 0 | H141: =IF(ISTEXT('2.3 Utfodrat'!A141),VLOOKUP('2.3 Utfodrat'!$A141,'tekn adm - produktlistor'!$AR$6:$BA$511,IF(B141='Teknisk administration'!$K$356,10,9),FALSE),0) -> 0 | L141: 0 | M141: 0 | N141: 0 | O141: =IF(ISTEXT(A141),IF(VLOOKUP(A141,'tekn adm - produktlistor'!$AR$6:$BB$511,11,FALSE)=inköpt,inköpt,'Teknisk administration'!$L$3),'Teknisk administration'!$L$3) -> Välj | P141: 1 | Q141: =IF(ISTEXT(A141),VLOOKUP(A141,'tekn adm - produktlistor'!$AR$6:$AV$511,3,FALSE)*C141,0) -> 0 | R141: =IF(ISTEXT(A141),VLOOKUP($A141,'tekn adm - produktlistor'!$AR$6:$AV$511,4,FALSE)*$C141,0) -> 0 | S141: =IF(ISTEXT(A141),VLOOKUP($A141,'tekn adm - produktlistor'!$AR$6:$AV$511,5,FALSE)*$C141,0) -> 0
D142: =IF(ISTEXT(A142),VLOOKUP(A142,'tekn adm - produktlistor'!$AR$6:$AY$511,7,FALSE),0) -> 0 | E142: 0 | F142: 0 | G142: 0 | H142: =IF(ISTEXT('2.3 Utfodrat'!A142),VLOOKUP('2.3 Utfodrat'!$A142,'tekn adm - produktlistor'!$AR$6:$BA$511,IF(B142='Teknisk administration'!$K$356,10,9),FALSE),0) -> 0 | L142: 0 | M142: =IF($B142=M$18,1,0) -> 0 | N142: =IF($B142=N$18,1,0) -> 0 | O142: =IF(ISTEXT(A142),IF(VLOOKUP(A142,'tekn adm - produktlistor'!$AR$6:$BB$511,11,FALSE)=inköpt,inköpt,'Teknisk administration'!$L$3),'Teknisk administration'!$L$3) -> Välj | P142: 1 | Q142: =IF(ISTEXT(A142),VLOOKUP(A142,'tekn adm - produktlistor'!$AR$6:$AV$511,3,FALSE)*C142,0) -> 0 | R142: =IF(ISTEXT(A142),VLOOKUP($A142,'tekn adm - produktlistor'!$AR$6:$AV$511,4,FALSE)*$C142,0) -> 0 | S142: =IF(ISTEXT(A142),VLOOKUP($A142,'tekn adm - produktlistor'!$AR$6:$AV$511,5,FALSE)*$C142,0) -> 0
D143: =IF(ISTEXT(A143),VLOOKUP(A143,'tekn adm - produktlistor'!$AR$6:$AY$511,7,FALSE),0) -> 0 | E143: 0 | F143: 0 | G143: 0 | H143: =IF(ISTEXT('2.3 Utfodrat'!A143),VLOOKUP('2.3 Utfodrat'!$A143,'tekn adm - produktlistor'!$AR$6:$BA$511,IF(B143='Teknisk administration'!$K$356,10,9),FALSE),0) -> 0 | L143: 0 | M143: =IF($B143=M$18,1,0) -> 0 | N143: =IF($B143=N$18,1,0) -> 0 | O143: =IF(ISTEXT(A143),IF(VLOOKUP(A143,'tekn adm - produktlistor'!$AR$6:$BB$511,11,FALSE)=inköpt,inköpt,'Teknisk administration'!$L$3),'Teknisk administration'!$L$3) -> Välj | P143: 1 | Q143: =IF(ISTEXT(A143),VLOOKUP(A143,'tekn adm - produktlistor'!$AR$6:$AV$511,3,FALSE)*C143,0) -> 0 | R143: =IF(ISTEXT(A143),VLOOKUP($A143,'tekn adm - produktlistor'!$AR$6:$AV$511,4,FALSE)*$C143,0) -> 0 | S143: =IF(ISTEXT(A143),VLOOKUP($A143,'tekn adm - produktlistor'!$AR$6:$AV$511,5,FALSE)*$C143,0) -> 0
D144: =IF(ISTEXT(A144),VLOOKUP(A144,'tekn adm - produktlistor'!$AR$6:$AY$511,7,FALSE),0) -> 0 | E144: 0 | F144: 0 | G144: 0 | H144: =IF(ISTEXT('2.3 Utfodrat'!A144),VLOOKUP('2.3 Utfodrat'!$A144,'tekn adm - produktlistor'!$AR$6:$BA$511,IF(B144='Teknisk administration'!$K$356,10,9),FALSE),0) -> 0 | L144: 0 | M144: 0 | N144: 0 | O144: =IF(ISTEXT(A144),IF(VLOOKUP(A144,'tekn adm - produktlistor'!$AR$6:$BB$511,11,FALSE)=inköpt,inköpt,'Teknisk administration'!$L$3),'Teknisk administration'!$L$3) -> Välj | P144: 1 | Q144: =IF(ISTEXT(A144),VLOOKUP(A144,'tekn adm - produktlistor'!$AR$6:$AV$511,3,FALSE)*C144,0) -> 0 | R144: =IF(ISTEXT(A144),VLOOKUP($A144,'tekn adm - produktlistor'!$AR$6:$AV$511,4,FALSE)*$C144,0) -> 0 | S144: =IF(ISTEXT(A144),VLOOKUP($A144,'tekn adm - produktlistor'!$AR$6:$AV$511,5,FALSE)*$C144,0) -> 0
D145: =IF(ISTEXT(A145),VLOOKUP(A145,'tekn adm - produktlistor'!$AR$6:$AY$511,7,FALSE),0) -> 0 | E145: 0 | F145: 0 | G145: 0 | H145: =IF(ISTEXT('2.3 Utfodrat'!A145),VLOOKUP('2.3 Utfodrat'!$A145,'tekn adm - produktlistor'!$AR$6:$BA$511,IF(B145='Teknisk administration'!$K$356,10,9),FALSE),0) -> 0 | L145: 0 | M145: 0 | N145: 0 | O145: =IF(ISTEXT(A145),IF(VLOOKUP(A145,'tekn adm - produktlistor'!$AR$6:$BB$511,11,FALSE)=inköpt,inköpt,'Teknisk administration'!$L$3),'Teknisk administration'!$L$3) -> Välj | P145: 1 | Q145: =IF(ISTEXT(A145),VLOOKUP(A145,'tekn adm - produktlistor'!$AR$6:$AV$511,3,FALSE)*C145,0) -> 0 | R145: =IF(ISTEXT(A145),VLOOKUP($A145,'tekn adm - produktlistor'!$AR$6:$AV$511,4,FALSE)*$C145,0) -> 0 | S145: =IF(ISTEXT(A145),VLOOKUP($A145,'tekn adm - produktlistor'!$AR$6:$AV$511,5,FALSE)*$C145,0) -> 0
D146: =IF(ISTEXT(A146),VLOOKUP(A146,'tekn adm - produktlistor'!$AR$6:$AY$511,7,FALSE),0) -> 0 | E146: 0 | F146: 0 | G146: 0 | H146: =IF(ISTEXT('2.3 Utfodrat'!A146),VLOOKUP('2.3 Utfodrat'!$A146,'tekn adm - produktlistor'!$AR$6:$BA$511,IF(B146='Teknisk administration'!$K$356,10,9),FALSE),0) -> 0 | L146: 0 | M146: 0 | N146: 0 | O146: =IF(ISTEXT(A146),IF(VLOOKUP(A146,'tekn adm - produktlistor'!$AR$6:$BB$511,11,FALSE)=inköpt,inköpt,'Teknisk administration'!$L$3),'Teknisk administration'!$L$3) -> Välj | P146: 1 | Q146: =IF(ISTEXT(A146),VLOOKUP(A146,'tekn adm - produktlistor'!$AR$6:$AV$511,3,FALSE)*C146,0) -> 0 | R146: =IF(ISTEXT(A146),VLOOKUP($A146,'tekn adm - produktlistor'!$AR$6:$AV$511,4,FALSE)*$C146,0) -> 0 | S146: =IF(ISTEXT(A146),VLOOKUP($A146,'tekn adm - produktlistor'!$AR$6:$AV$511,5,FALSE)*$C146,0) -> 0
A147: Summa (kg, kg ts, N, P, K resp MJ) | C147: =SUM(C138:C146) -> 0 | D147: =SUMPRODUCT(C138:C146,D138:D146) -> 0 | E147: =SUM(Q138:Q146) -> 0 | F147: =SUM(R138:R146) -> 0 | G147: =SUM(S138:S146) -> 0 | H147: =SUMPRODUCT(C138:C146,L138:L146) -> 0 | M147: =IF(SUMPRODUCT(C138:C146,H138:H146)+SUMPRODUCT(C122:C127,H122:H127)=0,0,(SUMPRODUCT(C138:C146,H138:H146,M138:M146)+SUMPRODUCT(C122:C127,H122:H127,M122:M127))/(SUMPRODUCT(C138:C146,H138:H146)+SUMPRODUCT(C122:C127,H122:H127))) -> 0
A148: Varav i inköpt foder | C148: =SUMPRODUCT(C138:C146,$P138:$P146) -> 0 | D148: =SUMPRODUCT(C138:C146,D138:D146,P138:P146) -> 0 | E148: =SUMPRODUCT(Q138:Q146,$P138:$P146) -> 0 | F148: =SUMPRODUCT(R138:R146,$P138:$P146) -> 0 | G148: =SUMPRODUCT(S138:S146,$P138:$P146) -> 0 | H148: =SUMPRODUCT(L138:L146,$P138:$P146,C138:C146) -> 0
A149: * Om cellen är röd finns inte energiinnehållet i databasen, och du behöver fylla i ett värde för att MJ foder ska kunna beräknas. Varningen släcks när du fyllt i värde. Om cellen är prickig innebär det att du kan skriva in eget värde, om du vill.
A150: ** Om cellen är orange ska du ange om det är ett inköpt foder (=införd växtnäring) eller eget foder (=tas inte med i beräkning av växtnäringsutnyttjandet). Vissa foder, som inköpta färdigfoder, förutsätts alltid vara inköpta.
A155: ="Summering utfodrat " &period_3 -> Summering utfodrat Period 3 | B155: Enhet | C155: kg | D155: kg ts | E155: MJ
A156: total mängd utfodrat | B156: totalt | C156: =SUM(C157:C158) -> 0 | D156: =SUM(D157:D158) -> 0 | E156: =SUM(E157:E158) -> 0 | F156: summering av mängderna enligt alternativ 1 och 2 ovan
A157: växande | B157: till växande grisar | C157: =SUMPRODUCT(C138:C146,M138:M146)+SUMPRODUCT(C122:C127,M122:M127) -> 0 | D157: =SUMPRODUCT(C138:C146,D138:D146,M138:M146)+SUMPRODUCT(C122:C127,D122:D127,M122:M127) -> 0 | E157: =SUMPRODUCT(C138:C146,L138:L146,M138:M146)+SUMPRODUCT(C122:C127,H122:H127,M122:M127) -> 0 | F157: varav till växande grisar
A158: suggor | B158: till suggor | C158: =SUMPRODUCT(C138:C146,N138:N146)+SUMPRODUCT(C122:C127,N122:N127) -> 0 | D158: =SUMPRODUCT(C138:C146,D138:D146,N138:N146)+SUMPRODUCT(C122:C127,D122:D127,N122:N127) -> 0 | E158: =SUMPRODUCT(C138:C146,L138:L146,N138:N146)+SUMPRODUCT(C122:C127,H122:H127,N122:N127) -> 0 | F158: varav till suggor och gyltor
A159: Totalt mängd utfodrat dividerat med total mängd kött | B159: per kg kött (inkl förändringar i levandelager) | C159: =IF(SUM('6 Resultat'!$S$35:$S$37,'6 Resultat'!$S$38)=0,0,C156/SUM('6 Resultat'!$S$35:$S$37,'6 Resultat'!$S$38)) -> 0 | D159: =IF(SUM('6 Resultat'!$S$35:$S$37,'6 Resultat'!$S$38)=0,0,D156/SUM('6 Resultat'!$S$35:$S$37,'6 Resultat'!$S$38)) -> 0 | E159: =IF(SUM('6 Resultat'!$S$35:$S$37,'6 Resultat'!$S$38)=0,0,E156/SUM('6 Resultat'!$S$35:$S$37,'6 Resultat'!$S$38)) -> 0 | F159: Kött från tillväxtgrisar, suggor och ev förändrat levandelager
A160: växande | B160: per kg kött | C160: =IF(SUM('6 Resultat'!$S$35:$S$36)=0,0,C157/SUM('6 Resultat'!$S$35:$S$36)) -> 0 | D160: =IF(SUM('6 Resultat'!$S$35:$S$36)=0,0,D157/SUM('6 Resultat'!$S$35:$S$36)) -> 0 | E160: =IF(SUM('6 Resultat'!$S$35:$S$36)=0,0,E157/SUM('6 Resultat'!$S$35:$S$36)) -> 0 | F160: Per kg kött från tillväxtgrisar
A161: suggor | B161: per kg kött | C161: =IF('6 Resultat'!$S$37=0,0,C158/'6 Resultat'!$S$37) -> 0 | D161: =IF('6 Resultat'!$S$37=0,0,D158/'6 Resultat'!$S$37) -> 0 | E161: =IF('6 Resultat'!$S$37=0,0,E158/'6 Resultat'!$S$37) -> 0 | F161: Per kg kött från suggor

Sheet 2.4 Kasserat foder och spill
A1: 2.4 Kasserat foder och spill | H1: Det här betyder färgerna: | L1: Snabblänkar till bladen i verktyget:
A2: =VLOOKUP('2 Intro foder'!B15,'Teknisk administration'!$G$4:$H$6,2,FALSE) -> Obligatoriskt blad | H2: Cell med värden hämtade från annan cell | L2: Instruktion
A3: Här beräknas hur mycket foder som kasserats under perioden i form av kasserade balar, mögligt ensilage etc. samt spill i samband med utfodring, t ex nedtrampat foder vid foderhäck eller ratat foder. | H3: Fyll i din egen siffra | L3: Bakgrund
H4: Fyll i egen siffra - frivilligt, t ex om du har tillgång till uppgift eller om du vill räkna med annat värde än det schablonvärde som visas i angränsande cell | L4: 1 Intro djuren
H5: Resultat/uträkning | L5: 1.1 Kött
H6: Schablonvärde | L6: 1.2 Tillväxt & förökning
A7: Kasserat foder | H7: Förklaringar till raden | L7: 1.3 Hälsa & dödlighet
A8: Försök att uppskatta hur hur många lass med dåligt foder som körts bort under hela perioden. Det behöver alltså inte vara kopplat till vad och hur mycket du odlat under perioden. | H8: Plats för egna kommentarer | L8: 2 Intro foder
A9: Fyll i tabellerna nedan. I tre översta är identiska - fyll i en eller flera beroende på om du vill separera uppgifterna t ex om du kasserat foder med olika volymvikt eller haft olika stora lass. | L9: 2.1 Odling foder
A10: I de två nedersta kan du fylla i ev kasserat ensilage etc. | L10: 2.1b Halm, odling grovfoder
L11: 2.2 Förluster vid lagring
L12: 2.3 Utfodrat
A13: Kasserat foder | B13: Enhet | C13: =Bakgrund!R$7 -> Period 1 | D13: =Bakgrund!S$7 -> Period 2 | E13: =Bakgrund!T$7 -> Period 3 | F13: Förklaring | G13: Egen kommentar | I13: Volymvikter | J13: ref: agriwise | L13: 2.4 Kasserat foder och spill
A14: Antal kärror som körs iväg med dåligt foder | B14: st | F14: Kasserat foder pga skador, mögel, angrepp osv | I14: Typ av foder | J14: kg ts per m3 | L14: 3 Växtnäringsutnyttjande (1)
A15: Mängd per lass | B15: m3 | F15: Volymen (m3) bortforslat foder per lass | I15: kraftfoder, pellets | J15: 530 | L15: 3 Växtnäringsutnyttjande (2)
A16: ts i kasserat foder | B16: kg ts per m3 | C16: 500 | D16: 500 | E16: 500 | F16: Fyll i eget värde eller behåll befintligt, se tabell till höger | I16: vete, råg | J16: 650 | L16: 3 Växtnäringsutnyttjande (3)
A17: Övrigt kasserat foder | B17: kg ts | C17: =C15*C14*C16 -> 0 | D17: =D15*D14*D16 -> 0 | E17: =E15*E14*E16 -> 0 | F17: Beräknas som Antal lass*m2 per lass*kg ts per m3 | I17: korn | J17: 570 | L17: 4 Energi och bränsle
I18: havre | J18: 500 | L18: 5 Vattenanvändning
A19: Kasserat foder | I19: trindsäd | J19: 700 | L19: 6 Resultat
A20: Antal kärror som körs iväg med dåligt foder | B20: st | F20: Kasserat foder pga skador, mögel, angrepp osv | I20: potatis, foderbetor etc | J20: 150 | L20: 6B Klimat
A21: mängd per lass etc. | B21: m3 | F21: Volymen (m3) bortforslat foder per lass | I21: hö | J21: 60
A22: ts i kasserat foder | B22: kg ts per m3 | C22: 500 | D22: 500 | E22: 500 | F22: Fyll i eget värde eller behåll befintligt, se tabell till höger | I22: halm | J22: 50
A23: summa | B23: kg ts | C23: =C21*C20*C22 -> 0 | D23: =D21*D20*D22 -> 0 | E23: =E21*E20*E22 -> 0 | F23: Beräknas som Antal lass*m2 per lass*kg ts per m3
A25: Kasserat foder
A26: Antal kärror som körs iväg med dåligt foder | B26: st | F26: Kasserat foder pga skador, mögel, angrepp osv
A27: mängd per lass etc. | B27: m3 | F27: Volymen (m3) bortforslat foder per lass
A28: ts i kasserat foder | B28: kg ts per m3 | C28: 500 | D28: 500 | E28: 500 | F28: Fyll i eget värde eller behåll befintligt, se tabell till höger
A29: summa | B29: kg ts | C29: =C27*C26*C28 -> 0 | D29: =D27*D26*D28 -> 0 | E29: =E27*E26*E28 -> 0 | F29: Beräknas som Antal lass*m2 per lass*kg ts per m3
A33: Kasserade storbalar (ensilage, halm)
A34: Antal kasserade rundbalar | B34: st per år | F34: Fyll i antal balar som kasserats under perioden
A35: Antal kasserade fyrkantsbalar | B35: st per år
A36: Beräknad mängd ts per rundbalar | B36: kg ts per bal | C36: =IF('2.1b Halm, odling grovfoder'!Z58=0,'Teknisk administration'!$C484,'2.1b Halm, odling grovfoder'!Z58)*(1-'2.2 Förluster vid lagring'!C$45) -> 295.0080502 | D36: =IF('2.1b Halm, odling grovfoder'!Z104=0,'Teknisk administration'!$C484,'2.1b Halm, odling grovfoder'!Z104)*(1-'2.2 Förluster vid lagring'!D$45) -> 295.0080502 | E36: =IF('2.1b Halm, odling grovfoder'!Z152=0,'Teknisk administration'!$C484,'2.1b Halm, odling grovfoder'!Z152)*(1-'2.2 Förluster vid lagring'!E$45) -> 295.0080502 | F36: ="Värde hämtat från bladet "& '2.1b Halm, odling grovfoder'!A1 &" om du skördat storbalar under perioden och angett antal skördade balar, annars schablonvärde." -> Värde hämtat från bladet 2.1b Halm, odling grovfoder om du skördat storbalar under perioden och angett antal skördade balar, annars schablonvärde.
A37: Beräknad mängd ts per fyrkantsbalar | B37: kg ts per bal | C37: =IF('2.1b Halm, odling grovfoder'!AA58=0,'Teknisk administration'!$C485,'2.1b Halm, odling grovfoder'!AA58)*(1-'2.2 Förluster vid lagring'!C$45) -> 455.1433286 | D37: =IF('2.1b Halm, odling grovfoder'!AA104=0,'Teknisk administration'!$C485,'2.1b Halm, odling grovfoder'!AA104)*(1-'2.2 Förluster vid lagring'!D$45) -> 455.1433286 | E37: =IF('2.1b Halm, odling grovfoder'!AA152=0,'Teknisk administration'!$C485,'2.1b Halm, odling grovfoder'!AA152)*(1-'2.2 Förluster vid lagring'!E$45) -> 455.1433286
A38: Eget värde, mängd ts per rundbal | B38: kg ts per bal | F38: Här kan du fylla i eget värde om du inte vill använda den beräknade mängden ts per bal enligt ovan
A39: Eget värde, mängd ts per fyrkantsbal | B39: kg ts per bal
A40: Total mängd ts i kasserade storbalar | B40: kg ts | C40: =C34*IF(ISNUMBER(C38),C38,C36)+C35*IF(ISNUMBER(C39),C39,C37) -> 0 | D40: =D34*IF(ISNUMBER(D38),D38,D36)+D35*IF(ISNUMBER(D39),D39,D37) -> 0 | E40: =E34*IF(ISNUMBER(E38),E38,E36)+E35*IF(ISNUMBER(E39),E39,E37) -> 0
A42: Dåligt ensilage från plan- och tornsilo
A43: Antal lass som körs iväg med dåligt grovfoder från plan- och tornsilo | B43: st | F43: Antal lass med foder som kasserats foder pga skador, mögel, angrepp osv.
A44: Mängd per lass | B44: m3 | F44: Volymen (m3) bortforslat grovfoder per lass
A45: ts i kasserat foder | B45: kg ts per m3 | C45: 175 | D45: 175 | E45: 175 | F45: Fyll i eget värde eller behåll befintligt. Brukar vara 150-200 kg ts per m3 vid ts-halter mellan 23-45 %
A46: Dåligt grovfoder från plan- och tornsilo | B46: kg ts | C46: =C44*C43*C45 -> 0 | D46: =D44*D43*D45 -> 0 | E46: =E44*E43*E45 -> 0 | F46: Beräknas som Antal lass*m2 per lass*kg ts per m3
A49: Totalt kasserat | B49: kg ts | C49: =C40+C46+C17+C23+C29 -> 0 | D49: =D40+D46+D17+D23+D29 -> 0 | E49: =E40+E46+E17+E23+E29 -> 0 | F49: Summering av tabellerna ovan
A54: Spill vid utfodring
A55: Här beräknar du mängden foder som inte äts av djuren. Skriv gärna ner hur ofta utfordring sker, och om det varit några problem.
B56: Enhet | C56: =Bakgrund!R$7 -> Period 1 | D56: =Bakgrund!S$7 -> Period 2 | E56: =Bakgrund!T$7 -> Period 3 | F56: Förklaring | G56: Egen kommentar
A57: Total mängd utfodrat | B57: MJ | C57: ='2.3 Utfodrat'!E51 -> 0 | D57: ='2.3 Utfodrat'!E104 -> 0 | E57: ='2.3 Utfodrat'!E156 -> 0 | F57: ="Hämtas från bladet "&C_G_Summering -> Hämtas från bladet 2.3 Utfodrat
A58: Total mängd utfodrat | B58: kg ts | C58: ='2.3 Utfodrat'!D51 -> 0 | D58: ='2.3 Utfodrat'!D104 -> 0 | E58: ='2.3 Utfodrat'!D156 -> 0
A59: Andel av fodret som spills | B59: % | C59: 0.02 | D59: 0.02 | E59: 0.02 | F59: Fyll i eget värde eller behåll befinligt.
A60: Totala förluster vid utfodring | B60: MJ | C60: =C57*C$59 -> 0 | D60: =D57*D$59 -> 0 | E60: 0
A61: Totala förluster vid utfodring | B61: kg ts | C61: =C58*C$59 -> 0 | D61: =D58*D$59 -> 0 | E61: 0

Sheet 3 Växtnäringsutnyttjande (1)
A1: ="3 Växtnäringsutnyttjande period 1, " &period_1 -> 3 Växtnäringsutnyttjande period 1, Period 1 | M1: Det här betyder färgerna:
A2: =IF(Bakgrund!BI37=0,'Teknisk administration'!H6,'Teknisk administration'!H5) -> Bladet är inte relevant för dig | M2: Cell med värden hämtade från annan cell
A3: Här beräknar du växtnäringsutnyttjandet, d v s hur många kg inköpt kväve, fosfor och kalium som gått åt för att producera köttet. | M3: Beräkning
A4: Om du säljer grödor kommer du först få göra avräkning för inköpt växtnäring som använts i odlingen av dessa grödor. | M4: Fyll i din egen siffra
A5: Det finns två alternativ för att beräkna växtnäringsinsatsen: | M5: Fyll i egen siffra - frivilligt, t ex om du har tillgång till uppgift eller om du vill räkna med annat värde än det schablonvärde som visas i angränsande cell
A6: 1) Mata in färdiga resultat, t ex från växtnäringsbalans gjord inom Greppa Näringen. Detta alternativ visas om du redan har en växtnäringsbalans för perioden | M6: Egen uppgift, men välj värde ur rullista.
A7: 2) Beräkna mängden växtnäring i inköpta produkter samt sålda grödor. Visas om du inte har en aktuell växtnäringsbalans | M7: Resultat/uträkning
A8: Ljusgrå text och vita rutor = avsnittet är inte relevant för dig. | M8: Schablonvärde
M9: Förklaringar till raden
A10: =IF(Bakgrund!R13=1,"","Obs! Perioden är inte ett helt år, och vissa indata behöver anpassas. Instruktioner ges vid aktuella tabeller. Tolkningen av resultaten kan också påverkas, t ex om perioden inte täcker hela växtodlingssäsongen.") -> Obs! Perioden är inte ett helt år, och vissa indata behöver anpassas. Instruktioner ges vid aktuella tabeller. Tolkningen av resultaten kan också påverkas, t ex om perioden inte täcker hela växtodlingssäsongen. | M10: Plats för egna kommentarer
A11: Räcker inte raderna till? Infoga ny rad genom att högerklicka i en cell i tabellen och välj Infoga och Tabellrader ovanför | M11: Glöm inte att fylla i värde! (Här krävs ett värde för att andra beräkningar ska fungera
M12: Grå text, ev vit bakgrund: Avsnittet är inte relevant för dig baserat på svaren på ja/nej-frågor på bladet Bakgrund
M14: Snabblänkar till bladen i verktyget:
M15: Instruktion
A16: ="Sålda grödor "& Bakgrund!R7 -> Sålda grödor Period 1 | M16: Bakgrund
A17: =IF(Bakgrund!$AT$37=0,"Du har på bladet Bakgrund svarat att du inte säljer några grödor. Detta avsnitt är därmed inte relevant att fylla i för dig", "Här fyller du mängden grödor som du sålt/kommer att sälja av det du odlat aktuell period.") -> Här fyller du mängden grödor som du sålt/kommer att sälja av det du odlat aktuell period. | M17: 1 Intro djuren
A18: =IF(Bakgrund!$AT$37=0,"","Uppgifterna används för att beräkna växtnäringsinsatsen för de sålda grödorna. Denna växtnäring räknas sedan av från övrig växtnäring som tagit in under perioden så att växtnäringsinsatsen för köttet kan beräknas.") -> Uppgifterna används för att beräkna växtnäringsinsatsen för de sålda grödorna. Denna växtnäring räknas sedan av från övrig växtnäring som tagit in under perioden så att växtnäringsinsatsen för köttet kan beräknas. | M18: 1.1 Kött
A19: =IF(Bakgrund!$AT$37=0,"","Här antas att växtnäringsinsatsen är 1 kg P och 1 kg K per kg P respektive K i grödan. För N justeras växtnäringsinsatsen utifrån grödans kväveeffektivitet och ev kvävefixering") -> Här antas att växtnäringsinsatsen är 1 kg P och 1 kg K per kg P respektive K i grödan. För N justeras växtnäringsinsatsen utifrån grödans kväveeffektivitet och ev kvävefixering | M19: 1.2 Tillväxt & förökning
M20: 1.3 Hälsa & dödlighet
A21: =IF(Bakgrund!R13=1,"","Perioden är inte ett helt år: Justera mängden sålda grödor så att det motsvarar genomsnitt över ett år. Så om perioden är 180 dagar och du på ett helår sålt 20 000 kg korn ska du fylla i 20 000*180/360 = 10 000 kg") -> Perioden är inte ett helt år: Justera mängden sålda grödor så att det motsvarar genomsnitt över ett år. Så om perioden är 180 dagar och du på ett helår sålt 20 000 kg korn ska du fylla i 20 000*180/360 = 10 000 kg | M21: 2 Intro foder
D22: Växtnäringsinsats (kg per gröda) | M22: 2.1 Odling foder
A23: Gröda | B23: Enhet | C23: Mängd | D23: Kväve | E23: Fosfor | F23: Kalium | H23: N-effektivitet | I23: Kväve2 | J23: Fosfor3 | K23: Kalium4 | M23: 2.1b Halm, odling grovfoder
B24: =IF(ISTEXT(A24),VLOOKUP(A24,'tekn adm - produktlistor'!$X$6:$AB$31,2,FALSE),"") ->  | D24: =I24 -> 0 | E24: =J24 -> 0 | F24: =K24 -> 0 | H24: =IF(ISTEXT(A24),VLOOKUP(A24,'tekn adm - produktlistor'!$X$6:$AC$31,6,FALSE),0) -> 0 | I24: =IF(ISTEXT(A24),VLOOKUP(A24,'tekn adm - produktlistor'!$X$6:$AB$31,3,FALSE)*C24,0)*H24 -> 0 | J24: =IF(ISTEXT(A24),VLOOKUP(A24,'tekn adm - produktlistor'!$X$6:$AB$31,4,FALSE)*C24,0) -> 0 | K24: =IF(ISTEXT(A24),VLOOKUP(A24,'tekn adm - produktlistor'!$X$6:$AB$31,5,FALSE)*C24,0) -> 0 | M24: 2.2 Förluster vid lagring
B25: =IF(ISTEXT(A25),VLOOKUP(A25,'tekn adm - produktlistor'!$X$6:$AB$31,2,FALSE),"") ->  | D25: 0 | E25: 0 | F25: 0 | H25: =IF(ISTEXT(A25),VLOOKUP(A25,'tekn adm - produktlistor'!$X$6:$AC$31,6,FALSE),0) -> 0 | I25: =IF(ISTEXT(A25),VLOOKUP(A25,'tekn adm - produktlistor'!$X$6:$AB$31,3,FALSE)*C25,0)*H25 -> 0 | J25: =IF(ISTEXT(A25),VLOOKUP(A25,'tekn adm - produktlistor'!$X$6:$AB$31,4,FALSE)*C25,0) -> 0 | K25: =IF(ISTEXT(A25),VLOOKUP(A25,'tekn adm - produktlistor'!$X$6:$AB$31,5,FALSE)*C25,0) -> 0 | M25: 2.3 Utfodrat
B26: =IF(ISTEXT(A26),VLOOKUP(A26,'tekn adm - produktlistor'!$X$6:$AB$31,2,FALSE),"") ->  | D26: 0 | E26: 0 | F26: 0 | H26: =IF(ISTEXT(A26),VLOOKUP(A26,'tekn adm - produktlistor'!$X$6:$AC$31,6,FALSE),0) -> 0 | I26: =IF(ISTEXT(A26),VLOOKUP(A26,'tekn adm - produktlistor'!$X$6:$AB$31,3,FALSE)*C26,0)*H26 -> 0 | J26: =IF(ISTEXT(A26),VLOOKUP(A26,'tekn adm - produktlistor'!$X$6:$AB$31,4,FALSE)*C26,0) -> 0 | K26: =IF(ISTEXT(A26),VLOOKUP(A26,'tekn adm - produktlistor'!$X$6:$AB$31,5,FALSE)*C26,0) -> 0 | M26: 2.4 Kasserat foder och spill
B27: =IF(ISTEXT(A27),VLOOKUP(A27,'tekn adm - produktlistor'!$X$6:$AB$31,2,FALSE),"") ->  | D27: 0 | E27: 0 | F27: 0 | H27: =IF(ISTEXT(A27),VLOOKUP(A27,'tekn adm - produktlistor'!$X$6:$AC$31,6,FALSE),0) -> 0 | I27: =IF(ISTEXT(A27),VLOOKUP(A27,'tekn adm - produktlistor'!$X$6:$AB$31,3,FALSE)*C27,0)*H27 -> 0 | J27: =IF(ISTEXT(A27),VLOOKUP(A27,'tekn adm - produktlistor'!$X$6:$AB$31,4,FALSE)*C27,0) -> 0 | K27: =IF(ISTEXT(A27),VLOOKUP(A27,'tekn adm - produktlistor'!$X$6:$AB$31,5,FALSE)*C27,0) -> 0 | M27: 3 Växtnäringsutnyttjande (1)
B28: =IF(ISTEXT(A28),VLOOKUP(A28,'tekn adm - produktlistor'!$X$6:$AB$31,2,FALSE),"") ->  | D28: 0 | E28: 0 | F28: 0 | H28: =IF(ISTEXT(A28),VLOOKUP(A28,'tekn adm - produktlistor'!$X$6:$AC$31,6,FALSE),0) -> 0 | I28: =IF(ISTEXT(A28),VLOOKUP(A28,'tekn adm - produktlistor'!$X$6:$AB$31,3,FALSE)*C28,0)*H28 -> 0 | J28: =IF(ISTEXT(A28),VLOOKUP(A28,'tekn adm - produktlistor'!$X$6:$AB$31,4,FALSE)*C28,0) -> 0 | K28: =IF(ISTEXT(A28),VLOOKUP(A28,'tekn adm - produktlistor'!$X$6:$AB$31,5,FALSE)*C28,0) -> 0 | M28: 3 Växtnäringsutnyttjande (2)
A29: Summa | D29: =I29 -> 0 | E29: 0 | F29: 0 | I29: =SUBTOTAL(109,'3 Växtnäringsutnyttjande (1)'!$I$24:$I$28) -> 0 | J29: =SUBTOTAL(109,'3 Växtnäringsutnyttjande (1)'!$J$24:$J$28) -> 0 | K29: =SUBTOTAL(109,'3 Växtnäringsutnyttjande (1)'!$K$24:$K$28) -> 0 | M29: 3 Växtnäringsutnyttjande (3)
M30: 4 Energi och bränsle
M31: 5 Vattenanvändning
M32: 6 Resultat
M33: 6B Klimat
A34: ="Inköpta produkter " & Bakgrund!R7 -> Inköpta produkter Period 1
A35: Alternativ 1. Färdigt resultat
A37: Totalt för gården, kg per period. Fyll i uppgifter från växtnäringsbalansen
B38: Kväve | C38: Fosfor | D38: Kalium | E38: Egen kommentar | F38: Förklaring
A39: Tillförsel | F39: växtnäring i inköpta produkter samt kväve från kvävenedfall och ev kvävefixering
A40: Varav: kvävenedfall
A41: kvävefixering
A42: Bortförsel | F42: bortfört via sålt kött, mjölk, grödor och stallgödsel
A43: Differens: | B43: =B39-ABS(B42) -> 0 | C43: =C39-ABS(C42) -> 0 | D43: =D39-ABS(D42) -> 0 | F43: Positivt värde = överskott. Negativt värde = mer växtnäring bortförs än tillförs via inköpta produkter
A48: Alternativ 2. Beräkna mängden växtnäring själv
A49: Här fyller du i mängd inköpta produkter som förbrukats under perioden. Justera för ev överlagring av foder, gödsel etc.!
A51: Inköpt foder
A52: ="Uppgifterna hämtas från bladet "&C_G_Summering&". Gå tillbaks till det bladet om du vill kontrollera uppgifterna." -> Uppgifterna hämtas från bladet 2.3 Utfodrat. Gå tillbaks till det bladet om du vill kontrollera uppgifterna.
A53: Inköpt foder | B53: Enhet | C53: ts | D53: Kväve | E53: Fosfor | F53: Kalium | G53: Egen kommentar
A54: Totalt | B54: kg | C54: ='2.3 Utfodrat'!D44+'2.3 Utfodrat'!D26 -> 0 | D54: ='2.3 Utfodrat'!E44+'2.3 Utfodrat'!E26 -> 0 | E54: ='2.3 Utfodrat'!F44+'2.3 Utfodrat'!F26 -> 0 | F54: ='2.3 Utfodrat'!G44+'2.3 Utfodrat'!G26 -> 0 | I54: ='2.3 Utfodrat'!E44+'2.3 Utfodrat'!E26 -> 0 | J54: ='2.3 Utfodrat'!F44+'2.3 Utfodrat'!F26 -> 0 | K54: ='2.3 Utfodrat'!G44+'2.3 Utfodrat'!G26 -> 0
A57: =IF(Bakgrund!R13=1,"","Perioden är inte ett helt år: Justera mängden mineralgödsel så att det motsvarar ett genomsnitt över året. Om t ex perioden är 180 dagar och du använt 10 000 kg Axan under hela år, ska du fylla i 10 000*180/360 = 5 000 kg") -> Perioden är inte ett helt år: Justera mängden mineralgödsel så att det motsvarar ett genomsnitt över året. Om t ex perioden är 180 dagar och du använt 10 000 kg Axan under hela år, ska du fylla i 10 000*180/360 = 5 000 kg
A58: Mineralgödsel | B58: Enhet | C58: Mängd | D58: Kväve | E58: Fosfor | F58: Kalium | G58: Egen kommentar | H58: Kolumn2 | I58: Kväve2 | J58: Fosfor3 | K58: Kalium4
B59: =IF(ISTEXT(A59),VLOOKUP(A59,'tekn adm - produktlistor'!$B$6:$F$150,2,FALSE),"") ->  | D59: =I59 -> 0 | E59: =J59 -> 0 | F59: =K59 -> 0 | I59: =IF(ISTEXT(A59),VLOOKUP(A59,'tekn adm - produktlistor'!$B$6:$F$150,3,FALSE)*C59,0) -> 0 | J59: =IF(ISTEXT(A59),VLOOKUP(A59,'tekn adm - produktlistor'!$B$6:$F$150,4,FALSE)*C59,0) -> 0 | K59: =IF(ISTEXT(A59),VLOOKUP(A59,'tekn adm - produktlistor'!$B$6:$F$150,5,FALSE)*C59,0) -> 0
B60: =IF(ISTEXT(A60),VLOOKUP(A60,'tekn adm - produktlistor'!$B$6:$F$150,2,FALSE),"") ->  | D60: 0 | E60: 0 | F60: 0 | I60: =IF(ISTEXT(A60),VLOOKUP(A60,'tekn adm - produktlistor'!$B$6:$F$150,3,FALSE)*C60,0) -> 0 | J60: =IF(ISTEXT(A60),VLOOKUP(A60,'tekn adm - produktlistor'!$B$6:$F$150,4,FALSE)*C60,0) -> 0 | K60: =IF(ISTEXT(A60),VLOOKUP(A60,'tekn adm - produktlistor'!$B$6:$F$150,5,FALSE)*C60,0) -> 0
B61: =IF(ISTEXT(A61),VLOOKUP(A61,'tekn adm - produktlistor'!$B$6:$F$150,2,FALSE),"") ->  | D61: 0 | E61: 0 | F61: 0 | I61: =IF(ISTEXT(A61),VLOOKUP(A61,'tekn adm - produktlistor'!$B$6:$F$150,3,FALSE)*C61,0) -> 0 | J61: =IF(ISTEXT(A61),VLOOKUP(A61,'tekn adm - produktlistor'!$B$6:$F$150,4,FALSE)*C61,0) -> 0 | K61: =IF(ISTEXT(A61),VLOOKUP(A61,'tekn adm - produktlistor'!$B$6:$F$150,5,FALSE)*C61,0) -> 0
B62: =IF(ISTEXT(A62),VLOOKUP(A62,'tekn adm - produktlistor'!$B$6:$F$150,2,FALSE),"") ->  | D62: 0 | E62: 0 | F62: 0 | I62: =IF(ISTEXT(A62),VLOOKUP(A62,'tekn adm - produktlistor'!$B$6:$F$150,3,FALSE)*C62,0) -> 0 | J62: =IF(ISTEXT(A62),VLOOKUP(A62,'tekn adm - produktlistor'!$B$6:$F$150,4,FALSE)*C62,0) -> 0 | K62: =IF(ISTEXT(A62),VLOOKUP(A62,'tekn adm - produktlistor'!$B$6:$F$150,5,FALSE)*C62,0) -> 0
B63: =IF(ISTEXT(A63),VLOOKUP(A63,'tekn adm - produktlistor'!$B$6:$F$150,2,FALSE),"") ->  | D63: 0 | E63: 0 | F63: 0 | I63: =IF(ISTEXT(A63),VLOOKUP(A63,'tekn adm - produktlistor'!$B$6:$F$150,3,FALSE)*C63,0) -> 0 | J63: =IF(ISTEXT(A63),VLOOKUP(A63,'tekn adm - produktlistor'!$B$6:$F$150,4,FALSE)*C63,0) -> 0 | K63: =IF(ISTEXT(A63),VLOOKUP(A63,'tekn adm - produktlistor'!$B$6:$F$150,5,FALSE)*C63,0) -> 0
A64: Summa | D64: =I64 -> 0 | E64: 0 | F64: 0 | I64: =SUBTOTAL(109,Tabell91935[Kväve]) -> 0 | J64: =SUBTOTAL(109,Tabell91935[Fosfor]) -> 0 | K64: =SUBTOTAL(109,Tabell91935[Kalium]) -> 0
A67: =IF(Bakgrund!R13=1,"","Perioden är inte ett helt år: Justera mängden införd organisk gödsel så att det motsvarar ett genomsnitt över året. Om t ex perioden är 180 dagar och du använt 10 000 kg hönsgödsel under hela år, ska du fylla i 10 000*180/360 = 5 000 kg") -> Perioden är inte ett helt år: Justera mängden införd organisk gödsel så att det motsvarar ett genomsnitt över året. Om t ex perioden är 180 dagar och du använt 10 000 kg hönsgödsel under hela år, ska du fylla i 10 000*180/360 = 5 000 kg
A68: Enbart införd organisk gödsel, d v s ta inte med egen stallgödsel!
A69: Införd organisk gödsel | B69: Enhet | C69: Mängd | D69: Kväve | E69: Fosfor | F69: Kalium | G69: Egen kommentar | H69: Kolumn2 | I69: Kväve2 | J69: Fosfor3 | K69: Kalium4
B70: =IF(ISTEXT(A70),VLOOKUP(A70,'tekn adm - produktlistor'!$J$6:$N$97,2,FALSE),"") ->  | D70: =I70 -> 0 | E70: =J70 -> 0 | F70: =K70 -> 0 | I70: =IF(ISTEXT(A70),VLOOKUP(A70,'tekn adm - produktlistor'!$J$6:$N$97,3,FALSE)*C70,0) -> 0 | J70: =IF(ISTEXT(A70),VLOOKUP(A70,'tekn adm - produktlistor'!$J$6:$N$97,4,FALSE)*C70,0) -> 0 | K70: =IF(ISTEXT(A70),VLOOKUP(A70,'tekn adm - produktlistor'!$J$6:$N$97,3,FALSE)*C70,0) -> 0
B71: =IF(ISTEXT(A71),VLOOKUP(A71,'tekn adm - produktlistor'!$J$6:$N$97,2,FALSE),"") ->  | D71: 0 | E71: 0 | F71: 0 | I71: =IF(ISTEXT(A71),VLOOKUP(A71,'tekn adm - produktlistor'!$J$6:$N$97,3,FALSE)*C71,0) -> 0 | J71: =IF(ISTEXT(A71),VLOOKUP(A71,'tekn adm - produktlistor'!$J$6:$N$97,4,FALSE)*C71,0) -> 0 | K71: =IF(ISTEXT(A71),VLOOKUP(A71,'tekn adm - produktlistor'!$J$6:$N$97,3,FALSE)*C71,0) -> 0
B72: =IF(ISTEXT(A72),VLOOKUP(A72,'tekn adm - produktlistor'!$J$6:$N$97,2,FALSE),"") ->  | D72: 0 | E72: 0 | F72: =K72 -> 0 | I72: =IF(ISTEXT(A72),VLOOKUP(A72,'tekn adm - produktlistor'!$J$6:$N$97,3,FALSE)*C72,0) -> 0 | J72: =IF(ISTEXT(A72),VLOOKUP(A72,'tekn adm - produktlistor'!$J$6:$N$97,4,FALSE)*C72,0) -> 0 | K72: =IF(ISTEXT(A72),VLOOKUP(A72,'tekn adm - produktlistor'!$J$6:$N$97,3,FALSE)*C72,0) -> 0
B73: =IF(ISTEXT(A73),VLOOKUP(A73,'tekn adm - produktlistor'!$J$6:$N$97,2,FALSE),"") ->  | D73: 0 | E73: 0 | F73: 0 | I73: =IF(ISTEXT(A73),VLOOKUP(A73,'tekn adm - produktlistor'!$J$6:$N$97,3,FALSE)*C73,0) -> 0 | J73: =IF(ISTEXT(A73),VLOOKUP(A73,'tekn adm - produktlistor'!$J$6:$N$97,4,FALSE)*C73,0) -> 0 | K73: =IF(ISTEXT(A73),VLOOKUP(A73,'tekn adm - produktlistor'!$J$6:$N$97,3,FALSE)*C73,0) -> 0
B74: =IF(ISTEXT(A74),VLOOKUP(A74,'tekn adm - produktlistor'!$J$6:$N$97,2,FALSE),"") ->  | D74: 0 | E74: 0 | F74: 0 | I74: =IF(ISTEXT(A74),VLOOKUP(A74,'tekn adm - produktlistor'!$J$6:$N$97,3,FALSE)*C74,0) -> 0 | J74: =IF(ISTEXT(A74),VLOOKUP(A74,'tekn adm - produktlistor'!$J$6:$N$97,4,FALSE)*C74,0) -> 0 | K74: =IF(ISTEXT(A74),VLOOKUP(A74,'tekn adm - produktlistor'!$J$6:$N$97,3,FALSE)*C74,0) -> 0
A75: Summa | D75: =I75 -> 0 | E75: 0 | F75: 0 | I75: =SUBTOTAL(109,Tabell112137[Kväve]) -> 0 | J75: =SUBTOTAL(109,Tabell112137[Fosfor]) -> 0 | K75: =SUBTOTAL(109,Tabell112137[Kalium]) -> 0
A79: Utsäde och inköpt strö | B79: Enhet | C79: Mängd | D79: Kväve | E79: Fosfor | F79: Kalium | G79: Egen kommentar | H79: Kolumn2 | I79: Kväve2 | J79: Fosfor3 | K79: Kalium4
B80: =IF(ISTEXT(A80),VLOOKUP(A80,'tekn adm - produktlistor'!$BO$6:$BS$18,2,FALSE),"") ->  | D80: =I80 -> 0 | E80: =J80 -> 0 | F80: =K80 -> 0 | I80: =IF(ISTEXT(A80),VLOOKUP(A80,'tekn adm - produktlistor'!$BO$6:$BS$18,3,FALSE)*C80,0) -> 0 | J80: =IF(ISTEXT(A80),VLOOKUP(A80,'tekn adm - produktlistor'!$BO$6:$BS$18,4,FALSE)*C80,0) -> 0 | K80: =IF(ISTEXT(A80),VLOOKUP(A80,'tekn adm - produktlistor'!$BO$6:$BS$18,5,FALSE)*C80,0) -> 0
B81: =IF(ISTEXT(A81),VLOOKUP(A81,'tekn adm - produktlistor'!$BO$6:$BS$18,2,FALSE),"") ->  | D81: 0 | E81: 0 | F81: 0 | I81: =IF(ISTEXT(A81),VLOOKUP(A81,'tekn adm - produktlistor'!$BO$6:$BS$18,3,FALSE)*C81,0) -> 0 | J81: =IF(ISTEXT(A81),VLOOKUP(A81,'tekn adm - produktlistor'!$BO$6:$BS$18,4,FALSE)*C81,0) -> 0 | K81: =IF(ISTEXT(A81),VLOOKUP(A81,'tekn adm - produktlistor'!$BO$6:$BS$18,5,FALSE)*C81,0) -> 0
B82: =IF(ISTEXT(A82),VLOOKUP(A82,'tekn adm - produktlistor'!$BO$6:$BS$18,2,FALSE),"") ->  | D82: 0 | E82: 0 | F82: 0 | I82: =IF(ISTEXT(A82),VLOOKUP(A82,'tekn adm - produktlistor'!$BO$6:$BS$18,3,FALSE)*C82,0) -> 0 | J82: =IF(ISTEXT(A82),VLOOKUP(A82,'tekn adm - produktlistor'!$BO$6:$BS$18,4,FALSE)*C82,0) -> 0 | K82: =IF(ISTEXT(A82),VLOOKUP(A82,'tekn adm - produktlistor'!$BO$6:$BS$18,5,FALSE)*C82,0) -> 0
B83: =IF(ISTEXT(A83),VLOOKUP(A83,'tekn adm - produktlistor'!$BO$6:$BS$18,2,FALSE),"") ->  | D83: 0 | E83: 0 | F83: 0 | I83: =IF(ISTEXT(A83),VLOOKUP(A83,'tekn adm - produktlistor'!$BO$6:$BS$18,3,FALSE)*C83,0) -> 0 | J83: =IF(ISTEXT(A83),VLOOKUP(A83,'tekn adm - produktlistor'!$BO$6:$BS$18,4,FALSE)*C83,0) -> 0 | K83: =IF(ISTEXT(A83),VLOOKUP(A83,'tekn adm - produktlistor'!$BO$6:$BS$18,5,FALSE)*C83,0) -> 0
B84: =IF(ISTEXT(A84),VLOOKUP(A84,'tekn adm - produktlistor'!$BO$6:$BS$18,2,FALSE),"") ->  | D84: 0 | E84: 0 | F84: 0 | I84: =IF(ISTEXT(A84),VLOOKUP(A84,'tekn adm - produktlistor'!$BO$6:$BS$18,3,FALSE)*C84,0) -> 0 | J84: =IF(ISTEXT(A84),VLOOKUP(A84,'tekn adm - produktlistor'!$BO$6:$BS$18,4,FALSE)*C84,0) -> 0 | K84: =IF(ISTEXT(A84),VLOOKUP(A84,'tekn adm - produktlistor'!$BO$6:$BS$18,5,FALSE)*C84,0) -> 0
A85: Summa | D85: =I85 -> 0 | E85: 0 | F85: 0 | I85: =SUBTOTAL(109,Tabell122238[Kväve]) -> 0 | J85: =SUBTOTAL(109,Tabell122238[Fosfor]) -> 0 | K85: =SUBTOTAL(109,Tabell122238[Kalium]) -> 0
A90: Nyckeltal Växtnäringsutnyttjande per kg kött
A92: Totalt för gården | B92: Enhet | C92: Kväve | D92: Fosfor | E92: Kalium | F92: Förklaring
A93: Tillfört via inköp | B93: kg hela gården | C93: =I93 -> 0 | D93: =J93 -> 0 | E93: 0 | I93: =IF(Bakgrund!$AU$37>0,B39-B40-B41,I64+I75+I85+I54) -> 0 | J93: =IF(Bakgrund!$AU$37>0,C39-C40-C41,J64+J75+J85+J54) -> 0 | K93: =IF(Bakgrund!$AU$37>0,D39-D40-D41,K64+K75+K85+K54) -> 0
A94: Varav använt till avsalugrödor | B94: kg hela gården | C94: =I94 -> 0 | D94: =J94 -> 0 | E94: =K94 -> 0 | I94: =I29 -> 0 | J94: =J29 -> 0 | K94: =K29 -> 0
A95: Differens, till djuren | B95: kg hela gården | C95: 0 | D95: 0 | E95: 0 | F95: Tillfört minus växtnäring som använts till avsalugrödor. Stor mängd sålda grödor och/eller liten mängd inköpta varor ger lågt värde. Värdena kan t o m bli negativa om stor mängd grödor säljs. Lågt/negativt värde på kväve kan bero på omfattande odling av kvävefixerande grödor - detta kväve är inte inköpt och ingår därför inte i balansen. | I95: =I93-I94 -> 0 | J95: =J93-J94 -> 0 | K95: =K93-K94 -> 0
A97: Växtnäringsinsats | B97: g växtnäring per kg kött | C97: 0 | D97: =J97 -> 0 | E97: =K97 -> 0 | F97: Avdrag har gjorts för inköpt växtnäring som går till ev sålda grödor. Lågt värde innebär att det gått åt lite inköpta resurser i form av växtnäring för att producera köttet | H97: =SUM('6 Resultat'!Q35:'6 Resultat'!Q37) -> 0 | I97: =IF($H97=0,0,I95/$H97)*1000 -> 0 | J97: =IF($H97=0,0,J95/$H97)*1000 -> 0 | K97: =IF($H97=0,0,K95/$H97)*1000 -> 0
A99: Mängd producerat kött | B99: kg | C99: =I99 -> 0 | F99: Hämtat från 1.1 Kött | I99: ='1.1 Kött'!S86 -> 0
A101: Växtnäringsinnehåll i köttet | B101: kg | C101: =I101 -> 0 | D101: =J101 -> 0 | E101: =K101 -> 0 | F101: Mängd växtnäring i producerat kött | H101: Grisar | I101: =VLOOKUP($H101,'tekn adm - produktlistor'!$BU$6:$BY$11,3,FALSE)*$H97 -> 0 | J101: =VLOOKUP($H101,'tekn adm - produktlistor'!$BU$6:$BY$11,4,FALSE)*$H97 -> 0 | K101: =VLOOKUP($H101,'tekn adm - produktlistor'!$BU$6:$BY$11,5,FALSE)*$H97 -> 0
A102: Växtnäringsinsats/växtnäringsinnehåll i köttet | B102: % | C102: =I102 -> 0 | D102: 0 | E102: 0 | F102: Ju lägre tal, desto mer kött har producerats per kg inköpt växtnäring. Obs, i Kväve ingår inte N-fixering, så omfattande odling av kvävefixerande grödor kan ge ett mycket lågt tal. | I102: =IF(I101=0,0,I95/I101) -> 0 | J102: =IF(J101=0,0,J95/J101) -> 0 | K102: =IF(K101=0,0,K95/K101) -> 0

Sheet 3 Växtnäringsutnyttjande (2)
A1: ="3 Växtnäringsutnyttjande period 2, " &period_2 -> 3 Växtnäringsutnyttjande period 2, Period 2 | M1: Det här betyder färgerna:
